Workbook

Sheet Round 125
A10: IOM is pleased to share with you the latest Displacement Tracking Matrix (DTM) Dataset Round 125, covering the months of January, February and March 2022
C11: During this round of data collection, DTM has identified 1,184,818 internally displaced persons (203,447 households), dispersed across 18 governorates, 100 districts and 2,803 locations in Iraq
D15: You can find in the Summary tab the number of IDPs breakdown by:
D16: Shelter Type
D17: Governorate of Origin
D18: Period and Governorate of Displacement
D19: Period of Displacement
D20: District of Displacement
D22: Dataset
D23: The whole dataset is located under DTM Dataset tab
D25: Other tabs
D26: Period of Displacement includes a chart that shows the number of IDPs by Period of Displacement
D27: Shelter Type is a breakdown chart that shows Shelter Type by Governorate of Displacement

Sheet Summary
A1: Summary
A2: #Districts | B2: =SUMPRODUCT(1/COUNTIF('DTM Dataset'!C4:C2806,'DTM Dataset'!C4:C2806&"")) -> 100
A3: #Locations | B3: =COUNT('DTM Dataset'!A:A) -> 2803
A4: #IDP Households | B4: =SUM('DTM Dataset'!I:I) -> 203447
A5: #Individuals | B5: =SUM('DTM Dataset'!J:J) -> 1184818
A7: Number of IDP individuals by Shelter Type
B8: Shelter Type(in red, classified as critical shelters)
A9: Governorate of Displacement | B9: Camp | C9: Host families | D9: Hotel/Motel or short-term rental | E9: Own Property | F9: Apartment/House (not owned) (habitable) | G9: Apartment/House (not owned) (uninhabitable) | H9: Tent/Caravan/makeshift shelter/mud or block house | I9: Unfinished/Abandoned building | J9: Public Buildings or Collective shelters | K9: Religious building | L9: School building | M9: Other Critical shelter | N9: Unknown shelter type | O9: Total
A10: Al-Anbar | B10: =SUMIF('DTM Dataset'!B:B,A10,'DTM Dataset'!M:M) -> 0 | C10: =SUMIF('DTM Dataset'!B:B,A10,'DTM Dataset'!N:N) -> 2274 | D10: =SUMIF('DTM Dataset'!B:B,A10,'DTM Dataset'!O:O) -> 0 | E10: =SUMIF('DTM Dataset'!B:B,A10,'DTM Dataset'!P:P) -> 300 | F10: =SUMIF('DTM Dataset'!B:B,A10,'DTM Dataset'!Q:Q) -> 10062 | G10: =SUMIF('DTM Dataset'!B:B,A10,'DTM Dataset'!R:R) -> 276 | H10: =SUMIF('DTM Dataset'!B:B,A10,'DTM Dataset'!S:S) -> 16638 | I10: =SUMIF('DTM Dataset'!B:B,A10,'DTM Dataset'!T:T) -> 1002 | J10: =SUMIF('DTM Dataset'!B:B,A10,'DTM Dataset'!U:U) -> 4788 | K10: =SUMIF('DTM Dataset'!B:B,A10,'DTM Dataset'!V:V) -> 162 | L10: =SUMIF('DTM Dataset'!B:B,A10,'DTM Dataset'!W:W) -> 12 | M10: =SUMIF('DTM Dataset'!B:B,A10,'DTM Dataset'!X:X) -> 0 | N10: =SUMIF('DTM Dataset'!B:B,B10,'DTM Dataset'!Y:Y) -> 0 | O10: =SUM(B10:N10) -> 35514
A11: Al-Basrah | B11: =SUMIF('DTM Dataset'!B:B,A11,'DTM Dataset'!M:M) -> 0 | C11: =SUMIF('DTM Dataset'!B:B,A11,'DTM Dataset'!N:N) -> 1104 | D11: =SUMIF('DTM Dataset'!B:B,A11,'DTM Dataset'!O:O) -> 84 | E11: =SUMIF('DTM Dataset'!B:B,A11,'DTM Dataset'!P:P) -> 438 | F11: =SUMIF('DTM Dataset'!B:B,A11,'DTM Dataset'!Q:Q) -> 3672 | G11: =SUMIF('DTM Dataset'!B:B,A11,'DTM Dataset'!R:R) -> 6 | H11: =SUMIF('DTM Dataset'!B:B,A11,'DTM Dataset'!S:S) -> 162 | I11: =SUMIF('DTM Dataset'!B:B,A11,'DTM Dataset'!T:T) -> 0 | J11: =SUMIF('DTM Dataset'!B:B,A11,'DTM Dataset'!U:U) -> 0 | K11: =SUMIF('DTM Dataset'!B:B,A11,'DTM Dataset'!V:V) -> 0 | L11: =SUMIF('DTM Dataset'!B:B,A11,'DTM Dataset'!W:W) -> 0 | M11: =SUMIF('DTM Dataset'!B:B,A11,'DTM Dataset'!X:X) -> 0 | N11: =SUMIF('DTM Dataset'!B:B,A11,'DTM Dataset'!Y:Y) -> 0 | O11: 5466
A12: Al-Muthanna | B12: =SUMIF('DTM Dataset'!B:B,A12,'DTM Dataset'!M:M) -> 0 | C12: =SUMIF('DTM Dataset'!B:B,A12,'DTM Dataset'!N:N) -> 42 | D12: =SUMIF('DTM Dataset'!B:B,A12,'DTM Dataset'!O:O) -> 0 | E12: =SUMIF('DTM Dataset'!B:B,A12,'DTM Dataset'!P:P) -> 0 | F12: =SUMIF('DTM Dataset'!B:B,A12,'DTM Dataset'!Q:Q) -> 792 | G12: =SUMIF('DTM Dataset'!B:B,A12,'DTM Dataset'!R:R) -> 0 | H12: =SUMIF('DTM Dataset'!B:B,A12,'DTM Dataset'!S:S) -> 0 | I12: =SUMIF('DTM Dataset'!B:B,A12,'DTM Dataset'!T:T) -> 24 | J12: =SUMIF('DTM Dataset'!B:B,A12,'DTM Dataset'!U:U) -> 0 | K12: =SUMIF('DTM Dataset'!B:B,A12,'DTM Dataset'!V:V) -> 12 | L12: =SUMIF('DTM Dataset'!B:B,A12,'DTM Dataset'!W:W) -> 0 | M12: =SUMIF('DTM Dataset'!B:B,A12,'DTM Dataset'!X:X) -> 0 | N12: =SUMIF('DTM Dataset'!B:B,A12,'DTM Dataset'!Y:Y) -> 0 | O12: 870
A13: Al-Najaf | B13: =SUMIF('DTM Dataset'!B:B,A13,'DTM Dataset'!M:M) -> 0 | C13: =SUMIF('DTM Dataset'!B:B,A13,'DTM Dataset'!N:N) -> 0 | D13: =SUMIF('DTM Dataset'!B:B,A13,'DTM Dataset'!O:O) -> 0 | E13: =SUMIF('DTM Dataset'!B:B,A13,'DTM Dataset'!P:P) -> 1464 | F13: =SUMIF('DTM Dataset'!B:B,A13,'DTM Dataset'!Q:Q) -> 6312 | G13: =SUMIF('DTM Dataset'!B:B,A13,'DTM Dataset'!R:R) -> 18 | H13: =SUMIF('DTM Dataset'!B:B,A13,'DTM Dataset'!S:S) -> 0 | I13: =SUMIF('DTM Dataset'!B:B,A13,'DTM Dataset'!T:T) -> 0 | J13: =SUMIF('DTM Dataset'!B:B,A13,'DTM Dataset'!U:U) -> 540 | K13: =SUMIF('DTM Dataset'!B:B,A13,'DTM Dataset'!V:V) -> 0 | L13: =SUMIF('DTM Dataset'!B:B,A13,'DTM Dataset'!W:W) -> 0 | M13: =SUMIF('DTM Dataset'!B:B,A13,'DTM Dataset'!X:X) -> 0 | N13: =SUMIF('DTM Dataset'!B:B,A13,'DTM Dataset'!Y:Y) -> 0 | O13: 8334
A14: Al-Qadissiya | B14: =SUMIF('DTM Dataset'!B:B,A14,'DTM Dataset'!M:M) -> 0 | C14: =SUMIF('DTM Dataset'!B:B,A14,'DTM Dataset'!N:N) -> 6 | D14: =SUMIF('DTM Dataset'!B:B,A14,'DTM Dataset'!O:O) -> 0 | E14: =SUMIF('DTM Dataset'!B:B,A14,'DTM Dataset'!P:P) -> 0 | F14: =SUMIF('DTM Dataset'!B:B,A14,'DTM Dataset'!Q:Q) -> 2802 | G14: =SUMIF('DTM Dataset'!B:B,A14,'DTM Dataset'!R:R) -> 0 | H14: =SUMIF('DTM Dataset'!B:B,A14,'DTM Dataset'!S:S) -> 0 | I14: =SUMIF('DTM Dataset'!B:B,A14,'DTM Dataset'!T:T) -> 18 | J14: =SUMIF('DTM Dataset'!B:B,A14,'DTM Dataset'!U:U) -> 126 | K14: =SUMIF('DTM Dataset'!B:B,A14,'DTM Dataset'!V:V) -> 288 | L14: =SUMIF('DTM Dataset'!B:B,A14,'DTM Dataset'!W:W) -> 0 | M14: =SUMIF('DTM Dataset'!B:B,A14,'DTM Dataset'!X:X) -> 0 | N14: =SUMIF('DTM Dataset'!B:B,A14,'DTM Dataset'!Y:Y) -> 0 | O14: 3240
A15: Al-Sulaymaniyah | B15: =SUMIF('DTM Dataset'!B:B,A15,'DTM Dataset'!M:M) -> 11490 | C15: =SUMIF('DTM Dataset'!B:B,A15,'DTM Dataset'!N:N) -> 18 | D15: =SUMIF('DTM Dataset'!B:B,A15,'DTM Dataset'!O:O) -> 36 | E15: =SUMIF('DTM Dataset'!B:B,A15,'DTM Dataset'!P:P) -> 4734 | F15: =SUMIF('DTM Dataset'!B:B,A15,'DTM Dataset'!Q:Q) -> 119262 | G15: =SUMIF('DTM Dataset'!B:B,A15,'DTM Dataset'!R:R) -> 54 | H15: =SUMIF('DTM Dataset'!B:B,A15,'DTM Dataset'!S:S) -> 36 | I15: =SUMIF('DTM Dataset'!B:B,A15,'DTM Dataset'!T:T) -> 96 | J15: =SUMIF('DTM Dataset'!B:B,A15,'DTM Dataset'!U:U) -> 0 | K15: =SUMIF('DTM Dataset'!B:B,A15,'DTM Dataset'!V:V) -> 12 | L15: =SUMIF('DTM Dataset'!B:B,A15,'DTM Dataset'!W:W) -> 12 | M15: =SUMIF('DTM Dataset'!B:B,A15,'DTM Dataset'!X:X) -> 0 | N15: =SUMIF('DTM Dataset'!B:B,A15,'DTM Dataset'!Y:Y) -> 0 | O15: 135750
A16: Babil | B16: =SUMIF('DTM Dataset'!B:B,A16,'DTM Dataset'!M:M) -> 0 | C16: =SUMIF('DTM Dataset'!B:B,A16,'DTM Dataset'!N:N) -> 510 | D16: =SUMIF('DTM Dataset'!B:B,A16,'DTM Dataset'!O:O) -> 0 | E16: =SUMIF('DTM Dataset'!B:B,A16,'DTM Dataset'!P:P) -> 1608 | F16: =SUMIF('DTM Dataset'!B:B,A16,'DTM Dataset'!Q:Q) -> 13338 | G16: =SUMIF('DTM Dataset'!B:B,A16,'DTM Dataset'!R:R) -> 30 | H16: =SUMIF('DTM Dataset'!B:B,A16,'DTM Dataset'!S:S) -> 540 | I16: =SUMIF('DTM Dataset'!B:B,A16,'DTM Dataset'!T:T) -> 30 | J16: =SUMIF('DTM Dataset'!B:B,A16,'DTM Dataset'!U:U) -> 0 | K16: =SUMIF('DTM Dataset'!B:B,A16,'DTM Dataset'!V:V) -> 0 | L16: =SUMIF('DTM Dataset'!B:B,A16,'DTM Dataset'!W:W) -> 0 | M16: =SUMIF('DTM Dataset'!B:B,A16,'DTM Dataset'!X:X) -> 84 | N16: =SUMIF('DTM Dataset'!B:B,A16,'DTM Dataset'!Y:Y) -> 0 | O16: 16140
A17: Baghdad | B17: =SUMIF('DTM Dataset'!B:B,A17,'DTM Dataset'!M:M) -> 0 | C17: =SUMIF('DTM Dataset'!B:B,A17,'DTM Dataset'!N:N) -> 1230 | D17: =SUMIF('DTM Dataset'!B:B,A17,'DTM Dataset'!O:O) -> 0 | E17: =SUMIF('DTM Dataset'!B:B,A17,'DTM Dataset'!P:P) -> 894 | F17: =SUMIF('DTM Dataset'!B:B,A17,'DTM Dataset'!Q:Q) -> 14844 | G17: =SUMIF('DTM Dataset'!B:B,A17,'DTM Dataset'!R:R) -> 1116 | H17: =SUMIF('DTM Dataset'!B:B,A17,'DTM Dataset'!S:S) -> 8256 | I17: =SUMIF('DTM Dataset'!B:B,A17,'DTM Dataset'!T:T) -> 132 | J17: =SUMIF('DTM Dataset'!B:B,A17,'DTM Dataset'!U:U) -> 30 | K17: =SUMIF('DTM Dataset'!B:B,A17,'DTM Dataset'!V:V) -> 60 | L17: =SUMIF('DTM Dataset'!B:B,A17,'DTM Dataset'!W:W) -> 66 | M17: =SUMIF('DTM Dataset'!B:B,A17,'DTM Dataset'!X:X) -> 0 | N17: =SUMIF('DTM Dataset'!B:B,A17,'DTM Dataset'!Y:Y) -> 0 | O17: 26628
A18: Diyala | B18: =SUMIF('DTM Dataset'!B:B,A18,'DTM Dataset'!M:M) -> 510 | C18: =SUMIF('DTM Dataset'!B:B,A18,'DTM Dataset'!N:N) -> 4122 | D18: =SUMIF('DTM Dataset'!B:B,A18,'DTM Dataset'!O:O) -> 0 | E18: =SUMIF('DTM Dataset'!B:B,A18,'DTM Dataset'!P:P) -> 660 | F18: =SUMIF('DTM Dataset'!B:B,A18,'DTM Dataset'!Q:Q) -> 42840 | G18: =SUMIF('DTM Dataset'!B:B,A18,'DTM Dataset'!R:R) -> 1866 | H18: =SUMIF('DTM Dataset'!B:B,A18,'DTM Dataset'!S:S) -> 60 | I18: =SUMIF('DTM Dataset'!B:B,A18,'DTM Dataset'!T:T) -> 342 | J18: =SUMIF('DTM Dataset'!B:B,A18,'DTM Dataset'!U:U) -> 0 | K18: =SUMIF('DTM Dataset'!B:B,A18,'DTM Dataset'!V:V) -> 0 | L18: =SUMIF('DTM Dataset'!B:B,A18,'DTM Dataset'!W:W) -> 0 | M18: =SUMIF('DTM Dataset'!B:B,A18,'DTM Dataset'!X:X) -> 0 | N18: =SUMIF('DTM Dataset'!B:B,A18,'DTM Dataset'!Y:Y) -> 0 | O18: 50400
A19: Duhok | B19: =SUMIF('DTM Dataset'!B:B,A19,'DTM Dataset'!M:M) -> 109305 | C19: =SUMIF('DTM Dataset'!B:B,A19,'DTM Dataset'!N:N) -> 0 | D19: =SUMIF('DTM Dataset'!B:B,A19,'DTM Dataset'!O:O) -> 96 | E19: =SUMIF('DTM Dataset'!B:B,A19,'DTM Dataset'!P:P) -> 7758 | F19: =SUMIF('DTM Dataset'!B:B,A19,'DTM Dataset'!Q:Q) -> 111024 | G19: =SUMIF('DTM Dataset'!B:B,A19,'DTM Dataset'!R:R) -> 0 | H19: =SUMIF('DTM Dataset'!B:B,A19,'DTM Dataset'!S:S) -> 12480 | I19: =SUMIF('DTM Dataset'!B:B,A19,'DTM Dataset'!T:T) -> 8226 | J19: =SUMIF('DTM Dataset'!B:B,A19,'DTM Dataset'!U:U) -> 36 | K19: =SUMIF('DTM Dataset'!B:B,A19,'DTM Dataset'!V:V) -> 12 | L19: =SUMIF('DTM Dataset'!B:B,A19,'DTM Dataset'!W:W) -> 0 | M19: =SUMIF('DTM Dataset'!B:B,A19,'DTM Dataset'!X:X) -> 48 | N19: =SUMIF('DTM Dataset'!B:B,A19,'DTM Dataset'!Y:Y) -> 0 | O19: 248985
A20: Erbil | B20: =SUMIF('DTM Dataset'!B:B,A20,'DTM Dataset'!M:M) -> 13170 | C20: =SUMIF('DTM Dataset'!B:B,A20,'DTM Dataset'!N:N) -> 48 | D20: =SUMIF('DTM Dataset'!B:B,A20,'DTM Dataset'!O:O) -> 222 | E20: =SUMIF('DTM Dataset'!B:B,A20,'DTM Dataset'!P:P) -> 798 | F20: =SUMIF('DTM Dataset'!B:B,A20,'DTM Dataset'!Q:Q) -> 196170 | G20: =SUMIF('DTM Dataset'!B:B,A20,'DTM Dataset'!R:R) -> 0 | H20: =SUMIF('DTM Dataset'!B:B,A20,'DTM Dataset'!S:S) -> 156 | I20: =SUMIF('DTM Dataset'!B:B,A20,'DTM Dataset'!T:T) -> 378 | J20: =SUMIF('DTM Dataset'!B:B,A20,'DTM Dataset'!U:U) -> 408 | K20: =SUMIF('DTM Dataset'!B:B,A20,'DTM Dataset'!V:V) -> 0 | L20: =SUMIF('DTM Dataset'!B:B,A20,'DTM Dataset'!W:W) -> 0 | M20: =SUMIF('DTM Dataset'!B:B,A20,'DTM Dataset'!X:X) -> 0 | N20: =SUMIF('DTM Dataset'!B:B,A20,'DTM Dataset'!Y:Y) -> 0 | O20: 211350
A21: Kerbala | B21: =SUMIF('DTM Dataset'!B:B,A21,'DTM Dataset'!M:M) -> 0 | C21: =SUMIF('DTM Dataset'!B:B,A21,'DTM Dataset'!N:N) -> 30 | D21: =SUMIF('DTM Dataset'!B:B,A21,'DTM Dataset'!O:O) -> 0 | E21: =SUMIF('DTM Dataset'!B:B,A21,'DTM Dataset'!P:P) -> 4008 | F21: =SUMIF('DTM Dataset'!B:B,A21,'DTM Dataset'!Q:Q) -> 6618 | G21: =SUMIF('DTM Dataset'!B:B,A21,'DTM Dataset'!R:R) -> 0 | H21: =SUMIF('DTM Dataset'!B:B,A21,'DTM Dataset'!S:S) -> 150 | I21: =SUMIF('DTM Dataset'!B:B,A21,'DTM Dataset'!T:T) -> 0 | J21: =SUMIF('DTM Dataset'!B:B,A21,'DTM Dataset'!U:U) -> 0 | K21: =SUMIF('DTM Dataset'!B:B,A21,'DTM Dataset'!V:V) -> 36 | L21: =SUMIF('DTM Dataset'!B:B,A21,'DTM Dataset'!W:W) -> 0 | M21: =SUMIF('DTM Dataset'!B:B,A21,'DTM Dataset'!X:X) -> 0 | N21: =SUMIF('DTM Dataset'!B:B,A21,'DTM Dataset'!Y:Y) -> 0 | O21: 10842
A22: Kirkuk | B22: =SUMIF('DTM Dataset'!B:B,A22,'DTM Dataset'!M:M) -> 0 | C22: =SUMIF('DTM Dataset'!B:B,A22,'DTM Dataset'!N:N) -> 462 | D22: =SUMIF('DTM Dataset'!B:B,A22,'DTM Dataset'!O:O) -> 0 | E22: =SUMIF('DTM Dataset'!B:B,A22,'DTM Dataset'!P:P) -> 2196 | F22: =SUMIF('DTM Dataset'!B:B,A22,'DTM Dataset'!Q:Q) -> 79524 | G22: =SUMIF('DTM Dataset'!B:B,A22,'DTM Dataset'!R:R) -> 1392 | H22: =SUMIF('DTM Dataset'!B:B,A22,'DTM Dataset'!S:S) -> 7746 | I22: =SUMIF('DTM Dataset'!B:B,A22,'DTM Dataset'!T:T) -> 36 | J22: =SUMIF('DTM Dataset'!B:B,A22,'DTM Dataset'!U:U) -> 30 | K22: =SUMIF('DTM Dataset'!B:B,A22,'DTM Dataset'!V:V) -> 0 | L22: =SUMIF('DTM Dataset'!B:B,A22,'DTM Dataset'!W:W) -> 66 | M22: =SUMIF('DTM Dataset'!B:B,A22,'DTM Dataset'!X:X) -> 0 | N22: =SUMIF('DTM Dataset'!B:B,A22,'DTM Dataset'!Y:Y) -> 0 | O22: 91452
A23: Maysan | B23: =SUMIF('DTM Dataset'!B:B,A23,'DTM Dataset'!M:M) -> 0 | C23: =SUMIF('DTM Dataset'!B:B,A23,'DTM Dataset'!N:N) -> 90 | D23: =SUMIF('DTM Dataset'!B:B,A23,'DTM Dataset'!O:O) -> 0 | E23: =SUMIF('DTM Dataset'!B:B,A23,'DTM Dataset'!P:P) -> 36 | F23: =SUMIF('DTM Dataset'!B:B,A23,'DTM Dataset'!Q:Q) -> 1584 | G23: =SUMIF('DTM Dataset'!B:B,A23,'DTM Dataset'!R:R) -> 0 | H23: =SUMIF('DTM Dataset'!B:B,A23,'DTM Dataset'!S:S) -> 156 | I23: =SUMIF('DTM Dataset'!B:B,A23,'DTM Dataset'!T:T) -> 0 | J23: =SUMIF('DTM Dataset'!B:B,A23,'DTM Dataset'!U:U) -> 0 | K23: =SUMIF('DTM Dataset'!B:B,A23,'DTM Dataset'!V:V) -> 6 | L23: =SUMIF('DTM Dataset'!B:B,A23,'DTM Dataset'!W:W) -> 0 | M23: =SUMIF('DTM Dataset'!B:B,A23,'DTM Dataset'!X:X) -> 0 | N23: =SUMIF('DTM Dataset'!B:B,A23,'DTM Dataset'!Y:Y) -> 0 | O23: 1872
A24: Ninewa | B24: =SUMIF('DTM Dataset'!B:B,A24,'DTM Dataset'!M:M) -> 44845 | C24: =SUMIF('DTM Dataset'!B:B,A24,'DTM Dataset'!N:N) -> 10212 | D24: =SUMIF('DTM Dataset'!B:B,A24,'DTM Dataset'!O:O) -> 0 | E24: =SUMIF('DTM Dataset'!B:B,A24,'DTM Dataset'!P:P) -> 8064 | F24: =SUMIF('DTM Dataset'!B:B,A24,'DTM Dataset'!Q:Q) -> 192270 | G24: =SUMIF('DTM Dataset'!B:B,A24,'DTM Dataset'!R:R) -> 5160 | H24: =SUMIF('DTM Dataset'!B:B,A24,'DTM Dataset'!S:S) -> 6510 | I24: =SUMIF('DTM Dataset'!B:B,A24,'DTM Dataset'!T:T) -> 5610 | J24: =SUMIF('DTM Dataset'!B:B,A24,'DTM Dataset'!U:U) -> 0 | K24: =SUMIF('DTM Dataset'!B:B,A24,'DTM Dataset'!V:V) -> 156 | L24: =SUMIF('DTM Dataset'!B:B,A24,'DTM Dataset'!W:W) -> 240 | M24: =SUMIF('DTM Dataset'!B:B,A24,'DTM Dataset'!X:X) -> 264 | N24: =SUMIF('DTM Dataset'!B:B,A24,'DTM Dataset'!Y:Y) -> 762 | O24: 274093
A25: Salah al-Din | B25: =SUMIF('DTM Dataset'!B:B,A25,'DTM Dataset'!M:M) -> 0 | C25: =SUMIF('DTM Dataset'!B:B,A25,'DTM Dataset'!N:N) -> 3618 | D25: =SUMIF('DTM Dataset'!B:B,A25,'DTM Dataset'!O:O) -> 0 | E25: =SUMIF('DTM Dataset'!B:B,A25,'DTM Dataset'!P:P) -> 1764 | F25: =SUMIF('DTM Dataset'!B:B,A25,'DTM Dataset'!Q:Q) -> 34506 | G25: =SUMIF('DTM Dataset'!B:B,A25,'DTM Dataset'!R:R) -> 6312 | H25: =SUMIF('DTM Dataset'!B:B,A25,'DTM Dataset'!S:S) -> 8316 | I25: =SUMIF('DTM Dataset'!B:B,A25,'DTM Dataset'!T:T) -> 936 | J25: =SUMIF('DTM Dataset'!B:B,A25,'DTM Dataset'!U:U) -> 90 | K25: =SUMIF('DTM Dataset'!B:B,A25,'DTM Dataset'!V:V) -> 48 | L25: =SUMIF('DTM Dataset'!B:B,A25,'DTM Dataset'!W:W) -> 762 | M25: =SUMIF('DTM Dataset'!B:B,A25,'DTM Dataset'!X:X) -> 42 | N25: =SUMIF('DTM Dataset'!B:B,A25,'DTM Dataset'!Y:Y) -> 0 | O25: 56394
A26: Thi Qar | B26: =SUMIF('DTM Dataset'!B:B,A26,'DTM Dataset'!M:M) -> 0 | C26: =SUMIF('DTM Dataset'!B:B,A26,'DTM Dataset'!N:N) -> 402 | D26: =SUMIF('DTM Dataset'!B:B,A26,'DTM Dataset'!O:O) -> 0 | E26: =SUMIF('DTM Dataset'!B:B,A26,'DTM Dataset'!P:P) -> 582 | F26: =SUMIF('DTM Dataset'!B:B,A26,'DTM Dataset'!Q:Q) -> 1902 | G26: =SUMIF('DTM Dataset'!B:B,A26,'DTM Dataset'!R:R) -> 0 | H26: =SUMIF('DTM Dataset'!B:B,A26,'DTM Dataset'!S:S) -> 210 | I26: =SUMIF('DTM Dataset'!B:B,A26,'DTM Dataset'!T:T) -> 0 | J26: =SUMIF('DTM Dataset'!B:B,A26,'DTM Dataset'!U:U) -> 30 | K26: =SUMIF('DTM Dataset'!B:B,A26,'DTM Dataset'!V:V) -> 18 | L26: =SUMIF('DTM Dataset'!B:B,A26,'DTM Dataset'!W:W) -> 0 | M26: =SUMIF('DTM Dataset'!B:B,A26,'DTM Dataset'!X:X) -> 0 | N26: =SUMIF('DTM Dataset'!B:B,A26,'DTM Dataset'!Y:Y) -> 0 | O26: 3144
A27: Wassit | B27: =SUMIF('DTM Dataset'!B:B,A27,'DTM Dataset'!M:M) -> 0 | C27: =SUMIF('DTM Dataset'!B:B,A27,'DTM Dataset'!N:N) -> 156 | D27: =SUMIF('DTM Dataset'!B:B,A27,'DTM Dataset'!O:O) -> 0 | E27: =SUMIF('DTM Dataset'!B:B,A27,'DTM Dataset'!P:P) -> 126 | F27: =SUMIF('DTM Dataset'!B:B,A27,'DTM Dataset'!Q:Q) -> 3726 | G27: =SUMIF('DTM Dataset'!B:B,A27,'DTM Dataset'!R:R) -> 0 | H27: =SUMIF('DTM Dataset'!B:B,A27,'DTM Dataset'!S:S) -> 0 | I27: =SUMIF('DTM Dataset'!B:B,A27,'DTM Dataset'!T:T) -> 336 | J27: =SUMIF('DTM Dataset'!B:B,A27,'DTM Dataset'!U:U) -> 0 | K27: =SUMIF('DTM Dataset'!B:B,A27,'DTM Dataset'!V:V) -> 0 | L27: =SUMIF('DTM Dataset'!B:B,A27,'DTM Dataset'!W:W) -> 0 | M27: =SUMIF('DTM Dataset'!B:B,A27,'DTM Dataset'!X:X) -> 0 | N27: =SUMIF('DTM Dataset'!B:B,A27,'DTM Dataset'!Y:Y) -> 0 | O27: 4344
A28: Total | B28: =SUM(B10:B27) -> 179320 | C28: 24324 | D28: 438 | E28: 35430 | F28: 841248 | G28: 16230 | H28: 61416 | I28: 17166 | J28: 6078 | K28: 810 | L28: =SUM(L10:L27) -> 1158 | M28: 438 | N28: 762 | O28: 1184818
A30: Number of IDP individuals by Governorate of Origin
B31: Governorate of Origin
A32: Governorate of Displacement | B32: Al-Anbar | C32: Babil | D32: Baghdad | E32: Diyala | F32: Erbil | G32: Kirkuk | H32: Ninewa | I32: Salah al-Din | J32: Total
A33: Al-Anbar | B33: =SUMIF('DTM Dataset'!B:B,A33,'DTM Dataset'!Z:Z) -> 25812 | C33: =SUMIF('DTM Dataset'!B:B,A33,'DTM Dataset'!AA:AA) -> 9150 | D33: =SUMIF('DTM Dataset'!B:B,A33,'DTM Dataset'!AB:AB) -> 270 | E33: =SUMIF('DTM Dataset'!B:B,A33,'DTM Dataset'!AE:AE) -> 6 | F33: =SUMIF('DTM Dataset'!B:B,A33,'DTM Dataset'!AF:AF) -> 0 | G33: =SUMIF('DTM Dataset'!B:B,A33,'DTM Dataset'!AH:AH) -> 24 | H33: =SUMIF('DTM Dataset'!B:B,A33,'DTM Dataset'!AL:AL) -> 72 | I33: =SUMIF('DTM Dataset'!B:B,A33,'DTM Dataset'!AN:AN) -> 180 | J33: =SUM(B33:I33) -> 35514
A34: Al-Basrah | B34: =SUMIF('DTM Dataset'!B:B,A34,'DTM Dataset'!Z:Z) -> 1050 | C34: =SUMIF('DTM Dataset'!B:B,A34,'DTM Dataset'!AA:AA) -> 108 | D34: =SUMIF('DTM Dataset'!B:B,A34,'DTM Dataset'!AB:AB) -> 162 | E34: =SUMIF('DTM Dataset'!B:B,A34,'DTM Dataset'!AE:AE) -> 156 | F34: =SUMIF('DTM Dataset'!B:B,A34,'DTM Dataset'!AF:AF) -> 0 | G34: =SUMIF('DTM Dataset'!B:B,A34,'DTM Dataset'!AH:AH) -> 552 | H34: =SUMIF('DTM Dataset'!B:B,A34,'DTM Dataset'!AL:AL) -> 1530 | I34: =SUMIF('DTM Dataset'!B:B,A34,'DTM Dataset'!AN:AN) -> 1908 | J34: 5466
A35: Al-Muthanna | B35: =SUMIF('DTM Dataset'!B:B,A35,'DTM Dataset'!Z:Z) -> 90 | C35: =SUMIF('DTM Dataset'!B:B,A35,'DTM Dataset'!AA:AA) -> 0 | D35: =SUMIF('DTM Dataset'!B:B,A35,'DTM Dataset'!AB:AB) -> 120 | E35: =SUMIF('DTM Dataset'!B:B,A35,'DTM Dataset'!AE:AE) -> 24 | F35: =SUMIF('DTM Dataset'!B:B,A35,'DTM Dataset'!AF:AF) -> 0 | G35: =SUMIF('DTM Dataset'!B:B,A35,'DTM Dataset'!AH:AH) -> 78 | H35: =SUMIF('DTM Dataset'!B:B,A35,'DTM Dataset'!AL:AL) -> 492 | I35: =SUMIF('DTM Dataset'!B:B,A35,'DTM Dataset'!AN:AN) -> 66 | J35: 870
A36: Al-Najaf | B36: =SUMIF('DTM Dataset'!B:B,A36,'DTM Dataset'!Z:Z) -> 12 | C36: =SUMIF('DTM Dataset'!B:B,A36,'DTM Dataset'!AA:AA) -> 0 | D36: =SUMIF('DTM Dataset'!B:B,A36,'DTM Dataset'!AB:AB) -> 0 | E36: =SUMIF('DTM Dataset'!B:B,A36,'DTM Dataset'!AE:AE) -> 42 | F36: =SUMIF('DTM Dataset'!B:B,A36,'DTM Dataset'!AF:AF) -> 0 | G36: =SUMIF('DTM Dataset'!B:B,A36,'DTM Dataset'!AH:AH) -> 0 | H36: =SUMIF('DTM Dataset'!B:B,A36,'DTM Dataset'!AL:AL) -> 8244 | I36: =SUMIF('DTM Dataset'!B:B,A36,'DTM Dataset'!AN:AN) -> 36 | J36: 8334
A37: Al-Qadissiya | B37: =SUMIF('DTM Dataset'!B:B,A37,'DTM Dataset'!Z:Z) -> 0 | C37: =SUMIF('DTM Dataset'!B:B,A37,'DTM Dataset'!AA:AA) -> 0 | D37: =SUMIF('DTM Dataset'!B:B,A37,'DTM Dataset'!AB:AB) -> 108 | E37: =SUMIF('DTM Dataset'!B:B,A37,'DTM Dataset'!AE:AE) -> 0 | F37: =SUMIF('DTM Dataset'!B:B,A37,'DTM Dataset'!AF:AF) -> 0 | G37: =SUMIF('DTM Dataset'!B:B,A37,'DTM Dataset'!AH:AH) -> 1182 | H37: =SUMIF('DTM Dataset'!B:B,A37,'DTM Dataset'!AL:AL) -> 1920 | I37: =SUMIF('DTM Dataset'!B:B,A37,'DTM Dataset'!AN:AN) -> 30 | J37: 3240
A38: Al-Sulaymaniyah | B38: =SUMIF('DTM Dataset'!B:B,A38,'DTM Dataset'!Z:Z) -> 22132 | C38: =SUMIF('DTM Dataset'!B:B,A38,'DTM Dataset'!AA:AA) -> 9029 | D38: =SUMIF('DTM Dataset'!B:B,A38,'DTM Dataset'!AB:AB) -> 31182 | E38: =SUMIF('DTM Dataset'!B:B,A38,'DTM Dataset'!AE:AE) -> 21181 | F38: =SUMIF('DTM Dataset'!B:B,A38,'DTM Dataset'!AF:AF) -> 0 | G38: =SUMIF('DTM Dataset'!B:B,A38,'DTM Dataset'!AH:AH) -> 4680 | H38: =SUMIF('DTM Dataset'!B:B,A38,'DTM Dataset'!AL:AL) -> 13981 | I38: =SUMIF('DTM Dataset'!B:B,A38,'DTM Dataset'!AN:AN) -> 33565 | J38: 135750
A39: Babil | B39: =SUMIF('DTM Dataset'!B:B,A39,'DTM Dataset'!Z:Z) -> 132 | C39: =SUMIF('DTM Dataset'!B:B,A39,'DTM Dataset'!AA:AA) -> 15306 | D39: =SUMIF('DTM Dataset'!B:B,A39,'DTM Dataset'!AB:AB) -> 102 | E39: =SUMIF('DTM Dataset'!B:B,A39,'DTM Dataset'!AE:AE) -> 24 | F39: =SUMIF('DTM Dataset'!B:B,A39,'DTM Dataset'!AF:AF) -> 0 | G39: =SUMIF('DTM Dataset'!B:B,A39,'DTM Dataset'!AH:AH) -> 18 | H39: =SUMIF('DTM Dataset'!B:B,A39,'DTM Dataset'!AL:AL) -> 504 | I39: =SUMIF('DTM Dataset'!B:B,A39,'DTM Dataset'!AN:AN) -> 54 | J39: 16140
A40: Baghdad | B40: =SUMIF('DTM Dataset'!B:B,A40,'DTM Dataset'!Z:Z) -> 10662 | C40: =SUMIF('DTM Dataset'!B:B,A40,'DTM Dataset'!AA:AA) -> 8346 | D40: =SUMIF('DTM Dataset'!B:B,A40,'DTM Dataset'!AB:AB) -> 378 | E40: =SUMIF('DTM Dataset'!B:B,A40,'DTM Dataset'!AE:AE) -> 696 | F40: =SUMIF('DTM Dataset'!B:B,A40,'DTM Dataset'!AF:AF) -> 0 | G40: =SUMIF('DTM Dataset'!B:B,A40,'DTM Dataset'!AH:AH) -> 48 | H40: =SUMIF('DTM Dataset'!B:B,A40,'DTM Dataset'!AL:AL) -> 4728 | I40: =SUMIF('DTM Dataset'!B:B,A40,'DTM Dataset'!AN:AN) -> 1770 | J40: 26628
A41: Diyala | B41: =SUMIF('DTM Dataset'!B:B,A41,'DTM Dataset'!Z:Z) -> 852 | C41: =SUMIF('DTM Dataset'!B:B,A41,'DTM Dataset'!AA:AA) -> 1236 | D41: =SUMIF('DTM Dataset'!B:B,A41,'DTM Dataset'!AB:AB) -> 672 | E41: =SUMIF('DTM Dataset'!B:B,A41,'DTM Dataset'!AE:AE) -> 43957 | F41: =SUMIF('DTM Dataset'!B:B,A41,'DTM Dataset'!AF:AF) -> 0 | G41: =SUMIF('DTM Dataset'!B:B,A41,'DTM Dataset'!AH:AH) -> 54 | H41: =SUMIF('DTM Dataset'!B:B,A41,'DTM Dataset'!AL:AL) -> 336 | I41: =SUMIF('DTM Dataset'!B:B,A41,'DTM Dataset'!AN:AN) -> 3293 | J41: 50400
A42: Duhok | B42: =SUMIF('DTM Dataset'!B:B,A42,'DTM Dataset'!Z:Z) -> 210 | C42: =SUMIF('DTM Dataset'!B:B,A42,'DTM Dataset'!AA:AA) -> 0 | D42: =SUMIF('DTM Dataset'!B:B,A42,'DTM Dataset'!AB:AB) -> 210 | E42: =SUMIF('DTM Dataset'!B:B,A42,'DTM Dataset'!AE:AE) -> 0 | F42: =SUMIF('DTM Dataset'!B:B,A42,'DTM Dataset'!AF:AF) -> 0 | G42: =SUMIF('DTM Dataset'!B:B,A42,'DTM Dataset'!AH:AH) -> 66 | H42: =SUMIF('DTM Dataset'!B:B,A42,'DTM Dataset'!AL:AL) -> 248253 | I42: =SUMIF('DTM Dataset'!B:B,A42,'DTM Dataset'!AN:AN) -> 246 | J42: 248985
A43: Erbil | B43: =SUMIF('DTM Dataset'!B:B,A43,'DTM Dataset'!Z:Z) -> 62466 | C43: =SUMIF('DTM Dataset'!B:B,A43,'DTM Dataset'!AA:AA) -> 35 | D43: =SUMIF('DTM Dataset'!B:B,A43,'DTM Dataset'!AB:AB) -> 12640 | E43: =SUMIF('DTM Dataset'!B:B,A43,'DTM Dataset'!AE:AE) -> 940 | F43: =SUMIF('DTM Dataset'!B:B,A43,'DTM Dataset'!AF:AF) -> 7272 | G43: =SUMIF('DTM Dataset'!B:B,A43,'DTM Dataset'!AH:AH) -> 9581 | H43: =SUMIF('DTM Dataset'!B:B,A43,'DTM Dataset'!AL:AL) -> 95488 | I43: =SUMIF('DTM Dataset'!B:B,A43,'DTM Dataset'!AN:AN) -> 22928 | J43: 211350
A44: Kerbala | B44: =SUMIF('DTM Dataset'!B:B,A44,'DTM Dataset'!Z:Z) -> 180 | C44: =SUMIF('DTM Dataset'!B:B,A44,'DTM Dataset'!AA:AA) -> 1218 | D44: =SUMIF('DTM Dataset'!B:B,A44,'DTM Dataset'!AB:AB) -> 0 | E44: =SUMIF('DTM Dataset'!B:B,A44,'DTM Dataset'!AE:AE) -> 42 | F44: =SUMIF('DTM Dataset'!B:B,A44,'DTM Dataset'!AF:AF) -> 0 | G44: =SUMIF('DTM Dataset'!B:B,A44,'DTM Dataset'!AH:AH) -> 228 | H44: =SUMIF('DTM Dataset'!B:B,A44,'DTM Dataset'!AL:AL) -> 9174 | I44: =SUMIF('DTM Dataset'!B:B,A44,'DTM Dataset'!AN:AN) -> 0 | J44: 10842
A45: Kirkuk | B45: =SUMIF('DTM Dataset'!B:B,A45,'DTM Dataset'!Z:Z) -> 2424 | C45: =SUMIF('DTM Dataset'!B:B,A45,'DTM Dataset'!AA:AA) -> 192 | D45: =SUMIF('DTM Dataset'!B:B,A45,'DTM Dataset'!AB:AB) -> 1026 | E45: =SUMIF('DTM Dataset'!B:B,A45,'DTM Dataset'!AE:AE) -> 5778 | F45: =SUMIF('DTM Dataset'!B:B,A45,'DTM Dataset'!AF:AF) -> 30 | G45: =SUMIF('DTM Dataset'!B:B,A45,'DTM Dataset'!AH:AH) -> 53310 | H45: =SUMIF('DTM Dataset'!B:B,A45,'DTM Dataset'!AL:AL) -> 8754 | I45: =SUMIF('DTM Dataset'!B:B,A45,'DTM Dataset'!AN:AN) -> 19938 | J45: 91452
A46: Maysan | B46: =SUMIF('DTM Dataset'!B:B,A46,'DTM Dataset'!Z:Z) -> 132 | C46: =SUMIF('DTM Dataset'!B:B,A46,'DTM Dataset'!AA:AA) -> 36 | D46: =SUMIF('DTM Dataset'!B:B,A46,'DTM Dataset'!AB:AB) -> 144 | E46: =SUMIF('DTM Dataset'!B:B,A46,'DTM Dataset'!AE:AE) -> 78 | F46: =SUMIF('DTM Dataset'!B:B,A46,'DTM Dataset'!AF:AF) -> 0 | G46: =SUMIF('DTM Dataset'!B:B,A46,'DTM Dataset'!AH:AH) -> 402 | H46: =SUMIF('DTM Dataset'!B:B,A46,'DTM Dataset'!AL:AL) -> 834 | I46: =SUMIF('DTM Dataset'!B:B,A46,'DTM Dataset'!AN:AN) -> 246 | J46: 1872
A47: Ninewa | B47: =SUMIF('DTM Dataset'!B:B,A47,'DTM Dataset'!Z:Z) -> 6375 | C47: =SUMIF('DTM Dataset'!B:B,A47,'DTM Dataset'!AA:AA) -> 10 | D47: =SUMIF('DTM Dataset'!B:B,A47,'DTM Dataset'!AB:AB) -> 120 | E47: =SUMIF('DTM Dataset'!B:B,A47,'DTM Dataset'!AE:AE) -> 20 | F47: =SUMIF('DTM Dataset'!B:B,A47,'DTM Dataset'!AF:AF) -> 1622 | G47: =SUMIF('DTM Dataset'!B:B,A47,'DTM Dataset'!AH:AH) -> 748 | H47: =SUMIF('DTM Dataset'!B:B,A47,'DTM Dataset'!AL:AL) -> 263608 | I47: =SUMIF('DTM Dataset'!B:B,A47,'DTM Dataset'!AN:AN) -> 1590 | J47: 274093
A48: Salah al-Din | B48: =SUMIF('DTM Dataset'!B:B,A48,'DTM Dataset'!Z:Z) -> 96 | C48: =SUMIF('DTM Dataset'!B:B,A48,'DTM Dataset'!AA:AA) -> 0 | D48: =SUMIF('DTM Dataset'!B:B,A48,'DTM Dataset'!AB:AB) -> 12 | E48: =SUMIF('DTM Dataset'!B:B,A48,'DTM Dataset'!AE:AE) -> 732 | F48: =SUMIF('DTM Dataset'!B:B,A48,'DTM Dataset'!AF:AF) -> 0 | G48: =SUMIF('DTM Dataset'!B:B,A48,'DTM Dataset'!AH:AH) -> 3954 | H48: =SUMIF('DTM Dataset'!B:B,A48,'DTM Dataset'!AL:AL) -> 18 | I48: =SUMIF('DTM Dataset'!B:B,A48,'DTM Dataset'!AN:AN) -> 51582 | J48: 56394
A49: Thi Qar | B49: =SUMIF('DTM Dataset'!B:B,A49,'DTM Dataset'!Z:Z) -> 564 | C49: =SUMIF('DTM Dataset'!B:B,A49,'DTM Dataset'!AA:AA) -> 36 | D49: =SUMIF('DTM Dataset'!B:B,A49,'DTM Dataset'!AB:AB) -> 42 | E49: =SUMIF('DTM Dataset'!B:B,A49,'DTM Dataset'!AE:AE) -> 60 | F49: =SUMIF('DTM Dataset'!B:B,A49,'DTM Dataset'!AF:AF) -> 0 | G49: =SUMIF('DTM Dataset'!B:B,A49,'DTM Dataset'!AH:AH) -> 534 | H49: =SUMIF('DTM Dataset'!B:B,A49,'DTM Dataset'!AL:AL) -> 1734 | I49: =SUMIF('DTM Dataset'!B:B,A49,'DTM Dataset'!AN:AN) -> 174 | J49: 3144
A50: Wassit | B50: =SUMIF('DTM Dataset'!B:B,A50,'DTM Dataset'!Z:Z) -> 132 | C50: =SUMIF('DTM Dataset'!B:B,A50,'DTM Dataset'!AA:AA) -> 0 | D50: =SUMIF('DTM Dataset'!B:B,A50,'DTM Dataset'!AB:AB) -> 0 | E50: =SUMIF('DTM Dataset'!B:B,A50,'DTM Dataset'!AE:AE) -> 210 | F50: =SUMIF('DTM Dataset'!B:B,A50,'DTM Dataset'!AF:AF) -> 0 | G50: =SUMIF('DTM Dataset'!B:B,A50,'DTM Dataset'!AH:AH) -> 414 | H50: =SUMIF('DTM Dataset'!B:B,A50,'DTM Dataset'!AL:AL) -> 3468 | I50: =SUMIF('DTM Dataset'!B:B,A50,'DTM Dataset'!AN:AN) -> 120 | J50: 4344
A51: Total | B51: =SUM(B33:B50) -> 133321 | C51: =SUM(C33:C50) -> 44702 | D51: =SUM(D33:D50) -> 47188 | E51: =SUM(E33:E50) -> 73946 | F51: 8924 | G51: 75873 | H51: 663138 | I51: 137726 | J51: 1184818
A53: Number of IDP individuals by Period of Displacement and Governorate of Displacement
B54: Period of Displacement
A55: Governorate of Displacement | B55: Pre-June14 | C55: June-July14 | D55: August14 | E55: Post September14 | F55: Post April15 | G55: Post March16 | H55: Post October 16 | I55: July 17 | J55: Jan 19 | K55: Jan 20 | L55: Jan 2021 | M55: Jan 2022 | N55: Total | T55: rank
A56: Al-Anbar | B56: =SUMIF('DTM Dataset'!B:B,A56,'DTM Dataset'!AR:AR) -> 3036 | C56: =SUMIF('DTM Dataset'!B:B,A56,'DTM Dataset'!AS:AS) -> 1584 | D56: =SUMIF('DTM Dataset'!B:B,A56,'DTM Dataset'!AT:AT) -> 0 | E56: =SUMIF('DTM Dataset'!B:B,A56,'DTM Dataset'!AU:AU) -> 8460 | F56: =SUMIF('DTM Dataset'!B:B,A56,'DTM Dataset'!AV:AV) -> 10728 | G56: =SUMIF('DTM Dataset'!B:B,A56,'DTM Dataset'!AW:AW) -> 2928 | H56: =SUMIF('DTM Dataset'!B:B,A56,'DTM Dataset'!AX:AX) -> 1296 | I56: =SUMIF('DTM Dataset'!B:B,A56,'DTM Dataset'!AY:AY) -> 4920 | J56: =SUMIF('DTM Dataset'!B:B,A56,'DTM Dataset'!AZ:AZ) -> 2442 | K56: =SUMIF('DTM Dataset'!B:B,A56,'DTM Dataset'!BA:BA) -> 114 | L56: =SUMIF('DTM Dataset'!B:B,A56,'DTM Dataset'!BB:BB) -> 6 | M56: =SUMIF('DTM Dataset'!B:B,A56,'DTM Dataset'!BC:BC) -> 0 | N56: =SUM(B56:M56) -> 35514 | T56: 9
A57: Al-Basrah | B57: =SUMIF('DTM Dataset'!B:B,A57,'DTM Dataset'!AR:AR) -> 480 | C57: =SUMIF('DTM Dataset'!B:B,A57,'DTM Dataset'!AS:AS) -> 1200 | D57: =SUMIF('DTM Dataset'!B:B,A57,'DTM Dataset'!AT:AT) -> 1188 | E57: =SUMIF('DTM Dataset'!B:B,A57,'DTM Dataset'!AU:AU) -> 1860 | F57: =SUMIF('DTM Dataset'!B:B,A57,'DTM Dataset'!AV:AV) -> 348 | G57: =SUMIF('DTM Dataset'!B:B,A57,'DTM Dataset'!AW:AW) -> 126 | H57: =SUMIF('DTM Dataset'!B:B,A57,'DTM Dataset'!AX:AX) -> 234 | I57: =SUMIF('DTM Dataset'!B:B,A57,'DTM Dataset'!AY:AY) -> 30 | J57: =SUMIF('DTM Dataset'!B:B,A57,'DTM Dataset'!AZ:AZ) -> 0 | K57: =SUMIF('DTM Dataset'!B:B,A57,'DTM Dataset'!BA:BA) -> 0 | L57: =SUMIF('DTM Dataset'!B:B,A57,'DTM Dataset'!BB:BB) -> 0 | M57: =SUMIF('DTM Dataset'!B:B,A57,'DTM Dataset'!BC:BC) -> 0 | N57: 5466 | T57: 8
A58: Al-Muthanna | B58: =SUMIF('DTM Dataset'!B:B,A58,'DTM Dataset'!AR:AR) -> 30 | C58: =SUMIF('DTM Dataset'!B:B,A58,'DTM Dataset'!AS:AS) -> 372 | D58: =SUMIF('DTM Dataset'!B:B,A58,'DTM Dataset'!AT:AT) -> 252 | E58: =SUMIF('DTM Dataset'!B:B,A58,'DTM Dataset'!AU:AU) -> 126 | F58: =SUMIF('DTM Dataset'!B:B,A58,'DTM Dataset'!AV:AV) -> 54 | G58: =SUMIF('DTM Dataset'!B:B,A58,'DTM Dataset'!AW:AW) -> 0 | H58: =SUMIF('DTM Dataset'!B:B,A58,'DTM Dataset'!AX:AX) -> 36 | I58: =SUMIF('DTM Dataset'!B:B,A58,'DTM Dataset'!AY:AY) -> 0 | J58: =SUMIF('DTM Dataset'!B:B,A58,'DTM Dataset'!AZ:AZ) -> 0 | K58: =SUMIF('DTM Dataset'!B:B,A58,'DTM Dataset'!BA:BA) -> 0 | L58: =SUMIF('DTM Dataset'!B:B,A58,'DTM Dataset'!BB:BB) -> 0 | M58: =SUMIF('DTM Dataset'!B:B,A58,'DTM Dataset'!BC:BC) -> 0 | N58: 870 | T58: 7
A59: Al-Najaf | B59: =SUMIF('DTM Dataset'!B:B,A59,'DTM Dataset'!AR:AR) -> 12 | C59: =SUMIF('DTM Dataset'!B:B,A59,'DTM Dataset'!AS:AS) -> 5718 | D59: =SUMIF('DTM Dataset'!B:B,A59,'DTM Dataset'!AT:AT) -> 1662 | E59: =SUMIF('DTM Dataset'!B:B,A59,'DTM Dataset'!AU:AU) -> 942 | F59: =SUMIF('DTM Dataset'!B:B,A59,'DTM Dataset'!AV:AV) -> 0 | G59: =SUMIF('DTM Dataset'!B:B,A59,'DTM Dataset'!AW:AW) -> 0 | H59: =SUMIF('DTM Dataset'!B:B,A59,'DTM Dataset'!AX:AX) -> 0 | I59: =SUMIF('DTM Dataset'!B:B,A59,'DTM Dataset'!AY:AY) -> 0 | J59: =SUMIF('DTM Dataset'!B:B,A59,'DTM Dataset'!AZ:AZ) -> 0 | K59: =SUMIF('DTM Dataset'!B:B,A59,'DTM Dataset'!BA:BA) -> 0 | L59: =SUMIF('DTM Dataset'!B:B,A59,'DTM Dataset'!BB:BB) -> 0 | M59: =SUMIF('DTM Dataset'!B:B,A59,'DTM Dataset'!BC:BC) -> 0 | N59: 8334 | T59: 6
A60: Al-Qadissiya | B60: =SUMIF('DTM Dataset'!B:B,A60,'DTM Dataset'!AR:AR) -> 0 | C60: =SUMIF('DTM Dataset'!B:B,A60,'DTM Dataset'!AS:AS) -> 1980 | D60: =SUMIF('DTM Dataset'!B:B,A60,'DTM Dataset'!AT:AT) -> 1206 | E60: =SUMIF('DTM Dataset'!B:B,A60,'DTM Dataset'!AU:AU) -> 54 | F60: =SUMIF('DTM Dataset'!B:B,A60,'DTM Dataset'!AV:AV) -> 0 | G60: =SUMIF('DTM Dataset'!B:B,A60,'DTM Dataset'!AW:AW) -> 0 | H60: =SUMIF('DTM Dataset'!B:B,A60,'DTM Dataset'!AX:AX) -> 0 | I60: =SUMIF('DTM Dataset'!B:B,A60,'DTM Dataset'!AY:AY) -> 0 | J60: =SUMIF('DTM Dataset'!B:B,A60,'DTM Dataset'!AZ:AZ) -> 0 | K60: =SUMIF('DTM Dataset'!B:B,A60,'DTM Dataset'!BA:BA) -> 0 | L60: =SUMIF('DTM Dataset'!B:B,A60,'DTM Dataset'!BB:BB) -> 0 | M60: =SUMIF('DTM Dataset'!B:B,A60,'DTM Dataset'!BC:BC) -> 0 | N60: 3240 | T60: 5
A61: Al-Sulaymaniyah | B61: =SUMIF('DTM Dataset'!B:B,A61,'DTM Dataset'!AR:AR) -> 6322 | C61: =SUMIF('DTM Dataset'!B:B,A61,'DTM Dataset'!AS:AS) -> 20585 | D61: =SUMIF('DTM Dataset'!B:B,A61,'DTM Dataset'!AT:AT) -> 13728 | E61: =SUMIF('DTM Dataset'!B:B,A61,'DTM Dataset'!AU:AU) -> 30105 | F61: =SUMIF('DTM Dataset'!B:B,A61,'DTM Dataset'!AV:AV) -> 11255 | G61: =SUMIF('DTM Dataset'!B:B,A61,'DTM Dataset'!AW:AW) -> 11316 | H61: =SUMIF('DTM Dataset'!B:B,A61,'DTM Dataset'!AX:AX) -> 9352 | I61: =SUMIF('DTM Dataset'!B:B,A61,'DTM Dataset'!AY:AY) -> 15453 | J61: =SUMIF('DTM Dataset'!B:B,A61,'DTM Dataset'!AZ:AZ) -> 4056 | K61: =SUMIF('DTM Dataset'!B:B,A61,'DTM Dataset'!BA:BA) -> 5658 | L61: =SUMIF('DTM Dataset'!B:B,A61,'DTM Dataset'!BB:BB) -> 7374 | M61: =SUMIF('DTM Dataset'!B:B,A61,'DTM Dataset'!BC:BC) -> 546 | N61: 135750 | T61: 4
A62: Babil | B62: =SUMIF('DTM Dataset'!B:B,A62,'DTM Dataset'!AR:AR) -> 30 | C62: =SUMIF('DTM Dataset'!B:B,A62,'DTM Dataset'!AS:AS) -> 12504 | D62: =SUMIF('DTM Dataset'!B:B,A62,'DTM Dataset'!AT:AT) -> 3276 | E62: =SUMIF('DTM Dataset'!B:B,A62,'DTM Dataset'!AU:AU) -> 294 | F62: =SUMIF('DTM Dataset'!B:B,A62,'DTM Dataset'!AV:AV) -> 36 | G62: =SUMIF('DTM Dataset'!B:B,A62,'DTM Dataset'!AW:AW) -> 0 | H62: =SUMIF('DTM Dataset'!B:B,A62,'DTM Dataset'!AX:AX) -> 0 | I62: =SUMIF('DTM Dataset'!B:B,A62,'DTM Dataset'!AY:AY) -> 0 | J62: =SUMIF('DTM Dataset'!B:B,A62,'DTM Dataset'!AZ:AZ) -> 0 | K62: =SUMIF('DTM Dataset'!B:B,A62,'DTM Dataset'!BA:BA) -> 0 | L62: =SUMIF('DTM Dataset'!B:B,A62,'DTM Dataset'!BB:BB) -> 0 | M62: =SUMIF('DTM Dataset'!B:B,A62,'DTM Dataset'!BC:BC) -> 0 | N62: 16140 | T62: 3
A63: Baghdad | B63: =SUMIF('DTM Dataset'!B:B,A63,'DTM Dataset'!AR:AR) -> 2106 | C63: =SUMIF('DTM Dataset'!B:B,A63,'DTM Dataset'!AS:AS) -> 5064 | D63: =SUMIF('DTM Dataset'!B:B,A63,'DTM Dataset'!AT:AT) -> 8724 | E63: =SUMIF('DTM Dataset'!B:B,A63,'DTM Dataset'!AU:AU) -> 6306 | F63: =SUMIF('DTM Dataset'!B:B,A63,'DTM Dataset'!AV:AV) -> 3072 | G63: =SUMIF('DTM Dataset'!B:B,A63,'DTM Dataset'!AW:AW) -> 492 | H63: =SUMIF('DTM Dataset'!B:B,A63,'DTM Dataset'!AX:AX) -> 636 | I63: =SUMIF('DTM Dataset'!B:B,A63,'DTM Dataset'!AY:AY) -> 18 | J63: =SUMIF('DTM Dataset'!B:B,A63,'DTM Dataset'!AZ:AZ) -> 210 | K63: =SUMIF('DTM Dataset'!B:B,A63,'DTM Dataset'!BA:BA) -> 0 | L63: =SUMIF('DTM Dataset'!B:B,A63,'DTM Dataset'!BB:BB) -> 0 | M63: =SUMIF('DTM Dataset'!B:B,A63,'DTM Dataset'!BC:BC) -> 0 | N63: 26628 | T63: 2
A64: Diyala | B64: =SUMIF('DTM Dataset'!B:B,A64,'DTM Dataset'!AR:AR) -> 951 | C64: =SUMIF('DTM Dataset'!B:B,A64,'DTM Dataset'!AS:AS) -> 15824 | D64: =SUMIF('DTM Dataset'!B:B,A64,'DTM Dataset'!AT:AT) -> 4968 | E64: =SUMIF('DTM Dataset'!B:B,A64,'DTM Dataset'!AU:AU) -> 19830 | F64: =SUMIF('DTM Dataset'!B:B,A64,'DTM Dataset'!AV:AV) -> 1108 | G64: =SUMIF('DTM Dataset'!B:B,A64,'DTM Dataset'!AW:AW) -> 597 | H64: =SUMIF('DTM Dataset'!B:B,A64,'DTM Dataset'!AX:AX) -> 846 | I64: =SUMIF('DTM Dataset'!B:B,A64,'DTM Dataset'!AY:AY) -> 3060 | J64: =SUMIF('DTM Dataset'!B:B,A64,'DTM Dataset'!AZ:AZ) -> 1572 | K64: =SUMIF('DTM Dataset'!B:B,A64,'DTM Dataset'!BA:BA) -> 360 | L64: =SUMIF('DTM Dataset'!B:B,A64,'DTM Dataset'!BB:BB) -> 1260 | M64: =SUMIF('DTM Dataset'!B:B,A64,'DTM Dataset'!BC:BC) -> 24 | N64: 50400 | T64: 1
A65: Duhok | B65: =SUMIF('DTM Dataset'!B:B,A65,'DTM Dataset'!AR:AR) -> 210 | C65: =SUMIF('DTM Dataset'!B:B,A65,'DTM Dataset'!AS:AS) -> 48135 | D65: =SUMIF('DTM Dataset'!B:B,A65,'DTM Dataset'!AT:AT) -> 188234 | E65: =SUMIF('DTM Dataset'!B:B,A65,'DTM Dataset'!AU:AU) -> 0 | F65: =SUMIF('DTM Dataset'!B:B,A65,'DTM Dataset'!AV:AV) -> 114 | G65: =SUMIF('DTM Dataset'!B:B,A65,'DTM Dataset'!AW:AW) -> 0 | H65: =SUMIF('DTM Dataset'!B:B,A65,'DTM Dataset'!AX:AX) -> 0 | I65: =SUMIF('DTM Dataset'!B:B,A65,'DTM Dataset'!AY:AY) -> 12250 | J65: =SUMIF('DTM Dataset'!B:B,A65,'DTM Dataset'!AZ:AZ) -> 0 | K65: =SUMIF('DTM Dataset'!B:B,A65,'DTM Dataset'!BA:BA) -> 12 | L65: =SUMIF('DTM Dataset'!B:B,A65,'DTM Dataset'!BB:BB) -> 30 | M65: =SUMIF('DTM Dataset'!B:B,A65,'DTM Dataset'!BC:BC) -> 0 | N65: 248985
A66: Erbil | B66: =SUMIF('DTM Dataset'!B:B,A66,'DTM Dataset'!AR:AR) -> 27846 | C66: =SUMIF('DTM Dataset'!B:B,A66,'DTM Dataset'!AS:AS) -> 64914 | D66: =SUMIF('DTM Dataset'!B:B,A66,'DTM Dataset'!AT:AT) -> 11901 | E66: =SUMIF('DTM Dataset'!B:B,A66,'DTM Dataset'!AU:AU) -> 11624 | F66: =SUMIF('DTM Dataset'!B:B,A66,'DTM Dataset'!AV:AV) -> 32097 | G66: =SUMIF('DTM Dataset'!B:B,A66,'DTM Dataset'!AW:AW) -> 5625 | H66: =SUMIF('DTM Dataset'!B:B,A66,'DTM Dataset'!AX:AX) -> 40519 | I66: =SUMIF('DTM Dataset'!B:B,A66,'DTM Dataset'!AY:AY) -> 13697 | J66: =SUMIF('DTM Dataset'!B:B,A66,'DTM Dataset'!AZ:AZ) -> 300 | K66: =SUMIF('DTM Dataset'!B:B,A66,'DTM Dataset'!BA:BA) -> 2671 | L66: =SUMIF('DTM Dataset'!B:B,A66,'DTM Dataset'!BB:BB) -> 156 | M66: =SUMIF('DTM Dataset'!B:B,A66,'DTM Dataset'!BC:BC) -> 0 | N66: 211350
A67: Kerbala | B67: =SUMIF('DTM Dataset'!B:B,A67,'DTM Dataset'!AR:AR) -> 1410 | C67: =SUMIF('DTM Dataset'!B:B,A67,'DTM Dataset'!AS:AS) -> 9366 | D67: =SUMIF('DTM Dataset'!B:B,A67,'DTM Dataset'!AT:AT) -> 66 | E67: =SUMIF('DTM Dataset'!B:B,A67,'DTM Dataset'!AU:AU) -> 0 | F67: =SUMIF('DTM Dataset'!B:B,A67,'DTM Dataset'!AV:AV) -> 0 | G67: =SUMIF('DTM Dataset'!B:B,A67,'DTM Dataset'!AW:AW) -> 0 | H67: =SUMIF('DTM Dataset'!B:B,A67,'DTM Dataset'!AX:AX) -> 0 | I67: =SUMIF('DTM Dataset'!B:B,A67,'DTM Dataset'!AY:AY) -> 0 | J67: =SUMIF('DTM Dataset'!B:B,A67,'DTM Dataset'!AZ:AZ) -> 0 | K67: =SUMIF('DTM Dataset'!B:B,A67,'DTM Dataset'!BA:BA) -> 0 | L67: =SUMIF('DTM Dataset'!B:B,A67,'DTM Dataset'!BB:BB) -> 0 | M67: =SUMIF('DTM Dataset'!B:B,A67,'DTM Dataset'!BC:BC) -> 0 | N67: 10842
A68: Kirkuk | B68: =SUMIF('DTM Dataset'!B:B,A68,'DTM Dataset'!AR:AR) -> 1044 | C68: =SUMIF('DTM Dataset'!B:B,A68,'DTM Dataset'!AS:AS) -> 9360 | D68: =SUMIF('DTM Dataset'!B:B,A68,'DTM Dataset'!AT:AT) -> 8466 | E68: =SUMIF('DTM Dataset'!B:B,A68,'DTM Dataset'!AU:AU) -> 17238 | F68: =SUMIF('DTM Dataset'!B:B,A68,'DTM Dataset'!AV:AV) -> 16002 | G68: =SUMIF('DTM Dataset'!B:B,A68,'DTM Dataset'!AW:AW) -> 12858 | H68: =SUMIF('DTM Dataset'!B:B,A68,'DTM Dataset'!AX:AX) -> 15534 | I68: =SUMIF('DTM Dataset'!B:B,A68,'DTM Dataset'!AY:AY) -> 10758 | J68: =SUMIF('DTM Dataset'!B:B,A68,'DTM Dataset'!AZ:AZ) -> 120 | K68: =SUMIF('DTM Dataset'!B:B,A68,'DTM Dataset'!BA:BA) -> 0 | L68: =SUMIF('DTM Dataset'!B:B,A68,'DTM Dataset'!BB:BB) -> 72 | M68: =SUMIF('DTM Dataset'!B:B,A68,'DTM Dataset'!BC:BC) -> 0 | N68: 91452
A69: Maysan | B69: =SUMIF('DTM Dataset'!B:B,A69,'DTM Dataset'!AR:AR) -> 90 | C69: =SUMIF('DTM Dataset'!B:B,A69,'DTM Dataset'!AS:AS) -> 696 | D69: =SUMIF('DTM Dataset'!B:B,A69,'DTM Dataset'!AT:AT) -> 510 | E69: =SUMIF('DTM Dataset'!B:B,A69,'DTM Dataset'!AU:AU) -> 396 | F69: =SUMIF('DTM Dataset'!B:B,A69,'DTM Dataset'!AV:AV) -> 42 | G69: =SUMIF('DTM Dataset'!B:B,A69,'DTM Dataset'!AW:AW) -> 6 | H69: =SUMIF('DTM Dataset'!B:B,A69,'DTM Dataset'!AX:AX) -> 132 | I69: =SUMIF('DTM Dataset'!B:B,A69,'DTM Dataset'!AY:AY) -> 0 | J69: =SUMIF('DTM Dataset'!B:B,A69,'DTM Dataset'!AZ:AZ) -> 0 | K69: =SUMIF('DTM Dataset'!B:B,A69,'DTM Dataset'!BA:BA) -> 0 | L69: =SUMIF('DTM Dataset'!B:B,A69,'DTM Dataset'!BB:BB) -> 0 | M69: =SUMIF('DTM Dataset'!B:B,A69,'DTM Dataset'!BC:BC) -> 0 | N69: 1872
A70: Ninewa | B70: =SUMIF('DTM Dataset'!B:B,A70,'DTM Dataset'!AR:AR) -> 2886 | C70: =SUMIF('DTM Dataset'!B:B,A70,'DTM Dataset'!AS:AS) -> 32728 | D70: =SUMIF('DTM Dataset'!B:B,A70,'DTM Dataset'!AT:AT) -> 115009 | E70: =SUMIF('DTM Dataset'!B:B,A70,'DTM Dataset'!AU:AU) -> 4761 | F70: =SUMIF('DTM Dataset'!B:B,A70,'DTM Dataset'!AV:AV) -> 14617 | G70: =SUMIF('DTM Dataset'!B:B,A70,'DTM Dataset'!AW:AW) -> 5408 | H70: =SUMIF('DTM Dataset'!B:B,A70,'DTM Dataset'!AX:AX) -> 89524 | I70: =SUMIF('DTM Dataset'!B:B,A70,'DTM Dataset'!AY:AY) -> 6997 | J70: =SUMIF('DTM Dataset'!B:B,A70,'DTM Dataset'!AZ:AZ) -> 1527 | K70: =SUMIF('DTM Dataset'!B:B,A70,'DTM Dataset'!BA:BA) -> 500 | L70: =SUMIF('DTM Dataset'!B:B,A70,'DTM Dataset'!BB:BB) -> 136 | M70: =SUMIF('DTM Dataset'!B:B,A70,'DTM Dataset'!BC:BC) -> 0 | N70: 274093
A71: Salah al-Din | B71: =SUMIF('DTM Dataset'!B:B,A71,'DTM Dataset'!AR:AR) -> 564 | C71: =SUMIF('DTM Dataset'!B:B,A71,'DTM Dataset'!AS:AS) -> 12012 | D71: =SUMIF('DTM Dataset'!B:B,A71,'DTM Dataset'!AT:AT) -> 19350 | E71: =SUMIF('DTM Dataset'!B:B,A71,'DTM Dataset'!AU:AU) -> 7902 | F71: =SUMIF('DTM Dataset'!B:B,A71,'DTM Dataset'!AV:AV) -> 8862 | G71: =SUMIF('DTM Dataset'!B:B,A71,'DTM Dataset'!AW:AW) -> 2694 | H71: =SUMIF('DTM Dataset'!B:B,A71,'DTM Dataset'!AX:AX) -> 3714 | I71: =SUMIF('DTM Dataset'!B:B,A71,'DTM Dataset'!AY:AY) -> 486 | J71: =SUMIF('DTM Dataset'!B:B,A71,'DTM Dataset'!AZ:AZ) -> 0 | K71: =SUMIF('DTM Dataset'!B:B,A71,'DTM Dataset'!BA:BA) -> 132 | L71: =SUMIF('DTM Dataset'!B:B,A71,'DTM Dataset'!BB:BB) -> 42 | M71: =SUMIF('DTM Dataset'!B:B,A71,'DTM Dataset'!BC:BC) -> 636 | N71: 56394
A72: Thi Qar | B72: =SUMIF('DTM Dataset'!B:B,A72,'DTM Dataset'!AR:AR) -> 228 | C72: =SUMIF('DTM Dataset'!B:B,A72,'DTM Dataset'!AS:AS) -> 1200 | D72: =SUMIF('DTM Dataset'!B:B,A72,'DTM Dataset'!AT:AT) -> 912 | E72: =SUMIF('DTM Dataset'!B:B,A72,'DTM Dataset'!AU:AU) -> 672 | F72: =SUMIF('DTM Dataset'!B:B,A72,'DTM Dataset'!AV:AV) -> 72 | G72: =SUMIF('DTM Dataset'!B:B,A72,'DTM Dataset'!AW:AW) -> 36 | H72: =SUMIF('DTM Dataset'!B:B,A72,'DTM Dataset'!AX:AX) -> 24 | I72: =SUMIF('DTM Dataset'!B:B,A72,'DTM Dataset'!AY:AY) -> 0 | J72: =SUMIF('DTM Dataset'!B:B,A72,'DTM Dataset'!AZ:AZ) -> 0 | K72: =SUMIF('DTM Dataset'!B:B,A72,'DTM Dataset'!BA:BA) -> 0 | L72: =SUMIF('DTM Dataset'!B:B,A72,'DTM Dataset'!BB:BB) -> 0 | M72: =SUMIF('DTM Dataset'!B:B,A72,'DTM Dataset'!BC:BC) -> 0 | N72: 3144
A73: Wassit | B73: =SUMIF('DTM Dataset'!B:B,A73,'DTM Dataset'!AR:AR) -> 114 | C73: =SUMIF('DTM Dataset'!B:B,A73,'DTM Dataset'!AS:AS) -> 3564 | D73: =SUMIF('DTM Dataset'!B:B,A73,'DTM Dataset'!AT:AT) -> 546 | E73: =SUMIF('DTM Dataset'!B:B,A73,'DTM Dataset'!AU:AU) -> 36 | F73: =SUMIF('DTM Dataset'!B:B,A73,'DTM Dataset'!AV:AV) -> 84 | G73: =SUMIF('DTM Dataset'!B:B,A73,'DTM Dataset'!AW:AW) -> 0 | H73: =SUMIF('DTM Dataset'!B:B,A73,'DTM Dataset'!AX:AX) -> 0 | I73: =SUMIF('DTM Dataset'!B:B,A73,'DTM Dataset'!AY:AY) -> 0 | J73: =SUMIF('DTM Dataset'!B:B,A73,'DTM Dataset'!AZ:AZ) -> 0 | K73: =SUMIF('DTM Dataset'!B:B,A73,'DTM Dataset'!BA:BA) -> 0 | L73: =SUMIF('DTM Dataset'!B:B,A73,'DTM Dataset'!BB:BB) -> 0 | M73: =SUMIF('DTM Dataset'!B:B,A73,'DTM Dataset'!BC:BC) -> 0 | N73: 4344
A74: Total | B74: =SUM(B56:B73) -> 47359 | C74: 246806 | D74: 379998 | E74: 110606 | F74: 98491 | G74: 42086 | H74: 161847 | I74: 67669 | J74: 10227 | K74: 9447 | L74: 9076 | M74: 1206 | N74: =SUM(N56:N73) -> 1184818
A76: Number and % of IDPs by Period of Displacement
A77: Period of Displacement | B77: IDP Households | C77: IDP Individuals | D77: % | E77: rank
A78: Pre-June14 | B78: 7896 | C78: =SUM('DTM Dataset'!AR:AR) -> 47359 | D78: =C78/$C$90 -> 4% | E78: 12
A79: June-July14 | B79: 41189 | C79: =SUM('DTM Dataset'!AS:AS) -> 246806 | D79: 21% | E79: 11
A80: August14 | B80: 68102 | C80: =SUM('DTM Dataset'!AT:AT) -> 379998 | D80: 32% | E80: 10
A81: Post September14 | B81: 18826 | C81: =SUM('DTM Dataset'!AU:AU) -> 110606 | D81: 9% | E81: 9
A82: Post April15 | B82: 16424 | C82: =SUM('DTM Dataset'!AV:AV) -> 98491 | D82: 8% | E82: 8
A83: Post Mar2016 | B83: 7235 | C83: =SUM('DTM Dataset'!AW:AW) -> 42086 | D83: 4% | E83: 7
A84: Post 17Oct2016 | B84: 27381 | C84: =SUM('DTM Dataset'!AX:AX) -> 161847 | D84: 14% | E84: 6
A85: July 17 | B85: 11342 | C85: =SUM('DTM Dataset'!AY:AY) -> 67669 | D85: 6% | E85: 5
A86: January 19 | B86: 1741 | C86: =SUM('DTM Dataset'!AZ:AZ) -> 10227 | D86: 1% | E86: 4
A87: January 20 | B87: 1593 | C87: =SUM('DTM Dataset'!BA:BA) -> 9447 | D87: =C87/$C$90 -> 1% | E87: 3
A88: January 21 | B88: 1517 | C88: =SUM('DTM Dataset'!BB:BB) -> 9076 | D88: 1% | E88: 2
A89: January 22 | B89: 201 | C89: =SUM('DTM Dataset'!BC:BC) -> 1206 | D89: 0% | E89: 1
A90: Total | B90: =SUM(B78:B89) -> 203447 | C90: =SUM(C78:C89) -> 1184818 | D90: 100%
A92: Number of IDPs by District of Displacement
A93: Governorate of Displacement | B93: District of Displacement | C93: Households | D93: Individuals
A94: Al-Anbar | B94: Al-Falluja | C94: =SUMIF('DTM Dataset'!$C:$C,$B94,'DTM Dataset'!I:I) -> 3284 | D94: =SUMIF('DTM Dataset'!$C:$C,$B94,'DTM Dataset'!J:J) -> 19704
B95: Al-Kaim | C95: =SUMIF('DTM Dataset'!$C:$C,$B95,'DTM Dataset'!I:I) -> 348 | D95: =SUMIF('DTM Dataset'!$C:$C,$B95,'DTM Dataset'!J:J) -> 2088
B96: Al-Ramadi | C96: =SUMIF('DTM Dataset'!$C:$C,$B96,'DTM Dataset'!I:I) -> 1087 | D96: =SUMIF('DTM Dataset'!$C:$C,$B96,'DTM Dataset'!J:J) -> 6522
B97: Al-Rutba | C97: =SUMIF('DTM Dataset'!$C:$C,$B97,'DTM Dataset'!I:I) -> 465 | D97: =SUMIF('DTM Dataset'!$C:$C,$B97,'DTM Dataset'!J:J) -> 2790
B98: Ana | C98: =SUMIF('DTM Dataset'!$C:$C,$B98,'DTM Dataset'!I:I) -> 319 | D98: =SUMIF('DTM Dataset'!$C:$C,$B98,'DTM Dataset'!J:J) -> 1914
B99: Haditha | C99: =SUMIF('DTM Dataset'!$C:$C,$B99,'DTM Dataset'!I:I) -> 183 | D99: =SUMIF('DTM Dataset'!$C:$C,$B99,'DTM Dataset'!J:J) -> 1098
B100: Heet | C100: =SUMIF('DTM Dataset'!$C:$C,$B100,'DTM Dataset'!I:I) -> 233 | D100: =SUMIF('DTM Dataset'!$C:$C,$B100,'DTM Dataset'!J:J) -> 1398
A101: Al-Basrah | B101: Abu Al-Khaseeb | C101: =SUMIF('DTM Dataset'!$C:$C,$B101,'DTM Dataset'!I:I) -> 215 | D101: =SUMIF('DTM Dataset'!$C:$C,$B101,'DTM Dataset'!J:J) -> 1290
B102: Al-Basrah | C102: =SUMIF('DTM Dataset'!$C:$C,$B102,'DTM Dataset'!I:I) -> 349 | D102: =SUMIF('DTM Dataset'!$C:$C,$B102,'DTM Dataset'!J:J) -> 2094
B103: Al-Faw | C103: =SUMIF('DTM Dataset'!$C:$C,$B103,'DTM Dataset'!I:I) -> 9 | D103: =SUMIF('DTM Dataset'!$C:$C,$B103,'DTM Dataset'!J:J) -> 54
B104: Al-Midaina | C104: =SUMIF('DTM Dataset'!$C:$C,$B104,'DTM Dataset'!I:I) -> 23 | D104: =SUMIF('DTM Dataset'!$C:$C,$B104,'DTM Dataset'!J:J) -> 138
B105: Al-Qurna | C105: =SUMIF('DTM Dataset'!$C:$C,$B105,'DTM Dataset'!I:I) -> 45 | D105: =SUMIF('DTM Dataset'!$C:$C,$B105,'DTM Dataset'!J:J) -> 270
B106: Al-Zubair | C106: =SUMIF('DTM Dataset'!$C:$C,$B106,'DTM Dataset'!I:I) -> 203 | D106: =SUMIF('DTM Dataset'!$C:$C,$B106,'DTM Dataset'!J:J) -> 1218
B107: Shat Al-Arab | C107: =SUMIF('DTM Dataset'!$C:$C,$B107,'DTM Dataset'!I:I) -> 67 | D107: =SUMIF('DTM Dataset'!$C:$C,$B107,'DTM Dataset'!J:J) -> 402
A108: Al-Muthanna | B108: Al-Khidhir | C108: =SUMIF('DTM Dataset'!$C:$C,$B108,'DTM Dataset'!I:I) -> 6 | D108: =SUMIF('DTM Dataset'!$C:$C,$B108,'DTM Dataset'!J:J) -> 36
B109: Al-Rumaitha | C109: =SUMIF('DTM Dataset'!$C:$C,$B109,'DTM Dataset'!I:I) -> 48 | D109: =SUMIF('DTM Dataset'!$C:$C,$B109,'DTM Dataset'!J:J) -> 288
B110: Al-Salman | C110: =SUMIF('DTM Dataset'!$C:$C,$B110,'DTM Dataset'!I:I) -> 1 | D110: =SUMIF('DTM Dataset'!$C:$C,$B110,'DTM Dataset'!J:J) -> 6
B111: Al-Samawa | C111: =SUMIF('DTM Dataset'!$C:$C,$B111,'DTM Dataset'!I:I) -> 90 | D111: =SUMIF('DTM Dataset'!$C:$C,$B111,'DTM Dataset'!J:J) -> 540
A112: Al-Najaf | B112: Al-Kufa | C112: =SUMIF('DTM Dataset'!$C:$C,$B112,'DTM Dataset'!I:I) -> 370 | D112: =SUMIF('DTM Dataset'!$C:$C,$B112,'DTM Dataset'!J:J) -> 2220
B113: Al-Manathera | C113: =SUMIF('DTM Dataset'!$C:$C,$B113,'DTM Dataset'!I:I) -> 16 | D113: =SUMIF('DTM Dataset'!$C:$C,$B113,'DTM Dataset'!J:J) -> 96
B114: Al-Najaf | C114: =SUMIF('DTM Dataset'!$C:$C,$B114,'DTM Dataset'!I:I) -> 1003 | D114: =SUMIF('DTM Dataset'!$C:$C,$B114,'DTM Dataset'!J:J) -> 6018
A115: Al-Qadissiya | B115: Afaq | C115: =SUMIF('DTM Dataset'!$C:$C,$B115,'DTM Dataset'!I:I) -> 129 | D115: =SUMIF('DTM Dataset'!$C:$C,$B115,'DTM Dataset'!J:J) -> 774
B116: Al-Diwaniya | C116: =SUMIF('DTM Dataset'!$C:$C,$B116,'DTM Dataset'!I:I) -> 340 | D116: =SUMIF('DTM Dataset'!$C:$C,$B116,'DTM Dataset'!J:J) -> 2040
B117: Al-Hamza | C117: =SUMIF('DTM Dataset'!$C:$C,$B117,'DTM Dataset'!I:I) -> 21 | D117: =SUMIF('DTM Dataset'!$C:$C,$B117,'DTM Dataset'!J:J) -> 126
B118: Al-Shamiya | C118: =SUMIF('DTM Dataset'!$C:$C,$B118,'DTM Dataset'!I:I) -> 50 | D118: =SUMIF('DTM Dataset'!$C:$C,$B118,'DTM Dataset'!J:J) -> 300
A119: Al-Sulaymaniyah | B119: Al-Sulaymaniyah | C119: =SUMIF('DTM Dataset'!$C:$C,$B119,'DTM Dataset'!I:I) -> 16203 | D119: =SUMIF('DTM Dataset'!$C:$C,$B119,'DTM Dataset'!J:J) -> 95101
B120: Chamchamal | C120: =SUMIF('DTM Dataset'!$C:$C,$B120,'DTM Dataset'!I:I) -> 1504 | D120: =SUMIF('DTM Dataset'!$C:$C,$B120,'DTM Dataset'!J:J) -> 9024
B121: Derbendikhan | C121: =SUMIF('DTM Dataset'!$C:$C,$B121,'DTM Dataset'!I:I) -> 1039 | D121: =SUMIF('DTM Dataset'!$C:$C,$B121,'DTM Dataset'!J:J) -> 6234
B122: Dokan | C122: =SUMIF('DTM Dataset'!$C:$C,$B122,'DTM Dataset'!I:I) -> 868 | D122: =SUMIF('DTM Dataset'!$C:$C,$B122,'DTM Dataset'!J:J) -> 5208
B123: Halabcha | C123: =SUMIF('DTM Dataset'!$C:$C,$B123,'DTM Dataset'!I:I) -> 703 | D123: =SUMIF('DTM Dataset'!$C:$C,$B123,'DTM Dataset'!J:J) -> 4218
B124: Kalar | C124: =SUMIF('DTM Dataset'!$C:$C,$B124,'DTM Dataset'!I:I) -> 2234 | D124: =SUMIF('DTM Dataset'!$C:$C,$B124,'DTM Dataset'!J:J) -> 13223
B125: Panjwin | C125: =SUMIF('DTM Dataset'!$C:$C,$B125,'DTM Dataset'!I:I) -> 5 | D125: =SUMIF('DTM Dataset'!$C:$C,$B125,'DTM Dataset'!J:J) -> 30
B126: Pshdar | C126: =SUMIF('DTM Dataset'!$C:$C,$B126,'DTM Dataset'!I:I) -> 34 | D126: =SUMIF('DTM Dataset'!$C:$C,$B126,'DTM Dataset'!J:J) -> 204
B127: Rania | C127: =SUMIF('DTM Dataset'!$C:$C,$B127,'DTM Dataset'!I:I) -> 351 | D127: =SUMIF('DTM Dataset'!$C:$C,$B127,'DTM Dataset'!J:J) -> 2106
B128: Sharbazher | C128: =SUMIF('DTM Dataset'!$C:$C,$B128,'DTM Dataset'!I:I) -> 67 | D128: =SUMIF('DTM Dataset'!$C:$C,$B128,'DTM Dataset'!J:J) -> 402
A129: Babil | B129: Al-Hashimiya | C129: =SUMIF('DTM Dataset'!$C:$C,$B129,'DTM Dataset'!I:I) -> 9 | D129: =SUMIF('DTM Dataset'!$C:$C,$B129,'DTM Dataset'!J:J) -> 54
B130: Al-Hilla | C130: =SUMIF('DTM Dataset'!$C:$C,$B130,'DTM Dataset'!I:I) -> 106 | D130: =SUMIF('DTM Dataset'!$C:$C,$B130,'DTM Dataset'!J:J) -> 636
B131: Al-Mahaweel | C131: =SUMIF('DTM Dataset'!$C:$C,$B131,'DTM Dataset'!I:I) -> 34 | D131: =SUMIF('DTM Dataset'!$C:$C,$B131,'DTM Dataset'!J:J) -> 204
B132: Al-Mussyab | C132: =SUMIF('DTM Dataset'!$C:$C,$B132,'DTM Dataset'!I:I) -> 2541 | D132: =SUMIF('DTM Dataset'!$C:$C,$B132,'DTM Dataset'!J:J) -> 15246
A133: Baghdad | B133: Al-Adhamiya | C133: =SUMIF('DTM Dataset'!$C:$C,$B133,'DTM Dataset'!I:I) -> 344 | D133: =SUMIF('DTM Dataset'!$C:$C,$B133,'DTM Dataset'!J:J) -> 2064
B134: Al-Kadhmiyah | C134: =SUMIF('DTM Dataset'!$C:$C,$B134,'DTM Dataset'!I:I) -> 1440 | D134: =SUMIF('DTM Dataset'!$C:$C,$B134,'DTM Dataset'!J:J) -> 8640
B135: Al-Karkh | C135: =SUMIF('DTM Dataset'!$C:$C,$B135,'DTM Dataset'!I:I) -> 642 | D135: =SUMIF('DTM Dataset'!$C:$C,$B135,'DTM Dataset'!J:J) -> 3852
B136: Al-Mada'in | C136: =SUMIF('DTM Dataset'!$C:$C,$B136,'DTM Dataset'!I:I) -> 125 | D136: =SUMIF('DTM Dataset'!$C:$C,$B136,'DTM Dataset'!J:J) -> 750
B137: Al-Mahmoudiya | C137: =SUMIF('DTM Dataset'!$C:$C,$B137,'DTM Dataset'!I:I) -> 1469 | D137: =SUMIF('DTM Dataset'!$C:$C,$B137,'DTM Dataset'!J:J) -> 8814
B138: Al-Risafa | C138: =SUMIF('DTM Dataset'!$C:$C,$B138,'DTM Dataset'!I:I) -> 356 | D138: =SUMIF('DTM Dataset'!$C:$C,$B138,'DTM Dataset'!J:J) -> 2136
B139: Al-Thawra | C139: =SUMIF('DTM Dataset'!$C:$C,$B139,'DTM Dataset'!I:I) -> 62 | D139: =SUMIF('DTM Dataset'!$C:$C,$B139,'DTM Dataset'!J:J) -> 372
A140: Diyala | B140: Al-Khalis | C140: =SUMIF('DTM Dataset'!$C:$C,$B140,'DTM Dataset'!I:I) -> 590 | D140: =SUMIF('DTM Dataset'!$C:$C,$B140,'DTM Dataset'!J:J) -> 3540
B141: Al-Muqdadiya | C141: =SUMIF('DTM Dataset'!$C:$C,$B141,'DTM Dataset'!I:I) -> 33 | D141: =SUMIF('DTM Dataset'!$C:$C,$B141,'DTM Dataset'!J:J) -> 198
B142: Baladruz | C142: =SUMIF('DTM Dataset'!$C:$C,$B142,'DTM Dataset'!I:I) -> 80 | D142: =SUMIF('DTM Dataset'!$C:$C,$B142,'DTM Dataset'!J:J) -> 480
B143: Baquba | C143: =SUMIF('DTM Dataset'!$C:$C,$B143,'DTM Dataset'!I:I) -> 3446 | D143: =SUMIF('DTM Dataset'!$C:$C,$B143,'DTM Dataset'!J:J) -> 20676
B144: Khanaqin | C144: =SUMIF('DTM Dataset'!$C:$C,$B144,'DTM Dataset'!I:I) -> 2480 | D144: =SUMIF('DTM Dataset'!$C:$C,$B144,'DTM Dataset'!J:J) -> 14778
B145: Kifri | C145: =SUMIF('DTM Dataset'!$C:$C,$B145,'DTM Dataset'!I:I) -> 1788 | D145: =SUMIF('DTM Dataset'!$C:$C,$B145,'DTM Dataset'!J:J) -> 10728
A146: Duhok | B146: Al-Amadiya | C146: =SUMIF('DTM Dataset'!$C:$C,$B146,'DTM Dataset'!I:I) -> 899 | D146: =SUMIF('DTM Dataset'!$C:$C,$B146,'DTM Dataset'!J:J) -> 4897
B147: Duhok | C147: =SUMIF('DTM Dataset'!$C:$C,$B147,'DTM Dataset'!I:I) -> 4356 | D147: =SUMIF('DTM Dataset'!$C:$C,$B147,'DTM Dataset'!J:J) -> 26136
B148: Sumail | C148: =SUMIF('DTM Dataset'!$C:$C,$B148,'DTM Dataset'!I:I) -> 25314 | D148: =SUMIF('DTM Dataset'!$C:$C,$B148,'DTM Dataset'!J:J) -> 137883
B149: Zakho | C149: =SUMIF('DTM Dataset'!$C:$C,$B149,'DTM Dataset'!I:I) -> 14572 | D149: =SUMIF('DTM Dataset'!$C:$C,$B149,'DTM Dataset'!J:J) -> 80069
A150: Erbil | B150: Erbil | C150: =SUMIF('DTM Dataset'!$C:$C,$B150,'DTM Dataset'!I:I) -> 32635 | D150: =SUMIF('DTM Dataset'!$C:$C,$B150,'DTM Dataset'!J:J) -> 194562
B151: Koysinjaq | C151: =SUMIF('DTM Dataset'!$C:$C,$B151,'DTM Dataset'!I:I) -> 482 | D151: =SUMIF('DTM Dataset'!$C:$C,$B151,'DTM Dataset'!J:J) -> 2892
B152: Makhmour | C152: =SUMIF('DTM Dataset'!$C:$C,$B152,'DTM Dataset'!I:I) -> 1386 | D152: =SUMIF('DTM Dataset'!$C:$C,$B152,'DTM Dataset'!J:J) -> 6930
B153: Rawanduz | C153: =SUMIF('DTM Dataset'!$C:$C,$B153,'DTM Dataset'!I:I) -> 329 | D153: =SUMIF('DTM Dataset'!$C:$C,$B153,'DTM Dataset'!J:J) -> 1974
B154: Shaqlawa | C154: =SUMIF('DTM Dataset'!$C:$C,$B154,'DTM Dataset'!I:I) -> 832 | D154: =SUMIF('DTM Dataset'!$C:$C,$B154,'DTM Dataset'!J:J) -> 4992
A155: Kerbala | B155: Ain Al-Tamur | C155: =SUMIF('DTM Dataset'!$C:$C,$B155,'DTM Dataset'!I:I) -> 23 | D155: =SUMIF('DTM Dataset'!$C:$C,$B155,'DTM Dataset'!J:J) -> 138
B156: Al-Hindiya | C156: =SUMIF('DTM Dataset'!$C:$C,$B156,'DTM Dataset'!I:I) -> 146 | D156: =SUMIF('DTM Dataset'!$C:$C,$B156,'DTM Dataset'!J:J) -> 876
B157: Kerbela | C157: =SUMIF('DTM Dataset'!$C:$C,$B157,'DTM Dataset'!I:I) -> 1638 | D157: =SUMIF('DTM Dataset'!$C:$C,$B157,'DTM Dataset'!J:J) -> 9828
A158: Kirkuk | B158: Al-Hawiga | C158: =SUMIF('DTM Dataset'!$C:$C,$B158,'DTM Dataset'!I:I) -> 121 | D158: =SUMIF('DTM Dataset'!$C:$C,$B158,'DTM Dataset'!J:J) -> 726
B159: Daquq | C159: =SUMIF('DTM Dataset'!$C:$C,$B159,'DTM Dataset'!I:I) -> 845 | D159: =SUMIF('DTM Dataset'!$C:$C,$B159,'DTM Dataset'!J:J) -> 5070
B160: Dibis | C160: =SUMIF('DTM Dataset'!$C:$C,$B160,'DTM Dataset'!I:I) -> 332 | D160: =SUMIF('DTM Dataset'!$C:$C,$B160,'DTM Dataset'!J:J) -> 1992
B161: Kirkuk | C161: =SUMIF('DTM Dataset'!$C:$C,$B161,'DTM Dataset'!I:I) -> 13944 | D161: =SUMIF('DTM Dataset'!$C:$C,$B161,'DTM Dataset'!J:J) -> 83664
A162: Maysan | B162: Al-Amara | C162: =SUMIF('DTM Dataset'!$C:$C,$B162,'DTM Dataset'!I:I) -> 5 | D162: =SUMIF('DTM Dataset'!$C:$C,$B162,'DTM Dataset'!J:J) -> 30
B163: Ali Al-Gharbi | C163: =SUMIF('DTM Dataset'!$C:$C,$B163,'DTM Dataset'!I:I) -> 10 | D163: =SUMIF('DTM Dataset'!$C:$C,$B163,'DTM Dataset'!J:J) -> 60
B164: Al-Kahla | C164: =SUMIF('DTM Dataset'!$C:$C,$B164,'DTM Dataset'!I:I) -> 251 | D164: =SUMIF('DTM Dataset'!$C:$C,$B164,'DTM Dataset'!J:J) -> 1506
B165: Al-Maimouna | C165: =SUMIF('DTM Dataset'!$C:$C,$B165,'DTM Dataset'!I:I) -> 2 | D165: =SUMIF('DTM Dataset'!$C:$C,$B165,'DTM Dataset'!J:J) -> 12
B166: Al-Mejar Al-Kabir | C166: =SUMIF('DTM Dataset'!$C:$C,$B166,'DTM Dataset'!I:I) -> 27 | D166: =SUMIF('DTM Dataset'!$C:$C,$B166,'DTM Dataset'!J:J) -> 162
B167: Qalat Saleh | C167: =SUMIF('DTM Dataset'!$C:$C,$B167,'DTM Dataset'!I:I) -> 17 | D167: =SUMIF('DTM Dataset'!$C:$C,$B167,'DTM Dataset'!J:J) -> 102
A168: Ninewa | B168: Al-Baaj | C168: =SUMIF('DTM Dataset'!$C:$C,$B168,'DTM Dataset'!I:I) -> 1255 | D168: =SUMIF('DTM Dataset'!$C:$C,$B168,'DTM Dataset'!J:J) -> 7530
B169: Al-Hamdaniya | C169: =SUMIF('DTM Dataset'!$C:$C,$B169,'DTM Dataset'!I:I) -> 7403 | D169: =SUMIF('DTM Dataset'!$C:$C,$B169,'DTM Dataset'!J:J) -> 41333
B170: Al-Hatra | C170: =SUMIF('DTM Dataset'!$C:$C,$B170,'DTM Dataset'!I:I) -> 702 | D170: =SUMIF('DTM Dataset'!$C:$C,$B170,'DTM Dataset'!J:J) -> 4212
B171: Al-Mosul | C171: =SUMIF('DTM Dataset'!$C:$C,$B171,'DTM Dataset'!I:I) -> 15269 | D171: =SUMIF('DTM Dataset'!$C:$C,$B171,'DTM Dataset'!J:J) -> 90644
B172: Al-Shikhan | C172: =SUMIF('DTM Dataset'!$C:$C,$B172,'DTM Dataset'!I:I) -> 7931 | D172: =SUMIF('DTM Dataset'!$C:$C,$B172,'DTM Dataset'!J:J) -> 42841
B173: Aqra | C173: =SUMIF('DTM Dataset'!$C:$C,$B173,'DTM Dataset'!I:I) -> 4078 | D173: =SUMIF('DTM Dataset'!$C:$C,$B173,'DTM Dataset'!J:J) -> 24299
B174: Sinjar | C174: =SUMIF('DTM Dataset'!$C:$C,$B174,'DTM Dataset'!I:I) -> 6084 | D174: =SUMIF('DTM Dataset'!$C:$C,$B174,'DTM Dataset'!J:J) -> 36504
B175: Telafar | C175: =SUMIF('DTM Dataset'!$C:$C,$B175,'DTM Dataset'!I:I) -> 1555 | D175: =SUMIF('DTM Dataset'!$C:$C,$B175,'DTM Dataset'!J:J) -> 9330
B176: Tilkaef | C176: =SUMIF('DTM Dataset'!$C:$C,$B176,'DTM Dataset'!I:I) -> 2900 | D176: =SUMIF('DTM Dataset'!$C:$C,$B176,'DTM Dataset'!J:J) -> 17400
A177: Salah al-Din | B177: Al-Daur | C177: =SUMIF('DTM Dataset'!$C:$C,$B177,'DTM Dataset'!I:I) -> 11 | D177: =SUMIF('DTM Dataset'!$C:$C,$B177,'DTM Dataset'!J:J) -> 66
B178: Al-Shirqat | C178: =SUMIF('DTM Dataset'!$C:$C,$B178,'DTM Dataset'!I:I) -> 50 | D178: =SUMIF('DTM Dataset'!$C:$C,$B178,'DTM Dataset'!J:J) -> 300
B179: Balad | C179: =SUMIF('DTM Dataset'!$C:$C,$B179,'DTM Dataset'!I:I) -> 904 | D179: =SUMIF('DTM Dataset'!$C:$C,$B179,'DTM Dataset'!J:J) -> 5424
B180: Beygee | C180: =SUMIF('DTM Dataset'!$C:$C,$B180,'DTM Dataset'!I:I) -> 212 | D180: =SUMIF('DTM Dataset'!$C:$C,$B180,'DTM Dataset'!J:J) -> 1272
B181: Samarra | C181: =SUMIF('DTM Dataset'!$C:$C,$B181,'DTM Dataset'!I:I) -> 2623 | D181: =SUMIF('DTM Dataset'!$C:$C,$B181,'DTM Dataset'!J:J) -> 15738
B182: Tikrit | C182: =SUMIF('DTM Dataset'!$C:$C,$B182,'DTM Dataset'!I:I) -> 2331 | D182: =SUMIF('DTM Dataset'!$C:$C,$B182,'DTM Dataset'!J:J) -> 13986
B183: Tooz Khurmato | C183: =SUMIF('DTM Dataset'!$C:$C,$B183,'DTM Dataset'!I:I) -> 3268 | D183: =SUMIF('DTM Dataset'!$C:$C,$B183,'DTM Dataset'!J:J) -> 19608
A184: Thi Qar | B184: Al-Chibayish | C184: =SUMIF('DTM Dataset'!$C:$C,$B184,'DTM Dataset'!I:I) -> 4 | D184: =SUMIF('DTM Dataset'!$C:$C,$B184,'DTM Dataset'!J:J) -> 24
B185: Al-Nasiriya | C185: =SUMIF('DTM Dataset'!$C:$C,$B185,'DTM Dataset'!I:I) -> 296 | D185: =SUMIF('DTM Dataset'!$C:$C,$B185,'DTM Dataset'!J:J) -> 1776
B186: Al-Rifai | C186: =SUMIF('DTM Dataset'!$C:$C,$B186,'DTM Dataset'!I:I) -> 121 | D186: =SUMIF('DTM Dataset'!$C:$C,$B186,'DTM Dataset'!J:J) -> 726
B187: Al-Shatra | C187: =SUMIF('DTM Dataset'!$C:$C,$B187,'DTM Dataset'!I:I) -> 25 | D187: =SUMIF('DTM Dataset'!$C:$C,$B187,'DTM Dataset'!J:J) -> 150
B188: Suq Al-Shoyokh | C188: =SUMIF('DTM Dataset'!$C:$C,$B188,'DTM Dataset'!I:I) -> 78 | D188: =SUMIF('DTM Dataset'!$C:$C,$B188,'DTM Dataset'!J:J) -> 468
A189: Wassit | B189: Al-Hai | C189: =SUMIF('DTM Dataset'!$C:$C,$B189,'DTM Dataset'!I:I) -> 42 | D189: =SUMIF('DTM Dataset'!$C:$C,$B189,'DTM Dataset'!J:J) -> 252
B190: Al-Kut | C190: =SUMIF('DTM Dataset'!$C:$C,$B190,'DTM Dataset'!I:I) -> 479 | D190: =SUMIF('DTM Dataset'!$C:$C,$B190,'DTM Dataset'!J:J) -> 2874
B191: Al-Namaniya | C191: =SUMIF('DTM Dataset'!$C:$C,$B191,'DTM Dataset'!I:I) -> 46 | D191: =SUMIF('DTM Dataset'!$C:$C,$B191,'DTM Dataset'!J:J) -> 276
B192: Al-Suwaira | C192: =SUMIF('DTM Dataset'!$C:$C,$B192,'DTM Dataset'!I:I) -> 125 | D192: =SUMIF('DTM Dataset'!$C:$C,$B192,'DTM Dataset'!J:J) -> 750
B193: Badra | C193: =SUMIF('DTM Dataset'!$C:$C,$B193,'DTM Dataset'!I:I) -> 32 | D193: =SUMIF('DTM Dataset'!$C:$C,$B193,'DTM Dataset'!J:J) -> 192
A194: Total | C194: =SUM(C94:C193) -> 203447 | D194: =SUM(D94:D193) -> 1184818

Sheet DTM Dataset
A1: DTM : IDP Master List 31-03-2022
A2: Location of Displacement | I2: Total # of IDPs | K2: New arrivals | M2: Shelter type (in red, classified as critical shelters) | Z2: Governorate of origin (Number of Individuals) | AR2: Period of displacement (Number of Individuals) | BD2: Link for Map
A3: Place id | B3: Governorate | C3: District | D3: Sub-district | E3: Location name in English | F3: Location name in Arabic | G3: Latitude | H3: Longitude | I3: Households | J3: Individuals | K3: Individuals displaced for a 1st time | L3: Individuals arriving from other location of displacement | M3: Camp | N3: Host families | O3: Hotel/Motel or short-term rental | P3: Own Property | Q3: Apartment/House (not owned) (habitable) | R3: Apartment/House (not owned)(uninhabitable) | S3: Tent/Caravan/makeshift shelter/mud or block house | T3: Unfinished/Abandoned building | U3: Public Buildings or Collective shelters | V3: Religious building | W3: School building | X3: Other Critical shelter | Y3: Unknown shelter type | Z3: Al-Anbar | AA3: Babil | AB3: Baghdad | AC3: Al-Basrah | AD3: Duhok | AE3: Diyala | AF3: Erbil | AG3: Kerbala | AH3: Kirkuk | AI3: Maysan | AJ3: Al-Muthanna | AK3: Najaf | AL3: Ninewa | AM3: Qadissiya | AN3: Salah al-Din | AO3: Al-Sulaymaniyah | AP3: Thi Qar | AQ3: Wassit | AR3: Pre-June14 | AS3: June-July14 | AT3: August14 | AU3: Post September14 | AV3: Post April15 | AW3: Post March16 | AX3: Post 17 October16 | AY3: July 17 | AZ3: Jan 19 | BA3: ـJan 20 | BB3: Jan2021 | BC3: Jan 2022 | BD3: Open Street Map | BE3: Google Map | BF3: Bing Map
A4: 33939 | B4: Al-Anbar | C4: Al-Falluja | D4: Al-Amirya | E4: Amriyat Al-Fallujah sector 4 | F4: القطاع الرابع | G4: 33.145831 | H4: 44.015278 | I4: 129 | J4: 774 | K4: 0 | L4: 0 | M4: 0 | N4: 0 | O4: 0 | P4: 0 | Q4: 0 | R4: 0 | S4: 774 | T4: 0 | U4: 0 | V4: 0 | W4: 0 | X4: 0 | Y4: 0 | Z4: 408 | AA4: 366 | AB4: 0 | AC4: 0 | AD4: 0 | AE4: 0 | AF4: 0 | AG4: 0 | AH4: 0 | AI4: 0 | AJ4: 0 | AK4: 0 | AL4: 0 | AM4: 0 | AN4: 0 | AO4: 0 | AP4: 0 | AQ4: 0 | AR4: 0 | AS4: 0 | AT4: 0 | AU4: 0 | AV4: 774 | AW4: 0 | AX4: 0 | AY4: 0 | AZ4: 0 | BA4: 0 | BB4: 0 | BC4: 0 | BD4: =HYPERLINK("http://www.openstreetmap.org/?mlat=33.1458&mlon=44.0153&zoom=12#map=12/33.1458/44.0153","Maplink1") -> Maplink1 | BE4: =HYPERLINK("https://www.google.iq/maps/search/+33.1458,44.0153/@33.1458,44.0153,14z?hl=en","Maplink2") -> Maplink2 | BF4: =HYPERLINK("http://www.bing.com/maps/?lvl=14&sty=h&cp=33.1458~44.0153&sp=point.33.1458_44.0153","Maplink3") -> Maplink3
A5: 33940 | B5: Al-Anbar | C5: Al-Falluja | D5: Al-Amirya | E5: Amriyat Al-Fallujahsector 3 | F5: القطاع الثالث | G5: 33.14162138 | H5: 44.01803577 | I5: 106 | J5: 636 | K5: 0 | L5: 0 | M5: 0 | N5: 0 | O5: 0 | P5: 0 | Q5: 0 | R5: 0 | S5: 636 | T5: 0 | U5: 0 | V5: 0 | W5: 0 | X5: 0 | Y5: 0 | Z5: 210 | AA5: 426 | AB5: 0 | AC5: 0 | AD5: 0 | AE5: 0 | AF5: 0 | AG5: 0 | AH5: 0 | AI5: 0 | AJ5: 0 | AK5: 0 | AL5: 0 | AM5: 0 | AN5: 0 | AO5: 0 | AP5: 0 | AQ5: 0 | AR5: 0 | AS5: 0 | AT5: 0 | AU5: 0 | AV5: 426 | AW5: 210 | AX5: 0 | AY5: 0 | AZ5: 0 | BA5: 0 | BB5: 0 | BC5: 0 | BD5: =HYPERLINK("http://www.openstreetmap.org/?mlat=33.1416&mlon=44.018&zoom=12#map=12/33.1416/44.018","Maplink1") -> Maplink1 | BE5: =HYPERLINK("https://www.google.iq/maps/search/+33.1416,44.018/@33.1416,44.018,14z?hl=en","Maplink2") -> Maplink2 | BF5: =HYPERLINK("http://www.bing.com/maps/?lvl=14&sty=h&cp=33.1416~44.018&sp=point.33.1416_44.018","Maplink3") -> Maplink3
A6: 21226 | B6: Al-Anbar | C6: Al-Falluja | D6: Al-Amirya | E6: Albu Hori | F6: البوحوري | G6: 33.15845385 | H6: 43.8916234 | I6: 109 | J6: 654 | K6: 0 | L6: 6 | M6: 0 | N6: 0 | O6: 0 | P6: 0 | Q6: 0 | R6: 0 | S6: 624 | T6: 0 | U6: 12 | V6: 18 | W6: 0 | X6: 0 | Y6: 0 | Z6: 276 | AA6: 378 | AB6: 0 | AC6: 0 | AD6: 0 | AE6: 0 | AF6: 0 | AG6: 0 | AH6: 0 | AI6: 0 | AJ6: 0 | AK6: 0 | AL6: 0 | AM6: 0 | AN6: 0 | AO6: 0 | AP6: 0 | AQ6: 0 | AR6: 0 | AS6: 0 | AT6: 0 | AU6: 0 | AV6: 654 | AW6: 0 | AX6: 0 | AY6: 0 | AZ6: 0 | BA6: 0 | BB6: 0 | BC6: 0 | BD6: =HYPERLINK("http://www.openstreetmap.org/?mlat=33.1585&mlon=43.8916&zoom=12#map=12/33.1585/43.8916","Maplink1") -> Maplink1 | BE6: =HYPERLINK("https://www.google.iq/maps/search/+33.1585,43.8916/@33.1585,43.8916,14z?hl=en","Maplink2") -> Maplink2 | BF6: =HYPERLINK("http://www.bing.com/maps/?lvl=14&sty=h&cp=33.1585~43.8916&sp=point.33.1585_43.8916","Maplink3") -> Maplink3
A7: 33941 | B7: Al-Anbar | C7: Al-Falluja | D7: Al-Amirya | E7: Amriyat Al-Fallujahsector 50 | F7: قطاع الخمسين | G7: 33.14731684 | H7: 44.01389114 | I7: 83 | J7: 498 | K7: 0 | L7: 6 | M7: 0 | N7: 0 | O7: 0 | P7: 0 | Q7: 0 | R7: 0 | S7: 498 | T7: 0 | U7: 0 | V7: 0 | W7: 0 | X7: 0 | Y7: 0 | Z7: 18 | AA7: 480 | AB7: 0 | AC7: 0 | AD7: 0 | AE7: 0 | AF7: 0 | AG7: 0 | AH7: 0 | AI7: 0 | AJ7: 0 | AK7: 0 | AL7: 0 | AM7: 0 | AN7: 0 | AO7: 0 | AP7: 0 | AQ7: 0 | AR7: 0 | AS7: 0 | AT7: 0 | AU7: 480 | AV7: 0 | AW7: 18 | AX7: 0 | AY7: 0 | AZ7: 0 | BA7: 0 | BB7: 0 | BC7: 0 | BD7: =HYPERLINK("http://www.openstreetmap.org/?mlat=33.1473&mlon=44.0139&zoom=12#map=12/33.1473/44.0139","Maplink1") -> Maplink1 | BE7: =HYPERLINK("https://www.google.iq/maps/search/+33.1473,44.0139/@33.1473,44.0139,14z?hl=en","Maplink2") -> Maplink2 | BF7: =HYPERLINK("http://www.bing.com/maps/?lvl=14&sty=h&cp=33.1473~44.0139&sp=point.33.1473_44.0139","Maplink3") -> Maplink3
A8: 34228 | B8: Al-Anbar | C8: Al-Falluja | D8: Al-Amirya | E8: low-costs houses/Habbaniah | F8: دور واطئه الكلفه \الحبانيه | G8: 33.25546254 | H8: 43.65109069 | I8: 249 | J8: 1,494 | K8: 0 | L8: 0 | M8: 0 | N8: 0 | O8: 0 | P8: 0 | Q8: 0 | R8: 0 | S8: 342 | T8: 0 | U8: 1,152 | V8: 0 | W8: 0 | X8: 0 | Y8: 0 | Z8: 1,494 | AA8: 0 | AB8: 0 | AC8: 0 | AD8: 0 | AE8: 0 | AF8: 0 | AG8: 0 | AH8: 0 | AI8: 0 | AJ8: 0 | AK8: 0 | AL8: 0 | AM8: 0 | AN8: 0 | AO8: 0 | AP8: 0 | AQ8: 0 | AR8: 1,494 | AS8: 0 | AT8: 0 | AU8: 0 | AV8: 0 | AW8: 0 | AX8: 0 | AY8: 0 | AZ8: 0 | BA8: 0 | BB8: 0 | BC8: 0 | BD8: =HYPERLINK("http://www.openstreetmap.org/?mlat=33.2555&mlon=43.6511&zoom=12#map=12/33.2555/43.6511","Maplink1") -> Maplink1 | BE8: =HYPERLINK("https://www.google.iq/maps/search/+33.2555,43.6511/@33.2555,43.6511,14z?hl=en","Maplink2") -> Maplink2 | BF8: =HYPERLINK("http://www.bing.com/maps/?lvl=14&sty=h&cp=33.2555~43.6511&sp=point.33.2555_43.6511","Maplink3") -> Maplink3
A9: 34290 | B9: Al-Anbar | C9: Al-Falluja | D9: Al-Amirya | E9: Hay Al-Salam | F9: حي السلام | G9: 33.17218 | H9: 43.86378 | I9: 122 | J9: 732 | K9: 0 | L9: 0 | M9: 0 | N9: 0 | O9: 0 | P9: 0 | Q9: 0 | R9: 0 | S9: 732 | T9: 0 | U9: 0 | V9: 0 | W9: 0 | X9: 0 | Y9: 0 | Z9: 522 | AA9: 210 | AB9: 0 | AC9: 0 | AD9: 0 | AE9: 0 | AF9: 0 | AG9: 0 | AH9: 0 | AI9: 0 | AJ9: 0 | AK9: 0 | AL9: 0 | AM9: 0 | AN9: 0 | AO9: 0 | AP9: 0 | AQ9: 0 | AR9: 0 | AS9: 0 | AT9: 0 | AU9: 210 | AV9: 522 | AW9: 0 | AX9: 0 | AY9: 0 | AZ9: 0 | BA9: 0 | BB9: 0 | BC9: 0 | BD9: =HYPERLINK("http://www.openstreetmap.org/?mlat=33.1722&mlon=43.8638&zoom=12#map=12/33.1722/43.8638","Maplink1") -> Maplink1 | BE9: =HYPERLINK("https://www.google.iq/maps/search/+33.1722,43.8638/@33.1722,43.8638,14z?hl=en","Maplink2") -> Maplink2 | BF9: =HYPERLINK("http://www.bing.com/maps/?lvl=14&sty=h&cp=33.1722~43.8638&sp=point.33.1722_43.8638","Maplink3") -> Maplink3
A10: 34291 | B10: Al-Anbar | C10: Al-Falluja | D10: Al-Amirya | E10: Hay Al-Maleab | F10: حي الملعب | G10: 33.17337 | H10: 43.84332 | I10: 230 | J10: 1,380 | K10: 0 | L10: 0 | M10: 0 | N10: 0 | O10: 0 | P10: 0 | Q10: 0 | R10: 60 | S10: 1,320 | T10: 0 | U10: 0 | V10: 0 | W10: 0 | X10: 0 | Y10: 0 | Z10: 900 | AA10: 480 | AB10: 0 | AC10: 0 | AD10: 0 | AE10: 0 | AF10: 0 | AG10: 0 | AH10: 0 | AI10: 0 | AJ10: 0 | AK10: 0 | AL10: 0 | AM10: 0 | AN10: 0 | AO10: 0 | AP10: 0 | AQ10: 0 | AR10: 0 | AS10: 0 | AT10: 0 | AU10: 480 | AV10: 900 | AW10: 0 | AX10: 0 | AY10: 0 | AZ10: 0 | BA10: 0 | BB10: 0 | BC10: 0 | BD10: =HYPERLINK("http://www.openstreetmap.org/?mlat=33.1734&mlon=43.8433&zoom=12#map=12/33.1734/43.8433","Maplink1") -> Maplink1 | BE10: =HYPERLINK("https://www.google.iq/maps/search/+33.1734,43.8433/@33.1734,43.8433,14z?hl=en","Maplink2") -> Maplink2 | BF10: =HYPERLINK("http://www.bing.com/maps/?lvl=14&sty=h&cp=33.1734~43.8433&sp=point.33.1734_43.8433","Maplink3") -> Maplink3
A11: 107 | B11: Al-Anbar | C11: Al-Falluja | D11: Al-Amirya | E11: Al Amiriyah | F11: العامرية | G11: 33.1787573 | H11: 43.85698918 | I11: 317 | J11: 1,902 | K11: 0 | L11: 0 | M11: 0 | N11: 0 | O11: 0 | P11: 0 | Q11: 1,200 | R11: 60 | S11: 642 | T11: 0 | U11: 0 | V11: 0 | W11: 0 | X11: 0 | Y11: 0 | Z11: 246 | AA11: 1,656 | AB11: 0 | AC11: 0 | AD11: 0 | AE11: 0 | AF11: 0 | AG11: 0 | AH11: 0 | AI11: 0 | AJ11: 0 | AK11: 0 | AL11: 0 | AM11: 0 | AN11: 0 | AO11: 0 | AP11: 0 | AQ11: 0 | AR11: 0 | AS11: 0 | AT11: 0 | AU11: 1,644 | AV11: 258 | AW11: 0 | AX11: 0 | AY11: 0 | AZ11: 0 | BA11: 0 | BB11: 0 | BC11: 0 | BD11: =HYPERLINK("http://www.openstreetmap.org/?mlat=33.1788&mlon=43.857&zoom=12#map=12/33.1788/43.857","Maplink1") -> Maplink1 | BE11: =HYPERLINK("https://www.google.iq/maps/search/+33.1788,43.857/@33.1788,43.857,14z?hl=en","Maplink2") -> Maplink2 | BF11: =HYPERLINK("http://www.bing.com/maps/?lvl=14&sty=h&cp=33.1788~43.857&sp=point.33.1788_43.857","Maplink3") -> Maplink3
A12: 26093 | B12: Al-Anbar | C12: Al-Falluja | D12: Al-Amirya | E12: Al-Amirya-Tal Ghatas | F12: تل غطاس | G12: 33.18427359 | H12: 43.92571116 | I12: 34 | J12: 204 | K12: 0 | L12: 0 | M12: 0 | N12: 0 | O12: 0 | P12: 0 | Q12: 0 | R12: 0 | S12: 204 | T12: 0 | U12: 0 | V12: 0 | W12: 0 | X12: 0 | Y12: 0 | Z12: 0 | AA12: 204 | AB12: 0 | AC12: 0 | AD12: 0 | AE12: 0 | AF12: 0 | AG12: 0 | AH12: 0 | AI12: 0 | AJ12: 0 | AK12: 0 | AL12: 0 | AM12: 0 | AN12: 0 | AO12: 0 | AP12: 0 | AQ12: 0 | AR12: 0 | AS12: 0 | AT12: 0 | AU12: 0 | AV12: 204 | AW12: 0 | AX12: 0 | AY12: 0 | AZ12: 0 | BA12: 0 | BB12: 0 | BC12: 0 | BD12: =HYPERLINK("http://www.openstreetmap.org/?mlat=33.1843&mlon=43.9257&zoom=12#map=12/33.1843/43.9257","Maplink1") -> Maplink1 | BE12: =HYPERLINK("https://www.google.iq/maps/search/+33.1843,43.9257/@33.1843,43.9257,14z?hl=en","Maplink2") -> Maplink2 | BF12: =HYPERLINK("http://www.bing.com/maps/?lvl=14&sty=h&cp=33.1843~43.9257&sp=point.33.1843_43.9257","Maplink3") -> Maplink3
A13: 26036 | B13: Al-Anbar | C13: Al-Falluja | D13: Al-Amirya | E13: Al-Amirya-Albu Jasim | F13: البوجاسم | G13: 33.201389 | H13: 43.9 | I13: 20 | J13: 120 | K13: 0 | L13: 0 | M13: 0 | N13: 0 | O13: 0 | P13: 0 | Q13: 0 | R13: 0 | S13: 120 | T13: 0 | U13: 0 | V13: 0 | W13: 0 | X13: 0 | Y13: 0 | Z13: 30 | AA13: 90 | AB13: 0 | AC13: 0 | AD13: 0 | AE13: 0 | AF13: 0 | AG13: 0 | AH13: 0 | AI13: 0 | AJ13: 0 | AK13: 0 | AL13: 0 | AM13: 0 | AN13: 0 | AO13: 0 | AP13: 0 | AQ13: 0 | AR13: 0 | AS13: 0 | AT13: 0 | AU13: 0 | AV13: 120 | AW13: 0 | AX13: 0 | AY13: 0 | AZ13: 0 | BA13: 0 | BB13: 0 | BC13: 0 | BD13: =HYPERLINK("http://www.openstreetmap.org/?mlat=33.2014&mlon=43.9&zoom=12#map=12/33.2014/43.9","Maplink1") -> Maplink1 | BE13: =HYPERLINK("https://www.google.iq/maps/search/+33.2014,43.9/@33.2014,43.9,14z?hl=en","Maplink2") -> Maplink2 | BF13: =HYPERLINK("http://www.bing.com/maps/?lvl=14&sty=h&cp=33.2014~43.9&sp=point.33.2014_43.9","Maplink3") -> Maplink3
A14: 26092 | B14: Al-Anbar | C14: Al-Falluja | D14: Al-Amirya | E14: Al-Amirya-Al Mouilha | F14: المويلحة | G14: 33.14119036 | H14: 43.95571249 | I14: 265 | J14: 1,590 | K14: 0 | L14: 0 | M14: 0 | N14: 0 | O14: 0 | P14: 0 | Q14: 0 | R14: 0 | S14: 1,446 | T14: 0 | U14: 0 | V14: 144 | W14: 0 | X14: 0 | Y14: 0 | Z14: 150 | AA14: 1,440 | AB14: 0 | AC14: 0 | AD14: 0 | AE14: 0 | AF14: 0 | AG14: 0 | AH14: 0 | AI14: 0 | AJ14: 0 | AK14: 0 | AL14: 0 | AM14: 0 | AN14: 0 | AO14: 0 | AP14: 0 | AQ14: 0 | AR14: 510 | AS14: 0 | AT14: 0 | AU14: 240 | AV14: 840 | AW14: 0 | AX14: 0 | AY14: 0 | AZ14: 0 | BA14: 0 | BB14: 0 | BC14: 0 | BD14: =HYPERLINK("http://www.openstreetmap.org/?mlat=33.1412&mlon=43.9557&zoom=12#map=12/33.1412/43.9557","Maplink1") -> Maplink1 | BE14: =HYPERLINK("https://www.google.iq/maps/search/+33.1412,43.9557/@33.1412,43.9557,14z?hl=en","Maplink2") -> Maplink2 | BF14: =HYPERLINK("http://www.bing.com/maps/?lvl=14&sty=h&cp=33.1412~43.9557&sp=point.33.1412_43.9557","Maplink3") -> Maplink3
A15: 26087 | B15: Al-Anbar | C15: Al-Falluja | D15: Al-Amirya | E15: Al-Amirya-Albu Salman | F15: البوسليمان | G15: 33.15382888 | H15: 44.00612418 | I15: 158 | J15: 948 | K15: 0 | L15: 0 | M15: 0 | N15: 6 | O15: 0 | P15: 0 | Q15: 0 | R15: 0 | S15: 942 | T15: 0 | U15: 0 | V15: 0 | W15: 0 | X15: 0 | Y15: 0 | Z15: 360 | AA15: 588 | AB15: 0 | AC15: 0 | AD15: 0 | AE15: 0 | AF15: 0 | AG15: 0 | AH15: 0 | AI15: 0 | AJ15: 0 | AK15: 0 | AL15: 0 | AM15: 0 | AN15: 0 | AO15: 0 | AP15: 0 | AQ15: 0 | AR15: 0 | AS15: 0 | AT15: 0 | AU15: 360 | AV15: 588 | AW15: 0 | AX15: 0 | AY15: 0 | AZ15: 0 | BA15: 0 | BB15: 0 | BC15: 0 | BD15: =HYPERLINK("http://www.openstreetmap.org/?mlat=33.1538&mlon=44.0061&zoom=12#map=12/33.1538/44.0061","Maplink1") -> Maplink1 | BE15: =HYPERLINK("https://www.google.iq/maps/search/+33.1538,44.0061/@33.1538,44.0061,14z?hl=en","Maplink2") -> Maplink2 | BF15: =HYPERLINK("http://www.bing.com/maps/?lvl=14&sty=h&cp=33.1538~44.0061&sp=point.33.1538_44.0061","Maplink3") -> Maplink3
A16: 27246 | B16: Al-Anbar | C16: Al-Falluja | D16: Al-Amirya | E16: AAF | F16: مخيم عامرية الفلوجة | G16: 33.14654372 | H16: 43.84855916 | I16: 450 | J16: 2,700 | K16: 0 | L16: 0 | M16: 0 | N16: 0 | O16: 0 | P16: 0 | Q16: 0 | R16: 0 | S16: 2,700 | T16: 0 | U16: 0 | V16: 0 | W16: 0 | X16: 0 | Y16: 0 | Z16: 2,454 | AA16: 246 | AB16: 0 | AC16: 0 | AD16: 0 | AE16: 0 | AF16: 0 | AG16: 0 | AH16: 0 | AI16: 0 | AJ16: 0 | AK16: 0 | AL16: 0 | AM16: 0 | AN16: 0 | AO16: 0 | AP16: 0 | AQ16: 0 | AR16: 0 | AS16: 0 | AT16: 0 | AU16: 0 | AV16: 246 | AW16: 660 | AX16: 594 | AY16: 1,200 | AZ16: 0 | BA16: 0 | BB16: 0 | BC16: 0 | BD16: =HYPERLINK("http://www.openstreetmap.org/?mlat=33.1465&mlon=43.8486&zoom=12#map=12/33.1465/43.8486","Maplink1") -> Maplink1 | BE16: =HYPERLINK("https://www.google.iq/maps/search/+33.1465,43.8486/@33.1465,43.8486,14z?hl=en","Maplink2") -> Maplink2 | BF16: =HYPERLINK("http://www.bing.com/maps/?lvl=14&sty=h&cp=33.1465~43.8486&sp=point.33.1465_43.8486","Maplink3") -> Maplink3
A17: 31877 | B17: Al-Anbar | C17: Al-Falluja | D17: Al-Amirya | E17: Al-Ekhaa Compaund | F17: مجمع الاخاء السكني | G17: 33.16421174 | H17: 43.86426257 | I17: 81 | J17: 486 | K17: 0 | L17: 0 | M17: 0 | N17: 0 | O17: 0 | P17: 0 | Q17: 486 | R17: 0 | S17: 0 | T17: 0 | U17: 0 | V17: 0 | W17: 0 | X17: 0 | Y17: 0 | Z17: 390 | AA17: 96 | AB17: 0 | AC17: 0 | AD17: 0 | AE17: 0 | AF17: 0 | AG17: 0 | AH17: 0 | AI17: 0 | AJ17: 0 | AK17: 0 | AL17: 0 | AM17: 0 | AN17: 0 | AO17: 0 | AP17: 0 | AQ17: 0 | AR17: 0 | AS17: 0 | AT17: 0 | AU17: 0 | AV17: 486 | AW17: 0 | AX17: 0 | AY17: 0 | AZ17: 0 | BA17: 0 | BB17: 0 | BC17: 0 | BD17: =HYPERLINK("http://www.openstreetmap.org/?mlat=33.1642&mlon=43.8643&zoom=12#map=12/33.1642/43.8643","Maplink1") -> Maplink1 | BE17: =HYPERLINK("https://www.google.iq/maps/search/+33.1642,43.8643/@33.1642,43.8643,14z?hl=en","Maplink2") -> Maplink2 | BF17: =HYPERLINK("http://www.bing.com/maps/?lvl=14&sty=h&cp=33.1642~43.8643&sp=point.33.1642_43.8643","Maplink3") -> Maplink3
A18: 26084 | B18: Al-Anbar | C18: Al-Falluja | D18: Al-Amirya | E18: Amriyat Al-Fallujah-sector1 | F18: عامرية الفلوجة-القطاع الاول | G18: 33.11973987 | H18: 44.04292247 | I18: 103 | J18: 618 | K18: 0 | L18: 0 | M18: 0 | N18: 0 | O18: 0 | P18: 0 | Q18: 0 | R18: 0 | S18: 618 | T18: 0 | U18: 0 | V18: 0 | W18: 0 | X18: 0 | Y18: 0 | Z18: 360 | AA18: 258 | AB18: 0 | AC18: 0 | AD18: 0 | AE18: 0 | AF18: 0 | AG18: 0 | AH18: 0 | AI18: 0 | AJ18: 0 | AK18: 0 | AL18: 0 | AM18: 0 | AN18: 0 | AO18: 0 | AP18: 0 | AQ18: 0 | AR18: 0 | AS18: 0 | AT18: 0 | AU18: 0 | AV18: 618 | AW18: 0 | AX18: 0 | AY18: 0 | AZ18: 0 | BA18: 0 | BB18: 0 | BC18: 0 | BD18: =HYPERLINK("http://www.openstreetmap.org/?mlat=33.1197&mlon=44.0429&zoom=12#map=12/33.1197/44.0429","Maplink1") -> Maplink1 | BE18: =HYPERLINK("https://www.google.iq/maps/search/+33.1197,44.0429/@33.1197,44.0429,14z?hl=en","Maplink2") -> Maplink2 | BF18: =HYPERLINK("http://www.bing.com/maps/?lvl=14&sty=h&cp=33.1197~44.0429&sp=point.33.1197_44.0429","Maplink3") -> Maplink3
A19: 26088 | B19: Al-Anbar | C19: Al-Falluja | D19: Al-Amirya | E19: Ahl Al-Ramadi 74 | F19: اهل الرمادي 74 | G19: 33.14673327 | H19: 44.01503204 | I19: 68 | J19: 408 | K19: 0 | L19: 12 | M19: 0 | N19: 0 | O19: 0 | P19: 0 | Q19: 0 | R19: 0 | S19: 408 | T19: 0 | U19: 0 | V19: 0 | W19: 0 | X19: 0 | Y19: 0 | Z19: 408 | AA19: 0 | AB19: 0 | AC19: 0 | AD19: 0 | AE19: 0 | AF19: 0 | AG19: 0 | AH19: 0 | AI19: 0 | AJ19: 0 | AK19: 0 | AL19: 0 | AM19: 0 | AN19: 0 | AO19: 0 | AP19: 0 | AQ19: 0 | AR19: 0 | AS19: 0 | AT19: 0 | AU19: 378 | AV19: 30 | AW19: 0 | AX19: 0 | AY19: 0 | AZ19: 0 | BA19: 0 | BB19: 0 | BC19: 0 | BD19: =HYPERLINK("http://www.openstreetmap.org/?mlat=33.1467&mlon=44.015&zoom=12#map=12/33.1467/44.015","Maplink1") -> Maplink1 | BE19: =HYPERLINK("https://www.google.iq/maps/search/+33.1467,44.015/@33.1467,44.015,14z?hl=en","Maplink2") -> Maplink2 | BF19: =HYPERLINK("http://www.bing.com/maps/?lvl=14&sty=h&cp=33.1467~44.015&sp=point.33.1467_44.015","Maplink3") -> Maplink3
A20: 26085 | B20: Al-Anbar | C20: Al-Falluja | D20: Al-Amirya | E20: Amriyat Al-Fallujah-sector2 | F20: عامرية الفلوجة-القطاع الثاني | G20: 33.13481251 | H20: 44.02670737 | I20: 215 | J20: 1,290 | K20: 0 | L20: 0 | M20: 0 | N20: 0 | O20: 0 | P20: 0 | Q20: 0 | R20: 0 | S20: 1,290 | T20: 0 | U20: 0 | V20: 0 | W20: 0 | X20: 0 | Y20: 0 | Z20: 786 | AA20: 504 | AB20: 0 | AC20: 0 | AD20: 0 | AE20: 0 | AF20: 0 | AG20: 0 | AH20: 0 | AI20: 0 | AJ20: 0 | AK20: 0 | AL20: 0 | AM20: 0 | AN20: 0 | AO20: 0 | AP20: 0 | AQ20: 0 | AR20: 0 | AS20: 0 | AT20: 0 | AU20: 504 | AV20: 786 | AW20: 0 | AX20: 0 | AY20: 0 | AZ20: 0 | BA20: 0 | BB20: 0 | BC20: 0 | BD20: =HYPERLINK("http://www.openstreetmap.org/?mlat=33.1348&mlon=44.0267&zoom=12#map=12/33.1348/44.0267","Maplink1") -> Maplink1 | BE20: =HYPERLINK("https://www.google.iq/maps/search/+33.1348,44.0267/@33.1348,44.0267,14z?hl=en","Maplink2") -> Maplink2 | BF20: =HYPERLINK("http://www.bing.com/maps/?lvl=14&sty=h&cp=33.1348~44.0267&sp=point.33.1348_44.0267","Maplink3") -> Maplink3
A21: 23276 | B21: Al-Anbar | C21: Al-Falluja | D21: Al-Amirya | E21: HTC | F21: مخيم المدينة السياحية الحبانية | G21: 33.25344803 | H21: 43.58454996 | I21: 75 | J21: 450 | K21: 0 | L21: 0 | M21: 0 | N21: 0 | O21: 0 | P21: 0 | Q21: 0 | R21: 0 | S21: 450 | T21: 0 | U21: 0 | V21: 0 | W21: 0 | X21: 0 | Y21: 0 | Z21: 450 | AA21: 0 | AB21: 0 | AC21: 0 | AD21: 0 | AE21: 0 | AF21: 0 | AG21: 0 | AH21: 0 | AI21: 0 | AJ21: 0 | AK21: 0 | AL21: 0 | AM21: 0 | AN21: 0 | AO21: 0 | AP21: 0 | AQ21: 0 | AR21: 0 | AS21: 0 | AT21: 0 | AU21: 0 | AV21: 0 | AW21: 186 | AX21: 0 | AY21: 264 | AZ21: 0 | BA21: 0 | BB21: 0 | BC21: 0 | BD21: =HYPERLINK("http://www.openstreetmap.org/?mlat=33.2534&mlon=43.5845&zoom=12#map=12/33.2534/43.5845","Maplink1") -> Maplink1 | BE21: =HYPERLINK("https://www.google.iq/maps/search/+33.2534,43.5845/@33.2534,43.5845,14z?hl=en","Maplink2") -> Maplink2 | BF21: =HYPERLINK("http://www.bing.com/maps/?lvl=14&sty=h&cp=33.2534~43.5845&sp=point.33.2534_43.5845","Maplink3") -> Maplink3
A22: 26089 | B22: Al-Anbar | C22: Al-Falluja | D22: Al-Amirya | E22: Albu Dhaher-Albu Dhaher | F22: البوظاهر | G22: 33.18863084 | H22: 43.90689915 | I22: 18 | J22: 108 | K22: 0 | L22: 0 | M22: 0 | N22: 0 | O22: 0 | P22: 0 | Q22: 0 | R22: 0 | S22: 108 | T22: 0 | U22: 0 | V22: 0 | W22: 0 | X22: 0 | Y22: 0 | Z22: 18 | AA22: 90 | AB22: 0 | AC22: 0 | AD22: 0 | AE22: 0 | AF22: 0 | AG22: 0 | AH22: 0 | AI22: 0 | AJ22: 0 | AK22: 0 | AL22: 0 | AM22: 0 | AN22: 0 | AO22: 0 | AP22: 0 | AQ22: 0 | AR22: 0 | AS22: 0 | AT22: 0 | AU22: 0 | AV22: 108 | AW22: 0 | AX22: 0 | AY22: 0 | AZ22: 0 | BA22: 0 | BB22: 0 | BC22: 0 | BD22: =HYPERLINK("http://www.openstreetmap.org/?mlat=33.1886&mlon=43.9069&zoom=12#map=12/33.1886/43.9069","Maplink1") -> Maplink1 | BE22: =HYPERLINK("https://www.google.iq/maps/search/+33.1886,43.9069/@33.1886,43.9069,14z?hl=en","Maplink2") -> Maplink2 | BF22: =HYPERLINK("http://www.bing.com/maps/?lvl=14&sty=h&cp=33.1886~43.9069&sp=point.33.1886_43.9069","Maplink3") -> Maplink3
A23: 21410 | B23: Al-Anbar | C23: Al-Falluja | D23: Al-Amirya | E23: Albo Jaar | F23: البو جار | G23: 33.14913484 | H23: 43.98714161 | I23: 49 | J23: 294 | K23: 0 | L23: 0 | M23: 0 | N23: 0 | O23: 0 | P23: 0 | Q23: 0 | R23: 0 | S23: 294 | T23: 0 | U23: 0 | V23: 0 | W23: 0 | X23: 0 | Y23: 0 | Z23: 138 | AA23: 156 | AB23: 0 | AC23: 0 | AD23: 0 | AE23: 0 | AF23: 0 | AG23: 0 | AH23: 0 | AI23: 0 | AJ23: 0 | AK23: 0 | AL23: 0 | AM23: 0 | AN23: 0 | AO23: 0 | AP23: 0 | AQ23: 0 | AR23: 0 | AS23: 0 | AT23: 0 | AU23: 0 | AV23: 294 | AW23: 0 | AX23: 0 | AY23: 0 | AZ23: 0 | BA23: 0 | BB23: 0 | BC23: 0 | BD23: =HYPERLINK("http://www.openstreetmap.org/?mlat=33.1491&mlon=43.9871&zoom=12#map=12/33.1491/43.9871","Maplink1") -> Maplink1 | BE23: =HYPERLINK("https://www.google.iq/maps/search/+33.1491,43.9871/@33.1491,43.9871,14z?hl=en","Maplink2") -> Maplink2 | BF23: =HYPERLINK("http://www.bing.com/maps/?lvl=14&sty=h&cp=33.1491~43.9871&sp=point.33.1491_43.9871","Maplink3") -> Maplink3
A24: 26091 | B24: Al-Anbar | C24: Al-Falluja | D24: Al-Amirya | E24: Al-Amirya-Al Hmedin | F24: الحميدين | G24: 33.15689845 | H24: 43.9318996 | I24: 110 | J24: 660 | K24: 0 | L24: 0 | M24: 0 | N24: 12 | O24: 0 | P24: 0 | Q24: 0 | R24: 0 | S24: 648 | T24: 0 | U24: 0 | V24: 0 | W24: 0 | X24: 0 | Y24: 0 | Z24: 102 | AA24: 558 | AB24: 0 | AC24: 0 | AD24: 0 | AE24: 0 | AF24: 0 | AG24: 0 | AH24: 0 | AI24: 0 | AJ24: 0 | AK24: 0 | AL24: 0 | AM24: 0 | AN24: 0 | AO24: 0 | AP24: 0 | AQ24: 0 | AR24: 0 | AS24: 0 | AT24: 0 | AU24: 558 | AV24: 102 | AW24: 0 | AX24: 0 | AY24: 0 | AZ24: 0 | BA24: 0 | BB24: 0 | BC24: 0 | BD24: =HYPERLINK("http://www.openstreetmap.org/?mlat=33.1569&mlon=43.9319&zoom=12#map=12/33.1569/43.9319","Maplink1") -> Maplink1 | BE24: =HYPERLINK("https://www.google.iq/maps/search/+33.1569,43.9319/@33.1569,43.9319,14z?hl=en","Maplink2") -> Maplink2 | BF24: =HYPERLINK("http://www.bing.com/maps/?lvl=14&sty=h&cp=33.1569~43.9319&sp=point.33.1569_43.9319","Maplink3") -> Maplink3
A25: 26037 | B25: Al-Anbar | C25: Al-Falluja | D25: Al-Amirya | E25: Al-Amirya-Albu Jwad | F25: البوجواد | G25: 33.15082044 | H25: 43.99869936 | I25: 150 | J25: 900 | K25: 0 | L25: 0 | M25: 0 | N25: 0 | O25: 0 | P25: 0 | Q25: 0 | R25: 18 | S25: 882 | T25: 0 | U25: 0 | V25: 0 | W25: 0 | X25: 0 | Y25: 0 | Z25: 54 | AA25: 846 | AB25: 0 | AC25: 0 | AD25: 0 | AE25: 0 | AF25: 0 | AG25: 0 | AH25: 0 | AI25: 0 | AJ25: 0 | AK25: 0 | AL25: 0 | AM25: 0 | AN25: 0 | AO25: 0 | AP25: 0 | AQ25: 0 | AR25: 0 | AS25: 0 | AT25: 0 | AU25: 132 | AV25: 384 | AW25: 384 | AX25: 0 | AY25: 0 | AZ25: 0 | BA25: 0 | BB25: 0 | BC25: 0 | BD25: =HYPERLINK("http://www.openstreetmap.org/?mlat=33.1508&mlon=43.9987&zoom=12#map=12/33.1508/43.9987","Maplink1") -> Maplink1 | BE25: =HYPERLINK("https://www.google.iq/maps/search/+33.1508,43.9987/@33.1508,43.9987,14z?hl=en","Maplink2") -> Maplink2 | BF25: =HYPERLINK("http://www.bing.com/maps/?lvl=14&sty=h&cp=33.1508~43.9987&sp=point.33.1508_43.9987","Maplink3") -> Maplink3
A26: 20901 | B26: Al-Anbar | C26: Al-Falluja | D26: Markaz Al-Falluja | E26: Sin Al-Thubban | F26: سن الذبان | G26: 33.3715804 | H26: 43.6107139 | I26: 4 | J26: 24 | K26: 0 | L26: 0 | M26: 0 | N26: 24 | O26: 0 | P26: 0 | Q26: 0 | R26: 0 | S26: 0 | T26: 0 | U26: 0 | V26: 0 | W26: 0 | X26: 0 | Y26: 0 | Z26: 24 | AA26: 0 | AB26: 0 | AC26: 0 | AD26: 0 | AE26: 0 | AF26: 0 | AG26: 0 | AH26: 0 | AI26: 0 | AJ26: 0 | AK26: 0 | AL26: 0 | AM26: 0 | AN26: 0 | AO26: 0 | AP26: 0 | AQ26: 0 | AR26: 0 | AS26: 0 | AT26: 0 | AU26: 24 | AV26: 0 | AW26: 0 | AX26: 0 | AY26: 0 | AZ26: 0 | BA26: 0 | BB26: 0 | BC26: 0 | BD26: =HYPERLINK("http://www.openstreetmap.org/?mlat=33.3716&mlon=43.6107&zoom=12#map=12/33.3716/43.6107","Maplink1") -> Maplink1 | BE26: =HYPERLINK("https://www.google.iq/maps/search/+33.3716,43.6107/@33.3716,43.6107,14z?hl=en","Maplink2") -> Maplink2 | BF26: =HYPERLINK("http://www.bing.com/maps/?lvl=14&sty=h&cp=33.3716~43.6107&sp=point.33.3716_43.6107","Maplink3") -> Maplink3
A27: 295 | B27: Al-Anbar | C27: Al-Falluja | D27: Markaz Al-Falluja | E27: Hay Al-Ameen | F27: حي الامين | G27: 33.33566667 | H27: 43.80362841 | I27: 2 | J27: 12 | K27: 0 | L27: 0 | M27: 0 | N27: 0 | O27: 0 | P27: 0 | Q27: 12 | R27: 0 | S27: 0 | T27: 0 | U27: 0 | V27: 0 | W27: 0 | X27: 0 | Y27: 0 | Z27: 12 | AA27: 0 | AB27: 0 | AC27: 0 | AD27: 0 | AE27: 0 | AF27: 0 | AG27: 0 | AH27: 0 | AI27: 0 | AJ27: 0 | AK27: 0 | AL27: 0 | AM27: 0 | AN27: 0 | AO27: 0 | AP27: 0 | AQ27: 0 | AR27: 12 | AS27: 0 | AT27: 0 | AU27: 0 | AV27: 0 | AW27: 0 | AX27: 0 | AY27: 0 | AZ27: 0 | BA27: 0 | BB27: 0 | BC27: 0 | BD27: =HYPERLINK("http://www.openstreetmap.org/?mlat=33.3357&mlon=43.8036&zoom=12#map=12/33.3357/43.8036","Maplink1") -> Maplink1 | BE27: =HYPERLINK("https://www.google.iq/maps/search/+33.3357,43.8036/@33.3357,43.8036,14z?hl=en","Maplink2") -> Maplink2 | BF27: =HYPERLINK("http://www.bing.com/maps/?lvl=14&sty=h&cp=33.3357~43.8036&sp=point.33.3357_43.8036","Maplink3") -> Maplink3
A28: 23853 | B28: Al-Anbar | C28: Al-Falluja | D28: Markaz Al-Falluja | E28: Hay Al-Madani | F28: الحي المدني | G28: 33.3782902 | H28: 43.5942233 | I28: 12 | J28: 72 | K28: 0 | L28: 0 | M28: 0 | N28: 0 | O28: 0 | P28: 0 | Q28: 72 | R28: 0 | S28: 0 | T28: 0 | U28: 0 | V28: 0 | W28: 0 | X28: 0 | Y28: 0 | Z28: 72 | AA28: 0 | AB28: 0 | AC28: 0 | AD28: 0 | AE28: 0 | AF28: 0 | AG28: 0 | AH28: 0 | AI28: 0 | AJ28: 0 | AK28: 0 | AL28: 0 | AM28: 0 | AN28: 0 | AO28: 0 | AP28: 0 | AQ28: 0 | AR28: 48 | AS28: 0 | AT28: 0 | AU28: 0 | AV28: 0 | AW28: 0 | AX28: 0 | AY28: 24 | AZ28: 0 | BA28: 0 | BB28: 0 | BC28: 0 | BD28: =HYPERLINK("http://www.openstreetmap.org/?mlat=33.3783&mlon=43.5942&zoom=12#map=12/33.3783/43.5942","Maplink1") -> Maplink1 | BE28: =HYPERLINK("https://www.google.iq/maps/search/+33.3783,43.5942/@33.3783,43.5942,14z?hl=en","Maplink2") -> Maplink2 | BF28: =HYPERLINK("http://www.bing.com/maps/?lvl=14&sty=h&cp=33.3783~43.5942&sp=point.33.3783_43.5942","Maplink3") -> Maplink3
A29: 29700 | B29: Al-Anbar | C29: Al-Falluja | D29: Markaz Al-Falluja | E29: Al Jaghify Al Thaniya | F29: الجغيفي الثانية | G29: 33.37333871 | H29: 43.80034976 | I29: 2 | J29: 12 | K29: 0 | L29: 0 | M29: 0 | N29: 0 | O29: 0 | P29: 0 | Q29: 12 | R29: 0 | S29: 0 | T29: 0 | U29: 0 | V29: 0 | W29: 0 | X29: 0 | Y29: 0 | Z29: 12 | AA29: 0 | AB29: 0 | AC29: 0 | AD29: 0 | AE29: 0 | AF29: 0 | AG29: 0 | AH29: 0 | AI29: 0 | AJ29: 0 | AK29: 0 | AL29: 0 | AM29: 0 | AN29: 0 | AO29: 0 | AP29: 0 | AQ29: 0 | AR29: 12 | AS29: 0 | AT29: 0 | AU29: 0 | AV29: 0 | AW29: 0 | AX29: 0 | AY29: 0 | AZ29: 0 | BA29: 0 | BB29: 0 | BC29: 0 | BD29: =HYPERLINK("http://www.openstreetmap.org/?mlat=33.3733&mlon=43.8003&zoom=12#map=12/33.3733/43.8003","Maplink1") -> Maplink1 | BE29: =HYPERLINK("https://www.google.iq/maps/search/+33.3733,43.8003/@33.3733,43.8003,14z?hl=en","Maplink2") -> Maplink2 | BF29: =HYPERLINK("http://www.bing.com/maps/?lvl=14&sty=h&cp=33.3733~43.8003&sp=point.33.3733_43.8003","Maplink3") -> Maplink3
A30: 23855 | B30: Al-Anbar | C30: Al-Falluja | D30: Markaz Al-Falluja | E30: Hay Al-Umal | F30: حي العمال | G30: 33.3868638 | H30: 43.6001825 | I30: 15 | J30: 90 | K30: 0 | L30: 0 | M30: 0 | N30: 90 | O30: 0 | P30: 0 | Q30: 0 | R30: 0 | S30: 0 | T30: 0 | U30: 0 | V30: 0 | W30: 0 | X30: 0 | Y30: 0 | Z30: 90 | AA30: 0 | AB30: 0 | AC30: 0 | AD30: 0 | AE30: 0 | AF30: 0 | AG30: 0 | AH30: 0 | AI30: 0 | AJ30: 0 | AK30: 0 | AL30: 0 | AM30: 0 | AN30: 0 | AO30: 0 | AP30: 0 | AQ30: 0 | AR30: 90 | AS30: 0 | AT30: 0 | AU30: 0 | AV30: 0 | AW30: 0 | AX30: 0 | AY30: 0 | AZ30: 0 | BA30: 0 | BB30: 0 | BC30: 0 | BD30: =HYPERLINK("http://www.openstreetmap.org/?mlat=33.3869&mlon=43.6002&zoom=12#map=12/33.3869/43.6002","Maplink1") -> Maplink1 | BE30: =HYPERLINK("https://www.google.iq/maps/search/+33.3869,43.6002/@33.3869,43.6002,14z?hl=en","Maplink2") -> Maplink2 | BF30: =HYPERLINK("http://www.bing.com/maps/?lvl=14&sty=h&cp=33.3869~43.6002&sp=point.33.3869_43.6002","Maplink3") -> Maplink3
A31: 21809 | B31: Al-Anbar | C31: Al-Falluja | D31: Markaz Al-Falluja | E31: Hay Al Shuhadaa | F31: حي الشهداء | G31: 33.33269749 | H31: 43.79237357 | I31: 8 | J31: 48 | K31: 0 | L31: 0 | M31: 0 | N31: 0 | O31: 0 | P31: 0 | Q31: 48 | R31: 0 | S31: 0 | T31: 0 | U31: 0 | V31: 0 | W31: 0 | X31: 0 | Y31: 0 | Z31: 48 | AA31: 0 | AB31: 0 | AC31: 0 | AD31: 0 | AE31: 0 | AF31: 0 | AG31: 0 | AH31: 0 | AI31: 0 | AJ31: 0 | AK31: 0 | AL31: 0 | AM31: 0 | AN31: 0 | AO31: 0 | AP31: 0 | AQ31: 0 | AR31: 48 | AS31: 0 | AT31: 0 | AU31: 0 | AV31: 0 | AW31: 0 | AX31: 0 | AY31: 0 | AZ31: 0 | BA31: 0 | BB31: 0 | BC31: 0 | BD31: =HYPERLINK("http://www.openstreetmap.org/?mlat=33.3327&mlon=43.7924&zoom=12#map=12/33.3327/43.7924","Maplink1") -> Maplink1 | BE31: =HYPERLINK("https://www.google.iq/maps/search/+33.3327,43.7924/@33.3327,43.7924,14z?hl=en","Maplink2") -> Maplink2 | BF31: =HYPERLINK("http://www.bing.com/maps/?lvl=14&sty=h&cp=33.3327~43.7924&sp=point.33.3327_43.7924","Maplink3") -> Maplink3
A32: 21613 | B32: Al-Anbar | C32: Al-Falluja | D32: Markaz Al-Falluja | E32: Abu Sideera | F32: ابو سديرة | G32: 33.4073968 | H32: 43.7644993 | I32: 6 | J32: 36 | K32: 0 | L32: 0 | M32: 0 | N32: 0 | O32: 0 | P32: 0 | Q32: 36 | R32: 0 | S32: 0 | T32: 0 | U32: 0 | V32: 0 | W32: 0 | X32: 0 | Y32: 0 | Z32: 36 | AA32: 0 | AB32: 0 | AC32: 0 | AD32: 0 | AE32: 0 | AF32: 0 | AG32: 0 | AH32: 0 | AI32: 0 | AJ32: 0 | AK32: 0 | AL32: 0 | AM32: 0 | AN32: 0 | AO32: 0 | AP32: 0 | AQ32: 0 | AR32: 36 | AS32: 0 | AT32: 0 | AU32: 0 | AV32: 0 | AW32: 0 | AX32: 0 | AY32: 0 | AZ32: 0 | BA32: 0 | BB32: 0 | BC32: 0 | BD32: =HYPERLINK("http://www.openstreetmap.org/?mlat=33.4074&mlon=43.7645&zoom=12#map=12/33.4074/43.7645","Maplink1") -> Maplink1 | BE32: =HYPERLINK("https://www.google.iq/maps/search/+33.4074,43.7645/@33.4074,43.7645,14z?hl=en","Maplink2") -> Maplink2 | BF32: =HYPERLINK("http://www.bing.com/maps/?lvl=14&sty=h&cp=33.4074~43.7645&sp=point.33.4074_43.7645","Maplink3") -> Maplink3
A33: 23856 | B33: Al-Anbar | C33: Al-Falluja | D33: Markaz Al-Falluja | E33: Zoyaha Al-Thuban | F33: زوية الذبان | G33: 33.3820523 | H33: 43.6061712 | I33: 10 | J33: 60 | K33: 0 | L33: 0 | M33: 0 | N33: 60 | O33: 0 | P33: 0 | Q33: 0 | R33: 0 | S33: 0 | T33: 0 | U33: 0 | V33: 0 | W33: 0 | X33: 0 | Y33: 0 | Z33: 60 | AA33: 0 | AB33: 0 | AC33: 0 | AD33: 0 | AE33: 0 | AF33: 0 | AG33: 0 | AH33: 0 | AI33: 0 | AJ33: 0 | AK33: 0 | AL33: 0 | AM33: 0 | AN33: 0 | AO33: 0 | AP33: 0 | AQ33: 0 | AR33: 0 | AS33: 0 | AT33: 0 | AU33: 0 | AV33: 60 | AW33: 0 | AX33: 0 | AY33: 0 | AZ33: 0 | BA33: 0 | BB33: 0 | BC33: 0 | BD33: =HYPERLINK("http://www.openstreetmap.org/?mlat=33.3821&mlon=43.6062&zoom=12#map=12/33.3821/43.6062","Maplink1") -> Maplink1 | BE33: =HYPERLINK("https://www.google.iq/maps/search/+33.3821,43.6062/@33.3821,43.6062,14z?hl=en","Maplink2") -> Maplink2 | BF33: =HYPERLINK("http://www.bing.com/maps/?lvl=14&sty=h&cp=33.3821~43.6062&sp=point.33.3821_43.6062","Maplink3") -> Maplink3
A34: 142 | B34: Al-Anbar | C34: Al-Falluja | D34: Markaz Al-Falluja | E34: Al-shahabi-2 | F34: الشهابي الثانية | G34: 33.3822032 | H34: 43.8862189 | I34: 70 | J34: 420 | K34: 0 | L34: 0 | M34: 0 | N34: 0 | O34: 0 | P34: 0 | Q34: 0 | R34: 0 | S34: 0 | T34: 0 | U34: 420 | V34: 0 | W34: 0 | X34: 0 | Y34: 0 | Z34: 402 | AA34: 0 | AB34: 18 | AC34: 0 | AD34: 0 | AE34: 0 | AF34: 0 | AG34: 0 | AH34: 0 | AI34: 0 | AJ34: 0 | AK34: 0 | AL34: 0 | AM34: 0 | AN34: 0 | AO34: 0 | AP34: 0 | AQ34: 0 | AR34: 138 | AS34: 114 | AT34: 0 | AU34: 78 | AV34: 90 | AW34: 0 | AX34: 0 | AY34: 0 | AZ34: 0 | BA34: 0 | BB34: 0 | BC34: 0 | BD34: =HYPERLINK("http://www.openstreetmap.org/?mlat=33.3822&mlon=43.8862&zoom=12#map=12/33.3822/43.8862","Maplink1") -> Maplink1 | BE34: =HYPERLINK("https://www.google.iq/maps/search/+33.3822,43.8862/@33.3822,43.8862,14z?hl=en","Maplink2") -> Maplink2 | BF34: =HYPERLINK("http://www.bing.com/maps/?lvl=14&sty=h&cp=33.3822~43.8862&sp=point.33.3822_43.8862","Maplink3") -> Maplink3
A35: 319 | B35: Al-Anbar | C35: Al-Falluja | D35: Markaz Al-Falluja | E35: Al-Zuwayiah | F35: قرية الزوية | G35: 33.33883032 | H35: 43.74762946 | I35: 9 | J35: 54 | K35: 0 | L35: 0 | M35: 0 | N35: 0 | O35: 0 | P35: 0 | Q35: 54 | R35: 0 | S35: 0 | T35: 0 | U35: 0 | V35: 0 | W35: 0 | X35: 0 | Y35: 0 | Z35: 30 | AA35: 24 | AB35: 0 | AC35: 0 | AD35: 0 | AE35: 0 | AF35: 0 | AG35: 0 | AH35: 0 | AI35: 0 | AJ35: 0 | AK35: 0 | AL35: 0 | AM35: 0 | AN35: 0 | AO35: 0 | AP35: 0 | AQ35: 0 | AR35: 0 | AS35: 0 | AT35: 0 | AU35: 0 | AV35: 54 | AW35: 0 | AX35: 0 | AY35: 0 | AZ35: 0 | BA35: 0 | BB35: 0 | BC35: 0 | BD35: =HYPERLINK("http://www.openstreetmap.org/?mlat=33.3388&mlon=43.7476&zoom=12#map=12/33.3388/43.7476","Maplink1") -> Maplink1 | BE35: =HYPERLINK("https://www.google.iq/maps/search/+33.3388,43.7476/@33.3388,43.7476,14z?hl=en","Maplink2") -> Maplink2 | BF35: =HYPERLINK("http://www.bing.com/maps/?lvl=14&sty=h&cp=33.3388~43.7476&sp=point.33.3388_43.7476","Maplink3") -> Maplink3
A36: 33342 | B36: Al-Anbar | C36: Al-Falluja | D36: Markaz Al-Falluja | E36: Hay Jbeal | F36: حي جبيل | G36: 33.33467 | H36: 43.77630407 | I36: 5 | J36: 30 | K36: 0 | L36: 0 | M36: 0 | N36: 0 | O36: 0 | P36: 0 | Q36: 30 | R36: 0 | S36: 0 | T36: 0 | U36: 0 | V36: 0 | W36: 0 | X36: 0 | Y36: 0 | Z36: 30 | AA36: 0 | AB36: 0 | AC36: 0 | AD36: 0 | AE36: 0 | AF36: 0 | AG36: 0 | AH36: 0 | AI36: 0 | AJ36: 0 | AK36: 0 | AL36: 0 | AM36: 0 | AN36: 0 | AO36: 0 | AP36: 0 | AQ36: 0 | AR36: 30 | AS36: 0 | AT36: 0 | AU36: 0 | AV36: 0 | AW36: 0 | AX36: 0 | AY36: 0 | AZ36: 0 | BA36: 0 | BB36: 0 | BC36: 0 | BD36: =HYPERLINK("http://www.openstreetmap.org/?mlat=33.3347&mlon=43.7763&zoom=12#map=12/33.3347/43.7763","Maplink1") -> Maplink1 | BE36: =HYPERLINK("https://www.google.iq/maps/search/+33.3347,43.7763/@33.3347,43.7763,14z?hl=en","Maplink2") -> Maplink2 | BF36: =HYPERLINK("http://www.bing.com/maps/?lvl=14&sty=h&cp=33.3347~43.7763&sp=point.33.3347_43.7763","Maplink3") -> Maplink3
A37: 156 | B37: Al-Anbar | C37: Al-Kaim | D37: Al-Karabla | E37: Wazeeriya | F37: حي الوزيرية | G37: 34.38141702 | H37: 41.03964076 | I37: 32 | J37: 192 | K37: 0 | L37: 0 | M37: 0 | N37: 36 | O37: 0 | P37: 0 | Q37: 156 | R37: 0 | S37: 0 | T37: 0 | U37: 0 | V37: 0 | W37: 0 | X37: 0 | Y37: 0 | Z37: 192 | AA37: 0 | AB37: 0 | AC37: 0 | AD37: 0 | AE37: 0 | AF37: 0 | AG37: 0 | AH37: 0 | AI37: 0 | AJ37: 0 | AK37: 0 | AL37: 0 | AM37: 0 | AN37: 0 | AO37: 0 | AP37: 0 | AQ37: 0 | AR37: 0 | AS37: 0 | AT37: 0 | AU37: 0 | AV37: 48 | AW37: 144 | AX37: 0 | AY37: 0 | AZ37: 0 | BA37: 0 | BB37: 0 | BC37: 0 | BD37: =HYPERLINK("http://www.openstreetmap.org/?mlat=34.3814&mlon=41.0396&zoom=12#map=12/34.3814/41.0396","Maplink1") -> Maplink1 | BE37: =HYPERLINK("https://www.google.iq/maps/search/+34.3814,41.0396/@34.3814,41.0396,14z?hl=en","Maplink2") -> Maplink2 | BF37: =HYPERLINK("http://www.bing.com/maps/?lvl=14&sty=h&cp=34.3814~41.0396&sp=point.34.3814_41.0396","Maplink3") -> Maplink3
A38: 33947 | B38: Al-Anbar | C38: Al-Kaim | D38: Al-Karabla | E38: Swehil Village | F38: قرية سويحل | G38: 34.37330748 | H38: 41.07333197 | I38: 22 | J38: 132 | K38: 0 | L38: 0 | M38: 0 | N38: 30 | O38: 0 | P38: 0 | Q38: 102 | R38: 0 | S38: 0 | T38: 0 | U38: 0 | V38: 0 | W38: 0 | X38: 0 | Y38: 0 | Z38: 132 | AA38: 0 | AB38: 0 | AC38: 0 | AD38: 0 | AE38: 0 | AF38: 0 | AG38: 0 | AH38: 0 | AI38: 0 | AJ38: 0 | AK38: 0 | AL38: 0 | AM38: 0 | AN38: 0 | AO38: 0 | AP38: 0 | AQ38: 0 | AR38: 0 | AS38: 0 | AT38: 0 | AU38: 18 | AV38: 0 | AW38: 96 | AX38: 18 | AY38: 0 | AZ38: 0 | BA38: 0 | BB38: 0 | BC38: 0 | BD38: =HYPERLINK("http://www.openstreetmap.org/?mlat=34.3733&mlon=41.0733&zoom=12#map=12/34.3733/41.0733","Maplink1") -> Maplink1 | BE38: =HYPERLINK("https://www.google.iq/maps/search/+34.3733,41.0733/@34.3733,41.0733,14z?hl=en","Maplink2") -> Maplink2 | BF38: =HYPERLINK("http://www.bing.com/maps/?lvl=14&sty=h&cp=34.3733~41.0733&sp=point.34.3733_41.0733","Maplink3") -> Maplink3
A39: 23791 | B39: Al-Anbar | C39: Al-Kaim | D39: Al-Karabla | E39: Al Nahda Al-Sharqiyah | F39: حي النهضة الشرقية | G39: 34.36827894 | H39: 41.05775748 | I39: 15 | J39: 90 | K39: 0 | L39: 0 | M39: 0 | N39: 6 | O39: 0 | P39: 0 | Q39: 84 | R39: 0 | S39: 0 | T39: 0 | U39: 0 | V39: 0 | W39: 0 | X39: 0 | Y39: 0 | Z39: 90 | AA39: 0 | AB39: 0 | AC39: 0 | AD39: 0 | AE39: 0 | AF39: 0 | AG39: 0 | AH39: 0 | AI39: 0 | AJ39: 0 | AK39: 0 | AL39: 0 | AM39: 0 | AN39: 0 | AO39: 0 | AP39: 0 | AQ39: 0 | AR39: 0 | AS39: 0 | AT39: 0 | AU39: 0 | AV39: 0 | AW39: 90 | AX39: 0 | AY39: 0 | AZ39: 0 | BA39: 0 | BB39: 0 | BC39: 0 | BD39: =HYPERLINK("http://www.openstreetmap.org/?mlat=34.3683&mlon=41.0578&zoom=12#map=12/34.3683/41.0578","Maplink1") -> Maplink1 | BE39: =HYPERLINK("https://www.google.iq/maps/search/+34.3683,41.0578/@34.3683,41.0578,14z?hl=en","Maplink2") -> Maplink2 | BF39: =HYPERLINK("http://www.bing.com/maps/?lvl=14&sty=h&cp=34.3683~41.0578&sp=point.34.3683_41.0578","Maplink3") -> Maplink3
A40: 34249 | B40: Al-Anbar | C40: Al-Kaim | D40: Al-Karabla | E40: complex of Phosphate company | F40: المجمع السكني لموظفي شركة الفوسفات | G40: 34.33593631 | H40: 41.19326271 | I40: 7 | J40: 42 | K40: 0 | L40: 0 | M40: 0 | N40: 0 | O40: 0 | P40: 0 | Q40: 0 | R40: 0 | S40: 42 | T40: 0 | U40: 0 | V40: 0 | W40: 0 | X40: 0 | Y40: 0 | Z40: 42 | AA40: 0 | AB40: 0 | AC40: 0 | AD40: 0 | AE40: 0 | AF40: 0 | AG40: 0 | AH40: 0 | AI40: 0 | AJ40: 0 | AK40: 0 | AL40: 0 | AM40: 0 | AN40: 0 | AO40: 0 | AP40: 0 | AQ40: 0 | AR40: 0 | AS40: 0 | AT40: 0 | AU40: 42 | AV40: 0 | AW40: 0 | AX40: 0 | AY40: 0 | AZ40: 0 | BA40: 0 | BB40: 0 | BC40: 0 | BD40: =HYPERLINK("http://www.openstreetmap.org/?mlat=34.3359&mlon=41.1933&zoom=12#map=12/34.3359/41.1933","Maplink1") -> Maplink1 | BE40: =HYPERLINK("https://www.google.iq/maps/search/+34.3359,41.1933/@34.3359,41.1933,14z?hl=en","Maplink2") -> Maplink2 | BF40: =HYPERLINK("http://www.bing.com/maps/?lvl=14&sty=h&cp=34.3359~41.1933&sp=point.34.3359_41.1933","Maplink3") -> Maplink3
A41: 23790 | B41: Al-Anbar | C41: Al-Kaim | D41: Al-Karabla | E41: Hay Al Shuhadaa | F41: حي الشهداء | G41: 34.3737901 | H41: 41.06328701 | I41: 38 | J41: 228 | K41: 0 | L41: 0 | M41: 0 | N41: 30 | O41: 0 | P41: 0 | Q41: 198 | R41: 0 | S41: 0 | T41: 0 | U41: 0 | V41: 0 | W41: 0 | X41: 0 | Y41: 0 | Z41: 228 | AA41: 0 | AB41: 0 | AC41: 0 | AD41: 0 | AE41: 0 | AF41: 0 | AG41: 0 | AH41: 0 | AI41: 0 | AJ41: 0 | AK41: 0 | AL41: 0 | AM41: 0 | AN41: 0 | AO41: 0 | AP41: 0 | AQ41: 0 | AR41: 0 | AS41: 0 | AT41: 0 | AU41: 0 | AV41: 0 | AW41: 168 | AX41: 60 | AY41: 0 | AZ41: 0 | BA41: 0 | BB41: 0 | BC41: 0 | BD41: =HYPERLINK("http://www.openstreetmap.org/?mlat=34.3738&mlon=41.0633&zoom=12#map=12/34.3738/41.0633","Maplink1") -> Maplink1 | BE41: =HYPERLINK("https://www.google.iq/maps/search/+34.3738,41.0633/@34.3738,41.0633,14z?hl=en","Maplink2") -> Maplink2 | BF41: =HYPERLINK("http://www.bing.com/maps/?lvl=14&sty=h&cp=34.3738~41.0633&sp=point.34.3738_41.0633","Maplink3") -> Maplink3
A42: 66 | B42: Al-Anbar | C42: Al-Kaim | D42: Al-Karabla | E42: Sadah | F42: قرية سعده | G42: 34.36995574 | H42: 41.09281041 | I42: 59 | J42: 354 | K42: 0 | L42: 0 | M42: 0 | N42: 30 | O42: 0 | P42: 0 | Q42: 324 | R42: 0 | S42: 0 | T42: 0 | U42: 0 | V42: 0 | W42: 0 | X42: 0 | Y42: 0 | Z42: 354 | AA42: 0 | AB42: 0 | AC42: 0 | AD42: 0 | AE42: 0 | AF42: 0 | AG42: 0 | AH42: 0 | AI42: 0 | AJ42: 0 | AK42: 0 | AL42: 0 | AM42: 0 | AN42: 0 | AO42: 0 | AP42: 0 | AQ42: 0 | AR42: 0 | AS42: 0 | AT42: 0 | AU42: 12 | AV42: 90 | AW42: 186 | AX42: 66 | AY42: 0 | AZ42: 0 | BA42: 0 | BB42: 0 | BC42: 0 | BD42: =HYPERLINK("http://www.openstreetmap.org/?mlat=34.37&mlon=41.0928&zoom=12#map=12/34.37/41.0928","Maplink1") -> Maplink1 | BE42: =HYPERLINK("https://www.google.iq/maps/search/+34.37,41.0928/@34.37,41.0928,14z?hl=en","Maplink2") -> Maplink2 | BF42: =HYPERLINK("http://www.bing.com/maps/?lvl=14&sty=h&cp=34.37~41.0928&sp=point.34.37_41.0928","Maplink3") -> Maplink3
A43: 164 | B43: Al-Anbar | C43: Al-Kaim | D43: Al-Obiadi | E43: Al Ubaydi-3 | F43: العبيدي-مرحلة ثالثة | G43: 34.43659527 | H43: 41.23289955 | I43: 66 | J43: 396 | K43: 0 | L43: 54 | M43: 0 | N43: 0 | O43: 0 | P43: 0 | Q43: 396 | R43: 0 | S43: 0 | T43: 0 | U43: 0 | V43: 0 | W43: 0 | X43: 0 | Y43: 0 | Z43: 396 | AA43: 0 | AB43: 0 | AC43: 0 | AD43: 0 | AE43: 0 | AF43: 0 | AG43: 0 | AH43: 0 | AI43: 0 | AJ43: 0 | AK43: 0 | AL43: 0 | AM43: 0 | AN43: 0 | AO43: 0 | AP43: 0 | AQ43: 0 | AR43: 0 | AS43: 0 | AT43: 0 | AU43: 0 | AV43: 288 | AW43: 24 | AX43: 84 | AY43: 0 | AZ43: 0 | BA43: 0 | BB43: 0 | BC43: 0 | BD43: =HYPERLINK("http://www.openstreetmap.org/?mlat=34.4366&mlon=41.2329&zoom=12#map=12/34.4366/41.2329","Maplink1") -> Maplink1 | BE43: =HYPERLINK("https://www.google.iq/maps/search/+34.4366,41.2329/@34.4366,41.2329,14z?hl=en","Maplink2") -> Maplink2 | BF43: =HYPERLINK("http://www.bing.com/maps/?lvl=14&sty=h&cp=34.4366~41.2329&sp=point.34.4366_41.2329","Maplink3") -> Maplink3
A44: 90 | B44: Al-Anbar | C44: Al-Kaim | D44: Al-Obiadi | E44: Al Ubaydi-1 | F44: العبيدي-مرحلة أولى | G44: 34.42921424 | H44: 41.22633253 | I44: 36 | J44: 216 | K44: 0 | L44: 0 | M44: 0 | N44: 0 | O44: 0 | P44: 0 | Q44: 216 | R44: 0 | S44: 0 | T44: 0 | U44: 0 | V44: 0 | W44: 0 | X44: 0 | Y44: 0 | Z44: 216 | AA44: 0 | AB44: 0 | AC44: 0 | AD44: 0 | AE44: 0 | AF44: 0 | AG44: 0 | AH44: 0 | AI44: 0 | AJ44: 0 | AK44: 0 | AL44: 0 | AM44: 0 | AN44: 0 | AO44: 0 | AP44: 0 | AQ44: 0 | AR44: 0 | AS44: 0 | AT44: 0 | AU44: 0 | AV44: 180 | AW44: 0 | AX44: 36 | AY44: 0 | AZ44: 0 | BA44: 0 | BB44: 0 | BC44: 0 | BD44: =HYPERLINK("http://www.openstreetmap.org/?mlat=34.4292&mlon=41.2263&zoom=12#map=12/34.4292/41.2263","Maplink1") -> Maplink1 | BE44: =HYPERLINK("https://www.google.iq/maps/search/+34.4292,41.2263/@34.4292,41.2263,14z?hl=en","Maplink2") -> Maplink2 | BF44: =HYPERLINK("http://www.bing.com/maps/?lvl=14&sty=h&cp=34.4292~41.2263&sp=point.34.4292_41.2263","Maplink3") -> Maplink3
A45: 33778 | B45: Al-Anbar | C45: Al-Kaim | D45: Al-Obiadi | E45: AI Ubaydi-4 | F45: العبيدي-المرحلة الرابعة السمت | G45: 34.43304333 | H45: 41.23414281 | I45: 20 | J45: 120 | K45: 0 | L45: 30 | M45: 0 | N45: 0 | O45: 0 | P45: 0 | Q45: 120 | R45: 0 | S45: 0 | T45: 0 | U45: 0 | V45: 0 | W45: 0 | X45: 0 | Y45: 0 | Z45: 120 | AA45: 0 | AB45: 0 | AC45: 0 | AD45: 0 | AE45: 0 | AF45: 0 | AG45: 0 | AH45: 0 | AI45: 0 | AJ45: 0 | AK45: 0 | AL45: 0 | AM45: 0 | AN45: 0 | AO45: 0 | AP45: 0 | AQ45: 0 | AR45: 0 | AS45: 0 | AT45: 0 | AU45: 0 | AV45: 0 | AW45: 78 | AX45: 6 | AY45: 36 | AZ45: 0 | BA45: 0 | BB45: 0 | BC45: 0 | BD45: =HYPERLINK("http://www.openstreetmap.org/?mlat=34.433&mlon=41.2341&zoom=12#map=12/34.433/41.2341","Maplink1") -> Maplink1 | BE45: =HYPERLINK("https://www.google.iq/maps/search/+34.433,41.2341/@34.433,41.2341,14z?hl=en","Maplink2") -> Maplink2 | BF45: =HYPERLINK("http://www.bing.com/maps/?lvl=14&sty=h&cp=34.433~41.2341&sp=point.34.433_41.2341","Maplink3") -> Maplink3
A46: 274 | B46: Al-Anbar | C46: Al-Kaim | D46: Al-Rummaneh | E46: Al-Rabet | F46: قرية الربط | G46: 34.42667147 | H46: 41.04013607 | I46: 1 | J46: 6 | K46: 0 | L46: 0 | M46: 0 | N46: 6 | O46: 0 | P46: 0 | Q46: 0 | R46: 0 | S46: 0 | T46: 0 | U46: 0 | V46: 0 | W46: 0 | X46: 0 | Y46: 0 | Z46: 6 | AA46: 0 | AB46: 0 | AC46: 0 | AD46: 0 | AE46: 0 | AF46: 0 | AG46: 0 | AH46: 0 | AI46: 0 | AJ46: 0 | AK46: 0 | AL46: 0 | AM46: 0 | AN46: 0 | AO46: 0 | AP46: 0 | AQ46: 0 | AR46: 0 | AS46: 0 | AT46: 0 | AU46: 0 | AV46: 6 | AW46: 0 | AX46: 0 | AY46: 0 | AZ46: 0 | BA46: 0 | BB46: 0 | BC46: 0 | BD46: =HYPERLINK("http://www.openstreetmap.org/?mlat=34.4267&mlon=41.0401&zoom=12#map=12/34.4267/41.0401","Maplink1") -> Maplink1 | BE46: =HYPERLINK("https://www.google.iq/maps/search/+34.4267,41.0401/@34.4267,41.0401,14z?hl=en","Maplink2") -> Maplink2 | BF46: =HYPERLINK("http://www.bing.com/maps/?lvl=14&sty=h&cp=34.4267~41.0401&sp=point.34.4267_41.0401","Maplink3") -> Maplink3
A47: 277 | B47: Al-Anbar | C47: Al-Kaim | D47: Al-Rummaneh | E47: Hay Al-Maamon | F47: حي المامون | G47: 34.39362133 | H47: 41.000431 | I47: 3 | J47: 18 | K47: 0 | L47: 0 | M47: 0 | N47: 6 | O47: 0 | P47: 0 | Q47: 12 | R47: 0 | S47: 0 | T47: 0 | U47: 0 | V47: 0 | W47: 0 | X47: 0 | Y47: 0 | Z47: 18 | AA47: 0 | AB47: 0 | AC47: 0 | AD47: 0 | AE47: 0 | AF47: 0 | AG47: 0 | AH47: 0 | AI47: 0 | AJ47: 0 | AK47: 0 | AL47: 0 | AM47: 0 | AN47: 0 | AO47: 0 | AP47: 0 | AQ47: 0 | AR47: 0 | AS47: 0 | AT47: 0 | AU47: 0 | AV47: 0 | AW47: 12 | AX47: 6 | AY47: 0 | AZ47: 0 | BA47: 0 | BB47: 0 | BC47: 0 | BD47: =HYPERLINK("http://www.openstreetmap.org/?mlat=34.3936&mlon=41.0004&zoom=12#map=12/34.3936/41.0004","Maplink1") -> Maplink1 | BE47: =HYPERLINK("https://www.google.iq/maps/search/+34.3936,41.0004/@34.3936,41.0004,14z?hl=en","Maplink2") -> Maplink2 | BF47: =HYPERLINK("http://www.bing.com/maps/?lvl=14&sty=h&cp=34.3936~41.0004&sp=point.34.3936_41.0004","Maplink3") -> Maplink3
A48: 23797 | B48: Al-Anbar | C48: Al-Kaim | D48: Al-Rummaneh | E48: Al Ubaydi-2 | F48: مرحلة الثانية | G48: 34.43464907 | H48: 41.22600695 | I48: 41 | J48: 246 | K48: 0 | L48: 78 | M48: 0 | N48: 0 | O48: 0 | P48: 0 | Q48: 246 | R48: 0 | S48: 0 | T48: 0 | U48: 0 | V48: 0 | W48: 0 | X48: 0 | Y48: 0 | Z48: 246 | AA48: 0 | AB48: 0 | AC48: 0 | AD48: 0 | AE48: 0 | AF48: 0 | AG48: 0 | AH48: 0 | AI48: 0 | AJ48: 0 | AK48: 0 | AL48: 0 | AM48: 0 | AN48: 0 | AO48: 0 | AP48: 0 | AQ48: 0 | AR48: 0 | AS48: 0 | AT48: 0 | AU48: 0 | AV48: 174 | AW48: 0 | AX48: 72 | AY48: 0 | AZ48: 0 | BA48: 0 | BB48: 0 | BC48: 0 | BD48: =HYPERLINK("http://www.openstreetmap.org/?mlat=34.4346&mlon=41.226&zoom=12#map=12/34.4346/41.226","Maplink1") -> Maplink1 | BE48: =HYPERLINK("https://www.google.iq/maps/search/+34.4346,41.226/@34.4346,41.226,14z?hl=en","Maplink2") -> Maplink2 | BF48: =HYPERLINK("http://www.bing.com/maps/?lvl=14&sty=h&cp=34.4346~41.226&sp=point.34.4346_41.226","Maplink3") -> Maplink3
A49: 272 | B49: Al-Anbar | C49: Al-Kaim | D49: Al-Rummaneh | E49: Hay 12 Rabee Alawal | F49: حي 12ربيع الاول | G49: 34.39208833 | H49: 40.98504599 | I49: 4 | J49: 24 | K49: 0 | L49: 0 | M49: 0 | N49: 0 | O49: 0 | P49: 0 | Q49: 24 | R49: 0 | S49: 0 | T49: 0 | U49: 0 | V49: 0 | W49: 0 | X49: 0 | Y49: 0 | Z49: 24 | AA49: 0 | AB49: 0 | AC49: 0 | AD49: 0 | AE49: 0 | AF49: 0 | AG49: 0 | AH49: 0 | AI49: 0 | AJ49: 0 | AK49: 0 | AL49: 0 | AM49: 0 | AN49: 0 | AO49: 0 | AP49: 0 | AQ49: 0 | AR49: 0 | AS49: 0 | AT49: 0 | AU49: 0 | AV49: 0 | AW49: 24 | AX49: 0 | AY49: 0 | AZ49: 0 | BA49: 0 | BB49: 0 | BC49: 0 | BD49: =HYPERLINK("http://www.openstreetmap.org/?mlat=34.3921&mlon=40.985&zoom=12#map=12/34.3921/40.985","Maplink1") -> Maplink1 | BE49: =HYPERLINK("https://www.google.iq/maps/search/+34.3921,40.985/@34.3921,40.985,14z?hl=en","Maplink2") -> Maplink2 | BF49: =HYPERLINK("http://www.bing.com/maps/?lvl=14&sty=h&cp=34.3921~40.985&sp=point.34.3921_40.985","Maplink3") -> Maplink3
A50: 33816 | B50: Al-Anbar | C50: Al-Kaim | D50: Al-Rummaneh | E50: Hay Al Forat | F50: حي الفرات | G50: 34.4117274 | H50: 41.0047866 | I50: 4 | J50: 24 | K50: 0 | L50: 0 | M50: 0 | N50: 0 | O50: 0 | P50: 0 | Q50: 24 | R50: 0 | S50: 0 | T50: 0 | U50: 0 | V50: 0 | W50: 0 | X50: 0 | Y50: 0 | Z50: 24 | AA50: 0 | AB50: 0 | AC50: 0 | AD50: 0 | AE50: 0 | AF50: 0 | AG50: 0 | AH50: 0 | AI50: 0 | AJ50: 0 | AK50: 0 | AL50: 0 | AM50: 0 | AN50: 0 | AO50: 0 | AP50: 0 | AQ50: 0 | AR50: 0 | AS50: 0 | AT50: 0 | AU50: 0 | AV50: 0 | AW50: 0 | AX50: 24 | AY50: 0 | AZ50: 0 | BA50: 0 | BB50: 0 | BC50: 0 | BD50: =HYPERLINK("http://www.openstreetmap.org/?mlat=34.4117&mlon=41.0048&zoom=12#map=12/34.4117/41.0048","Maplink1") -> Maplink1 | BE50: =HYPERLINK("https://www.google.iq/maps/search/+34.4117,41.0048/@34.4117,41.0048,14z?hl=en","Maplink2") -> Maplink2 | BF50: =HYPERLINK("http://www.bing.com/maps/?lvl=14&sty=h&cp=34.4117~41.0048&sp=point.34.4117_41.0048","Maplink3") -> Maplink3
A51: 21409 | B51: Al-Anbar | C51: Al-Ramadi | D51: Al-Habbaniya | E51: Hay Al-Salam | F51: السلام | G51: 33.3716154 | H51: 43.5342575 | I51: 15 | J51: 90 | K51: 0 | L51: 0 | M51: 0 | N51: 90 | O51: 0 | P51: 0 | Q51: 0 | R51: 0 | S51: 0 | T51: 0 | U51: 0 | V51: 0 | W51: 0 | X51: 0 | Y51: 0 | Z51: 90 | AA51: 0 | AB51: 0 | AC51: 0 | AD51: 0 | AE51: 0 | AF51: 0 | AG51: 0 | AH51: 0 | AI51: 0 | AJ51: 0 | AK51: 0 | AL51: 0 | AM51: 0 | AN51: 0 | AO51: 0 | AP51: 0 | AQ51: 0 | AR51: 0 | AS51: 0 | AT51: 0 | AU51: 90 | AV51: 0 | AW51: 0 | AX51: 0 | AY51: 0 | AZ51: 0 | BA51: 0 | BB51: 0 | BC51: 0 | BD51: =HYPERLINK("http://www.openstreetmap.org/?mlat=33.3716&mlon=43.5343&zoom=12#map=12/33.3716/43.5343","Maplink1") -> Maplink1 | BE51: =HYPERLINK("https://www.google.iq/maps/search/+33.3716,43.5343/@33.3716,43.5343,14z?hl=en","Maplink2") -> Maplink2 | BF51: =HYPERLINK("http://www.bing.com/maps/?lvl=14&sty=h&cp=33.3716~43.5343&sp=point.33.3716_43.5343","Maplink3") -> Maplink3
A52: 24729 | B52: Al-Anbar | C52: Al-Ramadi | D52: Al-Habbaniya | E52: Al Urobah | F52: العروبة | G52: 33.3917654 | H52: 43.5097282 | I52: 22 | J52: 132 | K52: 0 | L52: 0 | M52: 0 | N52: 132 | O52: 0 | P52: 0 | Q52: 0 | R52: 0 | S52: 0 | T52: 0 | U52: 0 | V52: 0 | W52: 0 | X52: 0 | Y52: 0 | Z52: 132 | AA52: 0 | AB52: 0 | AC52: 0 | AD52: 0 | AE52: 0 | AF52: 0 | AG52: 0 | AH52: 0 | AI52: 0 | AJ52: 0 | AK52: 0 | AL52: 0 | AM52: 0 | AN52: 0 | AO52: 0 | AP52: 0 | AQ52: 0 | AR52: 0 | AS52: 0 | AT52: 0 | AU52: 24 | AV52: 108 | AW52: 0 | AX52: 0 | AY52: 0 | AZ52: 0 | BA52: 0 | BB52: 0 | BC52: 0 | BD52: =HYPERLINK("http://www.openstreetmap.org/?mlat=33.3918&mlon=43.5097&zoom=12#map=12/33.3918/43.5097","Maplink1") -> Maplink1 | BE52: =HYPERLINK("https://www.google.iq/maps/search/+33.3918,43.5097/@33.3918,43.5097,14z?hl=en","Maplink2") -> Maplink2 | BF52: =HYPERLINK("http://www.bing.com/maps/?lvl=14&sty=h&cp=33.3918~43.5097&sp=point.33.3918_43.5097","Maplink3") -> Maplink3
A53: 23858 | B53: Al-Anbar | C53: Al-Ramadi | D53: Al-Habbaniya | E53: Abu Fless | F53: ابو فليس | G53: 33.3900169 | H53: 43.5387663 | I53: 57 | J53: 342 | K53: 0 | L53: 0 | M53: 0 | N53: 342 | O53: 0 | P53: 0 | Q53: 0 | R53: 0 | S53: 0 | T53: 0 | U53: 0 | V53: 0 | W53: 0 | X53: 0 | Y53: 0 | Z53: 228 | AA53: 54 | AB53: 60 | AC53: 0 | AD53: 0 | AE53: 0 | AF53: 0 | AG53: 0 | AH53: 0 | AI53: 0 | AJ53: 0 | AK53: 0 | AL53: 0 | AM53: 0 | AN53: 0 | AO53: 0 | AP53: 0 | AQ53: 0 | AR53: 0 | AS53: 0 | AT53: 0 | AU53: 342 | AV53: 0 | AW53: 0 | AX53: 0 | AY53: 0 | AZ53: 0 | BA53: 0 | BB53: 0 | BC53: 0 | BD53: =HYPERLINK("http://www.openstreetmap.org/?mlat=33.39&mlon=43.5388&zoom=12#map=12/33.39/43.5388","Maplink1") -> Maplink1 | BE53: =HYPERLINK("https://www.google.iq/maps/search/+33.39,43.5388/@33.39,43.5388,14z?hl=en","Maplink2") -> Maplink2 | BF53: =HYPERLINK("http://www.bing.com/maps/?lvl=14&sty=h&cp=33.39~43.5388&sp=point.33.39_43.5388","Maplink3") -> Maplink3
A54: 24730 | B54: Al-Anbar | C54: Al-Ramadi | D54: Al-Habbaniya | E54: Al Khulafaa | F54: الخلفاء | G54: 33.39229 | H54: 43.5145674 | I54: 21 | J54: 126 | K54: 0 | L54: 0 | M54: 0 | N54: 126 | O54: 0 | P54: 0 | Q54: 0 | R54: 0 | S54: 0 | T54: 0 | U54: 0 | V54: 0 | W54: 0 | X54: 0 | Y54: 0 | Z54: 126 | AA54: 0 | AB54: 0 | AC54: 0 | AD54: 0 | AE54: 0 | AF54: 0 | AG54: 0 | AH54: 0 | AI54: 0 | AJ54: 0 | AK54: 0 | AL54: 0 | AM54: 0 | AN54: 0 | AO54: 0 | AP54: 0 | AQ54: 0 | AR54: 0 | AS54: 0 | AT54: 0 | AU54: 126 | AV54: 0 | AW54: 0 | AX54: 0 | AY54: 0 | AZ54: 0 | BA54: 0 | BB54: 0 | BC54: 0 | BD54: =HYPERLINK("http://www.openstreetmap.org/?mlat=33.3923&mlon=43.5146&zoom=12#map=12/33.3923/43.5146","Maplink1") -> Maplink1 | BE54: =HYPERLINK("https://www.google.iq/maps/search/+33.3923,43.5146/@33.3923,43.5146,14z?hl=en","Maplink2") -> Maplink2 | BF54: =HYPERLINK("http://www.bing.com/maps/?lvl=14&sty=h&cp=33.3923~43.5146&sp=point.33.3923_43.5146","Maplink3") -> Maplink3
A55: 188 | B55: Al-Anbar | C55: Al-Ramadi | D55: Al-Habbaniya | E55: Hay AlQuds | F55: حي القدس | G55: 33.3811774 | H55: 43.5382654 | I55: 53 | J55: 318 | K55: 0 | L55: 0 | M55: 0 | N55: 318 | O55: 0 | P55: 0 | Q55: 0 | R55: 0 | S55: 0 | T55: 0 | U55: 0 | V55: 0 | W55: 0 | X55: 0 | Y55: 0 | Z55: 318 | AA55: 0 | AB55: 0 | AC55: 0 | AD55: 0 | AE55: 0 | AF55: 0 | AG55: 0 | AH55: 0 | AI55: 0 | AJ55: 0 | AK55: 0 | AL55: 0 | AM55: 0 | AN55: 0 | AO55: 0 | AP55: 0 | AQ55: 0 | AR55: 0 | AS55: 0 | AT55: 0 | AU55: 318 | AV55: 0 | AW55: 0 | AX55: 0 | AY55: 0 | AZ55: 0 | BA55: 0 | BB55: 0 | BC55: 0 | BD55: =HYPERLINK("http://www.openstreetmap.org/?mlat=33.3812&mlon=43.5383&zoom=12#map=12/33.3812/43.5383","Maplink1") -> Maplink1 | BE55: =HYPERLINK("https://www.google.iq/maps/search/+33.3812,43.5383/@33.3812,43.5383,14z?hl=en","Maplink2") -> Maplink2 | BF55: =HYPERLINK("http://www.bing.com/maps/?lvl=14&sty=h&cp=33.3812~43.5383&sp=point.33.3812_43.5383","Maplink3") -> Maplink3
A56: 115 | B56: Al-Anbar | C56: Al-Ramadi | D56: Markaz Al-Ramadi | E56: Al Sofeya | F56: الصوفية | G56: 33.4404787 | H56: 43.3289589 | I56: 70 | J56: 420 | K56: 0 | L56: 0 | M56: 0 | N56: 420 | O56: 0 | P56: 0 | Q56: 0 | R56: 0 | S56: 0 | T56: 0 | U56: 0 | V56: 0 | W56: 0 | X56: 0 | Y56: 0 | Z56: 420 | AA56: 0 | AB56: 0 | AC56: 0 | AD56: 0 | AE56: 0 | AF56: 0 | AG56: 0 | AH56: 0 | AI56: 0 | AJ56: 0 | AK56: 0 | AL56: 0 | AM56: 0 | AN56: 0 | AO56: 0 | AP56: 0 | AQ56: 0 | AR56: 0 | AS56: 0 | AT56: 0 | AU56: 0 | AV56: 0 | AW56: 0 | AX56: 0 | AY56: 420 | AZ56: 0 | BA56: 0 | BB56: 0 | BC56: 0 | BD56: =HYPERLINK("http://www.openstreetmap.org/?mlat=33.4405&mlon=43.329&zoom=12#map=12/33.4405/43.329","Maplink1") -> Maplink1 | BE56: =HYPERLINK("https://www.google.iq/maps/search/+33.4405,43.329/@33.4405,43.329,14z?hl=en","Maplink2") -> Maplink2 | BF56: =HYPERLINK("http://www.bing.com/maps/?lvl=14&sty=h&cp=33.4405~43.329&sp=point.33.4405_43.329","Maplink3") -> Maplink3
A57: 29475 | B57: Al-Anbar | C57: Al-Ramadi | D57: Markaz Al-Ramadi | E57: Zankura | F57: زنكورة | G57: 33.4680522 | H57: 43.175753 | I57: 5 | J57: 30 | K57: 0 | L57: 0 | M57: 0 | N57: 0 | O57: 0 | P57: 0 | Q57: 30 | R57: 0 | S57: 0 | T57: 0 | U57: 0 | V57: 0 | W57: 0 | X57: 0 | Y57: 0 | Z57: 0 | AA57: 0 | AB57: 0 | AC57: 0 | AD57: 0 | AE57: 0 | AF57: 0 | AG57: 0 | AH57: 0 | AI57: 0 | AJ57: 0 | AK57: 0 | AL57: 30 | AM57: 0 | AN57: 0 | AO57: 0 | AP57: 0 | AQ57: 0 | AR57: 0 | AS57: 0 | AT57: 0 | AU57: 0 | AV57: 0 | AW57: 30 | AX57: 0 | AY57: 0 | AZ57: 0 | BA57: 0 | BB57: 0 | BC57: 0 | BD57: =HYPERLINK("http://www.openstreetmap.org/?mlat=33.4681&mlon=43.1758&zoom=12#map=12/33.4681/43.1758","Maplink1") -> Maplink1 | BE57: =HYPERLINK("https://www.google.iq/maps/search/+33.4681,43.1758/@33.4681,43.1758,14z?hl=en","Maplink2") -> Maplink2 | BF57: =HYPERLINK("http://www.bing.com/maps/?lvl=14&sty=h&cp=33.4681~43.1758&sp=point.33.4681_43.1758","Maplink3") -> Maplink3
A58: 23889 | B58: Al-Anbar | C58: Al-Ramadi | D58: Markaz Al-Ramadi | E58: 7 Killo-al-mojamaa al-sakany | F58: السبعة كيلو-المجمع السكني | G58: 33.4165942 | H58: 43.1924283 | I58: 542 | J58: 3,252 | K58: 0 | L58: 0 | M58: 0 | N58: 0 | O58: 0 | P58: 0 | Q58: 0 | R58: 0 | S58: 0 | T58: 36 | U58: 3,204 | V58: 0 | W58: 12 | X58: 0 | Y58: 0 | Z58: 3,252 | AA58: 0 | AB58: 0 | AC58: 0 | AD58: 0 | AE58: 0 | AF58: 0 | AG58: 0 | AH58: 0 | AI58: 0 | AJ58: 0 | AK58: 0 | AL58: 0 | AM58: 0 | AN58: 0 | AO58: 0 | AP58: 0 | AQ58: 0 | AR58: 168 | AS58: 300 | AT58: 0 | AU58: 1,908 | AV58: 876 | AW58: 0 | AX58: 0 | AY58: 0 | AZ58: 0 | BA58: 0 | BB58: 0 | BC58: 0 | BD58: =HYPERLINK("http://www.openstreetmap.org/?mlat=33.4166&mlon=43.1924&zoom=12#map=12/33.4166/43.1924","Maplink1") -> Maplink1 | BE58: =HYPERLINK("https://www.google.iq/maps/search/+33.4166,43.1924/@33.4166,43.1924,14z?hl=en","Maplink2") -> Maplink2 | BF58: =HYPERLINK("http://www.bing.com/maps/?lvl=14&sty=h&cp=33.4166~43.1924&sp=point.33.4166_43.1924","Maplink3") -> Maplink3
A59: 34178 | B59: Al-Anbar | C59: Al-Ramadi | D59: Markaz Al-Ramadi | E59: 9 Kilo | F59: 9 كيلو | G59: 33.4096587 | H59: 43.1680676 | I59: 64 | J59: 384 | K59: 0 | L59: 0 | M59: 0 | N59: 0 | O59: 0 | P59: 0 | Q59: 0 | R59: 0 | S59: 0 | T59: 384 | U59: 0 | V59: 0 | W59: 0 | X59: 0 | Y59: 0 | Z59: 384 | AA59: 0 | AB59: 0 | AC59: 0 | AD59: 0 | AE59: 0 | AF59: 0 | AG59: 0 | AH59: 0 | AI59: 0 | AJ59: 0 | AK59: 0 | AL59: 0 | AM59: 0 | AN59: 0 | AO59: 0 | AP59: 0 | AQ59: 0 | AR59: 0 | AS59: 0 | AT59: 0 | AU59: 0 | AV59: 0 | AW59: 384 | AX59: 0 | AY59: 0 | AZ59: 0 | BA59: 0 | BB59: 0 | BC59: 0 | BD59: =HYPERLINK("http://www.openstreetmap.org/?mlat=33.4097&mlon=43.1681&zoom=12#map=12/33.4097/43.1681","Maplink1") -> Maplink1 | BE59: =HYPERLINK("https://www.google.iq/maps/search/+33.4097,43.1681/@33.4097,43.1681,14z?hl=en","Maplink2") -> Maplink2 | BF59: =HYPERLINK("http://www.bing.com/maps/?lvl=14&sty=h&cp=33.4097~43.1681&sp=point.33.4097_43.1681","Maplink3") -> Maplink3
A60: 182 | B60: Al-Anbar | C60: Al-Ramadi | D60: Markaz Al-Ramadi | E60: Qadisiya-1 | F60: القادسية الاولى | G60: 33.4134102 | H60: 43.2749409 | I60: 37 | J60: 222 | K60: 0 | L60: 0 | M60: 0 | N60: 222 | O60: 0 | P60: 0 | Q60: 0 | R60: 0 | S60: 0 | T60: 0 | U60: 0 | V60: 0 | W60: 0 | X60: 0 | Y60: 0 | Z60: 222 | AA60: 0 | AB60: 0 | AC60: 0 | AD60: 0 | AE60: 0 | AF60: 0 | AG60: 0 | AH60: 0 | AI60: 0 | AJ60: 0 | AK60: 0 | AL60: 0 | AM60: 0 | AN60: 0 | AO60: 0 | AP60: 0 | AQ60: 0 | AR60: 0 | AS60: 0 | AT60: 0 | AU60: 0 | AV60: 0 | AW60: 0 | AX60: 0 | AY60: 222 | AZ60: 0 | BA60: 0 | BB60: 0 | BC60: 0 | BD60: =HYPERLINK("http://www.openstreetmap.org/?mlat=33.4134&mlon=43.2749&zoom=12#map=12/33.4134/43.2749","Maplink1") -> Maplink1 | BE60: =HYPERLINK("https://www.google.iq/maps/search/+33.4134,43.2749/@33.4134,43.2749,14z?hl=en","Maplink2") -> Maplink2 | BF60: =HYPERLINK("http://www.bing.com/maps/?lvl=14&sty=h&cp=33.4134~43.2749&sp=point.33.4134_43.2749","Maplink3") -> Maplink3
A61: 308 | B61: Al-Anbar | C61: Al-Ramadi | D61: Markaz Al-Ramadi | E61: 5 Kilo | F61: الخمسة كيلو | G61: 33.4210806 | H61: 43.2475353 | I61: 48 | J61: 288 | K61: 0 | L61: 0 | M61: 0 | N61: 288 | O61: 0 | P61: 0 | Q61: 0 | R61: 0 | S61: 0 | T61: 0 | U61: 0 | V61: 0 | W61: 0 | X61: 0 | Y61: 0 | Z61: 288 | AA61: 0 | AB61: 0 | AC61: 0 | AD61: 0 | AE61: 0 | AF61: 0 | AG61: 0 | AH61: 0 | AI61: 0 | AJ61: 0 | AK61: 0 | AL61: 0 | AM61: 0 | AN61: 0 | AO61: 0 | AP61: 0 | AQ61: 0 | AR61: 0 | AS61: 0 | AT61: 0 | AU61: 0 | AV61: 0 | AW61: 0 | AX61: 0 | AY61: 288 | AZ61: 0 | BA61: 0 | BB61: 0 | BC61: 0 | BD61: =HYPERLINK("http://www.openstreetmap.org/?mlat=33.4211&mlon=43.2475&zoom=12#map=12/33.4211/43.2475","Maplink1") -> Maplink1 | BE61: =HYPERLINK("https://www.google.iq/maps/search/+33.4211,43.2475/@33.4211,43.2475,14z?hl=en","Maplink2") -> Maplink2 | BF61: =HYPERLINK("http://www.bing.com/maps/?lvl=14&sty=h&cp=33.4211~43.2475&sp=point.33.4211_43.2475","Maplink3") -> Maplink3
A62: 33826 | B62: Al-Anbar | C62: Al-Ramadi | D62: Markaz Al-Ramadi | E62: AL-Karama complex | F62: مجمع الكرامه | G62: 33.3885532 | H62: 43.0969749 | I62: 153 | J62: 918 | K62: 0 | L62: 0 | M62: 0 | N62: 0 | O62: 0 | P62: 0 | Q62: 0 | R62: 0 | S62: 918 | T62: 0 | U62: 0 | V62: 0 | W62: 0 | X62: 0 | Y62: 0 | Z62: 918 | AA62: 0 | AB62: 0 | AC62: 0 | AD62: 0 | AE62: 0 | AF62: 0 | AG62: 0 | AH62: 0 | AI62: 0 | AJ62: 0 | AK62: 0 | AL62: 0 | AM62: 0 | AN62: 0 | AO62: 0 | AP62: 0 | AQ62: 0 | AR62: 384 | AS62: 0 | AT62: 0 | AU62: 0 | AV62: 0 | AW62: 0 | AX62: 0 | AY62: 534 | AZ62: 0 | BA62: 0 | BB62: 0 | BC62: 0 | BD62: =HYPERLINK("http://www.openstreetmap.org/?mlat=33.3886&mlon=43.097&zoom=12#map=12/33.3886/43.097","Maplink1") -> Maplink1 | BE62: =HYPERLINK("https://www.google.iq/maps/search/+33.3886,43.097/@33.3886,43.097,14z?hl=en","Maplink2") -> Maplink2 | BF62: =HYPERLINK("http://www.bing.com/maps/?lvl=14&sty=h&cp=33.3886~43.097&sp=point.33.3886_43.097","Maplink3") -> Maplink3
A63: 166 | B63: Al-Anbar | C63: Al-Rutba | D63: Markaz Al-Rutba | E63: Hay Al Meethagh | F63: حي الميثاق | G63: 33.03197354 | H63: 40.29047217 | I63: 75 | J63: 450 | K63: 0 | L63: 0 | M63: 0 | N63: 0 | O63: 0 | P63: 0 | Q63: 324 | R63: 0 | S63: 0 | T63: 126 | U63: 0 | V63: 0 | W63: 0 | X63: 0 | Y63: 0 | Z63: 450 | AA63: 0 | AB63: 0 | AC63: 0 | AD63: 0 | AE63: 0 | AF63: 0 | AG63: 0 | AH63: 0 | AI63: 0 | AJ63: 0 | AK63: 0 | AL63: 0 | AM63: 0 | AN63: 0 | AO63: 0 | AP63: 0 | AQ63: 0 | AR63: 0 | AS63: 0 | AT63: 0 | AU63: 0 | AV63: 0 | AW63: 0 | AX63: 0 | AY63: 36 | AZ63: 414 | BA63: 0 | BB63: 0 | BC63: 0 | BD63: =HYPERLINK("http://www.openstreetmap.org/?mlat=33.032&mlon=40.2905&zoom=12#map=12/33.032/40.2905","Maplink1") -> Maplink1 | BE63: =HYPERLINK("https://www.google.iq/maps/search/+33.032,40.2905/@33.032,40.2905,14z?hl=en","Maplink2") -> Maplink2 | BF63: =HYPERLINK("http://www.bing.com/maps/?lvl=14&sty=h&cp=33.032~40.2905&sp=point.33.032_40.2905","Maplink3") -> Maplink3
A64: 167 | B64: Al-Anbar | C64: Al-Rutba | D64: Markaz Al-Rutba | E64: Antesar | F64: حي الانتصار | G64: 33.03126564 | H64: 40.29901479 | I64: 58 | J64: 348 | K64: 0 | L64: 0 | M64: 0 | N64: 0 | O64: 0 | P64: 0 | Q64: 246 | R64: 0 | S64: 0 | T64: 102 | U64: 0 | V64: 0 | W64: 0 | X64: 0 | Y64: 0 | Z64: 348 | AA64: 0 | AB64: 0 | AC64: 0 | AD64: 0 | AE64: 0 | AF64: 0 | AG64: 0 | AH64: 0 | AI64: 0 | AJ64: 0 | AK64: 0 | AL64: 0 | AM64: 0 | AN64: 0 | AO64: 0 | AP64: 0 | AQ64: 0 | AR64: 0 | AS64: 0 | AT64: 0 | AU64: 0 | AV64: 0 | AW64: 0 | AX64: 0 | AY64: 126 | AZ64: 222 | BA64: 0 | BB64: 0 | BC64: 0 | BD64: =HYPERLINK("http://www.openstreetmap.org/?mlat=33.0313&mlon=40.299&zoom=12#map=12/33.0313/40.299","Maplink1") -> Maplink1 | BE64: =HYPERLINK("https://www.google.iq/maps/search/+33.0313,40.299/@33.0313,40.299,14z?hl=en","Maplink2") -> Maplink2 | BF64: =HYPERLINK("http://www.bing.com/maps/?lvl=14&sty=h&cp=33.0313~40.299&sp=point.33.0313_40.299","Maplink3") -> Maplink3
A65: 23888 | B65: Al-Anbar | C65: Al-Rutba | D65: Markaz Al-Rutba | E65: Gharb Al-Wadi | F65: حي غرب الوادي | G65: 33.04245523 | H65: 40.27803907 | I65: 13 | J65: 78 | K65: 0 | L65: 0 | M65: 0 | N65: 0 | O65: 0 | P65: 0 | Q65: 78 | R65: 0 | S65: 0 | T65: 0 | U65: 0 | V65: 0 | W65: 0 | X65: 0 | Y65: 0 | Z65: 78 | AA65: 0 | AB65: 0 | AC65: 0 | AD65: 0 | AE65: 0 | AF65: 0 | AG65: 0 | AH65: 0 | AI65: 0 | AJ65: 0 | AK65: 0 | AL65: 0 | AM65: 0 | AN65: 0 | AO65: 0 | AP65: 0 | AQ65: 0 | AR65: 0 | AS65: 0 | AT65: 0 | AU65: 0 | AV65: 0 | AW65: 0 | AX65: 0 | AY65: 0 | AZ65: 78 | BA65: 0 | BB65: 0 | BC65: 0 | BD65: =HYPERLINK("http://www.openstreetmap.org/?mlat=33.0425&mlon=40.278&zoom=12#map=12/33.0425/40.278","Maplink1") -> Maplink1 | BE65: =HYPERLINK("https://www.google.iq/maps/search/+33.0425,40.278/@33.0425,40.278,14z?hl=en","Maplink2") -> Maplink2 | BF65: =HYPERLINK("http://www.bing.com/maps/?lvl=14&sty=h&cp=33.0425~40.278&sp=point.33.0425_40.278","Maplink3") -> Maplink3
A66: 231 | B66: Al-Anbar | C66: Al-Rutba | D66: Markaz Al-Rutba | E66: Al Wadi | F66: حي الوادي | G66: 33.03966421 | H66: 40.28365262 | I66: 72 | J66: 432 | K66: 0 | L66: 0 | M66: 0 | N66: 0 | O66: 0 | P66: 0 | Q66: 372 | R66: 0 | S66: 0 | T66: 60 | U66: 0 | V66: 0 | W66: 0 | X66: 0 | Y66: 0 | Z66: 432 | AA66: 0 | AB66: 0 | AC66: 0 | AD66: 0 | AE66: 0 | AF66: 0 | AG66: 0 | AH66: 0 | AI66: 0 | AJ66: 0 | AK66: 0 | AL66: 0 | AM66: 0 | AN66: 0 | AO66: 0 | AP66: 0 | AQ66: 0 | AR66: 0 | AS66: 0 | AT66: 0 | AU66: 0 | AV66: 0 | AW66: 0 | AX66: 0 | AY66: 36 | AZ66: 396 | BA66: 0 | BB66: 0 | BC66: 0 | BD66: =HYPERLINK("http://www.openstreetmap.org/?mlat=33.0397&mlon=40.2837&zoom=12#map=12/33.0397/40.2837","Maplink1") -> Maplink1 | BE66: =HYPERLINK("https://www.google.iq/maps/search/+33.0397,40.2837/@33.0397,40.2837,14z?hl=en","Maplink2") -> Maplink2 | BF66: =HYPERLINK("http://www.bing.com/maps/?lvl=14&sty=h&cp=33.0397~40.2837&sp=point.33.0397_40.2837","Maplink3") -> Maplink3
A67: 233 | B67: Al-Anbar | C67: Al-Rutba | D67: Markaz Al-Rutba | E67: Hay Al-Matar | F67: حي المطار | G67: 33.03461084 | H67: 40.28668013 | I67: 54 | J67: 324 | K67: 0 | L67: 0 | M67: 0 | N67: 0 | O67: 0 | P67: 0 | Q67: 252 | R67: 0 | S67: 0 | T67: 72 | U67: 0 | V67: 0 | W67: 0 | X67: 0 | Y67: 0 | Z67: 324 | AA67: 0 | AB67: 0 | AC67: 0 | AD67: 0 | AE67: 0 | AF67: 0 | AG67: 0 | AH67: 0 | AI67: 0 | AJ67: 0 | AK67: 0 | AL67: 0 | AM67: 0 | AN67: 0 | AO67: 0 | AP67: 0 | AQ67: 0 | AR67: 0 | AS67: 0 | AT67: 0 | AU67: 0 | AV67: 0 | AW67: 0 | AX67: 0 | AY67: 60 | AZ67: 264 | BA67: 0 | BB67: 0 | BC67: 0 | BD67: =HYPERLINK("http://www.openstreetmap.org/?mlat=33.0346&mlon=40.2867&zoom=12#map=12/33.0346/40.2867","Maplink1") -> Maplink1 | BE67: =HYPERLINK("https://www.google.iq/maps/search/+33.0346,40.2867/@33.0346,40.2867,14z?hl=en","Maplink2") -> Maplink2 | BF67: =HYPERLINK("http://www.bing.com/maps/?lvl=14&sty=h&cp=33.0346~40.2867&sp=point.33.0346_40.2867","Maplink3") -> Maplink3
A68: 165 | B68: Al-Anbar | C68: Al-Rutba | D68: Markaz Al-Rutba | E68: Al Askaree | F68: حي العسكري | G68: 33.03800189 | H68: 40.30263444 | I68: 61 | J68: 366 | K68: 0 | L68: 0 | M68: 0 | N68: 0 | O68: 0 | P68: 0 | Q68: 270 | R68: 0 | S68: 0 | T68: 96 | U68: 0 | V68: 0 | W68: 0 | X68: 0 | Y68: 0 | Z68: 366 | AA68: 0 | AB68: 0 | AC68: 0 | AD68: 0 | AE68: 0 | AF68: 0 | AG68: 0 | AH68: 0 | AI68: 0 | AJ68: 0 | AK68: 0 | AL68: 0 | AM68: 0 | AN68: 0 | AO68: 0 | AP68: 0 | AQ68: 0 | AR68: 0 | AS68: 0 | AT68: 0 | AU68: 0 | AV68: 0 | AW68: 0 | AX68: 0 | AY68: 66 | AZ68: 300 | BA68: 0 | BB68: 0 | BC68: 0 | BD68: =HYPERLINK("http://www.openstreetmap.org/?mlat=33.038&mlon=40.3026&zoom=12#map=12/33.038/40.3026","Maplink1") -> Maplink1 | BE68: =HYPERLINK("https://www.google.iq/maps/search/+33.038,40.3026/@33.038,40.3026,14z?hl=en","Maplink2") -> Maplink2 | BF68: =HYPERLINK("http://www.bing.com/maps/?lvl=14&sty=h&cp=33.038~40.3026&sp=point.33.038_40.3026","Maplink3") -> Maplink3
A69: 23935 | B69: Al-Anbar | C69: Al-Rutba | D69: Markaz Al-Rutba | E69: Al-Daraemah Village | F69: قرية الدراعمة | G69: 33.04302668 | H69: 40.38038346 | I69: 50 | J69: 300 | K69: 0 | L69: 0 | M69: 0 | N69: 0 | O69: 0 | P69: 300 | Q69: 0 | R69: 0 | S69: 0 | T69: 0 | U69: 0 | V69: 0 | W69: 0 | X69: 0 | Y69: 0 | Z69: 300 | AA69: 0 | AB69: 0 | AC69: 0 | AD69: 0 | AE69: 0 | AF69: 0 | AG69: 0 | AH69: 0 | AI69: 0 | AJ69: 0 | AK69: 0 | AL69: 0 | AM69: 0 | AN69: 0 | AO69: 0 | AP69: 0 | AQ69: 0 | AR69: 0 | AS69: 0 | AT69: 0 | AU69: 0 | AV69: 0 | AW69: 0 | AX69: 0 | AY69: 0 | AZ69: 300 | BA69: 0 | BB69: 0 | BC69: 0 | BD69: =HYPERLINK("http://www.openstreetmap.org/?mlat=33.043&mlon=40.3804&zoom=12#map=12/33.043/40.3804","Maplink1") -> Maplink1 | BE69: =HYPERLINK("https://www.google.iq/maps/search/+33.043,40.3804/@33.043,40.3804,14z?hl=en","Maplink2") -> Maplink2 | BF69: =HYPERLINK("http://www.bing.com/maps/?lvl=14&sty=h&cp=33.043~40.3804&sp=point.33.043_40.3804","Maplink3") -> Maplink3
A70: 150 | B70: Al-Anbar | C70: Al-Rutba | D70: Markaz Al-Rutba | E70: Al Haara | F70: حي الحارة | G70: 33.03761591 | H70: 40.28426443 | I70: 52 | J70: 312 | K70: 0 | L70: 0 | M70: 0 | N70: 0 | O70: 0 | P70: 0 | Q70: 222 | R70: 0 | S70: 0 | T70: 90 | U70: 0 | V70: 0 | W70: 0 | X70: 0 | Y70: 0 | Z70: 312 | AA70: 0 | AB70: 0 | AC70: 0 | AD70: 0 | AE70: 0 | AF70: 0 | AG70: 0 | AH70: 0 | AI70: 0 | AJ70: 0 | AK70: 0 | AL70: 0 | AM70: 0 | AN70: 0 | AO70: 0 | AP70: 0 | AQ70: 0 | AR70: 0 | AS70: 0 | AT70: 0 | AU70: 0 | AV70: 0 | AW70: 0 | AX70: 0 | AY70: 24 | AZ70: 288 | BA70: 0 | BB70: 0 | BC70: 0 | BD70: =HYPERLINK("http://www.openstreetmap.org/?mlat=33.0376&mlon=40.2843&zoom=12#map=12/33.0376/40.2843","Maplink1") -> Maplink1 | BE70: =HYPERLINK("https://www.google.iq/maps/search/+33.0376,40.2843/@33.0376,40.2843,14z?hl=en","Maplink2") -> Maplink2 | BF70: =HYPERLINK("http://www.bing.com/maps/?lvl=14&sty=h&cp=33.0376~40.2843&sp=point.33.0376_40.2843","Maplink3") -> Maplink3
A71: 23936 | B71: Al-Anbar | C71: Al-Rutba | D71: Markaz Al-Rutba | E71: Rumilah Village | F71: قرية رميلة | G71: 33.06022091 | H71: 40.34556629 | I71: 30 | J71: 180 | K71: 0 | L71: 0 | M71: 0 | N71: 0 | O71: 0 | P71: 0 | Q71: 144 | R71: 0 | S71: 0 | T71: 36 | U71: 0 | V71: 0 | W71: 0 | X71: 0 | Y71: 0 | Z71: 180 | AA71: 0 | AB71: 0 | AC71: 0 | AD71: 0 | AE71: 0 | AF71: 0 | AG71: 0 | AH71: 0 | AI71: 0 | AJ71: 0 | AK71: 0 | AL71: 0 | AM71: 0 | AN71: 0 | AO71: 0 | AP71: 0 | AQ71: 0 | AR71: 0 | AS71: 0 | AT71: 0 | AU71: 0 | AV71: 0 | AW71: 0 | AX71: 0 | AY71: 0 | AZ71: 180 | BA71: 0 | BB71: 0 | BC71: 0 | BD71: =HYPERLINK("http://www.openstreetmap.org/?mlat=33.0602&mlon=40.3456&zoom=12#map=12/33.0602/40.3456","Maplink1") -> Maplink1 | BE71: =HYPERLINK("https://www.google.iq/maps/search/+33.0602,40.3456/@33.0602,40.3456,14z?hl=en","Maplink2") -> Maplink2 | BF71: =HYPERLINK("http://www.bing.com/maps/?lvl=14&sty=h&cp=33.0602~40.3456&sp=point.33.0602_40.3456","Maplink3") -> Maplink3
A72: 252 | B72: Al-Anbar | C72: Ana | D72: Markaz Ana | E72: Al Tadamon | F72: حي التضامن | G72: 34.36089741 | H72: 41.98314586 | I72: 86 | J72: 516 | K72: 0 | L72: 0 | M72: 0 | N72: 0 | O72: 0 | P72: 0 | Q72: 474 | R72: 42 | S72: 0 | T72: 0 | U72: 0 | V72: 0 | W72: 0 | X72: 0 | Y72: 0 | Z72: 456 | AA72: 0 | AB72: 60 | AC72: 0 | AD72: 0 | AE72: 0 | AF72: 0 | AG72: 0 | AH72: 0 | AI72: 0 | AJ72: 0 | AK72: 0 | AL72: 0 | AM72: 0 | AN72: 0 | AO72: 0 | AP72: 0 | AQ72: 0 | AR72: 0 | AS72: 72 | AT72: 0 | AU72: 0 | AV72: 0 | AW72: 0 | AX72: 24 | AY72: 390 | AZ72: 0 | BA72: 30 | BB72: 0 | BC72: 0 | BD72: =HYPERLINK("http://www.openstreetmap.org/?mlat=34.3609&mlon=41.9831&zoom=12#map=12/34.3609/41.9831","Maplink1") -> Maplink1 | BE72: =HYPERLINK("https://www.google.iq/maps/search/+34.3609,41.9831/@34.3609,41.9831,14z?hl=en","Maplink2") -> Maplink2 | BF72: =HYPERLINK("http://www.bing.com/maps/?lvl=14&sty=h&cp=34.3609~41.9831&sp=point.34.3609_41.9831","Maplink3") -> Maplink3
A73: 253 | B73: Al-Anbar | C73: Ana | D73: Markaz Ana | E73: Hay Al Salam | F73: حي السلام | G73: 34.37212521 | H73: 41.97703066 | I73: 37 | J73: 222 | K73: 0 | L73: 0 | M73: 0 | N73: 0 | O73: 0 | P73: 0 | Q73: 186 | R73: 36 | S73: 0 | T73: 0 | U73: 0 | V73: 0 | W73: 0 | X73: 0 | Y73: 0 | Z73: 204 | AA73: 0 | AB73: 18 | AC73: 0 | AD73: 0 | AE73: 0 | AF73: 0 | AG73: 0 | AH73: 0 | AI73: 0 | AJ73: 0 | AK73: 0 | AL73: 0 | AM73: 0 | AN73: 0 | AO73: 0 | AP73: 0 | AQ73: 0 | AR73: 0 | AS73: 66 | AT73: 0 | AU73: 0 | AV73: 0 | AW73: 0 | AX73: 42 | AY73: 102 | AZ73: 0 | BA73: 12 | BB73: 0 | BC73: 0 | BD73: =HYPERLINK("http://www.openstreetmap.org/?mlat=34.3721&mlon=41.977&zoom=12#map=12/34.3721/41.977","Maplink1") -> Maplink1 | BE73: =HYPERLINK("https://www.google.iq/maps/search/+34.3721,41.977/@34.3721,41.977,14z?hl=en","Maplink2") -> Maplink2 | BF73: =HYPERLINK("http://www.bing.com/maps/?lvl=14&sty=h&cp=34.3721~41.977&sp=point.34.3721_41.977","Maplink3") -> Maplink3
A74: 248 | B74: Al-Anbar | C74: Ana | D74: Markaz Ana | E74: Al bor (Shishan) | F74: حي العبور | G74: 34.36678805 | H74: 41.97078314 | I74: 141 | J74: 846 | K74: 0 | L74: 0 | M74: 0 | N74: 0 | O74: 0 | P74: 0 | Q74: 798 | R74: 48 | S74: 0 | T74: 0 | U74: 0 | V74: 0 | W74: 0 | X74: 0 | Y74: 0 | Z74: 738 | AA74: 0 | AB74: 108 | AC74: 0 | AD74: 0 | AE74: 0 | AF74: 0 | AG74: 0 | AH74: 0 | AI74: 0 | AJ74: 0 | AK74: 0 | AL74: 0 | AM74: 0 | AN74: 0 | AO74: 0 | AP74: 0 | AQ74: 0 | AR74: 0 | AS74: 180 | AT74: 0 | AU74: 0 | AV74: 0 | AW74: 0 | AX74: 78 | AY74: 534 | AZ74: 0 | BA74: 48 | BB74: 6 | BC74: 0 | BD74: =HYPERLINK("http://www.openstreetmap.org/?mlat=34.3668&mlon=41.9708&zoom=12#map=12/34.3668/41.9708","Maplink1") -> Maplink1 | BE74: =HYPERLINK("https://www.google.iq/maps/search/+34.3668,41.9708/@34.3668,41.9708,14z?hl=en","Maplink2") -> Maplink2 | BF74: =HYPERLINK("http://www.bing.com/maps/?lvl=14&sty=h&cp=34.3668~41.9708&sp=point.34.3668_41.9708","Maplink3") -> Maplink3
A75: 251 | B75: Al-Anbar | C75: Ana | D75: Markaz Ana | E75: Hay Al Qadissiyah | F75: حي القادسية | G75: 34.37651192 | H75: 41.98403304 | I75: 7 | J75: 42 | K75: 0 | L75: 0 | M75: 0 | N75: 0 | O75: 0 | P75: 0 | Q75: 42 | R75: 0 | S75: 0 | T75: 0 | U75: 0 | V75: 0 | W75: 0 | X75: 0 | Y75: 0 | Z75: 42 | AA75: 0 | AB75: 0 | AC75: 0 | AD75: 0 | AE75: 0 | AF75: 0 | AG75: 0 | AH75: 0 | AI75: 0 | AJ75: 0 | AK75: 0 | AL75: 0 | AM75: 0 | AN75: 0 | AO75: 0 | AP75: 0 | AQ75: 0 | AR75: 0 | AS75: 0 | AT75: 0 | AU75: 0 | AV75: 0 | AW75: 0 | AX75: 0 | AY75: 42 | AZ75: 0 | BA75: 0 | BB75: 0 | BC75: 0 | BD75: =HYPERLINK("http://www.openstreetmap.org/?mlat=34.3765&mlon=41.984&zoom=12#map=12/34.3765/41.984","Maplink1") -> Maplink1 | BE75: =HYPERLINK("https://www.google.iq/maps/search/+34.3765,41.984/@34.3765,41.984,14z?hl=en","Maplink2") -> Maplink2 | BF75: =HYPERLINK("http://www.bing.com/maps/?lvl=14&sty=h&cp=34.3765~41.984&sp=point.34.3765_41.984","Maplink3") -> Maplink3
A76: 250 | B76: Al-Anbar | C76: Ana | D76: Markaz Ana | E76: Hay Al Nasir | F76: حي النصر | G76: 34.36660363 | H76: 41.9883185 | I76: 15 | J76: 90 | K76: 0 | L76: 0 | M76: 0 | N76: 0 | O76: 0 | P76: 0 | Q76: 90 | R76: 0 | S76: 0 | T76: 0 | U76: 0 | V76: 0 | W76: 0 | X76: 0 | Y76: 0 | Z76: 90 | AA76: 0 | AB76: 0 | AC76: 0 | AD76: 0 | AE76: 0 | AF76: 0 | AG76: 0 | AH76: 0 | AI76: 0 | AJ76: 0 | AK76: 0 | AL76: 0 | AM76: 0 | AN76: 0 | AO76: 0 | AP76: 0 | AQ76: 0 | AR76: 0 | AS76: 0 | AT76: 0 | AU76: 0 | AV76: 0 | AW76: 0 | AX76: 0 | AY76: 90 | AZ76: 0 | BA76: 0 | BB76: 0 | BC76: 0 | BD76: =HYPERLINK("http://www.openstreetmap.org/?mlat=34.3666&mlon=41.9883&zoom=12#map=12/34.3666/41.9883","Maplink1") -> Maplink1 | BE76: =HYPERLINK("https://www.google.iq/maps/search/+34.3666,41.9883/@34.3666,41.9883,14z?hl=en","Maplink2") -> Maplink2 | BF76: =HYPERLINK("http://www.bing.com/maps/?lvl=14&sty=h&cp=34.3666~41.9883&sp=point.34.3666_41.9883","Maplink3") -> Maplink3
A77: 247 | B77: Al-Anbar | C77: Ana | D77: Markaz Ana | E77: Hay Al-Rayhana | F77: حي الريحانه | G77: 34.34150615 | H77: 42.02845263 | I77: 29 | J77: 174 | K77: 0 | L77: 0 | M77: 0 | N77: 0 | O77: 0 | P77: 0 | Q77: 174 | R77: 0 | S77: 0 | T77: 0 | U77: 0 | V77: 0 | W77: 0 | X77: 0 | Y77: 0 | Z77: 174 | AA77: 0 | AB77: 0 | AC77: 0 | AD77: 0 | AE77: 0 | AF77: 0 | AG77: 0 | AH77: 0 | AI77: 0 | AJ77: 0 | AK77: 0 | AL77: 0 | AM77: 0 | AN77: 0 | AO77: 0 | AP77: 0 | AQ77: 0 | AR77: 0 | AS77: 0 | AT77: 0 | AU77: 0 | AV77: 0 | AW77: 0 | AX77: 0 | AY77: 174 | AZ77: 0 | BA77: 0 | BB77: 0 | BC77: 0 | BD77: =HYPERLINK("http://www.openstreetmap.org/?mlat=34.3415&mlon=42.0285&zoom=12#map=12/34.3415/42.0285","Maplink1") -> Maplink1 | BE77: =HYPERLINK("https://www.google.iq/maps/search/+34.3415,42.0285/@34.3415,42.0285,14z?hl=en","Maplink2") -> Maplink2 | BF77: =HYPERLINK("http://www.bing.com/maps/?lvl=14&sty=h&cp=34.3415~42.0285&sp=point.34.3415_42.0285","Maplink3") -> Maplink3
A78: 109 | B78: Al-Anbar | C78: Ana | D78: Markaz Ana | E78: Yarmouk | F78: حي اليرموك | G78: 34.37323995 | H78: 41.98722613 | I78: 4 | J78: 24 | K78: 0 | L78: 0 | M78: 0 | N78: 0 | O78: 0 | P78: 0 | Q78: 24 | R78: 0 | S78: 0 | T78: 0 | U78: 0 | V78: 0 | W78: 0 | X78: 0 | Y78: 0 | Z78: 24 | AA78: 0 | AB78: 0 | AC78: 0 | AD78: 0 | AE78: 0 | AF78: 0 | AG78: 0 | AH78: 0 | AI78: 0 | AJ78: 0 | AK78: 0 | AL78: 0 | AM78: 0 | AN78: 0 | AO78: 0 | AP78: 0 | AQ78: 0 | AR78: 0 | AS78: 0 | AT78: 0 | AU78: 0 | AV78: 0 | AW78: 0 | AX78: 0 | AY78: 24 | AZ78: 0 | BA78: 0 | BB78: 0 | BC78: 0 | BD78: =HYPERLINK("http://www.openstreetmap.org/?mlat=34.3732&mlon=41.9872&zoom=12#map=12/34.3732/41.9872","Maplink1") -> Maplink1 | BE78: =HYPERLINK("https://www.google.iq/maps/search/+34.3732,41.9872/@34.3732,41.9872,14z?hl=en","Maplink2") -> Maplink2 | BF78: =HYPERLINK("http://www.bing.com/maps/?lvl=14&sty=h&cp=34.3732~41.9872&sp=point.34.3732_41.9872","Maplink3") -> Maplink3
A79: 24110 | B79: Al-Anbar | C79: Haditha | D79: Al-Haqlaniya | E79: Hay Al-Mutasem | F79: حي المعتصم | G79: 34.08312798 | H79: 42.36857003 | I79: 6 | J79: 36 | K79: 0 | L79: 0 | M79: 0 | N79: 0 | O79: 0 | P79: 0 | Q79: 36 | R79: 0 | S79: 0 | T79: 0 | U79: 0 | V79: 0 | W79: 0 | X79: 0 | Y79: 0 | Z79: 36 | AA79: 0 | AB79: 0 | AC79: 0 | AD79: 0 | AE79: 0 | AF79: 0 | AG79: 0 | AH79: 0 | AI79: 0 | AJ79: 0 | AK79: 0 | AL79: 0 | AM79: 0 | AN79: 0 | AO79: 0 | AP79: 0 | AQ79: 0 | AR79: 0 | AS79: 36 | AT79: 0 | AU79: 0 | AV79: 0 | AW79: 0 | AX79: 0 | AY79: 0 | AZ79: 0 | BA79: 0 | BB79: 0 | BC79: 0 | BD79: =HYPERLINK("http://www.openstreetmap.org/?mlat=34.0831&mlon=42.3686&zoom=12#map=12/34.0831/42.3686","Maplink1") -> Maplink1 | BE79: =HYPERLINK("https://www.google.iq/maps/search/+34.0831,42.3686/@34.0831,42.3686,14z?hl=en","Maplink2") -> Maplink2 | BF79: =HYPERLINK("http://www.bing.com/maps/?lvl=14&sty=h&cp=34.0831~42.3686&sp=point.34.0831_42.3686","Maplink3") -> Maplink3
A80: 24111 | B80: Al-Anbar | C80: Haditha | D80: Al-Haqlaniya | E80: Al-Khafajiyah Village | F80: قرية الخفاجية | G80: 34.0640349 | H80: 42.38011484 | I80: 2 | J80: 12 | K80: 0 | L80: 0 | M80: 0 | N80: 0 | O80: 0 | P80: 0 | Q80: 12 | R80: 0 | S80: 0 | T80: 0 | U80: 0 | V80: 0 | W80: 0 | X80: 0 | Y80: 0 | Z80: 12 | AA80: 0 | AB80: 0 | AC80: 0 | AD80: 0 | AE80: 0 | AF80: 0 | AG80: 0 | AH80: 0 | AI80: 0 | AJ80: 0 | AK80: 0 | AL80: 0 | AM80: 0 | AN80: 0 | AO80: 0 | AP80: 0 | AQ80: 0 | AR80: 0 | AS80: 12 | AT80: 0 | AU80: 0 | AV80: 0 | AW80: 0 | AX80: 0 | AY80: 0 | AZ80: 0 | BA80: 0 | BB80: 0 | BC80: 0 | BD80: =HYPERLINK("http://www.openstreetmap.org/?mlat=34.064&mlon=42.3801&zoom=12#map=12/34.064/42.3801","Maplink1") -> Maplink1 | BE80: =HYPERLINK("https://www.google.iq/maps/search/+34.064,42.3801/@34.064,42.3801,14z?hl=en","Maplink2") -> Maplink2 | BF80: =HYPERLINK("http://www.bing.com/maps/?lvl=14&sty=h&cp=34.064~42.3801&sp=point.34.064_42.3801","Maplink3") -> Maplink3
A81: 24117 | B81: Al-Anbar | C81: Haditha | D81: Al-Haqlaniya | E81: Haqlaniyah-Hay Al-Faroq | F81: حي الفاروق-حقلانية | G81: 34.08592765 | H81: 42.35917116 | I81: 6 | J81: 36 | K81: 0 | L81: 0 | M81: 0 | N81: 0 | O81: 0 | P81: 0 | Q81: 36 | R81: 0 | S81: 0 | T81: 0 | U81: 0 | V81: 0 | W81: 0 | X81: 0 | Y81: 0 | Z81: 36 | AA81: 0 | AB81: 0 | AC81: 0 | AD81: 0 | AE81: 0 | AF81: 0 | AG81: 0 | AH81: 0 | AI81: 0 | AJ81: 0 | AK81: 0 | AL81: 0 | AM81: 0 | AN81: 0 | AO81: 0 | AP81: 0 | AQ81: 0 | AR81: 0 | AS81: 36 | AT81: 0 | AU81: 0 | AV81: 0 | AW81: 0 | AX81: 0 | AY81: 0 | AZ81: 0 | BA81: 0 | BB81: 0 | BC81: 0 | BD81: =HYPERLINK("http://www.openstreetmap.org/?mlat=34.0859&mlon=42.3592&zoom=12#map=12/34.0859/42.3592","Maplink1") -> Maplink1 | BE81: =HYPERLINK("https://www.google.iq/maps/search/+34.0859,42.3592/@34.0859,42.3592,14z?hl=en","Maplink2") -> Maplink2 | BF81: =HYPERLINK("http://www.bing.com/maps/?lvl=14&sty=h&cp=34.0859~42.3592&sp=point.34.0859_42.3592","Maplink3") -> Maplink3
A82: 23806 | B82: Al-Anbar | C82: Haditha | D82: Al-Haqlaniya | E82: Hay Al-Mulameen | F82: حي المعلمين | G82: 34.13540931 | H82: 42.36541286 | I82: 15 | J82: 90 | K82: 0 | L82: 0 | M82: 0 | N82: 0 | O82: 0 | P82: 0 | Q82: 90 | R82: 0 | S82: 0 | T82: 0 | U82: 0 | V82: 0 | W82: 0 | X82: 0 | Y82: 0 | Z82: 72 | AA82: 0 | AB82: 0 | AC82: 0 | AD82: 0 | AE82: 0 | AF82: 0 | AG82: 0 | AH82: 0 | AI82: 0 | AJ82: 0 | AK82: 0 | AL82: 0 | AM82: 0 | AN82: 18 | AO82: 0 | AP82: 0 | AQ82: 0 | AR82: 0 | AS82: 90 | AT82: 0 | AU82: 0 | AV82: 0 | AW82: 0 | AX82: 0 | AY82: 0 | AZ82: 0 | BA82: 0 | BB82: 0 | BC82: 0 | BD82: =HYPERLINK("http://www.openstreetmap.org/?mlat=34.1354&mlon=42.3654&zoom=12#map=12/34.1354/42.3654","Maplink1") -> Maplink1 | BE82: =HYPERLINK("https://www.google.iq/maps/search/+34.1354,42.3654/@34.1354,42.3654,14z?hl=en","Maplink2") -> Maplink2 | BF82: =HYPERLINK("http://www.bing.com/maps/?lvl=14&sty=h&cp=34.1354~42.3654&sp=point.34.1354_42.3654","Maplink3") -> Maplink3
A83: 24316 | B83: Al-Anbar | C83: Haditha | D83: Al-Haqlaniya | E83: Hay Al Salam | F83: حي السلام | G83: 34.0907524 | H83: 42.3623321 | I83: 17 | J83: 102 | K83: 0 | L83: 0 | M83: 0 | N83: 0 | O83: 0 | P83: 0 | Q83: 102 | R83: 0 | S83: 0 | T83: 0 | U83: 0 | V83: 0 | W83: 0 | X83: 0 | Y83: 0 | Z83: 78 | AA83: 0 | AB83: 0 | AC83: 0 | AD83: 0 | AE83: 0 | AF83: 0 | AG83: 0 | AH83: 0 | AI83: 0 | AJ83: 0 | AK83: 0 | AL83: 24 | AM83: 0 | AN83: 0 | AO83: 0 | AP83: 0 | AQ83: 0 | AR83: 0 | AS83: 102 | AT83: 0 | AU83: 0 | AV83: 0 | AW83: 0 | AX83: 0 | AY83: 0 | AZ83: 0 | BA83: 0 | BB83: 0 | BC83: 0 | BD83: =HYPERLINK("http://www.openstreetmap.org/?mlat=34.0908&mlon=42.3623&zoom=12#map=12/34.0908/42.3623","Maplink1") -> Maplink1 | BE83: =HYPERLINK("https://www.google.iq/maps/search/+34.0908,42.3623/@34.0908,42.3623,14z?hl=en","Maplink2") -> Maplink2 | BF83: =HYPERLINK("http://www.bing.com/maps/?lvl=14&sty=h&cp=34.0908~42.3623&sp=point.34.0908_42.3623","Maplink3") -> Maplink3
A84: 244 | B84: Al-Anbar | C84: Haditha | D84: Al-Haqlaniya | E84: Hay Al Yarmuk | F84: حي اليرموك | G84: 34.14210658 | H84: 42.37362766 | I84: 41 | J84: 246 | K84: 0 | L84: 0 | M84: 0 | N84: 0 | O84: 0 | P84: 0 | Q84: 246 | R84: 0 | S84: 0 | T84: 0 | U84: 0 | V84: 0 | W84: 0 | X84: 0 | Y84: 0 | Z84: 246 | AA84: 0 | AB84: 0 | AC84: 0 | AD84: 0 | AE84: 0 | AF84: 0 | AG84: 0 | AH84: 0 | AI84: 0 | AJ84: 0 | AK84: 0 | AL84: 0 | AM84: 0 | AN84: 0 | AO84: 0 | AP84: 0 | AQ84: 0 | AR84: 0 | AS84: 246 | AT84: 0 | AU84: 0 | AV84: 0 | AW84: 0 | AX84: 0 | AY84: 0 | AZ84: 0 | BA84: 0 | BB84: 0 | BC84: 0 | BD84: =HYPERLINK("http://www.openstreetmap.org/?mlat=34.1421&mlon=42.3736&zoom=12#map=12/34.1421/42.3736","Maplink1") -> Maplink1 | BE84: =HYPERLINK("https://www.google.iq/maps/search/+34.1421,42.3736/@34.1421,42.3736,14z?hl=en","Maplink2") -> Maplink2 | BF84: =HYPERLINK("http://www.bing.com/maps/?lvl=14&sty=h&cp=34.1421~42.3736&sp=point.34.1421_42.3736","Maplink3") -> Maplink3
A85: 23811 | B85: Al-Anbar | C85: Haditha | D85: Barwana | E85: Hay Barwanah Al Gharbiyah | F85: حي بروانه غربيه | G85: 34.10520359 | H85: 42.39020455 | I85: 20 | J85: 120 | K85: 0 | L85: 0 | M85: 0 | N85: 0 | O85: 0 | P85: 0 | Q85: 120 | R85: 0 | S85: 0 | T85: 0 | U85: 0 | V85: 0 | W85: 0 | X85: 0 | Y85: 0 | Z85: 78 | AA85: 0 | AB85: 0 | AC85: 0 | AD85: 0 | AE85: 0 | AF85: 0 | AG85: 0 | AH85: 0 | AI85: 0 | AJ85: 0 | AK85: 0 | AL85: 0 | AM85: 0 | AN85: 42 | AO85: 0 | AP85: 0 | AQ85: 0 | AR85: 0 | AS85: 0 | AT85: 0 | AU85: 120 | AV85: 0 | AW85: 0 | AX85: 0 | AY85: 0 | AZ85: 0 | BA85: 0 | BB85: 0 | BC85: 0 | BD85: =HYPERLINK("http://www.openstreetmap.org/?mlat=34.1052&mlon=42.3902&zoom=12#map=12/34.1052/42.3902","Maplink1") -> Maplink1 | BE85: =HYPERLINK("https://www.google.iq/maps/search/+34.1052,42.3902/@34.1052,42.3902,14z?hl=en","Maplink2") -> Maplink2 | BF85: =HYPERLINK("http://www.bing.com/maps/?lvl=14&sty=h&cp=34.1052~42.3902&sp=point.34.1052_42.3902","Maplink3") -> Maplink3
A86: 236 | B86: Al-Anbar | C86: Haditha | D86: Barwana | E86: Hay Al Saray | F86: حي السراي | G86: 34.14146603 | H86: 42.37947003 | I86: 7 | J86: 42 | K86: 0 | L86: 0 | M86: 0 | N86: 0 | O86: 0 | P86: 0 | Q86: 42 | R86: 0 | S86: 0 | T86: 0 | U86: 0 | V86: 0 | W86: 0 | X86: 0 | Y86: 0 | Z86: 42 | AA86: 0 | AB86: 0 | AC86: 0 | AD86: 0 | AE86: 0 | AF86: 0 | AG86: 0 | AH86: 0 | AI86: 0 | AJ86: 0 | AK86: 0 | AL86: 0 | AM86: 0 | AN86: 0 | AO86: 0 | AP86: 0 | AQ86: 0 | AR86: 0 | AS86: 42 | AT86: 0 | AU86: 0 | AV86: 0 | AW86: 0 | AX86: 0 | AY86: 0 | AZ86: 0 | BA86: 0 | BB86: 0 | BC86: 0 | BD86: =HYPERLINK("http://www.openstreetmap.org/?mlat=34.1415&mlon=42.3795&zoom=12#map=12/34.1415/42.3795","Maplink1") -> Maplink1 | BE86: =HYPERLINK("https://www.google.iq/maps/search/+34.1415,42.3795/@34.1415,42.3795,14z?hl=en","Maplink2") -> Maplink2 | BF86: =HYPERLINK("http://www.bing.com/maps/?lvl=14&sty=h&cp=34.1415~42.3795&sp=point.34.1415_42.3795","Maplink3") -> Maplink3
A87: 23813 | B87: Al-Anbar | C87: Haditha | D87: Barwana | E87: Hay Al Shuhadaa | F87: حي الشهداء | G87: 34.0930789 | H87: 42.38991793 | I87: 5 | J87: 30 | K87: 0 | L87: 0 | M87: 0 | N87: 0 | O87: 0 | P87: 0 | Q87: 30 | R87: 0 | S87: 0 | T87: 0 | U87: 0 | V87: 0 | W87: 0 | X87: 0 | Y87: 0 | Z87: 24 | AA87: 0 | AB87: 0 | AC87: 0 | AD87: 0 | AE87: 0 | AF87: 0 | AG87: 0 | AH87: 0 | AI87: 0 | AJ87: 0 | AK87: 0 | AL87: 0 | AM87: 0 | AN87: 6 | AO87: 0 | AP87: 0 | AQ87: 0 | AR87: 0 | AS87: 0 | AT87: 0 | AU87: 30 | AV87: 0 | AW87: 0 | AX87: 0 | AY87: 0 | AZ87: 0 | BA87: 0 | BB87: 0 | BC87: 0 | BD87: =HYPERLINK("http://www.openstreetmap.org/?mlat=34.0931&mlon=42.3899&zoom=12#map=12/34.0931/42.3899","Maplink1") -> Maplink1 | BE87: =HYPERLINK("https://www.google.iq/maps/search/+34.0931,42.3899/@34.0931,42.3899,14z?hl=en","Maplink2") -> Maplink2 | BF87: =HYPERLINK("http://www.bing.com/maps/?lvl=14&sty=h&cp=34.0931~42.3899&sp=point.34.0931_42.3899","Maplink3") -> Maplink3
A88: 241 | B88: Al-Anbar | C88: Haditha | D88: Barwana | E88: Hay Al Shurta | F88: حي الشرطة | G88: 34.10453095 | H88: 42.37396045 | I88: 11 | J88: 66 | K88: 0 | L88: 0 | M88: 0 | N88: 0 | O88: 0 | P88: 0 | Q88: 66 | R88: 0 | S88: 0 | T88: 0 | U88: 0 | V88: 0 | W88: 0 | X88: 0 | Y88: 0 | Z88: 42 | AA88: 0 | AB88: 0 | AC88: 0 | AD88: 0 | AE88: 0 | AF88: 0 | AG88: 0 | AH88: 0 | AI88: 0 | AJ88: 0 | AK88: 0 | AL88: 0 | AM88: 0 | AN88: 24 | AO88: 0 | AP88: 0 | AQ88: 0 | AR88: 0 | AS88: 66 | AT88: 0 | AU88: 0 | AV88: 0 | AW88: 0 | AX88: 0 | AY88: 0 | AZ88: 0 | BA88: 0 | BB88: 0 | BC88: 0 | BD88: =HYPERLINK("http://www.openstreetmap.org/?mlat=34.1045&mlon=42.374&zoom=12#map=12/34.1045/42.374","Maplink1") -> Maplink1 | BE88: =HYPERLINK("https://www.google.iq/maps/search/+34.1045,42.374/@34.1045,42.374,14z?hl=en","Maplink2") -> Maplink2 | BF88: =HYPERLINK("http://www.bing.com/maps/?lvl=14&sty=h&cp=34.1045~42.374&sp=point.34.1045_42.374","Maplink3") -> Maplink3
A89: 24315 | B89: Al-Anbar | C89: Haditha | D89: Barwana | E89: Hay Al Rahman | F89: حي الرحمن | G89: 34.100625 | H89: 42.38768178 | I89: 5 | J89: 30 | K89: 0 | L89: 0 | M89: 0 | N89: 0 | O89: 0 | P89: 0 | Q89: 30 | R89: 0 | S89: 0 | T89: 0 | U89: 0 | V89: 0 | W89: 0 | X89: 0 | Y89: 0 | Z89: 12 | AA89: 0 | AB89: 0 | AC89: 0 | AD89: 0 | AE89: 0 | AF89: 0 | AG89: 0 | AH89: 0 | AI89: 0 | AJ89: 0 | AK89: 0 | AL89: 0 | AM89: 0 | AN89: 18 | AO89: 0 | AP89: 0 | AQ89: 0 | AR89: 0 | AS89: 0 | AT89: 0 | AU89: 30 | AV89: 0 | AW89: 0 | AX89: 0 | AY89: 0 | AZ89: 0 | BA89: 0 | BB89: 0 | BC89: 0 | BD89: =HYPERLINK("http://www.openstreetmap.org/?mlat=34.1006&mlon=42.3877&zoom=12#map=12/34.1006/42.3877","Maplink1") -> Maplink1 | BE89: =HYPERLINK("https://www.google.iq/maps/search/+34.1006,42.3877/@34.1006,42.3877,14z?hl=en","Maplink2") -> Maplink2 | BF89: =HYPERLINK("http://www.bing.com/maps/?lvl=14&sty=h&cp=34.1006~42.3877&sp=point.34.1006_42.3877","Maplink3") -> Maplink3
A90: 23819 | B90: Al-Anbar | C90: Haditha | D90: Barwana | E90: Hay Al Haqlaniyah Qadim | F90: حي حقلانية القديمة | G90: 34.08674866 | H90: 42.36835937 | I90: 8 | J90: 48 | K90: 0 | L90: 0 | M90: 0 | N90: 0 | O90: 0 | P90: 0 | Q90: 48 | R90: 0 | S90: 0 | T90: 0 | U90: 0 | V90: 0 | W90: 0 | X90: 0 | Y90: 0 | Z90: 42 | AA90: 0 | AB90: 0 | AC90: 0 | AD90: 0 | AE90: 0 | AF90: 0 | AG90: 0 | AH90: 0 | AI90: 0 | AJ90: 0 | AK90: 0 | AL90: 0 | AM90: 0 | AN90: 6 | AO90: 0 | AP90: 0 | AQ90: 0 | AR90: 0 | AS90: 48 | AT90: 0 | AU90: 0 | AV90: 0 | AW90: 0 | AX90: 0 | AY90: 0 | AZ90: 0 | BA90: 0 | BB90: 0 | BC90: 0 | BD90: =HYPERLINK("http://www.openstreetmap.org/?mlat=34.0867&mlon=42.3684&zoom=12#map=12/34.0867/42.3684","Maplink1") -> Maplink1 | BE90: =HYPERLINK("https://www.google.iq/maps/search/+34.0867,42.3684/@34.0867,42.3684,14z?hl=en","Maplink2") -> Maplink2 | BF90: =HYPERLINK("http://www.bing.com/maps/?lvl=14&sty=h&cp=34.0867~42.3684&sp=point.34.0867_42.3684","Maplink3") -> Maplink3
A91: 23808 | B91: Al-Anbar | C91: Haditha | D91: Barwana | E91: Hay Al-Thamaniya | F91: حي الثمانية | G91: 34.14903983 | H91: 42.38131025 | I91: 5 | J91: 30 | K91: 0 | L91: 0 | M91: 0 | N91: 0 | O91: 0 | P91: 0 | Q91: 30 | R91: 0 | S91: 0 | T91: 0 | U91: 0 | V91: 0 | W91: 0 | X91: 0 | Y91: 0 | Z91: 30 | AA91: 0 | AB91: 0 | AC91: 0 | AD91: 0 | AE91: 0 | AF91: 0 | AG91: 0 | AH91: 0 | AI91: 0 | AJ91: 0 | AK91: 0 | AL91: 0 | AM91: 0 | AN91: 0 | AO91: 0 | AP91: 0 | AQ91: 0 | AR91: 0 | AS91: 30 | AT91: 0 | AU91: 0 | AV91: 0 | AW91: 0 | AX91: 0 | AY91: 0 | AZ91: 0 | BA91: 0 | BB91: 0 | BC91: 0 | BD91: =HYPERLINK("http://www.openstreetmap.org/?mlat=34.149&mlon=42.3813&zoom=12#map=12/34.149/42.3813","Maplink1") -> Maplink1 | BE91: =HYPERLINK("https://www.google.iq/maps/search/+34.149,42.3813/@34.149,42.3813,14z?hl=en","Maplink2") -> Maplink2 | BF91: =HYPERLINK("http://www.bing.com/maps/?lvl=14&sty=h&cp=34.149~42.3813&sp=point.34.149_42.3813","Maplink3") -> Maplink3
A92: 23812 | B92: Al-Anbar | C92: Haditha | D92: Barwana | E92: Hay Ibn Bittar | F92: حي ابن بيطار | G92: 34.08395051 | H92: 42.38297156 | I92: 12 | J92: 72 | K92: 0 | L92: 0 | M92: 0 | N92: 0 | O92: 0 | P92: 0 | Q92: 72 | R92: 0 | S92: 0 | T92: 0 | U92: 0 | V92: 0 | W92: 0 | X92: 0 | Y92: 0 | Z92: 18 | AA92: 0 | AB92: 0 | AC92: 0 | AD92: 0 | AE92: 0 | AF92: 0 | AG92: 0 | AH92: 12 | AI92: 0 | AJ92: 0 | AK92: 0 | AL92: 6 | AM92: 0 | AN92: 36 | AO92: 0 | AP92: 0 | AQ92: 0 | AR92: 0 | AS92: 6 | AT92: 0 | AU92: 66 | AV92: 0 | AW92: 0 | AX92: 0 | AY92: 0 | AZ92: 0 | BA92: 0 | BB92: 0 | BC92: 0 | BD92: =HYPERLINK("http://www.openstreetmap.org/?mlat=34.084&mlon=42.383&zoom=12#map=12/34.084/42.383","Maplink1") -> Maplink1 | BE92: =HYPERLINK("https://www.google.iq/maps/search/+34.084,42.383/@34.084,42.383,14z?hl=en","Maplink2") -> Maplink2 | BF92: =HYPERLINK("http://www.bing.com/maps/?lvl=14&sty=h&cp=34.084~42.383&sp=point.34.084_42.383","Maplink3") -> Maplink3
A93: 79 | B93: Al-Anbar | C93: Haditha | D93: Barwana | E93: Hay Al-Subhani | F93: حي السبحاني | G93: 34.11596215 | H93: 42.38439105 | I93: 23 | J93: 138 | K93: 0 | L93: 0 | M93: 0 | N93: 0 | O93: 0 | P93: 0 | Q93: 138 | R93: 0 | S93: 0 | T93: 0 | U93: 0 | V93: 0 | W93: 0 | X93: 0 | Y93: 0 | Z93: 138 | AA93: 0 | AB93: 0 | AC93: 0 | AD93: 0 | AE93: 0 | AF93: 0 | AG93: 0 | AH93: 0 | AI93: 0 | AJ93: 0 | AK93: 0 | AL93: 0 | AM93: 0 | AN93: 0 | AO93: 0 | AP93: 0 | AQ93: 0 | AR93: 0 | AS93: 138 | AT93: 0 | AU93: 0 | AV93: 0 | AW93: 0 | AX93: 0 | AY93: 0 | AZ93: 0 | BA93: 0 | BB93: 0 | BC93: 0 | BD93: =HYPERLINK("http://www.openstreetmap.org/?mlat=34.116&mlon=42.3844&zoom=12#map=12/34.116/42.3844","Maplink1") -> Maplink1 | BE93: =HYPERLINK("https://www.google.iq/maps/search/+34.116,42.3844/@34.116,42.3844,14z?hl=en","Maplink2") -> Maplink2 | BF93: =HYPERLINK("http://www.bing.com/maps/?lvl=14&sty=h&cp=34.116~42.3844&sp=point.34.116_42.3844","Maplink3") -> Maplink3
A94: 21408 | B94: Al-Anbar | C94: Heet | D94: Al-Baghdady | E94: Hay Al-Quds | F94: القدس | G94: 33.8777732 | H94: 42.5295779 | I94: 4 | J94: 24 | K94: 0 | L94: 0 | M94: 0 | N94: 0 | O94: 0 | P94: 0 | Q94: 24 | R94: 0 | S94: 0 | T94: 0 | U94: 0 | V94: 0 | W94: 0 | X94: 0 | Y94: 0 | Z94: 12 | AA94: 0 | AB94: 0 | AC94: 0 | AD94: 0 | AE94: 6 | AF94: 0 | AG94: 0 | AH94: 6 | AI94: 0 | AJ94: 0 | AK94: 0 | AL94: 0 | AM94: 0 | AN94: 0 | AO94: 0 | AP94: 0 | AQ94: 0 | AR94: 0 | AS94: 0 | AT94: 0 | AU94: 0 | AV94: 6 | AW94: 6 | AX94: 0 | AY94: 0 | AZ94: 0 | BA94: 12 | BB94: 0 | BC94: 0 | BD94: =HYPERLINK("http://www.openstreetmap.org/?mlat=33.8778&mlon=42.5296&zoom=12#map=12/33.8778/42.5296","Maplink1") -> Maplink1 | BE94: =HYPERLINK("https://www.google.iq/maps/search/+33.8778,42.5296/@33.8778,42.5296,14z?hl=en","Maplink2") -> Maplink2 | BF94: =HYPERLINK("http://www.bing.com/maps/?lvl=14&sty=h&cp=33.8778~42.5296&sp=point.33.8778_42.5296","Maplink3") -> Maplink3
A95: 136 | B95: Al-Anbar | C95: Heet | D95: Al-Baghdady | E95: Al-shuhdaa | F95: الشهداء | G95: 33.8888209 | H95: 42.5233638 | I95: 3 | J95: 18 | K95: 0 | L95: 0 | M95: 0 | N95: 0 | O95: 0 | P95: 0 | Q95: 18 | R95: 0 | S95: 0 | T95: 0 | U95: 0 | V95: 0 | W95: 0 | X95: 0 | Y95: 0 | Z95: 18 | AA95: 0 | AB95: 0 | AC95: 0 | AD95: 0 | AE95: 0 | AF95: 0 | AG95: 0 | AH95: 0 | AI95: 0 | AJ95: 0 | AK95: 0 | AL95: 0 | AM95: 0 | AN95: 0 | AO95: 0 | AP95: 0 | AQ95: 0 | AR95: 0 | AS95: 0 | AT95: 0 | AU95: 0 | AV95: 0 | AW95: 18 | AX95: 0 | AY95: 0 | AZ95: 0 | BA95: 0 | BB95: 0 | BC95: 0 | BD95: =HYPERLINK("http://www.openstreetmap.org/?mlat=33.8888&mlon=42.5234&zoom=12#map=12/33.8888/42.5234","Maplink1") -> Maplink1 | BE95: =HYPERLINK("https://www.google.iq/maps/search/+33.8888,42.5234/@33.8888,42.5234,14z?hl=en","Maplink2") -> Maplink2 | BF95: =HYPERLINK("http://www.bing.com/maps/?lvl=14&sty=h&cp=33.8888~42.5234&sp=point.33.8888_42.5234","Maplink3") -> Maplink3
A96: 21323 | B96: Al-Anbar | C96: Heet | D96: Al-Baghdady | E96: Al-Mujama Al-Sakani | F96: الحي السكني | G96: 33.9220136 | H96: 42.5240107 | I96: 4 | J96: 24 | K96: 0 | L96: 0 | M96: 0 | N96: 0 | O96: 0 | P96: 0 | Q96: 24 | R96: 0 | S96: 0 | T96: 0 | U96: 0 | V96: 0 | W96: 0 | X96: 0 | Y96: 0 | Z96: 24 | AA96: 0 | AB96: 0 | AC96: 0 | AD96: 0 | AE96: 0 | AF96: 0 | AG96: 0 | AH96: 0 | AI96: 0 | AJ96: 0 | AK96: 0 | AL96: 0 | AM96: 0 | AN96: 0 | AO96: 0 | AP96: 0 | AQ96: 0 | AR96: 0 | AS96: 0 | AT96: 0 | AU96: 18 | AV96: 0 | AW96: 0 | AX96: 6 | AY96: 0 | AZ96: 0 | BA96: 0 | BB96: 0 | BC96: 0 | BD96: =HYPERLINK("http://www.openstreetmap.org/?mlat=33.922&mlon=42.524&zoom=12#map=12/33.922/42.524","Maplink1") -> Maplink1 | BE96: =HYPERLINK("https://www.google.iq/maps/search/+33.922,42.524/@33.922,42.524,14z?hl=en","Maplink2") -> Maplink2 | BF96: =HYPERLINK("http://www.bing.com/maps/?lvl=14&sty=h&cp=33.922~42.524&sp=point.33.922_42.524","Maplink3") -> Maplink3
A97: 21469 | B97: Al-Anbar | C97: Heet | D97: Al-Baghdady | E97: Hay Al Salam | F97: السلام | G97: 33.8439322 | H97: 42.5561587 | I97: 8 | J97: 48 | K97: 0 | L97: 0 | M97: 0 | N97: 0 | O97: 0 | P97: 0 | Q97: 48 | R97: 0 | S97: 0 | T97: 0 | U97: 0 | V97: 0 | W97: 0 | X97: 0 | Y97: 0 | Z97: 42 | AA97: 0 | AB97: 0 | AC97: 0 | AD97: 0 | AE97: 0 | AF97: 0 | AG97: 0 | AH97: 0 | AI97: 0 | AJ97: 0 | AK97: 0 | AL97: 0 | AM97: 0 | AN97: 6 | AO97: 0 | AP97: 0 | AQ97: 0 | AR97: 6 | AS97: 0 | AT97: 0 | AU97: 24 | AV97: 0 | AW97: 18 | AX97: 0 | AY97: 0 | AZ97: 0 | BA97: 0 | BB97: 0 | BC97: 0 | BD97: =HYPERLINK("http://www.openstreetmap.org/?mlat=33.8439&mlon=42.5562&zoom=12#map=12/33.8439/42.5562","Maplink1") -> Maplink1 | BE97: =HYPERLINK("https://www.google.iq/maps/search/+33.8439,42.5562/@33.8439,42.5562,14z?hl=en","Maplink2") -> Maplink2 | BF97: =HYPERLINK("http://www.bing.com/maps/?lvl=14&sty=h&cp=33.8439~42.5562&sp=point.33.8439_42.5562","Maplink3") -> Maplink3
A98: 23890 | B98: Al-Anbar | C98: Heet | D98: Al-Baghdady | E98: Al-Mashhad | F98: المشهد | G98: 33.8746847 | H98: 42.5213031 | I98: 1 | J98: 6 | K98: 0 | L98: 0 | M98: 0 | N98: 0 | O98: 0 | P98: 0 | Q98: 6 | R98: 0 | S98: 0 | T98: 0 | U98: 0 | V98: 0 | W98: 0 | X98: 0 | Y98: 0 | Z98: 6 | AA98: 0 | AB98: 0 | AC98: 0 | AD98: 0 | AE98: 0 | AF98: 0 | AG98: 0 | AH98: 0 | AI98: 0 | AJ98: 0 | AK98: 0 | AL98: 0 | AM98: 0 | AN98: 0 | AO98: 0 | AP98: 0 | AQ98: 0 | AR98: 0 | AS98: 0 | AT98: 0 | AU98: 0 | AV98: 0 | AW98: 0 | AX98: 6 | AY98: 0 | AZ98: 0 | BA98: 0 | BB98: 0 | BC98: 0 | BD98: =HYPERLINK("http://www.openstreetmap.org/?mlat=33.8747&mlon=42.5213&zoom=12#map=12/33.8747/42.5213","Maplink1") -> Maplink1 | BE98: =HYPERLINK("https://www.google.iq/maps/search/+33.8747,42.5213/@33.8747,42.5213,14z?hl=en","Maplink2") -> Maplink2 | BF98: =HYPERLINK("http://www.bing.com/maps/?lvl=14&sty=h&cp=33.8747~42.5213&sp=point.33.8747_42.5213","Maplink3") -> Maplink3
A99: 34002 | B99: Al-Anbar | C99: Heet | D99: Al-Baghdady | E99: Al-shuhdaa 1 | F99: الشهداء الاولى | G99: 33.8824866 | H99: 42.526058 | I99: 28 | J99: 168 | K99: 0 | L99: 0 | M99: 0 | N99: 0 | O99: 0 | P99: 0 | Q99: 168 | R99: 0 | S99: 0 | T99: 0 | U99: 0 | V99: 0 | W99: 0 | X99: 0 | Y99: 0 | Z99: 162 | AA99: 0 | AB99: 0 | AC99: 0 | AD99: 0 | AE99: 0 | AF99: 0 | AG99: 0 | AH99: 6 | AI99: 0 | AJ99: 0 | AK99: 0 | AL99: 0 | AM99: 0 | AN99: 0 | AO99: 0 | AP99: 0 | AQ99: 0 | AR99: 0 | AS99: 0 | AT99: 0 | AU99: 30 | AV99: 132 | AW99: 0 | AX99: 6 | AY99: 0 | AZ99: 0 | BA99: 0 | BB99: 0 | BC99: 0 | BD99: =HYPERLINK("http://www.openstreetmap.org/?mlat=33.8825&mlon=42.5261&zoom=12#map=12/33.8825/42.5261","Maplink1") -> Maplink1 | BE99: =HYPERLINK("https://www.google.iq/maps/search/+33.8825,42.5261/@33.8825,42.5261,14z?hl=en","Maplink2") -> Maplink2 | BF99: =HYPERLINK("http://www.bing.com/maps/?lvl=14&sty=h&cp=33.8825~42.5261&sp=point.33.8825_42.5261","Maplink3") -> Maplink3
A100: 152 | B100: Al-Anbar | C100: Heet | D100: Al-Forat | E100: Al Muhamdee | F100: المحمدي | G100: 33.5509502 | H100: 42.9018178 | I100: 28 | J100: 168 | K100: 0 | L100: 0 | M100: 0 | N100: 0 | O100: 0 | P100: 0 | Q100: 168 | R100: 0 | S100: 0 | T100: 0 | U100: 0 | V100: 0 | W100: 0 | X100: 0 | Y100: 0 | Z100: 168 | AA100: 0 | AB100: 0 | AC100: 0 | AD100: 0 | AE100: 0 | AF100: 0 | AG100: 0 | AH100: 0 | AI100: 0 | AJ100: 0 | AK100: 0 | AL100: 0 | AM100: 0 | AN100: 0 | AO100: 0 | AP100: 0 | AQ100: 0 | AR100: 30 | AS100: 0 | AT100: 0 | AU100: 0 | AV100: 0 | AW100: 0 | AX100: 0 | AY100: 138 | AZ100: 0 | BA100: 0 | BB100: 0 | BC100: 0 | BD100: =HYPERLINK("http://www.openstreetmap.org/?mlat=33.551&mlon=42.9018&zoom=12#map=12/33.551/42.9018","Maplink1") -> Maplink1 | BE100: =HYPERLINK("https://www.google.iq/maps/search/+33.551,42.9018/@33.551,42.9018,14z?hl=en","Maplink2") -> Maplink2 | BF100: =HYPERLINK("http://www.bing.com/maps/?lvl=14&sty=h&cp=33.551~42.9018&sp=point.33.551_42.9018","Maplink3") -> Maplink3
A101: 29535 | B101: Al-Anbar | C101: Heet | D101: Kubaisa | E101: Hay Al-Askari | F101: الحي العسكري | G101: 33.5881136 | H101: 42.6157354 | I101: 6 | J101: 36 | K101: 0 | L101: 0 | M101: 0 | N101: 0 | O101: 0 | P101: 0 | Q101: 36 | R101: 0 | S101: 0 | T101: 0 | U101: 0 | V101: 0 | W101: 0 | X101: 0 | Y101: 0 | Z101: 36 | AA101: 0 | AB101: 0 | AC101: 0 | AD101: 0 | AE101: 0 | AF101: 0 | AG101: 0 | AH101: 0 | AI101: 0 | AJ101: 0 | AK101: 0 | AL101: 0 | AM101: 0 | AN101: 0 | AO101: 0 | AP101: 0 | AQ101: 0 | AR101: 0 | AS101: 0 | AT101: 0 | AU101: 36 | AV101: 0 | AW101: 0 | AX101: 0 | AY101: 0 | AZ101: 0 | BA101: 0 | BB101: 0 | BC101: 0 | BD101: =HYPERLINK("http://www.openstreetmap.org/?mlat=33.5881&mlon=42.6157&zoom=12#map=12/33.5881/42.6157","Maplink1") -> Maplink1 | BE101: =HYPERLINK("https://www.google.iq/maps/search/+33.5881,42.6157/@33.5881,42.6157,14z?hl=en","Maplink2") -> Maplink2 | BF101: =HYPERLINK("http://www.bing.com/maps/?lvl=14&sty=h&cp=33.5881~42.6157&sp=point.33.5881_42.6157","Maplink3") -> Maplink3
A102: 23838 | B102: Al-Anbar | C102: Heet | D102: Kubaisa | E102: Hay Al Farouq | F102: حي الفاروق | G102: 33.5910779 | H102: 42.6223471 | I102: 1 | J102: 6 | K102: 0 | L102: 0 | M102: 0 | N102: 0 | O102: 0 | P102: 0 | Q102: 6 | R102: 0 | S102: 0 | T102: 0 | U102: 0 | V102: 0 | W102: 0 | X102: 0 | Y102: 0 | Z102: 6 | AA102: 0 | AB102: 0 | AC102: 0 | AD102: 0 | AE102: 0 | AF102: 0 | AG102: 0 | AH102: 0 | AI102: 0 | AJ102: 0 | AK102: 0 | AL102: 0 | AM102: 0 | AN102: 0 | AO102: 0 | AP102: 0 | AQ102: 0 | AR102: 0 | AS102: 0 | AT102: 0 | AU102: 6 | AV102: 0 | AW102: 0 | AX102: 0 | AY102: 0 | AZ102: 0 | BA102: 0 | BB102: 0 | BC102: 0 | BD102: =HYPERLINK("http://www.openstreetmap.org/?mlat=33.5911&mlon=42.6223&zoom=12#map=12/33.5911/42.6223","Maplink1") -> Maplink1 | BE102: =HYPERLINK("https://www.google.iq/maps/search/+33.5911,42.6223/@33.5911,42.6223,14z?hl=en","Maplink2") -> Maplink2 | BF102: =HYPERLINK("http://www.bing.com/maps/?lvl=14&sty=h&cp=33.5911~42.6223&sp=point.33.5911_42.6223","Maplink3") -> Maplink3
A103: 5 | B103: Al-Anbar | C103: Heet | D103: Kubaisa | E103: Kubaisa Al-qadimah | F103: كبيسة القديمة | G103: 33.59211 | H103: 42.6105 | I103: 6 | J103: 36 | K103: 0 | L103: 0 | M103: 0 | N103: 0 | O103: 0 | P103: 0 | Q103: 36 | R103: 0 | S103: 0 | T103: 0 | U103: 0 | V103: 0 | W103: 0 | X103: 0 | Y103: 0 | Z103: 30 | AA103: 0 | AB103: 6 | AC103: 0 | AD103: 0 | AE103: 0 | AF103: 0 | AG103: 0 | AH103: 0 | AI103: 0 | AJ103: 0 | AK103: 0 | AL103: 0 | AM103: 0 | AN103: 0 | AO103: 0 | AP103: 0 | AQ103: 0 | AR103: 0 | AS103: 0 | AT103: 0 | AU103: 36 | AV103: 0 | AW103: 0 | AX103: 0 | AY103: 0 | AZ103: 0 | BA103: 0 | BB103: 0 | BC103: 0 | BD103: =HYPERLINK("http://www.openstreetmap.org/?mlat=33.5921&mlon=42.6105&zoom=12#map=12/33.5921/42.6105","Maplink1") -> Maplink1 | BE103: =HYPERLINK("https://www.google.iq/maps/search/+33.5921,42.6105/@33.5921,42.6105,14z?hl=en","Maplink2") -> Maplink2 | BF103: =HYPERLINK("http://www.bing.com/maps/?lvl=14&sty=h&cp=33.5921~42.6105&sp=point.33.5921_42.6105","Maplink3") -> Maplink3
A104: 33956 | B104: Al-Anbar | C104: Heet | D104: Kubaisa | E104: Albuhamd | F104: البو حمد | G104: 33.5950695 | H104: 42.6083001 | I104: 2 | J104: 12 | K104: 0 | L104: 0 | M104: 0 | N104: 0 | O104: 0 | P104: 0 | Q104: 12 | R104: 0 | S104: 0 | T104: 0 | U104: 0 | V104: 0 | W104: 0 | X104: 0 | Y104: 0 | Z104: 12 | AA104: 0 | AB104: 0 | AC104: 0 | AD104: 0 | AE104: 0 | AF104: 0 | AG104: 0 | AH104: 0 | AI104: 0 | AJ104: 0 | AK104: 0 | AL104: 0 | AM104: 0 | AN104: 0 | AO104: 0 | AP104: 0 | AQ104: 0 | AR104: 0 | AS104: 0 | AT104: 0 | AU104: 12 | AV104: 0 | AW104: 0 | AX104: 0 | AY104: 0 | AZ104: 0 | BA104: 0 | BB104: 0 | BC104: 0 | BD104: =HYPERLINK("http://www.openstreetmap.org/?mlat=33.5951&mlon=42.6083&zoom=12#map=12/33.5951/42.6083","Maplink1") -> Maplink1 | BE104: =HYPERLINK("https://www.google.iq/maps/search/+33.5951,42.6083/@33.5951,42.6083,14z?hl=en","Maplink2") -> Maplink2 | BF104: =HYPERLINK("http://www.bing.com/maps/?lvl=14&sty=h&cp=33.5951~42.6083&sp=point.33.5951_42.6083","Maplink3") -> Maplink3
A105: 24724 | B105: Al-Anbar | C105: Heet | D105: Markaz Heet | E105: Al dawarah Al Gharbiyah | F105: الدوارة الغربية | G105: 33.6395497 | H105: 42.8309288 | I105: 3 | J105: 18 | K105: 0 | L105: 0 | M105: 0 | N105: 0 | O105: 0 | P105: 0 | Q105: 18 | R105: 0 | S105: 0 | T105: 0 | U105: 0 | V105: 0 | W105: 0 | X105: 0 | Y105: 0 | Z105: 18 | AA105: 0 | AB105: 0 | AC105: 0 | AD105: 0 | AE105: 0 | AF105: 0 | AG105: 0 | AH105: 0 | AI105: 0 | AJ105: 0 | AK105: 0 | AL105: 0 | AM105: 0 | AN105: 0 | AO105: 0 | AP105: 0 | AQ105: 0 | AR105: 0 | AS105: 0 | AT105: 0 | AU105: 0 | AV105: 0 | AW105: 18 | AX105: 0 | AY105: 0 | AZ105: 0 | BA105: 0 | BB105: 0 | BC105: 0 | BD105: =HYPERLINK("http://www.openstreetmap.org/?mlat=33.6395&mlon=42.8309&zoom=12#map=12/33.6395/42.8309","Maplink1") -> Maplink1 | BE105: =HYPERLINK("https://www.google.iq/maps/search/+33.6395,42.8309/@33.6395,42.8309,14z?hl=en","Maplink2") -> Maplink2 | BF105: =HYPERLINK("http://www.bing.com/maps/?lvl=14&sty=h&cp=33.6395~42.8309&sp=point.33.6395_42.8309","Maplink3") -> Maplink3
A106: 21264 | B106: Al-Anbar | C106: Heet | D106: Markaz Heet | E106: Basair | F106: البصائر | G106: 33.6527316 | H106: 42.8084941 | I106: 2 | J106: 12 | K106: 0 | L106: 12 | M106: 0 | N106: 0 | O106: 0 | P106: 0 | Q106: 12 | R106: 0 | S106: 0 | T106: 0 | U106: 0 | V106: 0 | W106: 0 | X106: 0 | Y106: 0 | Z106: 12 | AA106: 0 | AB106: 0 | AC106: 0 | AD106: 0 | AE106: 0 | AF106: 0 | AG106: 0 | AH106: 0 | AI106: 0 | AJ106: 0 | AK106: 0 | AL106: 0 | AM106: 0 | AN106: 0 | AO106: 0 | AP106: 0 | AQ106: 0 | AR106: 0 | AS106: 0 | AT106: 0 | AU106: 12 | AV106: 0 | AW106: 0 | AX106: 0 | AY106: 0 | AZ106: 0 | BA106: 0 | BB106: 0 | BC106: 0 | BD106: =HYPERLINK("http://www.openstreetmap.org/?mlat=33.6527&mlon=42.8085&zoom=12#map=12/33.6527/42.8085","Maplink1") -> Maplink1 | BE106: =HYPERLINK("https://www.google.iq/maps/search/+33.6527,42.8085/@33.6527,42.8085,14z?hl=en","Maplink2") -> Maplink2 | BF106: =HYPERLINK("http://www.bing.com/maps/?lvl=14&sty=h&cp=33.6527~42.8085&sp=point.33.6527_42.8085","Maplink3") -> Maplink3
A107: 21231 | B107: Al-Anbar | C107: Heet | D107: Markaz Heet | E107: Hay Al-Qadisiyah | F107: القادسية | G107: 33.6367959 | H107: 42.835274 | I107: 2 | J107: 12 | K107: 0 | L107: 0 | M107: 0 | N107: 0 | O107: 0 | P107: 0 | Q107: 12 | R107: 0 | S107: 0 | T107: 0 | U107: 0 | V107: 0 | W107: 0 | X107: 0 | Y107: 0 | Z107: 12 | AA107: 0 | AB107: 0 | AC107: 0 | AD107: 0 | AE107: 0 | AF107: 0 | AG107: 0 | AH107: 0 | AI107: 0 | AJ107: 0 | AK107: 0 | AL107: 0 | AM107: 0 | AN107: 0 | AO107: 0 | AP107: 0 | AQ107: 0 | AR107: 0 | AS107: 0 | AT107: 0 | AU107: 0 | AV107: 12 | AW107: 0 | AX107: 0 | AY107: 0 | AZ107: 0 | BA107: 0 | BB107: 0 | BC107: 0 | BD107: =HYPERLINK("http://www.openstreetmap.org/?mlat=33.6368&mlon=42.8353&zoom=12#map=12/33.6368/42.8353","Maplink1") -> Maplink1 | BE107: =HYPERLINK("https://www.google.iq/maps/search/+33.6368,42.8353/@33.6368,42.8353,14z?hl=en","Maplink2") -> Maplink2 | BF107: =HYPERLINK("http://www.bing.com/maps/?lvl=14&sty=h&cp=33.6368~42.8353&sp=point.33.6368_42.8353","Maplink3") -> Maplink3
A108: 33822 | B108: Al-Anbar | C108: Heet | D108: Markaz Heet | E108: Hay- Amina | F108: حي أمينة | G108: 33.6505584 | H108: 42.7973219 | I108: 17 | J108: 102 | K108: 0 | L108: 0 | M108: 0 | N108: 0 | O108: 0 | P108: 0 | Q108: 102 | R108: 0 | S108: 0 | T108: 0 | U108: 0 | V108: 0 | W108: 0 | X108: 0 | Y108: 0 | Z108: 90 | AA108: 0 | AB108: 0 | AC108: 0 | AD108: 0 | AE108: 0 | AF108: 0 | AG108: 0 | AH108: 0 | AI108: 0 | AJ108: 0 | AK108: 0 | AL108: 12 | AM108: 0 | AN108: 0 | AO108: 0 | AP108: 0 | AQ108: 0 | AR108: 0 | AS108: 0 | AT108: 0 | AU108: 12 | AV108: 48 | AW108: 30 | AX108: 0 | AY108: 0 | AZ108: 0 | BA108: 12 | BB108: 0 | BC108: 0 | BD108: =HYPERLINK("http://www.openstreetmap.org/?mlat=33.6506&mlon=42.7973&zoom=12#map=12/33.6506/42.7973","Maplink1") -> Maplink1 | BE108: =HYPERLINK("https://www.google.iq/maps/search/+33.6506,42.7973/@33.6506,42.7973,14z?hl=en","Maplink2") -> Maplink2 | BF108: =HYPERLINK("http://www.bing.com/maps/?lvl=14&sty=h&cp=33.6506~42.7973&sp=point.33.6506_42.7973","Maplink3") -> Maplink3
A109: 33825 | B109: Al-Anbar | C109: Heet | D109: Markaz Heet | E109: Hay Al-Askary | F109: حي العسكري | G109: 33.6244991 | H109: 42.8278815 | I109: 11 | J109: 66 | K109: 0 | L109: 0 | M109: 0 | N109: 0 | O109: 0 | P109: 0 | Q109: 54 | R109: 12 | S109: 0 | T109: 0 | U109: 0 | V109: 0 | W109: 0 | X109: 0 | Y109: 0 | Z109: 42 | AA109: 0 | AB109: 0 | AC109: 0 | AD109: 0 | AE109: 0 | AF109: 0 | AG109: 0 | AH109: 0 | AI109: 0 | AJ109: 0 | AK109: 0 | AL109: 0 | AM109: 0 | AN109: 24 | AO109: 0 | AP109: 0 | AQ109: 0 | AR109: 0 | AS109: 0 | AT109: 0 | AU109: 0 | AV109: 42 | AW109: 24 | AX109: 0 | AY109: 0 | AZ109: 0 | BA109: 0 | BB109: 0 | BC109: 0 | BD109: =HYPERLINK("http://www.openstreetmap.org/?mlat=33.6245&mlon=42.8279&zoom=12#map=12/33.6245/42.8279","Maplink1") -> Maplink1 | BE109: =HYPERLINK("https://www.google.iq/maps/search/+33.6245,42.8279/@33.6245,42.8279,14z?hl=en","Maplink2") -> Maplink2 | BF109: =HYPERLINK("http://www.bing.com/maps/?lvl=14&sty=h&cp=33.6245~42.8279&sp=point.33.6245_42.8279","Maplink3") -> Maplink3
A110: 33950 | B110: Al-Anbar | C110: Heet | D110: Markaz Heet | E110: khazraj | F110: خزرج | G110: 33.7727886 | H110: 42.72808 | I110: 2 | J110: 12 | K110: 0 | L110: 0 | M110: 0 | N110: 0 | O110: 0 | P110: 0 | Q110: 12 | R110: 0 | S110: 0 | T110: 0 | U110: 0 | V110: 0 | W110: 0 | X110: 0 | Y110: 0 | Z110: 12 | AA110: 0 | AB110: 0 | AC110: 0 | AD110: 0 | AE110: 0 | AF110: 0 | AG110: 0 | AH110: 0 | AI110: 0 | AJ110: 0 | AK110: 0 | AL110: 0 | AM110: 0 | AN110: 0 | AO110: 0 | AP110: 0 | AQ110: 0 | AR110: 0 | AS110: 0 | AT110: 0 | AU110: 0 | AV110: 0 | AW110: 12 | AX110: 0 | AY110: 0 | AZ110: 0 | BA110: 0 | BB110: 0 | BC110: 0 | BD110: =HYPERLINK("http://www.openstreetmap.org/?mlat=33.7728&mlon=42.7281&zoom=12#map=12/33.7728/42.7281","Maplink1") -> Maplink1 | BE110: =HYPERLINK("https://www.google.iq/maps/search/+33.7728,42.7281/@33.7728,42.7281,14z?hl=en","Maplink2") -> Maplink2 | BF110: =HYPERLINK("http://www.bing.com/maps/?lvl=14&sty=h&cp=33.7728~42.7281&sp=point.33.7728_42.7281","Maplink3") -> Maplink3
A111: 23827 | B111: Al-Anbar | C111: Heet | D111: Markaz Heet | E111: Al-Qalqalah | F111: القلقة | G111: 33.64174 | H111: 42.82417 | I111: 2 | J111: 12 | K111: 0 | L111: 0 | M111: 0 | N111: 0 | O111: 0 | P111: 0 | Q111: 12 | R111: 0 | S111: 0 | T111: 0 | U111: 0 | V111: 0 | W111: 0 | X111: 0 | Y111: 0 | Z111: 12 | AA111: 0 | AB111: 0 | AC111: 0 | AD111: 0 | AE111: 0 | AF111: 0 | AG111: 0 | AH111: 0 | AI111: 0 | AJ111: 0 | AK111: 0 | AL111: 0 | AM111: 0 | AN111: 0 | AO111: 0 | AP111: 0 | AQ111: 0 | AR111: 0 | AS111: 0 | AT111: 0 | AU111: 0 | AV111: 0 | AW111: 0 | AX111: 6 | AY111: 6 | AZ111: 0 | BA111: 0 | BB111: 0 | BC111: 0 | BD111: =HYPERLINK("http://www.openstreetmap.org/?mlat=33.6417&mlon=42.8242&zoom=12#map=12/33.6417/42.8242","Maplink1") -> Maplink1 | BE111: =HYPERLINK("https://www.google.iq/maps/search/+33.6417,42.8242/@33.6417,42.8242,14z?hl=en","Maplink2") -> Maplink2 | BF111: =HYPERLINK("http://www.bing.com/maps/?lvl=14&sty=h&cp=33.6417~42.8242&sp=point.33.6417_42.8242","Maplink3") -> Maplink3
A112: 312 | B112: Al-Anbar | C112: Heet | D112: Markaz Heet | E112: Al-Ummal | F112: العمال | G112: 33.6354222 | H112: 42.8280804 | I112: 14 | J112: 84 | K112: 0 | L112: 0 | M112: 0 | N112: 0 | O112: 0 | P112: 0 | Q112: 84 | R112: 0 | S112: 0 | T112: 0 | U112: 0 | V112: 0 | W112: 0 | X112: 0 | Y112: 0 | Z112: 84 | AA112: 0 | AB112: 0 | AC112: 0 | AD112: 0 | AE112: 0 | AF112: 0 | AG112: 0 | AH112: 0 | AI112: 0 | AJ112: 0 | AK112: 0 | AL112: 0 | AM112: 0 | AN112: 0 | AO112: 0 | AP112: 0 | AQ112: 0 | AR112: 24 | AS112: 0 | AT112: 0 | AU112: 54 | AV112: 0 | AW112: 0 | AX112: 0 | AY112: 6 | AZ112: 0 | BA112: 0 | BB112: 0 | BC112: 0 | BD112: =HYPERLINK("http://www.openstreetmap.org/?mlat=33.6354&mlon=42.8281&zoom=12#map=12/33.6354/42.8281","Maplink1") -> Maplink1 | BE112: =HYPERLINK("https://www.google.iq/maps/search/+33.6354,42.8281/@33.6354,42.8281,14z?hl=en","Maplink2") -> Maplink2 | BF112: =HYPERLINK("http://www.bing.com/maps/?lvl=14&sty=h&cp=33.6354~42.8281&sp=point.33.6354_42.8281","Maplink3") -> Maplink3
A113: 33824 | B113: Al-Anbar | C113: Heet | D113: Markaz Heet | E113: Hay AL-zihoor | F113: حي الزهور | G113: 33.6290703 | H113: 42.8390802 | I113: 9 | J113: 54 | K113: 0 | L113: 0 | M113: 0 | N113: 0 | O113: 0 | P113: 0 | Q113: 54 | R113: 0 | S113: 0 | T113: 0 | U113: 0 | V113: 0 | W113: 0 | X113: 0 | Y113: 0 | Z113: 54 | AA113: 0 | AB113: 0 | AC113: 0 | AD113: 0 | AE113: 0 | AF113: 0 | AG113: 0 | AH113: 0 | AI113: 0 | AJ113: 0 | AK113: 0 | AL113: 0 | AM113: 0 | AN113: 0 | AO113: 0 | AP113: 0 | AQ113: 0 | AR113: 0 | AS113: 0 | AT113: 0 | AU113: 0 | AV113: 48 | AW113: 6 | AX113: 0 | AY113: 0 | AZ113: 0 | BA113: 0 | BB113: 0 | BC113: 0 | BD113: =HYPERLINK("http://www.openstreetmap.org/?mlat=33.6291&mlon=42.8391&zoom=12#map=12/33.6291/42.8391","Maplink1") -> Maplink1 | BE113: =HYPERLINK("https://www.google.iq/maps/search/+33.6291,42.8391/@33.6291,42.8391,14z?hl=en","Maplink2") -> Maplink2 | BF113: =HYPERLINK("http://www.bing.com/maps/?lvl=14&sty=h&cp=33.6291~42.8391&sp=point.33.6291_42.8391","Maplink3") -> Maplink3
A114: 23831 | B114: Al-Anbar | C114: Heet | D114: Markaz Heet | E114: Al-Sikak | F114: السكك | G114: 33.6289434 | H114: 42.8247151 | I114: 6 | J114: 36 | K114: 0 | L114: 0 | M114: 0 | N114: 0 | O114: 0 | P114: 0 | Q114: 36 | R114: 0 | S114: 0 | T114: 0 | U114: 0 | V114: 0 | W114: 0 | X114: 0 | Y114: 0 | Z114: 36 | AA114: 0 | AB114: 0 | AC114: 0 | AD114: 0 | AE114: 0 | AF114: 0 | AG114: 0 | AH114: 0 | AI114: 0 | AJ114: 0 | AK114: 0 | AL114: 0 | AM114: 0 | AN114: 0 | AO114: 0 | AP114: 0 | AQ114: 0 | AR114: 0 | AS114: 0 | AT114: 0 | AU114: 6 | AV114: 30 | AW114: 0 | AX114: 0 | AY114: 0 | AZ114: 0 | BA114: 0 | BB114: 0 | BC114: 0 | BD114: =HYPERLINK("http://www.openstreetmap.org/?mlat=33.6289&mlon=42.8247&zoom=12#map=12/33.6289/42.8247","Maplink1") -> Maplink1 | BE114: =HYPERLINK("https://www.google.iq/maps/search/+33.6289,42.8247/@33.6289,42.8247,14z?hl=en","Maplink2") -> Maplink2 | BF114: =HYPERLINK("http://www.bing.com/maps/?lvl=14&sty=h&cp=33.6289~42.8247&sp=point.33.6289_42.8247","Maplink3") -> Maplink3
A115: 194 | B115: Al-Anbar | C115: Heet | D115: Markaz Heet | E115: The first jamaiya | F115: الجمعية الاولى | G115: 33.633242 | H115: 42.8415123 | I115: 2 | J115: 12 | K115: 0 | L115: 0 | M115: 0 | N115: 0 | O115: 0 | P115: 0 | Q115: 12 | R115: 0 | S115: 0 | T115: 0 | U115: 0 | V115: 0 | W115: 0 | X115: 0 | Y115: 0 | Z115: 12 | AA115: 0 | AB115: 0 | AC115: 0 | AD115: 0 | AE115: 0 | AF115: 0 | AG115: 0 | AH115: 0 | AI115: 0 | AJ115: 0 | AK115: 0 | AL115: 0 | AM115: 0 | AN115: 0 | AO115: 0 | AP115: 0 | AQ115: 0 | AR115: 0 | AS115: 0 | AT115: 0 | AU115: 0 | AV115: 12 | AW115: 0 | AX115: 0 | AY115: 0 | AZ115: 0 | BA115: 0 | BB115: 0 | BC115: 0 | BD115: =HYPERLINK("http://www.openstreetmap.org/?mlat=33.6332&mlon=42.8415&zoom=12#map=12/33.6332/42.8415","Maplink1") -> Maplink1 | BE115: =HYPERLINK("https://www.google.iq/maps/search/+33.6332,42.8415/@33.6332,42.8415,14z?hl=en","Maplink2") -> Maplink2 | BF115: =HYPERLINK("http://www.bing.com/maps/?lvl=14&sty=h&cp=33.6332~42.8415&sp=point.33.6332_42.8415","Maplink3") -> Maplink3
A116: 219 | B116: Al-Anbar | C116: Heet | D116: Markaz Heet | E116: Hay Al-Jabal | F116: الجبل | G116: 33.6352777 | H116: 42.8202338 | I116: 45 | J116: 270 | K116: 0 | L116: 0 | M116: 0 | N116: 0 | O116: 0 | P116: 0 | Q116: 270 | R116: 0 | S116: 0 | T116: 0 | U116: 0 | V116: 0 | W116: 0 | X116: 0 | Y116: 0 | Z116: 270 | AA116: 0 | AB116: 0 | AC116: 0 | AD116: 0 | AE116: 0 | AF116: 0 | AG116: 0 | AH116: 0 | AI116: 0 | AJ116: 0 | AK116: 0 | AL116: 0 | AM116: 0 | AN116: 0 | AO116: 0 | AP116: 0 | AQ116: 0 | AR116: 0 | AS116: 0 | AT116: 0 | AU116: 0 | AV116: 0 | AW116: 102 | AX116: 108 | AY116: 60 | AZ116: 0 | BA116: 0 | BB116: 0 | BC116: 0 | BD116: =HYPERLINK("http://www.openstreetmap.org/?mlat=33.6353&mlon=42.8202&zoom=12#map=12/33.6353/42.8202","Maplink1") -> Maplink1 | BE116: =HYPERLINK("https://www.google.iq/maps/search/+33.6353,42.8202/@33.6353,42.8202,14z?hl=en","Maplink2") -> Maplink2 | BF116: =HYPERLINK("http://www.bing.com/maps/?lvl=14&sty=h&cp=33.6353~42.8202&sp=point.33.6353_42.8202","Maplink3") -> Maplink3
A117: 23885 | B117: Al-Anbar | C117: Heet | D117: Markaz Heet | E117: Hay Al-jamyah 2 | F117: الجمعية الثانية | G117: 33.6298282 | H117: 42.8462612 | I117: 13 | J117: 78 | K117: 0 | L117: 0 | M117: 0 | N117: 0 | O117: 0 | P117: 0 | Q117: 78 | R117: 0 | S117: 0 | T117: 0 | U117: 0 | V117: 0 | W117: 0 | X117: 0 | Y117: 0 | Z117: 78 | AA117: 0 | AB117: 0 | AC117: 0 | AD117: 0 | AE117: 0 | AF117: 0 | AG117: 0 | AH117: 0 | AI117: 0 | AJ117: 0 | AK117: 0 | AL117: 0 | AM117: 0 | AN117: 0 | AO117: 0 | AP117: 0 | AQ117: 0 | AR117: 0 | AS117: 0 | AT117: 0 | AU117: 0 | AV117: 78 | AW117: 0 | AX117: 0 | AY117: 0 | AZ117: 0 | BA117: 0 | BB117: 0 | BC117: 0 | BD117: =HYPERLINK("http://www.openstreetmap.org/?mlat=33.6298&mlon=42.8463&zoom=12#map=12/33.6298/42.8463","Maplink1") -> Maplink1 | BE117: =HYPERLINK("https://www.google.iq/maps/search/+33.6298,42.8463/@33.6298,42.8463,14z?hl=en","Maplink2") -> Maplink2 | BF117: =HYPERLINK("http://www.bing.com/maps/?lvl=14&sty=h&cp=33.6298~42.8463&sp=point.33.6298_42.8463","Maplink3") -> Maplink3
A118: 228 | B118: Al-Anbar | C118: Heet | D118: Markaz Heet | E118: Hay al Jury | F118: الجري | G118: 33.6403175 | H118: 42.8214436 | I118: 4 | J118: 24 | K118: 0 | L118: 0 | M118: 0 | N118: 0 | O118: 0 | P118: 0 | Q118: 24 | R118: 0 | S118: 0 | T118: 0 | U118: 0 | V118: 0 | W118: 0 | X118: 0 | Y118: 0 | Z118: 24 | AA118: 0 | AB118: 0 | AC118: 0 | AD118: 0 | AE118: 0 | AF118: 0 | AG118: 0 | AH118: 0 | AI118: 0 | AJ118: 0 | AK118: 0 | AL118: 0 | AM118: 0 | AN118: 0 | AO118: 0 | AP118: 0 | AQ118: 0 | AR118: 0 | AS118: 0 | AT118: 0 | AU118: 0 | AV118: 0 | AW118: 0 | AX118: 6 | AY118: 18 | AZ118: 0 | BA118: 0 | BB118: 0 | BC118: 0 | BD118: =HYPERLINK("http://www.openstreetmap.org/?mlat=33.6403&mlon=42.8214&zoom=12#map=12/33.6403/42.8214","Maplink1") -> Maplink1 | BE118: =HYPERLINK("https://www.google.iq/maps/search/+33.6403,42.8214/@33.6403,42.8214,14z?hl=en","Maplink2") -> Maplink2 | BF118: =HYPERLINK("http://www.bing.com/maps/?lvl=14&sty=h&cp=33.6403~42.8214&sp=point.33.6403_42.8214","Maplink3") -> Maplink3
A119: 23832 | B119: Al-Anbar | C119: Heet | D119: Markaz Heet | E119: Al-Mamora | F119: المعمورة | G119: 33.6297942 | H119: 42.7974282 | I119: 2 | J119: 12 | K119: 0 | L119: 0 | M119: 0 | N119: 0 | O119: 0 | P119: 0 | Q119: 12 | R119: 0 | S119: 0 | T119: 0 | U119: 0 | V119: 0 | W119: 0 | X119: 0 | Y119: 0 | Z119: 12 | AA119: 0 | AB119: 0 | AC119: 0 | AD119: 0 | AE119: 0 | AF119: 0 | AG119: 0 | AH119: 0 | AI119: 0 | AJ119: 0 | AK119: 0 | AL119: 0 | AM119: 0 | AN119: 0 | AO119: 0 | AP119: 0 | AQ119: 0 | AR119: 6 | AS119: 0 | AT119: 0 | AU119: 0 | AV119: 6 | AW119: 0 | AX119: 0 | AY119: 0 | AZ119: 0 | BA119: 0 | BB119: 0 | BC119: 0 | BD119: =HYPERLINK("http://www.openstreetmap.org/?mlat=33.6298&mlon=42.7974&zoom=12#map=12/33.6298/42.7974","Maplink1") -> Maplink1 | BE119: =HYPERLINK("https://www.google.iq/maps/search/+33.6298,42.7974/@33.6298,42.7974,14z?hl=en","Maplink2") -> Maplink2 | BF119: =HYPERLINK("http://www.bing.com/maps/?lvl=14&sty=h&cp=33.6298~42.7974&sp=point.33.6298_42.7974","Maplink3") -> Maplink3
A120: 218 | B120: Al-Anbar | C120: Heet | D120: Markaz Heet | E120: Hay Al-Etfaa | F120: حي الاطفاء | G120: 33.6317935 | H120: 42.8322699 | I120: 8 | J120: 48 | K120: 0 | L120: 0 | M120: 0 | N120: 0 | O120: 0 | P120: 0 | Q120: 48 | R120: 0 | S120: 0 | T120: 0 | U120: 0 | V120: 0 | W120: 0 | X120: 0 | Y120: 0 | Z120: 48 | AA120: 0 | AB120: 0 | AC120: 0 | AD120: 0 | AE120: 0 | AF120: 0 | AG120: 0 | AH120: 0 | AI120: 0 | AJ120: 0 | AK120: 0 | AL120: 0 | AM120: 0 | AN120: 0 | AO120: 0 | AP120: 0 | AQ120: 0 | AR120: 0 | AS120: 0 | AT120: 0 | AU120: 0 | AV120: 0 | AW120: 0 | AX120: 48 | AY120: 0 | AZ120: 0 | BA120: 0 | BB120: 0 | BC120: 0 | BD120: =HYPERLINK("http://www.openstreetmap.org/?mlat=33.6318&mlon=42.8323&zoom=12#map=12/33.6318/42.8323","Maplink1") -> Maplink1 | BE120: =HYPERLINK("https://www.google.iq/maps/search/+33.6318,42.8323/@33.6318,42.8323,14z?hl=en","Maplink2") -> Maplink2 | BF120: =HYPERLINK("http://www.bing.com/maps/?lvl=14&sty=h&cp=33.6318~42.8323&sp=point.33.6318_42.8323","Maplink3") -> Maplink3
A121: 24480 | B121: Al-Basrah | C121: Abu Al-Khaseeb | D121: Al-Siba | E121: Door Alasmeadh | F121: البصرة-ابو الخصيب-دور الاسمدة | G121: 30.44464488 | H121: 48.0252697 | I121: 1 | J121: 6 | K121: 0 | L121: 0 | M121: 0 | N121: 0 | O121: 0 | P121: 0 | Q121: 6 | R121: 0 | S121: 0 | T121: 0 | U121: 0 | V121: 0 | W121: 0 | X121: 0 | Y121: 0 | Z121: 0 | AA121: 0 | AB121: 0 | AC121: 0 | AD121: 0 | AE121: 0 | AF121: 0 | AG121: 0 | AH121: 0 | AI121: 0 | AJ121: 0 | AK121: 0 | AL121: 0 | AM121: 0 | AN121: 6 | AO121: 0 | AP121: 0 | AQ121: 0 | AR121: 0 | AS121: 0 | AT121: 6 | AU121: 0 | AV121: 0 | AW121: 0 | AX121: 0 | AY121: 0 | AZ121: 0 | BA121: 0 | BB121: 0 | BC121: 0 | BD121: =HYPERLINK("http://www.openstreetmap.org/?mlat=30.4446&mlon=48.0253&zoom=12#map=12/30.4446/48.0253","Maplink1") -> Maplink1 | BE121: =HYPERLINK("https://www.google.iq/maps/search/+30.4446,48.0253/@30.4446,48.0253,14z?hl=en","Maplink2") -> Maplink2 | BF121: =HYPERLINK("http://www.bing.com/maps/?lvl=14&sty=h&cp=30.4446~48.0253&sp=point.30.4446_48.0253","Maplink3") -> Maplink3
A122: 22266 | B122: Al-Basrah | C122: Abu Al-Khaseeb | D122: Al-Siba | E122: Markas AlSiba | F122: مركز السيبة | G122: 30.31971979 | H122: 48.24580379 | I122: 2 | J122: 12 | K122: 0 | L122: 0 | M122: 0 | N122: 0 | O122: 0 | P122: 0 | Q122: 12 | R122: 0 | S122: 0 | T122: 0 | U122: 0 | V122: 0 | W122: 0 | X122: 0 | Y122: 0 | Z122: 0 | AA122: 0 | AB122: 0 | AC122: 0 | AD122: 0 | AE122: 0 | AF122: 0 | AG122: 0 | AH122: 0 | AI122: 0 | AJ122: 0 | AK122: 0 | AL122: 12 | AM122: 0 | AN122: 0 | AO122: 0 | AP122: 0 | AQ122: 0 | AR122: 0 | AS122: 0 | AT122: 12 | AU122: 0 | AV122: 0 | AW122: 0 | AX122: 0 | AY122: 0 | AZ122: 0 | BA122: 0 | BB122: 0 | BC122: 0 | BD122: =HYPERLINK("http://www.openstreetmap.org/?mlat=30.3197&mlon=48.2458&zoom=12#map=12/30.3197/48.2458","Maplink1") -> Maplink1 | BE122: =HYPERLINK("https://www.google.iq/maps/search/+30.3197,48.2458/@30.3197,48.2458,14z?hl=en","Maplink2") -> Maplink2 | BF122: =HYPERLINK("http://www.bing.com/maps/?lvl=14&sty=h&cp=30.3197~48.2458&sp=point.30.3197_48.2458","Maplink3") -> Maplink3
A123: 820 | B123: Al-Basrah | C123: Abu Al-Khaseeb | D123: Markaz Abu Al-Khaseeb | E123: Al-jadida | F123: البصرة-ابو الخصيب-الجُديدا | G123: 30.45001648 | H123: 47.90488097 | I123: 5 | J123: 30 | K123: 0 | L123: 0 | M123: 0 | N123: 6 | O123: 0 | P123: 0 | Q123: 24 | R123: 0 | S123: 0 | T123: 0 | U123: 0 | V123: 0 | W123: 0 | X123: 0 | Y123: 0 | Z123: 12 | AA123: 0 | AB123: 0 | AC123: 0 | AD123: 0 | AE123: 0 | AF123: 0 | AG123: 0 | AH123: 0 | AI123: 0 | AJ123: 0 | AK123: 0 | AL123: 12 | AM123: 0 | AN123: 6 | AO123: 0 | AP123: 0 | AQ123: 0 | AR123: 0 | AS123: 0 | AT123: 0 | AU123: 30 | AV123: 0 | AW123: 0 | AX123: 0 | AY123: 0 | AZ123: 0 | BA123: 0 | BB123: 0 | BC123: 0 | BD123: =HYPERLINK("http://www.openstreetmap.org/?mlat=30.45&mlon=47.9049&zoom=12#map=12/30.45/47.9049","Maplink1") -> Maplink1 | BE123: =HYPERLINK("https://www.google.iq/maps/search/+30.45,47.9049/@30.45,47.9049,14z?hl=en","Maplink2") -> Maplink2 | BF123: =HYPERLINK("http://www.bing.com/maps/?lvl=14&sty=h&cp=30.45~47.9049&sp=point.30.45_47.9049","Maplink3") -> Maplink3
A124: 797 | B124: Al-Basrah | C124: Abu Al-Khaseeb | D124: Markaz Abu Al-Khaseeb | E124: Bab taweel | F124: البصرة-ابو الخصيب-باب طويل | G124: 30.43864226 | H124: 47.98704318 | I124: 3 | J124: 18 | K124: 0 | L124: 0 | M124: 0 | N124: 12 | O124: 0 | P124: 0 | Q124: 6 | R124: 0 | S124: 0 | T124: 0 | U124: 0 | V124: 0 | W124: 0 | X124: 0 | Y124: 0 | Z124: 0 | AA124: 0 | AB124: 0 | AC124: 0 | AD124: 0 | AE124: 0 | AF124: 0 | AG124: 0 | AH124: 0 | AI124: 0 | AJ124: 0 | AK124: 0 | AL124: 6 | AM124: 0 | AN124: 12 | AO124: 0 | AP124: 0 | AQ124: 0 | AR124: 0 | AS124: 0 | AT124: 0 | AU124: 12 | AV124: 0 | AW124: 0 | AX124: 0 | AY124: 6 | AZ124: 0 | BA124: 0 | BB124: 0 | BC124: 0 | BD124: =HYPERLINK("http://www.openstreetmap.org/?mlat=30.4386&mlon=47.987&zoom=12#map=12/30.4386/47.987","Maplink1") -> Maplink1 | BE124: =HYPERLINK("https://www.google.iq/maps/search/+30.4386,47.987/@30.4386,47.987,14z?hl=en","Maplink2") -> Maplink2 | BF124: =HYPERLINK("http://www.bing.com/maps/?lvl=14&sty=h&cp=30.4386~47.987&sp=point.30.4386_47.987","Maplink3") -> Maplink3
A125: 834 | B125: Al-Basrah | C125: Abu Al-Khaseeb | D125: Markaz Abu Al-Khaseeb | E125: Al-romia | F125: الرومية | G125: 30.45704638 | H125: 47.91647494 | I125: 5 | J125: 30 | K125: 0 | L125: 0 | M125: 0 | N125: 6 | O125: 0 | P125: 6 | Q125: 18 | R125: 0 | S125: 0 | T125: 0 | U125: 0 | V125: 0 | W125: 0 | X125: 0 | Y125: 0 | Z125: 12 | AA125: 0 | AB125: 0 | AC125: 0 | AD125: 0 | AE125: 0 | AF125: 0 | AG125: 0 | AH125: 0 | AI125: 0 | AJ125: 0 | AK125: 0 | AL125: 0 | AM125: 0 | AN125: 18 | AO125: 0 | AP125: 0 | AQ125: 0 | AR125: 0 | AS125: 0 | AT125: 0 | AU125: 30 | AV125: 0 | AW125: 0 | AX125: 0 | AY125: 0 | AZ125: 0 | BA125: 0 | BB125: 0 | BC125: 0 | BD125: =HYPERLINK("http://www.openstreetmap.org/?mlat=30.457&mlon=47.9165&zoom=12#map=12/30.457/47.9165","Maplink1") -> Maplink1 | BE125: =HYPERLINK("https://www.google.iq/maps/search/+30.457,47.9165/@30.457,47.9165,14z?hl=en","Maplink2") -> Maplink2 | BF125: =HYPERLINK("http://www.bing.com/maps/?lvl=14&sty=h&cp=30.457~47.9165&sp=point.30.457_47.9165","Maplink3") -> Maplink3
A126: 24595 | B126: Al-Basrah | C126: Abu Al-Khaseeb | D126: Markaz Abu Al-Khaseeb | E126: Hay Al Zaiton | F126: حي الزيتون | G126: 30.4746484 | H126: 47.8260349 | I126: 1 | J126: 6 | K126: 0 | L126: 0 | M126: 0 | N126: 0 | O126: 0 | P126: 0 | Q126: 0 | R126: 0 | S126: 6 | T126: 0 | U126: 0 | V126: 0 | W126: 0 | X126: 0 | Y126: 0 | Z126: 6 | AA126: 0 | AB126: 0 | AC126: 0 | AD126: 0 | AE126: 0 | AF126: 0 | AG126: 0 | AH126: 0 | AI126: 0 | AJ126: 0 | AK126: 0 | AL126: 0 | AM126: 0 | AN126: 0 | AO126: 0 | AP126: 0 | AQ126: 0 | AR126: 6 | AS126: 0 | AT126: 0 | AU126: 0 | AV126: 0 | AW126: 0 | AX126: 0 | AY126: 0 | AZ126: 0 | BA126: 0 | BB126: 0 | BC126: 0 | BD126: =HYPERLINK("http://www.openstreetmap.org/?mlat=30.4746&mlon=47.826&zoom=12#map=12/30.4746/47.826","Maplink1") -> Maplink1 | BE126: =HYPERLINK("https://www.google.iq/maps/search/+30.4746,47.826/@30.4746,47.826,14z?hl=en","Maplink2") -> Maplink2 | BF126: =HYPERLINK("http://www.bing.com/maps/?lvl=14&sty=h&cp=30.4746~47.826&sp=point.30.4746_47.826","Maplink3") -> Maplink3
A127: 811 | B127: Al-Basrah | C127: Abu Al-Khaseeb | D127: Markaz Abu Al-Khaseeb | E127: Bab sulaiman | F127: باب سليمان | G127: 30.44936934 | H127: 47.99809076 | I127: 10 | J127: 60 | K127: 0 | L127: 0 | M127: 0 | N127: 24 | O127: 0 | P127: 0 | Q127: 36 | R127: 0 | S127: 0 | T127: 0 | U127: 0 | V127: 0 | W127: 0 | X127: 0 | Y127: 0 | Z127: 12 | AA127: 0 | AB127: 0 | AC127: 0 | AD127: 0 | AE127: 0 | AF127: 0 | AG127: 0 | AH127: 0 | AI127: 0 | AJ127: 0 | AK127: 0 | AL127: 0 | AM127: 0 | AN127: 48 | AO127: 0 | AP127: 0 | AQ127: 0 | AR127: 12 | AS127: 12 | AT127: 12 | AU127: 18 | AV127: 6 | AW127: 0 | AX127: 0 | AY127: 0 | AZ127: 0 | BA127: 0 | BB127: 0 | BC127: 0 | BD127: =HYPERLINK("http://www.openstreetmap.org/?mlat=30.4494&mlon=47.9981&zoom=12#map=12/30.4494/47.9981","Maplink1") -> Maplink1 | BE127: =HYPERLINK("https://www.google.iq/maps/search/+30.4494,47.9981/@30.4494,47.9981,14z?hl=en","Maplink2") -> Maplink2 | BF127: =HYPERLINK("http://www.bing.com/maps/?lvl=14&sty=h&cp=30.4494~47.9981&sp=point.30.4494_47.9981","Maplink3") -> Maplink3
A128: 813 | B128: Al-Basrah | C128: Abu Al-Khaseeb | D128: Markaz Abu Al-Khaseeb | E128: Kut thewainy | F128: كوت ثويني | G128: 30.46328636 | H128: 47.89009441 | I128: 1 | J128: 6 | K128: 0 | L128: 0 | M128: 0 | N128: 6 | O128: 0 | P128: 0 | Q128: 0 | R128: 0 | S128: 0 | T128: 0 | U128: 0 | V128: 0 | W128: 0 | X128: 0 | Y128: 0 | Z128: 0 | AA128: 0 | AB128: 0 | AC128: 0 | AD128: 0 | AE128: 0 | AF128: 0 | AG128: 0 | AH128: 0 | AI128: 0 | AJ128: 0 | AK128: 0 | AL128: 0 | AM128: 0 | AN128: 6 | AO128: 0 | AP128: 0 | AQ128: 0 | AR128: 0 | AS128: 6 | AT128: 0 | AU128: 0 | AV128: 0 | AW128: 0 | AX128: 0 | AY128: 0 | AZ128: 0 | BA128: 0 | BB128: 0 | BC128: 0 | BD128: =HYPERLINK("http://www.openstreetmap.org/?mlat=30.4633&mlon=47.8901&zoom=12#map=12/30.4633/47.8901","Maplink1") -> Maplink1 | BE128: =HYPERLINK("https://www.google.iq/maps/search/+30.4633,47.8901/@30.4633,47.8901,14z?hl=en","Maplink2") -> Maplink2 | BF128: =HYPERLINK("http://www.bing.com/maps/?lvl=14&sty=h&cp=30.4633~47.8901&sp=point.30.4633_47.8901","Maplink3") -> Maplink3
A129: 793 | B129: Al-Basrah | C129: Abu Al-Khaseeb | D129: Markaz Abu Al-Khaseeb | E129: Al-Nizelah | F129: النزيلة | G129: 30.43716886 | H129: 47.97703979 | I129: 4 | J129: 24 | K129: 0 | L129: 0 | M129: 0 | N129: 6 | O129: 0 | P129: 0 | Q129: 18 | R129: 0 | S129: 0 | T129: 0 | U129: 0 | V129: 0 | W129: 0 | X129: 0 | Y129: 0 | Z129: 0 | AA129: 0 | AB129: 0 | AC129: 0 | AD129: 0 | AE129: 0 | AF129: 0 | AG129: 0 | AH129: 0 | AI129: 0 | AJ129: 0 | AK129: 0 | AL129: 12 | AM129: 0 | AN129: 12 | AO129: 0 | AP129: 0 | AQ129: 0 | AR129: 0 | AS129: 0 | AT129: 0 | AU129: 0 | AV129: 18 | AW129: 0 | AX129: 0 | AY129: 6 | AZ129: 0 | BA129: 0 | BB129: 0 | BC129: 0 | BD129: =HYPERLINK("http://www.openstreetmap.org/?mlat=30.4372&mlon=47.977&zoom=12#map=12/30.4372/47.977","Maplink1") -> Maplink1 | BE129: =HYPERLINK("https://www.google.iq/maps/search/+30.4372,47.977/@30.4372,47.977,14z?hl=en","Maplink2") -> Maplink2 | BF129: =HYPERLINK("http://www.bing.com/maps/?lvl=14&sty=h&cp=30.4372~47.977&sp=point.30.4372_47.977","Maplink3") -> Maplink3
A130: 780 | B130: Al-Basrah | C130: Abu Al-Khaseeb | D130: Markaz Abu Al-Khaseeb | E130: Al-Dhaheeria | F130: ظاهرية | G130: 30.4314722 | H130: 47.97240561 | I130: 4 | J130: 24 | K130: 0 | L130: 0 | M130: 0 | N130: 0 | O130: 0 | P130: 12 | Q130: 12 | R130: 0 | S130: 0 | T130: 0 | U130: 0 | V130: 0 | W130: 0 | X130: 0 | Y130: 0 | Z130: 24 | AA130: 0 | AB130: 0 | AC130: 0 | AD130: 0 | AE130: 0 | AF130: 0 | AG130: 0 | AH130: 0 | AI130: 0 | AJ130: 0 | AK130: 0 | AL130: 0 | AM130: 0 | AN130: 0 | AO130: 0 | AP130: 0 | AQ130: 0 | AR130: 0 | AS130: 18 | AT130: 0 | AU130: 6 | AV130: 0 | AW130: 0 | AX130: 0 | AY130: 0 | AZ130: 0 | BA130: 0 | BB130: 0 | BC130: 0 | BD130: =HYPERLINK("http://www.openstreetmap.org/?mlat=30.4315&mlon=47.9724&zoom=12#map=12/30.4315/47.9724","Maplink1") -> Maplink1 | BE130: =HYPERLINK("https://www.google.iq/maps/search/+30.4315,47.9724/@30.4315,47.9724,14z?hl=en","Maplink2") -> Maplink2 | BF130: =HYPERLINK("http://www.bing.com/maps/?lvl=14&sty=h&cp=30.4315~47.9724&sp=point.30.4315_47.9724","Maplink3") -> Maplink3
A131: 512 | B131: Al-Basrah | C131: Abu Al-Khaseeb | D131: Markaz Abu Al-Khaseeb | E131: Bab midan | F131: باب ميدان | G131: 30.45678281 | H131: 47.99421588 | I131: 9 | J131: 54 | K131: 0 | L131: 0 | M131: 0 | N131: 0 | O131: 0 | P131: 0 | Q131: 54 | R131: 0 | S131: 0 | T131: 0 | U131: 0 | V131: 0 | W131: 0 | X131: 0 | Y131: 0 | Z131: 12 | AA131: 0 | AB131: 0 | AC131: 0 | AD131: 0 | AE131: 0 | AF131: 0 | AG131: 0 | AH131: 0 | AI131: 0 | AJ131: 0 | AK131: 0 | AL131: 12 | AM131: 0 | AN131: 30 | AO131: 0 | AP131: 0 | AQ131: 0 | AR131: 0 | AS131: 30 | AT131: 0 | AU131: 18 | AV131: 6 | AW131: 0 | AX131: 0 | AY131: 0 | AZ131: 0 | BA131: 0 | BB131: 0 | BC131: 0 | BD131: =HYPERLINK("http://www.openstreetmap.org/?mlat=30.4568&mlon=47.9942&zoom=12#map=12/30.4568/47.9942","Maplink1") -> Maplink1 | BE131: =HYPERLINK("https://www.google.iq/maps/search/+30.4568,47.9942/@30.4568,47.9942,14z?hl=en","Maplink2") -> Maplink2 | BF131: =HYPERLINK("http://www.bing.com/maps/?lvl=14&sty=h&cp=30.4568~47.9942&sp=point.30.4568_47.9942","Maplink3") -> Maplink3
A132: 23897 | B132: Al-Basrah | C132: Abu Al-Khaseeb | D132: Markaz Abu Al-Khaseeb | E132: Hay AL Hussainyia | F132: البصرة-حي الحسينية | G132: 30.47850797 | H132: 47.82951009 | I132: 6 | J132: 36 | K132: 0 | L132: 0 | M132: 0 | N132: 0 | O132: 0 | P132: 0 | Q132: 18 | R132: 0 | S132: 18 | T132: 0 | U132: 0 | V132: 0 | W132: 0 | X132: 0 | Y132: 0 | Z132: 18 | AA132: 0 | AB132: 0 | AC132: 0 | AD132: 0 | AE132: 6 | AF132: 0 | AG132: 0 | AH132: 0 | AI132: 0 | AJ132: 0 | AK132: 0 | AL132: 12 | AM132: 0 | AN132: 0 | AO132: 0 | AP132: 0 | AQ132: 0 | AR132: 6 | AS132: 6 | AT132: 12 | AU132: 12 | AV132: 0 | AW132: 0 | AX132: 0 | AY132: 0 | AZ132: 0 | BA132: 0 | BB132: 0 | BC132: 0 | BD132: =HYPERLINK("http://www.openstreetmap.org/?mlat=30.4785&mlon=47.8295&zoom=12#map=12/30.4785/47.8295","Maplink1") -> Maplink1 | BE132: =HYPERLINK("https://www.google.iq/maps/search/+30.4785,47.8295/@30.4785,47.8295,14z?hl=en","Maplink2") -> Maplink2 | BF132: =HYPERLINK("http://www.bing.com/maps/?lvl=14&sty=h&cp=30.4785~47.8295&sp=point.30.4785_47.8295","Maplink3") -> Maplink3
A133: 25540 | B133: Al-Basrah | C133: Abu Al-Khaseeb | D133: Markaz Abu Al-Khaseeb | E133: Abu Kusra | F133: ابو كوصره | G133: 30.44208917 | H133: 47.95938752 | I133: 5 | J133: 30 | K133: 0 | L133: 0 | M133: 0 | N133: 12 | O133: 0 | P133: 0 | Q133: 18 | R133: 0 | S133: 0 | T133: 0 | U133: 0 | V133: 0 | W133: 0 | X133: 0 | Y133: 0 | Z133: 12 | AA133: 0 | AB133: 0 | AC133: 0 | AD133: 0 | AE133: 0 | AF133: 0 | AG133: 0 | AH133: 0 | AI133: 0 | AJ133: 0 | AK133: 0 | AL133: 0 | AM133: 0 | AN133: 18 | AO133: 0 | AP133: 0 | AQ133: 0 | AR133: 12 | AS133: 6 | AT133: 0 | AU133: 12 | AV133: 0 | AW133: 0 | AX133: 0 | AY133: 0 | AZ133: 0 | BA133: 0 | BB133: 0 | BC133: 0 | BD133: =HYPERLINK("http://www.openstreetmap.org/?mlat=30.4421&mlon=47.9594&zoom=12#map=12/30.4421/47.9594","Maplink1") -> Maplink1 | BE133: =HYPERLINK("https://www.google.iq/maps/search/+30.4421,47.9594/@30.4421,47.9594,14z?hl=en","Maplink2") -> Maplink2 | BF133: =HYPERLINK("http://www.bing.com/maps/?lvl=14&sty=h&cp=30.4421~47.9594&sp=point.30.4421_47.9594","Maplink3") -> Maplink3
A134: 25970 | B134: Al-Basrah | C134: Abu Al-Khaseeb | D134: Markaz Abu Al-Khaseeb | E134: Al Ibraheem | F134: ال ابراهيم | G134: 30.44988053 | H134: 47.98638591 | I134: 6 | J134: 36 | K134: 0 | L134: 0 | M134: 0 | N134: 6 | O134: 0 | P134: 0 | Q134: 30 | R134: 0 | S134: 0 | T134: 0 | U134: 0 | V134: 0 | W134: 0 | X134: 0 | Y134: 0 | Z134: 12 | AA134: 0 | AB134: 0 | AC134: 0 | AD134: 0 | AE134: 6 | AF134: 0 | AG134: 0 | AH134: 6 | AI134: 0 | AJ134: 0 | AK134: 0 | AL134: 12 | AM134: 0 | AN134: 0 | AO134: 0 | AP134: 0 | AQ134: 0 | AR134: 0 | AS134: 24 | AT134: 6 | AU134: 0 | AV134: 6 | AW134: 0 | AX134: 0 | AY134: 0 | AZ134: 0 | BA134: 0 | BB134: 0 | BC134: 0 | BD134: =HYPERLINK("http://www.openstreetmap.org/?mlat=30.4499&mlon=47.9864&zoom=12#map=12/30.4499/47.9864","Maplink1") -> Maplink1 | BE134: =HYPERLINK("https://www.google.iq/maps/search/+30.4499,47.9864/@30.4499,47.9864,14z?hl=en","Maplink2") -> Maplink2 | BF134: =HYPERLINK("http://www.bing.com/maps/?lvl=14&sty=h&cp=30.4499~47.9864&sp=point.30.4499_47.9864","Maplink3") -> Maplink3
A135: 841 | B135: Al-Basrah | C135: Abu Al-Khaseeb | D135: Markaz Abu Al-Khaseeb | E135: Awaisian | F135: عويسيان | G135: 30.48419877 | H135: 47.85767879 | I135: 7 | J135: 42 | K135: 0 | L135: 0 | M135: 0 | N135: 18 | O135: 0 | P135: 0 | Q135: 24 | R135: 0 | S135: 0 | T135: 0 | U135: 0 | V135: 0 | W135: 0 | X135: 0 | Y135: 0 | Z135: 12 | AA135: 0 | AB135: 0 | AC135: 0 | AD135: 0 | AE135: 6 | AF135: 0 | AG135: 0 | AH135: 6 | AI135: 0 | AJ135: 0 | AK135: 0 | AL135: 18 | AM135: 0 | AN135: 0 | AO135: 0 | AP135: 0 | AQ135: 0 | AR135: 0 | AS135: 0 | AT135: 12 | AU135: 18 | AV135: 0 | AW135: 0 | AX135: 12 | AY135: 0 | AZ135: 0 | BA135: 0 | BB135: 0 | BC135: 0 | BD135: =HYPERLINK("http://www.openstreetmap.org/?mlat=30.4842&mlon=47.8577&zoom=12#map=12/30.4842/47.8577","Maplink1") -> Maplink1 | BE135: =HYPERLINK("https://www.google.iq/maps/search/+30.4842,47.8577/@30.4842,47.8577,14z?hl=en","Maplink2") -> Maplink2 | BF135: =HYPERLINK("http://www.bing.com/maps/?lvl=14&sty=h&cp=30.4842~47.8577&sp=point.30.4842_47.8577","Maplink3") -> Maplink3
A136: 587 | B136: Al-Basrah | C136: Abu Al-Khaseeb | D136: Markaz Abu Al-Khaseeb | E136: Al-bahadria | F136: البهادرية | G136: 30.47255888 | H136: 47.86672518 | I136: 4 | J136: 24 | K136: 0 | L136: 0 | M136: 0 | N136: 6 | O136: 0 | P136: 0 | Q136: 18 | R136: 0 | S136: 0 | T136: 0 | U136: 0 | V136: 0 | W136: 0 | X136: 0 | Y136: 0 | Z136: 0 | AA136: 0 | AB136: 0 | AC136: 0 | AD136: 0 | AE136: 6 | AF136: 0 | AG136: 0 | AH136: 12 | AI136: 0 | AJ136: 0 | AK136: 0 | AL136: 6 | AM136: 0 | AN136: 0 | AO136: 0 | AP136: 0 | AQ136: 0 | AR136: 6 | AS136: 0 | AT136: 12 | AU136: 6 | AV136: 0 | AW136: 0 | AX136: 0 | AY136: 0 | AZ136: 0 | BA136: 0 | BB136: 0 | BC136: 0 | BD136: =HYPERLINK("http://www.openstreetmap.org/?mlat=30.4726&mlon=47.8667&zoom=12#map=12/30.4726/47.8667","Maplink1") -> Maplink1 | BE136: =HYPERLINK("https://www.google.iq/maps/search/+30.4726,47.8667/@30.4726,47.8667,14z?hl=en","Maplink2") -> Maplink2 | BF136: =HYPERLINK("http://www.bing.com/maps/?lvl=14&sty=h&cp=30.4726~47.8667&sp=point.30.4726_47.8667","Maplink3") -> Maplink3
A137: 607 | B137: Al-Basrah | C137: Abu Al-Khaseeb | D137: Markaz Abu Al-Khaseeb | E137: Al-Sankar | F137: الصنكر | G137: 30.46424735 | H137: 47.94125156 | I137: 4 | J137: 24 | K137: 0 | L137: 0 | M137: 0 | N137: 12 | O137: 0 | P137: 0 | Q137: 12 | R137: 0 | S137: 0 | T137: 0 | U137: 0 | V137: 0 | W137: 0 | X137: 0 | Y137: 0 | Z137: 6 | AA137: 0 | AB137: 0 | AC137: 0 | AD137: 0 | AE137: 0 | AF137: 0 | AG137: 0 | AH137: 0 | AI137: 0 | AJ137: 0 | AK137: 0 | AL137: 6 | AM137: 0 | AN137: 12 | AO137: 0 | AP137: 0 | AQ137: 0 | AR137: 0 | AS137: 0 | AT137: 6 | AU137: 18 | AV137: 0 | AW137: 0 | AX137: 0 | AY137: 0 | AZ137: 0 | BA137: 0 | BB137: 0 | BC137: 0 | BD137: =HYPERLINK("http://www.openstreetmap.org/?mlat=30.4642&mlon=47.9413&zoom=12#map=12/30.4642/47.9413","Maplink1") -> Maplink1 | BE137: =HYPERLINK("https://www.google.iq/maps/search/+30.4642,47.9413/@30.4642,47.9413,14z?hl=en","Maplink2") -> Maplink2 | BF137: =HYPERLINK("http://www.bing.com/maps/?lvl=14&sty=h&cp=30.4642~47.9413&sp=point.30.4642_47.9413","Maplink3") -> Maplink3
A138: 599 | B138: Al-Basrah | C138: Abu Al-Khaseeb | D138: Markaz Abu Al-Khaseeb | E138: Nahir khuz | F138: نهر خوز | G138: 30.45769442 | H138: 47.97011302 | I138: 1 | J138: 6 | K138: 0 | L138: 0 | M138: 0 | N138: 6 | O138: 0 | P138: 0 | Q138: 0 | R138: 0 | S138: 0 | T138: 0 | U138: 0 | V138: 0 | W138: 0 | X138: 0 | Y138: 0 | Z138: 6 | AA138: 0 | AB138: 0 | AC138: 0 | AD138: 0 | AE138: 0 | AF138: 0 | AG138: 0 | AH138: 0 | AI138: 0 | AJ138: 0 | AK138: 0 | AL138: 0 | AM138: 0 | AN138: 0 | AO138: 0 | AP138: 0 | AQ138: 0 | AR138: 6 | AS138: 0 | AT138: 0 | AU138: 0 | AV138: 0 | AW138: 0 | AX138: 0 | AY138: 0 | AZ138: 0 | BA138: 0 | BB138: 0 | BC138: 0 | BD138: =HYPERLINK("http://www.openstreetmap.org/?mlat=30.4577&mlon=47.9701&zoom=12#map=12/30.4577/47.9701","Maplink1") -> Maplink1 | BE138: =HYPERLINK("https://www.google.iq/maps/search/+30.4577,47.9701/@30.4577,47.9701,14z?hl=en","Maplink2") -> Maplink2 | BF138: =HYPERLINK("http://www.bing.com/maps/?lvl=14&sty=h&cp=30.4577~47.9701&sp=point.30.4577_47.9701","Maplink3") -> Maplink3
A139: 849 | B139: Al-Basrah | C139: Abu Al-Khaseeb | D139: Markaz Abu Al-Khaseeb | E139: Al-mutaiha | F139: المطيحة | G139: 30.4830134 | H139: 47.83047626 | I139: 11 | J139: 66 | K139: 0 | L139: 0 | M139: 0 | N139: 30 | O139: 0 | P139: 0 | Q139: 36 | R139: 0 | S139: 0 | T139: 0 | U139: 0 | V139: 0 | W139: 0 | X139: 0 | Y139: 0 | Z139: 24 | AA139: 0 | AB139: 0 | AC139: 0 | AD139: 0 | AE139: 0 | AF139: 0 | AG139: 0 | AH139: 0 | AI139: 0 | AJ139: 0 | AK139: 0 | AL139: 30 | AM139: 0 | AN139: 12 | AO139: 0 | AP139: 0 | AQ139: 0 | AR139: 6 | AS139: 6 | AT139: 6 | AU139: 36 | AV139: 0 | AW139: 6 | AX139: 6 | AY139: 0 | AZ139: 0 | BA139: 0 | BB139: 0 | BC139: 0 | BD139: =HYPERLINK("http://www.openstreetmap.org/?mlat=30.483&mlon=47.8305&zoom=12#map=12/30.483/47.8305","Maplink1") -> Maplink1 | BE139: =HYPERLINK("https://www.google.iq/maps/search/+30.483,47.8305/@30.483,47.8305,14z?hl=en","Maplink2") -> Maplink2 | BF139: =HYPERLINK("http://www.bing.com/maps/?lvl=14&sty=h&cp=30.483~47.8305&sp=point.30.483_47.8305","Maplink3") -> Maplink3
A140: 23895 | B140: Al-Basrah | C140: Abu Al-Khaseeb | D140: Markaz Abu Al-Khaseeb | E140: Al-Awjah | F140: البصرة-ابو الخصيب-العوجه | G140: 30.43387026 | H140: 47.9649064 | I140: 3 | J140: 18 | K140: 0 | L140: 0 | M140: 0 | N140: 12 | O140: 0 | P140: 0 | Q140: 6 | R140: 0 | S140: 0 | T140: 0 | U140: 0 | V140: 0 | W140: 0 | X140: 0 | Y140: 0 | Z140: 0 | AA140: 0 | AB140: 0 | AC140: 0 | AD140: 0 | AE140: 0 | AF140: 0 | AG140: 0 | AH140: 0 | AI140: 0 | AJ140: 0 | AK140: 0 | AL140: 0 | AM140: 0 | AN140: 18 | AO140: 0 | AP140: 0 | AQ140: 0 | AR140: 0 | AS140: 12 | AT140: 6 | AU140: 0 | AV140: 0 | AW140: 0 | AX140: 0 | AY140: 0 | AZ140: 0 | BA140: 0 | BB140: 0 | BC140: 0 | BD140: =HYPERLINK("http://www.openstreetmap.org/?mlat=30.4339&mlon=47.9649&zoom=12#map=12/30.4339/47.9649","Maplink1") -> Maplink1 | BE140: =HYPERLINK("https://www.google.iq/maps/search/+30.4339,47.9649/@30.4339,47.9649,14z?hl=en","Maplink2") -> Maplink2 | BF140: =HYPERLINK("http://www.bing.com/maps/?lvl=14&sty=h&cp=30.4339~47.9649&sp=point.30.4339_47.9649","Maplink3") -> Maplink3
A141: 24228 | B141: Al-Basrah | C141: Abu Al-Khaseeb | D141: Markaz Abu Al-Khaseeb | E141: Abo Jawzy | F141: البصرة-ابو الخصيب-ابو الجوزي | G141: 30.48202522 | H141: 47.86243516 | I141: 2 | J141: 12 | K141: 0 | L141: 0 | M141: 0 | N141: 0 | O141: 0 | P141: 0 | Q141: 12 | R141: 0 | S141: 0 | T141: 0 | U141: 0 | V141: 0 | W141: 0 | X141: 0 | Y141: 0 | Z141: 0 | AA141: 0 | AB141: 0 | AC141: 0 | AD141: 0 | AE141: 0 | AF141: 0 | AG141: 0 | AH141: 0 | AI141: 0 | AJ141: 0 | AK141: 0 | AL141: 0 | AM141: 0 | AN141: 12 | AO141: 0 | AP141: 0 | AQ141: 0 | AR141: 0 | AS141: 0 | AT141: 0 | AU141: 12 | AV141: 0 | AW141: 0 | AX141: 0 | AY141: 0 | AZ141: 0 | BA141: 0 | BB141: 0 | BC141: 0 | BD141: =HYPERLINK("http://www.openstreetmap.org/?mlat=30.482&mlon=47.8624&zoom=12#map=12/30.482/47.8624","Maplink1") -> Maplink1 | BE141: =HYPERLINK("https://www.google.iq/maps/search/+30.482,47.8624/@30.482,47.8624,14z?hl=en","Maplink2") -> Maplink2 | BF141: =HYPERLINK("http://www.bing.com/maps/?lvl=14&sty=h&cp=30.482~47.8624&sp=point.30.482_47.8624","Maplink3") -> Maplink3
A142: 23896 | B142: Al-Basrah | C142: Abu Al-Khaseeb | D142: Markaz Abu Al-Khaseeb | E142: Al-Abdaliyan | F142: البصرة-ابو الخصيب-العبدليان | G142: 30.47631252 | H142: 47.86616654 | I142: 2 | J142: 12 | K142: 0 | L142: 0 | M142: 0 | N142: 0 | O142: 0 | P142: 0 | Q142: 12 | R142: 0 | S142: 0 | T142: 0 | U142: 0 | V142: 0 | W142: 0 | X142: 0 | Y142: 0 | Z142: 12 | AA142: 0 | AB142: 0 | AC142: 0 | AD142: 0 | AE142: 0 | AF142: 0 | AG142: 0 | AH142: 0 | AI142: 0 | AJ142: 0 | AK142: 0 | AL142: 0 | AM142: 0 | AN142: 0 | AO142: 0 | AP142: 0 | AQ142: 0 | AR142: 12 | AS142: 0 | AT142: 0 | AU142: 0 | AV142: 0 | AW142: 0 | AX142: 0 | AY142: 0 | AZ142: 0 | BA142: 0 | BB142: 0 | BC142: 0 | BD142: =HYPERLINK("http://www.openstreetmap.org/?mlat=30.4763&mlon=47.8662&zoom=12#map=12/30.4763/47.8662","Maplink1") -> Maplink1 | BE142: =HYPERLINK("https://www.google.iq/maps/search/+30.4763,47.8662/@30.4763,47.8662,14z?hl=en","Maplink2") -> Maplink2 | BF142: =HYPERLINK("http://www.bing.com/maps/?lvl=14&sty=h&cp=30.4763~47.8662&sp=point.30.4763_47.8662","Maplink3") -> Maplink3
A143: 505 | B143: Al-Basrah | C143: Abu Al-Khaseeb | D143: Markaz Abu Al-Khaseeb | E143: Hay Al Askarye | F143: الحي العسكري | G143: 30.43503388 | H143: 47.94050875 | I143: 15 | J143: 90 | K143: 0 | L143: 0 | M143: 0 | N143: 18 | O143: 0 | P143: 0 | Q143: 72 | R143: 0 | S143: 0 | T143: 0 | U143: 0 | V143: 0 | W143: 0 | X143: 0 | Y143: 0 | Z143: 12 | AA143: 0 | AB143: 0 | AC143: 0 | AD143: 0 | AE143: 0 | AF143: 0 | AG143: 0 | AH143: 48 | AI143: 0 | AJ143: 0 | AK143: 0 | AL143: 0 | AM143: 0 | AN143: 30 | AO143: 0 | AP143: 0 | AQ143: 0 | AR143: 6 | AS143: 36 | AT143: 0 | AU143: 36 | AV143: 12 | AW143: 0 | AX143: 0 | AY143: 0 | AZ143: 0 | BA143: 0 | BB143: 0 | BC143: 0 | BD143: =HYPERLINK("http://www.openstreetmap.org/?mlat=30.435&mlon=47.9405&zoom=12#map=12/30.435/47.9405","Maplink1") -> Maplink1 | BE143: =HYPERLINK("https://www.google.iq/maps/search/+30.435,47.9405/@30.435,47.9405,14z?hl=en","Maplink2") -> Maplink2 | BF143: =HYPERLINK("http://www.bing.com/maps/?lvl=14&sty=h&cp=30.435~47.9405&sp=point.30.435_47.9405","Maplink3") -> Maplink3
A144: 583 | B144: Al-Basrah | C144: Abu Al-Khaseeb | D144: Markaz Abu Al-Khaseeb | E144: Mehila | F144: محيلة | G144: 30.4607108 | H144: 47.92919733 | I144: 9 | J144: 54 | K144: 0 | L144: 0 | M144: 0 | N144: 18 | O144: 0 | P144: 0 | Q144: 36 | R144: 0 | S144: 0 | T144: 0 | U144: 0 | V144: 0 | W144: 0 | X144: 0 | Y144: 0 | Z144: 30 | AA144: 0 | AB144: 0 | AC144: 0 | AD144: 0 | AE144: 0 | AF144: 0 | AG144: 0 | AH144: 18 | AI144: 0 | AJ144: 0 | AK144: 0 | AL144: 6 | AM144: 0 | AN144: 0 | AO144: 0 | AP144: 0 | AQ144: 0 | AR144: 0 | AS144: 0 | AT144: 18 | AU144: 36 | AV144: 0 | AW144: 0 | AX144: 0 | AY144: 0 | AZ144: 0 | BA144: 0 | BB144: 0 | BC144: 0 | BD144: =HYPERLINK("http://www.openstreetmap.org/?mlat=30.4607&mlon=47.9292&zoom=12#map=12/30.4607/47.9292","Maplink1") -> Maplink1 | BE144: =HYPERLINK("https://www.google.iq/maps/search/+30.4607,47.9292/@30.4607,47.9292,14z?hl=en","Maplink2") -> Maplink2 | BF144: =HYPERLINK("http://www.bing.com/maps/?lvl=14&sty=h&cp=30.4607~47.9292&sp=point.30.4607_47.9292","Maplink3") -> Maplink3
A145: 622 | B145: Al-Basrah | C145: Abu Al-Khaseeb | D145: Markaz Abu Al-Khaseeb | E145: Yousifan | F145: البصرة-ابو الخصيب-يوسفان | G145: 30.47054873 | H145: 47.89712425 | I145: 6 | J145: 36 | K145: 0 | L145: 0 | M145: 0 | N145: 18 | O145: 0 | P145: 6 | Q145: 12 | R145: 0 | S145: 0 | T145: 0 | U145: 0 | V145: 0 | W145: 0 | X145: 0 | Y145: 0 | Z145: 18 | AA145: 0 | AB145: 0 | AC145: 0 | AD145: 0 | AE145: 0 | AF145: 0 | AG145: 0 | AH145: 0 | AI145: 0 | AJ145: 0 | AK145: 0 | AL145: 0 | AM145: 0 | AN145: 18 | AO145: 0 | AP145: 0 | AQ145: 0 | AR145: 6 | AS145: 6 | AT145: 0 | AU145: 24 | AV145: 0 | AW145: 0 | AX145: 0 | AY145: 0 | AZ145: 0 | BA145: 0 | BB145: 0 | BC145: 0 | BD145: =HYPERLINK("http://www.openstreetmap.org/?mlat=30.4705&mlon=47.8971&zoom=12#map=12/30.4705/47.8971","Maplink1") -> Maplink1 | BE145: =HYPERLINK("https://www.google.iq/maps/search/+30.4705,47.8971/@30.4705,47.8971,14z?hl=en","Maplink2") -> Maplink2 | BF145: =HYPERLINK("http://www.bing.com/maps/?lvl=14&sty=h&cp=30.4705~47.8971&sp=point.30.4705_47.8971","Maplink3") -> Maplink3
A146: 835 | B146: Al-Basrah | C146: Abu Al-Khaseeb | D146: Markaz Abu Al-Khaseeb | E146: Jekor | F146: جيكور | G146: 30.45374176 | H146: 48.00347826 | I146: 1 | J146: 6 | K146: 0 | L146: 0 | M146: 0 | N146: 0 | O146: 0 | P146: 0 | Q146: 6 | R146: 0 | S146: 0 | T146: 0 | U146: 0 | V146: 0 | W146: 0 | X146: 0 | Y146: 0 | Z146: 0 | AA146: 0 | AB146: 0 | AC146: 0 | AD146: 0 | AE146: 0 | AF146: 0 | AG146: 0 | AH146: 0 | AI146: 0 | AJ146: 0 | AK146: 0 | AL146: 0 | AM146: 0 | AN146: 6 | AO146: 0 | AP146: 0 | AQ146: 0 | AR146: 0 | AS146: 6 | AT146: 0 | AU146: 0 | AV146: 0 | AW146: 0 | AX146: 0 | AY146: 0 | AZ146: 0 | BA146: 0 | BB146: 0 | BC146: 0 | BD146: =HYPERLINK("http://www.openstreetmap.org/?mlat=30.4537&mlon=48.0035&zoom=12#map=12/30.4537/48.0035","Maplink1") -> Maplink1 | BE146: =HYPERLINK("https://www.google.iq/maps/search/+30.4537,48.0035/@30.4537,48.0035,14z?hl=en","Maplink2") -> Maplink2 | BF146: =HYPERLINK("http://www.bing.com/maps/?lvl=14&sty=h&cp=30.4537~48.0035&sp=point.30.4537_48.0035","Maplink3") -> Maplink3
A147: 601 | B147: Al-Basrah | C147: Abu Al-Khaseeb | D147: Markaz Abu Al-Khaseeb | E147: Abu magheera | F147: ابو مغيره | G147: 30.46081635 | H147: 47.96092515 | I147: 4 | J147: 24 | K147: 0 | L147: 0 | M147: 0 | N147: 24 | O147: 0 | P147: 0 | Q147: 0 | R147: 0 | S147: 0 | T147: 0 | U147: 0 | V147: 0 | W147: 0 | X147: 0 | Y147: 0 | Z147: 0 | AA147: 0 | AB147: 0 | AC147: 0 | AD147: 0 | AE147: 0 | AF147: 0 | AG147: 0 | AH147: 0 | AI147: 0 | AJ147: 0 | AK147: 0 | AL147: 0 | AM147: 0 | AN147: 24 | AO147: 0 | AP147: 0 | AQ147: 0 | AR147: 0 | AS147: 18 | AT147: 0 | AU147: 6 | AV147: 0 | AW147: 0 | AX147: 0 | AY147: 0 | AZ147: 0 | BA147: 0 | BB147: 0 | BC147: 0 | BD147: =HYPERLINK("http://www.openstreetmap.org/?mlat=30.4608&mlon=47.9609&zoom=12#map=12/30.4608/47.9609","Maplink1") -> Maplink1 | BE147: =HYPERLINK("https://www.google.iq/maps/search/+30.4608,47.9609/@30.4608,47.9609,14z?hl=en","Maplink2") -> Maplink2 | BF147: =HYPERLINK("http://www.bing.com/maps/?lvl=14&sty=h&cp=30.4608~47.9609&sp=point.30.4608_47.9609","Maplink3") -> Maplink3
A148: 1307 | B148: Al-Basrah | C148: Abu Al-Khaseeb | D148: Markaz Abu Al-Khaseeb | E148: Al-Sibiliat | F148: السيبيليات | G148: 30.45698086 | H148: 47.95114342 | I148: 6 | J148: 36 | K148: 0 | L148: 0 | M148: 0 | N148: 18 | O148: 0 | P148: 0 | Q148: 18 | R148: 0 | S148: 0 | T148: 0 | U148: 0 | V148: 0 | W148: 0 | X148: 0 | Y148: 0 | Z148: 6 | AA148: 0 | AB148: 6 | AC148: 0 | AD148: 0 | AE148: 6 | AF148: 0 | AG148: 0 | AH148: 0 | AI148: 0 | AJ148: 0 | AK148: 0 | AL148: 12 | AM148: 0 | AN148: 6 | AO148: 0 | AP148: 0 | AQ148: 0 | AR148: 0 | AS148: 0 | AT148: 0 | AU148: 24 | AV148: 0 | AW148: 0 | AX148: 12 | AY148: 0 | AZ148: 0 | BA148: 0 | BB148: 0 | BC148: 0 | BD148: =HYPERLINK("http://www.openstreetmap.org/?mlat=30.457&mlon=47.9511&zoom=12#map=12/30.457/47.9511","Maplink1") -> Maplink1 | BE148: =HYPERLINK("https://www.google.iq/maps/search/+30.457,47.9511/@30.457,47.9511,14z?hl=en","Maplink2") -> Maplink2 | BF148: =HYPERLINK("http://www.bing.com/maps/?lvl=14&sty=h&cp=30.457~47.9511&sp=point.30.457_47.9511","Maplink3") -> Maplink3
A149: 381 | B149: Al-Basrah | C149: Abu Al-Khaseeb | D149: Markaz Abu Al-Khaseeb | E149: Hamdan | F149: البصرة-ابو الخصيب-حمدن | G149: 30.45667583 | H149: 47.891183 | I149: 39 | J149: 234 | K149: 0 | L149: 0 | M149: 0 | N149: 78 | O149: 0 | P149: 0 | Q149: 156 | R149: 0 | S149: 0 | T149: 0 | U149: 0 | V149: 0 | W149: 0 | X149: 0 | Y149: 0 | Z149: 66 | AA149: 0 | AB149: 0 | AC149: 0 | AD149: 0 | AE149: 0 | AF149: 0 | AG149: 0 | AH149: 0 | AI149: 0 | AJ149: 0 | AK149: 0 | AL149: 84 | AM149: 0 | AN149: 84 | AO149: 0 | AP149: 0 | AQ149: 0 | AR149: 0 | AS149: 132 | AT149: 36 | AU149: 42 | AV149: 12 | AW149: 0 | AX149: 12 | AY149: 0 | AZ149: 0 | BA149: 0 | BB149: 0 | BC149: 0 | BD149: =HYPERLINK("http://www.openstreetmap.org/?mlat=30.4567&mlon=47.8912&zoom=12#map=12/30.4567/47.8912","Maplink1") -> Maplink1 | BE149: =HYPERLINK("https://www.google.iq/maps/search/+30.4567,47.8912/@30.4567,47.8912,14z?hl=en","Maplink2") -> Maplink2 | BF149: =HYPERLINK("http://www.bing.com/maps/?lvl=14&sty=h&cp=30.4567~47.8912&sp=point.30.4567_47.8912","Maplink3") -> Maplink3
A150: 24526 | B150: Al-Basrah | C150: Abu Al-Khaseeb | D150: Markaz Abu Al-Khaseeb | E150: Mhjeran | F150: مهيجران | G150: 30.46864635 | H150: 47.88034336 | I150: 13 | J150: 78 | K150: 0 | L150: 0 | M150: 0 | N150: 12 | O150: 0 | P150: 0 | Q150: 66 | R150: 0 | S150: 0 | T150: 0 | U150: 0 | V150: 0 | W150: 0 | X150: 0 | Y150: 0 | Z150: 6 | AA150: 0 | AB150: 6 | AC150: 0 | AD150: 0 | AE150: 0 | AF150: 0 | AG150: 0 | AH150: 0 | AI150: 0 | AJ150: 0 | AK150: 0 | AL150: 18 | AM150: 0 | AN150: 48 | AO150: 0 | AP150: 0 | AQ150: 0 | AR150: 0 | AS150: 18 | AT150: 18 | AU150: 30 | AV150: 6 | AW150: 0 | AX150: 0 | AY150: 6 | AZ150: 0 | BA150: 0 | BB150: 0 | BC150: 0 | BD150: =HYPERLINK("http://www.openstreetmap.org/?mlat=30.4686&mlon=47.8803&zoom=12#map=12/30.4686/47.8803","Maplink1") -> Maplink1 | BE150: =HYPERLINK("https://www.google.iq/maps/search/+30.4686,47.8803/@30.4686,47.8803,14z?hl=en","Maplink2") -> Maplink2 | BF150: =HYPERLINK("http://www.bing.com/maps/?lvl=14&sty=h&cp=30.4686~47.8803&sp=point.30.4686_47.8803","Maplink3") -> Maplink3
A151: 832 | B151: Al-Basrah | C151: Abu Al-Khaseeb | D151: Markaz Abu Al-Khaseeb | E151: Jelab | F151: جلاب | G151: 30.45209877 | H151: 47.99099889 | I151: 4 | J151: 24 | K151: 0 | L151: 0 | M151: 0 | N151: 0 | O151: 0 | P151: 0 | Q151: 24 | R151: 0 | S151: 0 | T151: 0 | U151: 0 | V151: 0 | W151: 0 | X151: 0 | Y151: 0 | Z151: 12 | AA151: 0 | AB151: 0 | AC151: 0 | AD151: 0 | AE151: 0 | AF151: 0 | AG151: 0 | AH151: 0 | AI151: 0 | AJ151: 0 | AK151: 0 | AL151: 0 | AM151: 0 | AN151: 12 | AO151: 0 | AP151: 0 | AQ151: 0 | AR151: 12 | AS151: 0 | AT151: 0 | AU151: 12 | AV151: 0 | AW151: 0 | AX151: 0 | AY151: 0 | AZ151: 0 | BA151: 0 | BB151: 0 | BC151: 0 | BD151: =HYPERLINK("http://www.openstreetmap.org/?mlat=30.4521&mlon=47.991&zoom=12#map=12/30.4521/47.991","Maplink1") -> Maplink1 | BE151: =HYPERLINK("https://www.google.iq/maps/search/+30.4521,47.991/@30.4521,47.991,14z?hl=en","Maplink2") -> Maplink2 | BF151: =HYPERLINK("http://www.bing.com/maps/?lvl=14&sty=h&cp=30.4521~47.991&sp=point.30.4521_47.991","Maplink3") -> Maplink3
A152: 792 | B152: Al-Basrah | C152: Abu Al-Khaseeb | D152: Markaz Abu Al-Khaseeb | E152: Abu flos | F152: البصرة-ابو الخصيب-ابو فلوس | G152: 30.44115491 | H152: 48.01367941 | I152: 2 | J152: 12 | K152: 0 | L152: 0 | M152: 0 | N152: 6 | O152: 0 | P152: 0 | Q152: 6 | R152: 0 | S152: 0 | T152: 0 | U152: 0 | V152: 0 | W152: 0 | X152: 0 | Y152: 0 | Z152: 12 | AA152: 0 | AB152: 0 | AC152: 0 | AD152: 0 | AE152: 0 | AF152: 0 | AG152: 0 | AH152: 0 | AI152: 0 | AJ152: 0 | AK152: 0 | AL152: 0 | AM152: 0 | AN152: 0 | AO152: 0 | AP152: 0 | AQ152: 0 | AR152: 12 | AS152: 0 | AT152: 0 | AU152: 0 | AV152: 0 | AW152: 0 | AX152: 0 | AY152: 0 | AZ152: 0 | BA152: 0 | BB152: 0 | BC152: 0 | BD152: =HYPERLINK("http://www.openstreetmap.org/?mlat=30.4412&mlon=48.0137&zoom=12#map=12/30.4412/48.0137","Maplink1") -> Maplink1 | BE152: =HYPERLINK("https://www.google.iq/maps/search/+30.4412,48.0137/@30.4412,48.0137,14z?hl=en","Maplink2") -> Maplink2 | BF152: =HYPERLINK("http://www.bing.com/maps/?lvl=14&sty=h&cp=30.4412~48.0137&sp=point.30.4412_48.0137","Maplink3") -> Maplink3
A153: 809 | B153: Al-Basrah | C153: Abu Al-Khaseeb | D153: Markaz Abu Al-Khaseeb | E153: Bab al-dabagh | F153: باب دباغ | G153: 30.44533689 | H153: 47.99518675 | I153: 5 | J153: 30 | K153: 0 | L153: 0 | M153: 0 | N153: 24 | O153: 0 | P153: 0 | Q153: 6 | R153: 0 | S153: 0 | T153: 0 | U153: 0 | V153: 0 | W153: 0 | X153: 0 | Y153: 0 | Z153: 6 | AA153: 0 | AB153: 0 | AC153: 0 | AD153: 0 | AE153: 0 | AF153: 0 | AG153: 0 | AH153: 18 | AI153: 0 | AJ153: 0 | AK153: 0 | AL153: 0 | AM153: 0 | AN153: 6 | AO153: 0 | AP153: 0 | AQ153: 0 | AR153: 0 | AS153: 24 | AT153: 0 | AU153: 0 | AV153: 6 | AW153: 0 | AX153: 0 | AY153: 0 | AZ153: 0 | BA153: 0 | BB153: 0 | BC153: 0 | BD153: =HYPERLINK("http://www.openstreetmap.org/?mlat=30.4453&mlon=47.9952&zoom=12#map=12/30.4453/47.9952","Maplink1") -> Maplink1 | BE153: =HYPERLINK("https://www.google.iq/maps/search/+30.4453,47.9952/@30.4453,47.9952,14z?hl=en","Maplink2") -> Maplink2 | BF153: =HYPERLINK("http://www.bing.com/maps/?lvl=14&sty=h&cp=30.4453~47.9952&sp=point.30.4453_47.9952","Maplink3") -> Maplink3
A154: 20783 | B154: Al-Basrah | C154: Abu Al-Khaseeb | D154: Markaz Abu Al-Khaseeb | E154: Balad Sultan | F154: ابو الخصيب-بلد سلطان | G154: 30.45303149 | H154: 47.98892154 | I154: 2 | J154: 12 | K154: 0 | L154: 0 | M154: 0 | N154: 0 | O154: 0 | P154: 0 | Q154: 12 | R154: 0 | S154: 0 | T154: 0 | U154: 0 | V154: 0 | W154: 0 | X154: 0 | Y154: 0 | Z154: 0 | AA154: 0 | AB154: 0 | AC154: 0 | AD154: 0 | AE154: 0 | AF154: 0 | AG154: 0 | AH154: 0 | AI154: 0 | AJ154: 0 | AK154: 0 | AL154: 12 | AM154: 0 | AN154: 0 | AO154: 0 | AP154: 0 | AQ154: 0 | AR154: 0 | AS154: 12 | AT154: 0 | AU154: 0 | AV154: 0 | AW154: 0 | AX154: 0 | AY154: 0 | AZ154: 0 | BA154: 0 | BB154: 0 | BC154: 0 | BD154: =HYPERLINK("http://www.openstreetmap.org/?mlat=30.453&mlon=47.9889&zoom=12#map=12/30.453/47.9889","Maplink1") -> Maplink1 | BE154: =HYPERLINK("https://www.google.iq/maps/search/+30.453,47.9889/@30.453,47.9889,14z?hl=en","Maplink2") -> Maplink2 | BF154: =HYPERLINK("http://www.bing.com/maps/?lvl=14&sty=h&cp=30.453~47.9889&sp=point.30.453_47.9889","Maplink3") -> Maplink3
A155: 24158 | B155: Al-Basrah | C155: Abu Al-Khaseeb | D155: Markaz Abu Al-Khaseeb | E155: Kut Al Solhy | F155: ابو الخصيب-كوت الصلحي | G155: 30.44771468 | H155: 47.90975432 | I155: 8 | J155: 48 | K155: 0 | L155: 0 | M155: 0 | N155: 18 | O155: 0 | P155: 0 | Q155: 30 | R155: 0 | S155: 0 | T155: 0 | U155: 0 | V155: 0 | W155: 0 | X155: 0 | Y155: 0 | Z155: 6 | AA155: 0 | AB155: 0 | AC155: 0 | AD155: 0 | AE155: 0 | AF155: 0 | AG155: 0 | AH155: 0 | AI155: 0 | AJ155: 0 | AK155: 0 | AL155: 18 | AM155: 0 | AN155: 24 | AO155: 0 | AP155: 0 | AQ155: 0 | AR155: 12 | AS155: 12 | AT155: 6 | AU155: 0 | AV155: 0 | AW155: 0 | AX155: 18 | AY155: 0 | AZ155: 0 | BA155: 0 | BB155: 0 | BC155: 0 | BD155: =HYPERLINK("http://www.openstreetmap.org/?mlat=30.4477&mlon=47.9098&zoom=12#map=12/30.4477/47.9098","Maplink1") -> Maplink1 | BE155: =HYPERLINK("https://www.google.iq/maps/search/+30.4477,47.9098/@30.4477,47.9098,14z?hl=en","Maplink2") -> Maplink2 | BF155: =HYPERLINK("http://www.bing.com/maps/?lvl=14&sty=h&cp=30.4477~47.9098&sp=point.30.4477_47.9098","Maplink3") -> Maplink3
A156: 23975 | B156: Al-Basrah | C156: Abu Al-Khaseeb | D156: Markaz Abu Al-Khaseeb | E156: Um Al Neajj | F156: البصرة-منطقة ام النعاج | G156: 30.47856341 | H156: 47.8369287 | I156: 5 | J156: 30 | K156: 0 | L156: 0 | M156: 0 | N156: 6 | O156: 0 | P156: 6 | Q156: 18 | R156: 0 | S156: 0 | T156: 0 | U156: 0 | V156: 0 | W156: 0 | X156: 0 | Y156: 0 | Z156: 0 | AA156: 0 | AB156: 0 | AC156: 0 | AD156: 0 | AE156: 0 | AF156: 0 | AG156: 0 | AH156: 0 | AI156: 0 | AJ156: 0 | AK156: 0 | AL156: 18 | AM156: 0 | AN156: 12 | AO156: 0 | AP156: 0 | AQ156: 0 | AR156: 0 | AS156: 0 | AT156: 6 | AU156: 18 | AV156: 6 | AW156: 0 | AX156: 0 | AY156: 0 | AZ156: 0 | BA156: 0 | BB156: 0 | BC156: 0 | BD156: =HYPERLINK("http://www.openstreetmap.org/?mlat=30.4786&mlon=47.8369&zoom=12#map=12/30.4786/47.8369","Maplink1") -> Maplink1 | BE156: =HYPERLINK("https://www.google.iq/maps/search/+30.4786,47.8369/@30.4786,47.8369,14z?hl=en","Maplink2") -> Maplink2 | BF156: =HYPERLINK("http://www.bing.com/maps/?lvl=14&sty=h&cp=30.4786~47.8369&sp=point.30.4786_47.8369","Maplink3") -> Maplink3
A157: 1282 | B157: Al-Basrah | C157: Al-Basrah | D157: Al-Hartha | E157: Hay Tariq | F157: البصرة-المعقل-حي طارق | G157: 30.551937 | H157: 47.7613871 | I157: 1 | J157: 6 | K157: 0 | L157: 0 | M157: 0 | N157: 0 | O157: 0 | P157: 0 | Q157: 6 | R157: 0 | S157: 0 | T157: 0 | U157: 0 | V157: 0 | W157: 0 | X157: 0 | Y157: 0 | Z157: 0 | AA157: 0 | AB157: 0 | AC157: 0 | AD157: 0 | AE157: 0 | AF157: 0 | AG157: 0 | AH157: 0 | AI157: 0 | AJ157: 0 | AK157: 0 | AL157: 6 | AM157: 0 | AN157: 0 | AO157: 0 | AP157: 0 | AQ157: 0 | AR157: 0 | AS157: 0 | AT157: 0 | AU157: 0 | AV157: 0 | AW157: 6 | AX157: 0 | AY157: 0 | AZ157: 0 | BA157: 0 | BB157: 0 | BC157: 0 | BD157: =HYPERLINK("http://www.openstreetmap.org/?mlat=30.5519&mlon=47.7614&zoom=12#map=12/30.5519/47.7614","Maplink1") -> Maplink1 | BE157: =HYPERLINK("https://www.google.iq/maps/search/+30.5519,47.7614/@30.5519,47.7614,14z?hl=en","Maplink2") -> Maplink2 | BF157: =HYPERLINK("http://www.bing.com/maps/?lvl=14&sty=h&cp=30.5519~47.7614&sp=point.30.5519_47.7614","Maplink3") -> Maplink3
A158: 1025 | B158: Al-Basrah | C158: Al-Basrah | D158: Al-Hartha | E158: Najibiah | F158: نجيبية | G158: 30.57508538 | H158: 47.76941953 | I158: 2 | J158: 12 | K158: 0 | L158: 0 | M158: 0 | N158: 12 | O158: 0 | P158: 0 | Q158: 0 | R158: 0 | S158: 0 | T158: 0 | U158: 0 | V158: 0 | W158: 0 | X158: 0 | Y158: 0 | Z158: 0 | AA158: 0 | AB158: 0 | AC158: 0 | AD158: 0 | AE158: 0 | AF158: 0 | AG158: 0 | AH158: 0 | AI158: 0 | AJ158: 0 | AK158: 0 | AL158: 6 | AM158: 0 | AN158: 6 | AO158: 0 | AP158: 0 | AQ158: 0 | AR158: 0 | AS158: 6 | AT158: 6 | AU158: 0 | AV158: 0 | AW158: 0 | AX158: 0 | AY158: 0 | AZ158: 0 | BA158: 0 | BB158: 0 | BC158: 0 | BD158: =HYPERLINK("http://www.openstreetmap.org/?mlat=30.5751&mlon=47.7694&zoom=12#map=12/30.5751/47.7694","Maplink1") -> Maplink1 | BE158: =HYPERLINK("https://www.google.iq/maps/search/+30.5751,47.7694/@30.5751,47.7694,14z?hl=en","Maplink2") -> Maplink2 | BF158: =HYPERLINK("http://www.bing.com/maps/?lvl=14&sty=h&cp=30.5751~47.7694&sp=point.30.5751_47.7694","Maplink3") -> Maplink3
A159: 29482 | B159: Al-Basrah | C159: Al-Basrah | D159: Al-Hartha | E159: Karmat Ali Hay Al Sadrain | F159: كرمة علي-حي الصدرين | G159: 30.5715373 | H159: 47.7116579 | I159: 2 | J159: 12 | K159: 0 | L159: 6 | M159: 0 | N159: 6 | O159: 0 | P159: 0 | Q159: 6 | R159: 0 | S159: 0 | T159: 0 | U159: 0 | V159: 0 | W159: 0 | X159: 0 | Y159: 0 | Z159: 0 | AA159: 0 | AB159: 0 | AC159: 0 | AD159: 0 | AE159: 6 | AF159: 0 | AG159: 0 | AH159: 0 | AI159: 0 | AJ159: 0 | AK159: 0 | AL159: 6 | AM159: 0 | AN159: 0 | AO159: 0 | AP159: 0 | AQ159: 0 | AR159: 0 | AS159: 0 | AT159: 6 | AU159: 0 | AV159: 0 | AW159: 6 | AX159: 0 | AY159: 0 | AZ159: 0 | BA159: 0 | BB159: 0 | BC159: 0 | BD159: =HYPERLINK("http://www.openstreetmap.org/?mlat=30.5715&mlon=47.7117&zoom=12#map=12/30.5715/47.7117","Maplink1") -> Maplink1 | BE159: =HYPERLINK("https://www.google.iq/maps/search/+30.5715,47.7117/@30.5715,47.7117,14z?hl=en","Maplink2") -> Maplink2 | BF159: =HYPERLINK("http://www.bing.com/maps/?lvl=14&sty=h&cp=30.5715~47.7117&sp=point.30.5715_47.7117","Maplink3") -> Maplink3
A160: 21192 | B160: Al-Basrah | C160: Al-Basrah | D160: Al-Hartha | E160: Abu Hilwa | F160: الهارثة-ابو حلوه | G160: 30.5829645 | H160: 47.7498766 | I160: 1 | J160: 6 | K160: 0 | L160: 0 | M160: 0 | N160: 6 | O160: 0 | P160: 0 | Q160: 0 | R160: 0 | S160: 0 | T160: 0 | U160: 0 | V160: 0 | W160: 0 | X160: 0 | Y160: 0 | Z160: 0 | AA160: 0 | AB160: 0 | AC160: 0 | AD160: 0 | AE160: 0 | AF160: 0 | AG160: 0 | AH160: 0 | AI160: 0 | AJ160: 0 | AK160: 0 | AL160: 0 | AM160: 0 | AN160: 6 | AO160: 0 | AP160: 0 | AQ160: 0 | AR160: 0 | AS160: 0 | AT160: 6 | AU160: 0 | AV160: 0 | AW160: 0 | AX160: 0 | AY160: 0 | AZ160: 0 | BA160: 0 | BB160: 0 | BC160: 0 | BD160: =HYPERLINK("http://www.openstreetmap.org/?mlat=30.583&mlon=47.7499&zoom=12#map=12/30.583/47.7499","Maplink1") -> Maplink1 | BE160: =HYPERLINK("https://www.google.iq/maps/search/+30.583,47.7499/@30.583,47.7499,14z?hl=en","Maplink2") -> Maplink2 | BF160: =HYPERLINK("http://www.bing.com/maps/?lvl=14&sty=h&cp=30.583~47.7499&sp=point.30.583_47.7499","Maplink3") -> Maplink3
A161: 1030 | B161: Al-Basrah | C161: Al-Basrah | D161: Al-Hartha | E161: Al-badran | F161: البصرة-الهارثة-البدران | G161: 30.58580029 | H161: 47.75836632 | I161: 4 | J161: 24 | K161: 0 | L161: 6 | M161: 0 | N161: 24 | O161: 0 | P161: 0 | Q161: 0 | R161: 0 | S161: 0 | T161: 0 | U161: 0 | V161: 0 | W161: 0 | X161: 0 | Y161: 0 | Z161: 0 | AA161: 0 | AB161: 0 | AC161: 0 | AD161: 0 | AE161: 0 | AF161: 0 | AG161: 0 | AH161: 0 | AI161: 0 | AJ161: 0 | AK161: 0 | AL161: 24 | AM161: 0 | AN161: 0 | AO161: 0 | AP161: 0 | AQ161: 0 | AR161: 0 | AS161: 24 | AT161: 0 | AU161: 0 | AV161: 0 | AW161: 0 | AX161: 0 | AY161: 0 | AZ161: 0 | BA161: 0 | BB161: 0 | BC161: 0 | BD161: =HYPERLINK("http://www.openstreetmap.org/?mlat=30.5858&mlon=47.7584&zoom=12#map=12/30.5858/47.7584","Maplink1") -> Maplink1 | BE161: =HYPERLINK("https://www.google.iq/maps/search/+30.5858,47.7584/@30.5858,47.7584,14z?hl=en","Maplink2") -> Maplink2 | BF161: =HYPERLINK("http://www.bing.com/maps/?lvl=14&sty=h&cp=30.5858~47.7584&sp=point.30.5858_47.7584","Maplink3") -> Maplink3
A162: 334 | B162: Al-Basrah | C162: Al-Basrah | D162: Al-Hartha | E162: Markaz Al Harthah | F162: البصرة-مركز الهارثة | G162: 30.58037712 | H162: 47.76300869 | I162: 1 | J162: 6 | K162: 0 | L162: 0 | M162: 0 | N162: 6 | O162: 0 | P162: 0 | Q162: 0 | R162: 0 | S162: 0 | T162: 0 | U162: 0 | V162: 0 | W162: 0 | X162: 0 | Y162: 0 | Z162: 0 | AA162: 0 | AB162: 0 | AC162: 0 | AD162: 0 | AE162: 0 | AF162: 0 | AG162: 0 | AH162: 0 | AI162: 0 | AJ162: 0 | AK162: 0 | AL162: 0 | AM162: 0 | AN162: 6 | AO162: 0 | AP162: 0 | AQ162: 0 | AR162: 0 | AS162: 0 | AT162: 0 | AU162: 6 | AV162: 0 | AW162: 0 | AX162: 0 | AY162: 0 | AZ162: 0 | BA162: 0 | BB162: 0 | BC162: 0 | BD162: =HYPERLINK("http://www.openstreetmap.org/?mlat=30.5804&mlon=47.763&zoom=12#map=12/30.5804/47.763","Maplink1") -> Maplink1 | BE162: =HYPERLINK("https://www.google.iq/maps/search/+30.5804,47.763/@30.5804,47.763,14z?hl=en","Maplink2") -> Maplink2 | BF162: =HYPERLINK("http://www.bing.com/maps/?lvl=14&sty=h&cp=30.5804~47.763&sp=point.30.5804_47.763","Maplink3") -> Maplink3
A163: 28406 | B163: Al-Basrah | C163: Al-Basrah | D163: Al-Hartha | E163: Al Dair-Hay Al-Amil | F163: الدير-حي العامل | G163: 30.7193883 | H163: 47.71799784 | I163: 3 | J163: 18 | K163: 0 | L163: 0 | M163: 0 | N163: 0 | O163: 0 | P163: 0 | Q163: 18 | R163: 0 | S163: 0 | T163: 0 | U163: 0 | V163: 0 | W163: 0 | X163: 0 | Y163: 0 | Z163: 0 | AA163: 0 | AB163: 0 | AC163: 0 | AD163: 0 | AE163: 0 | AF163: 0 | AG163: 0 | AH163: 0 | AI163: 0 | AJ163: 0 | AK163: 0 | AL163: 12 | AM163: 0 | AN163: 6 | AO163: 0 | AP163: 0 | AQ163: 0 | AR163: 0 | AS163: 0 | AT163: 6 | AU163: 6 | AV163: 0 | AW163: 6 | AX163: 0 | AY163: 0 | AZ163: 0 | BA163: 0 | BB163: 0 | BC163: 0 | BD163: =HYPERLINK("http://www.openstreetmap.org/?mlat=30.7194&mlon=47.718&zoom=12#map=12/30.7194/47.718","Maplink1") -> Maplink1 | BE163: =HYPERLINK("https://www.google.iq/maps/search/+30.7194,47.718/@30.7194,47.718,14z?hl=en","Maplink2") -> Maplink2 | BF163: =HYPERLINK("http://www.bing.com/maps/?lvl=14&sty=h&cp=30.7194~47.718&sp=point.30.7194_47.718","Maplink3") -> Maplink3
A164: 1048 | B164: Al-Basrah | C164: Al-Basrah | D164: Al-Hartha | E164: Door at-taqa | F164: دور الطاقة | G164: 30.6771433 | H164: 47.7452379 | I164: 2 | J164: 12 | K164: 0 | L164: 0 | M164: 0 | N164: 12 | O164: 0 | P164: 0 | Q164: 0 | R164: 0 | S164: 0 | T164: 0 | U164: 0 | V164: 0 | W164: 0 | X164: 0 | Y164: 0 | Z164: 0 | AA164: 12 | AB164: 0 | AC164: 0 | AD164: 0 | AE164: 0 | AF164: 0 | AG164: 0 | AH164: 0 | AI164: 0 | AJ164: 0 | AK164: 0 | AL164: 0 | AM164: 0 | AN164: 0 | AO164: 0 | AP164: 0 | AQ164: 0 | AR164: 0 | AS164: 0 | AT164: 0 | AU164: 12 | AV164: 0 | AW164: 0 | AX164: 0 | AY164: 0 | AZ164: 0 | BA164: 0 | BB164: 0 | BC164: 0 | BD164: =HYPERLINK("http://www.openstreetmap.org/?mlat=30.6771&mlon=47.7452&zoom=12#map=12/30.6771/47.7452","Maplink1") -> Maplink1 | BE164: =HYPERLINK("https://www.google.iq/maps/search/+30.6771,47.7452/@30.6771,47.7452,14z?hl=en","Maplink2") -> Maplink2 | BF164: =HYPERLINK("http://www.bing.com/maps/?lvl=14&sty=h&cp=30.6771~47.7452&sp=point.30.6771_47.7452","Maplink3") -> Maplink3
A165: 602 | B165: Al-Basrah | C165: Al-Basrah | D165: Markaz Al-Basrah | E165: Hai al-mohandesin | F165: البصرة-حي المهندسين | G165: 30.45568739 | H165: 47.79205658 | I165: 16 | J165: 96 | K165: 0 | L165: 0 | M165: 0 | N165: 0 | O165: 0 | P165: 0 | Q165: 96 | R165: 0 | S165: 0 | T165: 0 | U165: 0 | V165: 0 | W165: 0 | X165: 0 | Y165: 0 | Z165: 18 | AA165: 0 | AB165: 0 | AC165: 0 | AD165: 0 | AE165: 12 | AF165: 0 | AG165: 0 | AH165: 12 | AI165: 0 | AJ165: 0 | AK165: 0 | AL165: 0 | AM165: 0 | AN165: 54 | AO165: 0 | AP165: 0 | AQ165: 0 | AR165: 12 | AS165: 36 | AT165: 18 | AU165: 30 | AV165: 0 | AW165: 0 | AX165: 0 | AY165: 0 | AZ165: 0 | BA165: 0 | BB165: 0 | BC165: 0 | BD165: =HYPERLINK("http://www.openstreetmap.org/?mlat=30.4557&mlon=47.7921&zoom=12#map=12/30.4557/47.7921","Maplink1") -> Maplink1 | BE165: =HYPERLINK("https://www.google.iq/maps/search/+30.4557,47.7921/@30.4557,47.7921,14z?hl=en","Maplink2") -> Maplink2 | BF165: =HYPERLINK("http://www.bing.com/maps/?lvl=14&sty=h&cp=30.4557~47.7921&sp=point.30.4557_47.7921","Maplink3") -> Maplink3
A166: 24126 | B166: Al-Basrah | C166: Al-Basrah | D166: Markaz Al-Basrah | E166: Hay Al Jamiah | F166: البصرة-القبلة-حي الجامعة | G166: 30.47204882 | H166: 47.80269496 | I166: 9 | J166: 54 | K166: 0 | L166: 0 | M166: 0 | N166: 6 | O166: 0 | P166: 0 | Q166: 48 | R166: 0 | S166: 0 | T166: 0 | U166: 0 | V166: 0 | W166: 0 | X166: 0 | Y166: 0 | Z166: 6 | AA166: 0 | AB166: 0 | AC166: 0 | AD166: 0 | AE166: 0 | AF166: 0 | AG166: 0 | AH166: 0 | AI166: 0 | AJ166: 0 | AK166: 0 | AL166: 30 | AM166: 0 | AN166: 18 | AO166: 0 | AP166: 0 | AQ166: 0 | AR166: 0 | AS166: 18 | AT166: 24 | AU166: 0 | AV166: 6 | AW166: 0 | AX166: 6 | AY166: 0 | AZ166: 0 | BA166: 0 | BB166: 0 | BC166: 0 | BD166: =HYPERLINK("http://www.openstreetmap.org/?mlat=30.472&mlon=47.8027&zoom=12#map=12/30.472/47.8027","Maplink1") -> Maplink1 | BE166: =HYPERLINK("https://www.google.iq/maps/search/+30.472,47.8027/@30.472,47.8027,14z?hl=en","Maplink2") -> Maplink2 | BF166: =HYPERLINK("http://www.bing.com/maps/?lvl=14&sty=h&cp=30.472~47.8027&sp=point.30.472_47.8027","Maplink3") -> Maplink3
A167: 996 | B167: Al-Basrah | C167: Al-Basrah | D167: Markaz Al-Basrah | E167: Al Maqil | F167: البصرة-المعقل-حي جنادين | G167: 30.5562461 | H167: 47.78879602 | I167: 1 | J167: 6 | K167: 0 | L167: 0 | M167: 0 | N167: 0 | O167: 0 | P167: 0 | Q167: 6 | R167: 0 | S167: 0 | T167: 0 | U167: 0 | V167: 0 | W167: 0 | X167: 0 | Y167: 0 | Z167: 0 | AA167: 0 | AB167: 0 | AC167: 0 | AD167: 0 | AE167: 0 | AF167: 0 | AG167: 0 | AH167: 6 | AI167: 0 | AJ167: 0 | AK167: 0 | AL167: 0 | AM167: 0 | AN167: 0 | AO167: 0 | AP167: 0 | AQ167: 0 | AR167: 0 | AS167: 0 | AT167: 6 | AU167: 0 | AV167: 0 | AW167: 0 | AX167: 0 | AY167: 0 | AZ167: 0 | BA167: 0 | BB167: 0 | BC167: 0 | BD167: =HYPERLINK("http://www.openstreetmap.org/?mlat=30.5562&mlon=47.7888&zoom=12#map=12/30.5562/47.7888","Maplink1") -> Maplink1 | BE167: =HYPERLINK("https://www.google.iq/maps/search/+30.5562,47.7888/@30.5562,47.7888,14z?hl=en","Maplink2") -> Maplink2 | BF167: =HYPERLINK("http://www.bing.com/maps/?lvl=14&sty=h&cp=30.5562~47.7888&sp=point.30.5562_47.7888","Maplink3") -> Maplink3
A168: 1306 | B168: Al-Basrah | C168: Al-Basrah | D168: Markaz Al-Basrah | E168: Al-Mishraq Al-Jadeed | F168: البصرة-المشراق-المشراق الجديد | G168: 30.48498484 | H168: 47.81155873 | I168: 8 | J168: 48 | K168: 0 | L168: 0 | M168: 0 | N168: 6 | O168: 0 | P168: 0 | Q168: 42 | R168: 0 | S168: 0 | T168: 0 | U168: 0 | V168: 0 | W168: 0 | X168: 0 | Y168: 0 | Z168: 12 | AA168: 0 | AB168: 0 | AC168: 0 | AD168: 0 | AE168: 6 | AF168: 0 | AG168: 0 | AH168: 0 | AI168: 0 | AJ168: 0 | AK168: 0 | AL168: 18 | AM168: 0 | AN168: 12 | AO168: 0 | AP168: 0 | AQ168: 0 | AR168: 0 | AS168: 6 | AT168: 18 | AU168: 6 | AV168: 12 | AW168: 0 | AX168: 6 | AY168: 0 | AZ168: 0 | BA168: 0 | BB168: 0 | BC168: 0 | BD168: =HYPERLINK("http://www.openstreetmap.org/?mlat=30.485&mlon=47.8116&zoom=12#map=12/30.485/47.8116","Maplink1") -> Maplink1 | BE168: =HYPERLINK("https://www.google.iq/maps/search/+30.485,47.8116/@30.485,47.8116,14z?hl=en","Maplink2") -> Maplink2 | BF168: =HYPERLINK("http://www.bing.com/maps/?lvl=14&sty=h&cp=30.485~47.8116&sp=point.30.485_47.8116","Maplink3") -> Maplink3
A169: 511 | B169: Al-Basrah | C169: Al-Basrah | D169: Markaz Al-Basrah | E169: Al Khaleej4 | F169: البصرة-الجمعيات-حي الخليج 4 | G169: 30.50661729 | H169: 47.78029339 | I169: 6 | J169: 36 | K169: 0 | L169: 0 | M169: 0 | N169: 0 | O169: 0 | P169: 18 | Q169: 18 | R169: 0 | S169: 0 | T169: 0 | U169: 0 | V169: 0 | W169: 0 | X169: 0 | Y169: 0 | Z169: 6 | AA169: 0 | AB169: 0 | AC169: 0 | AD169: 0 | AE169: 0 | AF169: 0 | AG169: 0 | AH169: 0 | AI169: 0 | AJ169: 0 | AK169: 0 | AL169: 12 | AM169: 0 | AN169: 18 | AO169: 0 | AP169: 0 | AQ169: 0 | AR169: 12 | AS169: 0 | AT169: 0 | AU169: 6 | AV169: 0 | AW169: 18 | AX169: 0 | AY169: 0 | AZ169: 0 | BA169: 0 | BB169: 0 | BC169: 0 | BD169: =HYPERLINK("http://www.openstreetmap.org/?mlat=30.5066&mlon=47.7803&zoom=12#map=12/30.5066/47.7803","Maplink1") -> Maplink1 | BE169: =HYPERLINK("https://www.google.iq/maps/search/+30.5066,47.7803/@30.5066,47.7803,14z?hl=en","Maplink2") -> Maplink2 | BF169: =HYPERLINK("http://www.bing.com/maps/?lvl=14&sty=h&cp=30.5066~47.7803&sp=point.30.5066_47.7803","Maplink3") -> Maplink3
A170: 905 | B170: Al-Basrah | C170: Al-Basrah | D170: Markaz Al-Basrah | E170: Al-asma_i al-jadeed | F170: الاصمعي الجديد | G170: 30.5084754 | H170: 47.79194036 | I170: 7 | J170: 42 | K170: 0 | L170: 0 | M170: 0 | N170: 12 | O170: 0 | P170: 0 | Q170: 30 | R170: 0 | S170: 0 | T170: 0 | U170: 0 | V170: 0 | W170: 0 | X170: 0 | Y170: 0 | Z170: 0 | AA170: 0 | AB170: 12 | AC170: 0 | AD170: 0 | AE170: 0 | AF170: 0 | AG170: 0 | AH170: 6 | AI170: 0 | AJ170: 0 | AK170: 0 | AL170: 18 | AM170: 0 | AN170: 6 | AO170: 0 | AP170: 0 | AQ170: 0 | AR170: 18 | AS170: 0 | AT170: 6 | AU170: 12 | AV170: 0 | AW170: 0 | AX170: 6 | AY170: 0 | AZ170: 0 | BA170: 0 | BB170: 0 | BC170: 0 | BD170: =HYPERLINK("http://www.openstreetmap.org/?mlat=30.5085&mlon=47.7919&zoom=12#map=12/30.5085/47.7919","Maplink1") -> Maplink1 | BE170: =HYPERLINK("https://www.google.iq/maps/search/+30.5085,47.7919/@30.5085,47.7919,14z?hl=en","Maplink2") -> Maplink2 | BF170: =HYPERLINK("http://www.bing.com/maps/?lvl=14&sty=h&cp=30.5085~47.7919&sp=point.30.5085_47.7919","Maplink3") -> Maplink3
A171: 1295 | B171: Al-Basrah | C171: Al-Basrah | D171: Markaz Al-Basrah | E171: Door Al Dubbat | F171: دور الضباط | G171: 30.53369211 | H171: 47.78785944 | I171: 7 | J171: 42 | K171: 0 | L171: 0 | M171: 0 | N171: 6 | O171: 0 | P171: 0 | Q171: 36 | R171: 0 | S171: 0 | T171: 0 | U171: 0 | V171: 0 | W171: 0 | X171: 0 | Y171: 0 | Z171: 0 | AA171: 0 | AB171: 0 | AC171: 0 | AD171: 0 | AE171: 0 | AF171: 0 | AG171: 0 | AH171: 6 | AI171: 0 | AJ171: 0 | AK171: 0 | AL171: 0 | AM171: 0 | AN171: 36 | AO171: 0 | AP171: 0 | AQ171: 0 | AR171: 0 | AS171: 0 | AT171: 0 | AU171: 36 | AV171: 0 | AW171: 0 | AX171: 6 | AY171: 0 | AZ171: 0 | BA171: 0 | BB171: 0 | BC171: 0 | BD171: =HYPERLINK("http://www.openstreetmap.org/?mlat=30.5337&mlon=47.7879&zoom=12#map=12/30.5337/47.7879","Maplink1") -> Maplink1 | BE171: =HYPERLINK("https://www.google.iq/maps/search/+30.5337,47.7879/@30.5337,47.7879,14z?hl=en","Maplink2") -> Maplink2 | BF171: =HYPERLINK("http://www.bing.com/maps/?lvl=14&sty=h&cp=30.5337~47.7879&sp=point.30.5337_47.7879","Maplink3") -> Maplink3
A172: 869 | B172: Al-Basrah | C172: Al-Basrah | D172: Markaz Al-Basrah | E172: Hai al-hussain-2 | F172: الحيانية-حي الحسين 2 | G172: 30.49641258 | H172: 47.77322437 | I172: 2 | J172: 12 | K172: 0 | L172: 0 | M172: 0 | N172: 0 | O172: 0 | P172: 0 | Q172: 12 | R172: 0 | S172: 0 | T172: 0 | U172: 0 | V172: 0 | W172: 0 | X172: 0 | Y172: 0 | Z172: 0 | AA172: 0 | AB172: 0 | AC172: 0 | AD172: 0 | AE172: 0 | AF172: 0 | AG172: 0 | AH172: 0 | AI172: 0 | AJ172: 0 | AK172: 0 | AL172: 0 | AM172: 0 | AN172: 12 | AO172: 0 | AP172: 0 | AQ172: 0 | AR172: 12 | AS172: 0 | AT172: 0 | AU172: 0 | AV172: 0 | AW172: 0 | AX172: 0 | AY172: 0 | AZ172: 0 | BA172: 0 | BB172: 0 | BC172: 0 | BD172: =HYPERLINK("http://www.openstreetmap.org/?mlat=30.4964&mlon=47.7732&zoom=12#map=12/30.4964/47.7732","Maplink1") -> Maplink1 | BE172: =HYPERLINK("https://www.google.iq/maps/search/+30.4964,47.7732/@30.4964,47.7732,14z?hl=en","Maplink2") -> Maplink2 | BF172: =HYPERLINK("http://www.bing.com/maps/?lvl=14&sty=h&cp=30.4964~47.7732&sp=point.30.4964_47.7732","Maplink3") -> Maplink3
A173: 891 | B173: Al-Basrah | C173: Al-Basrah | D173: Markaz Al-Basrah | E173: Manawi pasha | F173: مناوي باشا | G173: 30.5084296 | H173: 47.8411113 | I173: 11 | J173: 66 | K173: 0 | L173: 0 | M173: 0 | N173: 12 | O173: 0 | P173: 0 | Q173: 54 | R173: 0 | S173: 0 | T173: 0 | U173: 0 | V173: 0 | W173: 0 | X173: 0 | Y173: 0 | Z173: 24 | AA173: 0 | AB173: 0 | AC173: 0 | AD173: 0 | AE173: 0 | AF173: 0 | AG173: 0 | AH173: 0 | AI173: 0 | AJ173: 0 | AK173: 0 | AL173: 12 | AM173: 0 | AN173: 30 | AO173: 0 | AP173: 0 | AQ173: 0 | AR173: 0 | AS173: 12 | AT173: 0 | AU173: 42 | AV173: 12 | AW173: 0 | AX173: 0 | AY173: 0 | AZ173: 0 | BA173: 0 | BB173: 0 | BC173: 0 | BD173: =HYPERLINK("http://www.openstreetmap.org/?mlat=30.5084&mlon=47.8411&zoom=12#map=12/30.5084/47.8411","Maplink1") -> Maplink1 | BE173: =HYPERLINK("https://www.google.iq/maps/search/+30.5084,47.8411/@30.5084,47.8411,14z?hl=en","Maplink2") -> Maplink2 | BF173: =HYPERLINK("http://www.bing.com/maps/?lvl=14&sty=h&cp=30.5084~47.8411&sp=point.30.5084_47.8411","Maplink3") -> Maplink3
A174: 885 | B174: Al-Basrah | C174: Al-Basrah | D174: Markaz Al-Basrah | E174: Al Khaleej2 | F174: البصرة-الجمعيات-حي الخليج 2 | G174: 30.49501922 | H174: 47.78894843 | I174: 5 | J174: 30 | K174: 0 | L174: 0 | M174: 0 | N174: 0 | O174: 0 | P174: 0 | Q174: 24 | R174: 0 | S174: 6 | T174: 0 | U174: 0 | V174: 0 | W174: 0 | X174: 0 | Y174: 0 | Z174: 0 | AA174: 0 | AB174: 0 | AC174: 0 | AD174: 0 | AE174: 0 | AF174: 0 | AG174: 0 | AH174: 0 | AI174: 0 | AJ174: 0 | AK174: 0 | AL174: 24 | AM174: 0 | AN174: 6 | AO174: 0 | AP174: 0 | AQ174: 0 | AR174: 0 | AS174: 6 | AT174: 24 | AU174: 0 | AV174: 0 | AW174: 0 | AX174: 0 | AY174: 0 | AZ174: 0 | BA174: 0 | BB174: 0 | BC174: 0 | BD174: =HYPERLINK("http://www.openstreetmap.org/?mlat=30.495&mlon=47.7889&zoom=12#map=12/30.495/47.7889","Maplink1") -> Maplink1 | BE174: =HYPERLINK("https://www.google.iq/maps/search/+30.495,47.7889/@30.495,47.7889,14z?hl=en","Maplink2") -> Maplink2 | BF174: =HYPERLINK("http://www.bing.com/maps/?lvl=14&sty=h&cp=30.495~47.7889&sp=point.30.495_47.7889","Maplink3") -> Maplink3
A175: 872 | B175: Al-Basrah | C175: Al-Basrah | D175: Markaz Al-Basrah | E175: Al-bradhia | F175: البصرة-البراضعية | G175: 30.50578269 | H175: 47.85047498 | I175: 5 | J175: 30 | K175: 0 | L175: 0 | M175: 0 | N175: 6 | O175: 0 | P175: 0 | Q175: 24 | R175: 0 | S175: 0 | T175: 0 | U175: 0 | V175: 0 | W175: 0 | X175: 0 | Y175: 0 | Z175: 0 | AA175: 0 | AB175: 0 | AC175: 0 | AD175: 0 | AE175: 0 | AF175: 0 | AG175: 0 | AH175: 12 | AI175: 0 | AJ175: 0 | AK175: 0 | AL175: 0 | AM175: 0 | AN175: 18 | AO175: 0 | AP175: 0 | AQ175: 0 | AR175: 0 | AS175: 0 | AT175: 12 | AU175: 6 | AV175: 12 | AW175: 0 | AX175: 0 | AY175: 0 | AZ175: 0 | BA175: 0 | BB175: 0 | BC175: 0 | BD175: =HYPERLINK("http://www.openstreetmap.org/?mlat=30.5058&mlon=47.8505&zoom=12#map=12/30.5058/47.8505","Maplink1") -> Maplink1 | BE175: =HYPERLINK("https://www.google.iq/maps/search/+30.5058,47.8505/@30.5058,47.8505,14z?hl=en","Maplink2") -> Maplink2 | BF175: =HYPERLINK("http://www.bing.com/maps/?lvl=14&sty=h&cp=30.5058~47.8505&sp=point.30.5058_47.8505","Maplink3") -> Maplink3
A176: 24624 | B176: Al-Basrah | C176: Al-Basrah | D176: Markaz Al-Basrah | E176: Basra al qadima-Al Sadoniyah | F176: البصرة القديمة-السعدونية | G176: 30.49206722 | H176: 47.81301638 | I176: 6 | J176: 36 | K176: 0 | L176: 0 | M176: 0 | N176: 18 | O176: 0 | P176: 0 | Q176: 18 | R176: 0 | S176: 0 | T176: 0 | U176: 0 | V176: 0 | W176: 0 | X176: 0 | Y176: 0 | Z176: 6 | AA176: 0 | AB176: 0 | AC176: 0 | AD176: 0 | AE176: 12 | AF176: 0 | AG176: 0 | AH176: 6 | AI176: 0 | AJ176: 0 | AK176: 0 | AL176: 12 | AM176: 0 | AN176: 0 | AO176: 0 | AP176: 0 | AQ176: 0 | AR176: 12 | AS176: 6 | AT176: 12 | AU176: 6 | AV176: 0 | AW176: 0 | AX176: 0 | AY176: 0 | AZ176: 0 | BA176: 0 | BB176: 0 | BC176: 0 | BD176: =HYPERLINK("http://www.openstreetmap.org/?mlat=30.4921&mlon=47.813&zoom=12#map=12/30.4921/47.813","Maplink1") -> Maplink1 | BE176: =HYPERLINK("https://www.google.iq/maps/search/+30.4921,47.813/@30.4921,47.813,14z?hl=en","Maplink2") -> Maplink2 | BF176: =HYPERLINK("http://www.bing.com/maps/?lvl=14&sty=h&cp=30.4921~47.813&sp=point.30.4921_47.813","Maplink3") -> Maplink3
A177: 983 | B177: Al-Basrah | C177: Al-Basrah | D177: Markaz Al-Basrah | E177: Door al-hendiya | F177: دور الهندية | G177: 30.54471257 | H177: 47.78929433 | I177: 3 | J177: 18 | K177: 0 | L177: 0 | M177: 0 | N177: 0 | O177: 0 | P177: 0 | Q177: 18 | R177: 0 | S177: 0 | T177: 0 | U177: 0 | V177: 0 | W177: 0 | X177: 0 | Y177: 0 | Z177: 0 | AA177: 0 | AB177: 0 | AC177: 0 | AD177: 0 | AE177: 0 | AF177: 0 | AG177: 0 | AH177: 0 | AI177: 0 | AJ177: 0 | AK177: 0 | AL177: 0 | AM177: 0 | AN177: 18 | AO177: 0 | AP177: 0 | AQ177: 0 | AR177: 0 | AS177: 0 | AT177: 6 | AU177: 12 | AV177: 0 | AW177: 0 | AX177: 0 | AY177: 0 | AZ177: 0 | BA177: 0 | BB177: 0 | BC177: 0 | BD177: =HYPERLINK("http://www.openstreetmap.org/?mlat=30.5447&mlon=47.7893&zoom=12#map=12/30.5447/47.7893","Maplink1") -> Maplink1 | BE177: =HYPERLINK("https://www.google.iq/maps/search/+30.5447,47.7893/@30.5447,47.7893,14z?hl=en","Maplink2") -> Maplink2 | BF177: =HYPERLINK("http://www.bing.com/maps/?lvl=14&sty=h&cp=30.5447~47.7893&sp=point.30.5447_47.7893","Maplink3") -> Maplink3
A178: 1284 | B178: Al-Basrah | C178: Al-Basrah | D178: Markaz Al-Basrah | E178: Door Al-Shooen | F178: دور الشؤون | G178: 30.49530034 | H178: 47.81080513 | I178: 3 | J178: 18 | K178: 0 | L178: 0 | M178: 0 | N178: 6 | O178: 0 | P178: 0 | Q178: 12 | R178: 0 | S178: 0 | T178: 0 | U178: 0 | V178: 0 | W178: 0 | X178: 0 | Y178: 0 | Z178: 6 | AA178: 0 | AB178: 0 | AC178: 0 | AD178: 0 | AE178: 0 | AF178: 0 | AG178: 0 | AH178: 0 | AI178: 0 | AJ178: 0 | AK178: 0 | AL178: 0 | AM178: 0 | AN178: 12 | AO178: 0 | AP178: 0 | AQ178: 0 | AR178: 0 | AS178: 12 | AT178: 6 | AU178: 0 | AV178: 0 | AW178: 0 | AX178: 0 | AY178: 0 | AZ178: 0 | BA178: 0 | BB178: 0 | BC178: 0 | BD178: =HYPERLINK("http://www.openstreetmap.org/?mlat=30.4953&mlon=47.8108&zoom=12#map=12/30.4953/47.8108","Maplink1") -> Maplink1 | BE178: =HYPERLINK("https://www.google.iq/maps/search/+30.4953,47.8108/@30.4953,47.8108,14z?hl=en","Maplink2") -> Maplink2 | BF178: =HYPERLINK("http://www.bing.com/maps/?lvl=14&sty=h&cp=30.4953~47.8108&sp=point.30.4953_47.8108","Maplink3") -> Maplink3
A179: 854 | B179: Al-Basrah | C179: Al-Basrah | D179: Markaz Al-Basrah | E179: Hai al-kafa_at | F179: البصرة-حي الكفاءات | G179: 30.4999937 | H179: 47.81254713 | I179: 3 | J179: 18 | K179: 0 | L179: 0 | M179: 0 | N179: 0 | O179: 0 | P179: 12 | Q179: 0 | R179: 6 | S179: 0 | T179: 0 | U179: 0 | V179: 0 | W179: 0 | X179: 0 | Y179: 0 | Z179: 0 | AA179: 0 | AB179: 0 | AC179: 0 | AD179: 0 | AE179: 0 | AF179: 0 | AG179: 0 | AH179: 0 | AI179: 0 | AJ179: 0 | AK179: 0 | AL179: 18 | AM179: 0 | AN179: 0 | AO179: 0 | AP179: 0 | AQ179: 0 | AR179: 0 | AS179: 6 | AT179: 6 | AU179: 6 | AV179: 0 | AW179: 0 | AX179: 0 | AY179: 0 | AZ179: 0 | BA179: 0 | BB179: 0 | BC179: 0 | BD179: =HYPERLINK("http://www.openstreetmap.org/?mlat=30.5&mlon=47.8125&zoom=12#map=12/30.5/47.8125","Maplink1") -> Maplink1 | BE179: =HYPERLINK("https://www.google.iq/maps/search/+30.5,47.8125/@30.5,47.8125,14z?hl=en","Maplink2") -> Maplink2 | BF179: =HYPERLINK("http://www.bing.com/maps/?lvl=14&sty=h&cp=30.5~47.8125&sp=point.30.5_47.8125","Maplink3") -> Maplink3
A180: 933 | B180: Al-Basrah | C180: Al-Basrah | D180: Markaz Al-Basrah | E180: Hai Al-Khadhraa | F180: حي الخضراء | G180: 30.5226344 | H180: 47.80915546 | I180: 2 | J180: 12 | K180: 0 | L180: 0 | M180: 0 | N180: 6 | O180: 0 | P180: 0 | Q180: 6 | R180: 0 | S180: 0 | T180: 0 | U180: 0 | V180: 0 | W180: 0 | X180: 0 | Y180: 0 | Z180: 0 | AA180: 0 | AB180: 0 | AC180: 0 | AD180: 0 | AE180: 0 | AF180: 0 | AG180: 0 | AH180: 0 | AI180: 0 | AJ180: 0 | AK180: 0 | AL180: 12 | AM180: 0 | AN180: 0 | AO180: 0 | AP180: 0 | AQ180: 0 | AR180: 0 | AS180: 12 | AT180: 0 | AU180: 0 | AV180: 0 | AW180: 0 | AX180: 0 | AY180: 0 | AZ180: 0 | BA180: 0 | BB180: 0 | BC180: 0 | BD180: =HYPERLINK("http://www.openstreetmap.org/?mlat=30.5226&mlon=47.8092&zoom=12#map=12/30.5226/47.8092","Maplink1") -> Maplink1 | BE180: =HYPERLINK("https://www.google.iq/maps/search/+30.5226,47.8092/@30.5226,47.8092,14z?hl=en","Maplink2") -> Maplink2 | BF180: =HYPERLINK("http://www.bing.com/maps/?lvl=14&sty=h&cp=30.5226~47.8092&sp=point.30.5226_47.8092","Maplink3") -> Maplink3
A181: 1272 | B181: Al-Basrah | C181: Al-Basrah | D181: Markaz Al-Basrah | E181: Hay Al-Asdiqaa | F181: حي الاصدقاء | G181: 30.51505348 | H181: 47.7756207 | I181: 4 | J181: 24 | K181: 0 | L181: 0 | M181: 0 | N181: 0 | O181: 0 | P181: 6 | Q181: 18 | R181: 0 | S181: 0 | T181: 0 | U181: 0 | V181: 0 | W181: 0 | X181: 0 | Y181: 0 | Z181: 0 | AA181: 0 | AB181: 0 | AC181: 0 | AD181: 0 | AE181: 0 | AF181: 0 | AG181: 0 | AH181: 12 | AI181: 0 | AJ181: 0 | AK181: 0 | AL181: 6 | AM181: 0 | AN181: 6 | AO181: 0 | AP181: 0 | AQ181: 0 | AR181: 6 | AS181: 0 | AT181: 12 | AU181: 6 | AV181: 0 | AW181: 0 | AX181: 0 | AY181: 0 | AZ181: 0 | BA181: 0 | BB181: 0 | BC181: 0 | BD181: =HYPERLINK("http://www.openstreetmap.org/?mlat=30.5151&mlon=47.7756&zoom=12#map=12/30.5151/47.7756","Maplink1") -> Maplink1 | BE181: =HYPERLINK("https://www.google.iq/maps/search/+30.5151,47.7756/@30.5151,47.7756,14z?hl=en","Maplink2") -> Maplink2 | BF181: =HYPERLINK("http://www.bing.com/maps/?lvl=14&sty=h&cp=30.5151~47.7756&sp=point.30.5151_47.7756","Maplink3") -> Maplink3
A182: 911 | B182: Al-Basrah | C182: Al-Basrah | D182: Markaz Al-Basrah | E182: Hay Al-Zohoor | F182: البصرة-العشار-حي الزهور | G182: 30.51588878 | H182: 47.84215422 | I182: 1 | J182: 6 | K182: 0 | L182: 0 | M182: 0 | N182: 0 | O182: 0 | P182: 0 | Q182: 6 | R182: 0 | S182: 0 | T182: 0 | U182: 0 | V182: 0 | W182: 0 | X182: 0 | Y182: 0 | Z182: 0 | AA182: 0 | AB182: 0 | AC182: 0 | AD182: 0 | AE182: 0 | AF182: 0 | AG182: 0 | AH182: 0 | AI182: 0 | AJ182: 0 | AK182: 0 | AL182: 0 | AM182: 0 | AN182: 6 | AO182: 0 | AP182: 0 | AQ182: 0 | AR182: 0 | AS182: 0 | AT182: 6 | AU182: 0 | AV182: 0 | AW182: 0 | AX182: 0 | AY182: 0 | AZ182: 0 | BA182: 0 | BB182: 0 | BC182: 0 | BD182: =HYPERLINK("http://www.openstreetmap.org/?mlat=30.5159&mlon=47.8422&zoom=12#map=12/30.5159/47.8422","Maplink1") -> Maplink1 | BE182: =HYPERLINK("https://www.google.iq/maps/search/+30.5159,47.8422/@30.5159,47.8422,14z?hl=en","Maplink2") -> Maplink2 | BF182: =HYPERLINK("http://www.bing.com/maps/?lvl=14&sty=h&cp=30.5159~47.8422&sp=point.30.5159_47.8422","Maplink3") -> Maplink3
A183: 29508 | B183: Al-Basrah | C183: Al-Basrah | D183: Markaz Al-Basrah | E183: Mojamaa Al Hussain Al Sakni | F183: مجمع الحسين السكني | G183: 30.48416033 | H183: 47.79348285 | I183: 4 | J183: 24 | K183: 0 | L183: 0 | M183: 0 | N183: 0 | O183: 0 | P183: 0 | Q183: 24 | R183: 0 | S183: 0 | T183: 0 | U183: 0 | V183: 0 | W183: 0 | X183: 0 | Y183: 0 | Z183: 0 | AA183: 0 | AB183: 0 | AC183: 0 | AD183: 0 | AE183: 0 | AF183: 0 | AG183: 0 | AH183: 0 | AI183: 0 | AJ183: 0 | AK183: 0 | AL183: 6 | AM183: 0 | AN183: 18 | AO183: 0 | AP183: 0 | AQ183: 0 | AR183: 0 | AS183: 18 | AT183: 0 | AU183: 6 | AV183: 0 | AW183: 0 | AX183: 0 | AY183: 0 | AZ183: 0 | BA183: 0 | BB183: 0 | BC183: 0 | BD183: =HYPERLINK("http://www.openstreetmap.org/?mlat=30.4842&mlon=47.7935&zoom=12#map=12/30.4842/47.7935","Maplink1") -> Maplink1 | BE183: =HYPERLINK("https://www.google.iq/maps/search/+30.4842,47.7935/@30.4842,47.7935,14z?hl=en","Maplink2") -> Maplink2 | BF183: =HYPERLINK("http://www.bing.com/maps/?lvl=14&sty=h&cp=30.4842~47.7935&sp=point.30.4842_47.7935","Maplink3") -> Maplink3
A184: 21097 | B184: Al-Basrah | C184: Al-Basrah | D184: Markaz Al-Basrah | E184: Manawi Lajim Quarter | F184: مناوي لجم | G184: 30.49558604 | H184: 47.83865168 | I184: 14 | J184: 84 | K184: 0 | L184: 0 | M184: 0 | N184: 36 | O184: 0 | P184: 0 | Q184: 48 | R184: 0 | S184: 0 | T184: 0 | U184: 0 | V184: 0 | W184: 0 | X184: 0 | Y184: 0 | Z184: 6 | AA184: 0 | AB184: 0 | AC184: 0 | AD184: 0 | AE184: 0 | AF184: 0 | AG184: 0 | AH184: 0 | AI184: 0 | AJ184: 0 | AK184: 0 | AL184: 24 | AM184: 0 | AN184: 54 | AO184: 0 | AP184: 0 | AQ184: 0 | AR184: 6 | AS184: 12 | AT184: 6 | AU184: 36 | AV184: 0 | AW184: 6 | AX184: 12 | AY184: 6 | AZ184: 0 | BA184: 0 | BB184: 0 | BC184: 0 | BD184: =HYPERLINK("http://www.openstreetmap.org/?mlat=30.4956&mlon=47.8387&zoom=12#map=12/30.4956/47.8387","Maplink1") -> Maplink1 | BE184: =HYPERLINK("https://www.google.iq/maps/search/+30.4956,47.8387/@30.4956,47.8387,14z?hl=en","Maplink2") -> Maplink2 | BF184: =HYPERLINK("http://www.bing.com/maps/?lvl=14&sty=h&cp=30.4956~47.8387&sp=point.30.4956_47.8387","Maplink3") -> Maplink3
A185: 23974 | B185: Al-Basrah | C185: Al-Basrah | D185: Markaz Al-Basrah | E185: Mosa Kadhim | F185: البصرة-القبلة-موسى الكاظم | G185: 30.4510794 | H185: 47.79888959 | I185: 3 | J185: 18 | K185: 0 | L185: 0 | M185: 0 | N185: 6 | O185: 0 | P185: 0 | Q185: 12 | R185: 0 | S185: 0 | T185: 0 | U185: 0 | V185: 0 | W185: 0 | X185: 0 | Y185: 0 | Z185: 12 | AA185: 0 | AB185: 0 | AC185: 0 | AD185: 0 | AE185: 0 | AF185: 0 | AG185: 0 | AH185: 0 | AI185: 0 | AJ185: 0 | AK185: 0 | AL185: 0 | AM185: 0 | AN185: 6 | AO185: 0 | AP185: 0 | AQ185: 0 | AR185: 0 | AS185: 12 | AT185: 6 | AU185: 0 | AV185: 0 | AW185: 0 | AX185: 0 | AY185: 0 | AZ185: 0 | BA185: 0 | BB185: 0 | BC185: 0 | BD185: =HYPERLINK("http://www.openstreetmap.org/?mlat=30.4511&mlon=47.7989&zoom=12#map=12/30.4511/47.7989","Maplink1") -> Maplink1 | BE185: =HYPERLINK("https://www.google.iq/maps/search/+30.4511,47.7989/@30.4511,47.7989,14z?hl=en","Maplink2") -> Maplink2 | BF185: =HYPERLINK("http://www.bing.com/maps/?lvl=14&sty=h&cp=30.4511~47.7989&sp=point.30.4511_47.7989","Maplink3") -> Maplink3
A186: 889 | B186: Al-Basrah | C186: Al-Basrah | D186: Markaz Al-Basrah | E186: Nadhran | F186: البصرة-نظران | G186: 30.503056 | H186: 47.811667 | I186: 11 | J186: 66 | K186: 0 | L186: 0 | M186: 0 | N186: 30 | O186: 0 | P186: 0 | Q186: 36 | R186: 0 | S186: 0 | T186: 0 | U186: 0 | V186: 0 | W186: 0 | X186: 0 | Y186: 0 | Z186: 6 | AA186: 0 | AB186: 0 | AC186: 0 | AD186: 0 | AE186: 0 | AF186: 0 | AG186: 0 | AH186: 0 | AI186: 0 | AJ186: 0 | AK186: 0 | AL186: 30 | AM186: 0 | AN186: 30 | AO186: 0 | AP186: 0 | AQ186: 0 | AR186: 12 | AS186: 6 | AT186: 30 | AU186: 0 | AV186: 6 | AW186: 6 | AX186: 6 | AY186: 0 | AZ186: 0 | BA186: 0 | BB186: 0 | BC186: 0 | BD186: =HYPERLINK("http://www.openstreetmap.org/?mlat=30.5031&mlon=47.8117&zoom=12#map=12/30.5031/47.8117","Maplink1") -> Maplink1 | BE186: =HYPERLINK("https://www.google.iq/maps/search/+30.5031,47.8117/@30.5031,47.8117,14z?hl=en","Maplink2") -> Maplink2 | BF186: =HYPERLINK("http://www.bing.com/maps/?lvl=14&sty=h&cp=30.5031~47.8117&sp=point.30.5031_47.8117","Maplink3") -> Maplink3
A187: 29538 | B187: Al-Basrah | C187: Al-Basrah | D187: Markaz Al-Basrah | E187: Al Maqil-AlAhrar | F187: المعقل الاحرار | G187: 30.5305185 | H187: 47.77534639 | I187: 2 | J187: 12 | K187: 0 | L187: 0 | M187: 0 | N187: 0 | O187: 0 | P187: 0 | Q187: 12 | R187: 0 | S187: 0 | T187: 0 | U187: 0 | V187: 0 | W187: 0 | X187: 0 | Y187: 0 | Z187: 0 | AA187: 0 | AB187: 0 | AC187: 0 | AD187: 0 | AE187: 0 | AF187: 0 | AG187: 0 | AH187: 6 | AI187: 0 | AJ187: 0 | AK187: 0 | AL187: 0 | AM187: 0 | AN187: 6 | AO187: 0 | AP187: 0 | AQ187: 0 | AR187: 0 | AS187: 0 | AT187: 6 | AU187: 0 | AV187: 6 | AW187: 0 | AX187: 0 | AY187: 0 | AZ187: 0 | BA187: 0 | BB187: 0 | BC187: 0 | BD187: =HYPERLINK("http://www.openstreetmap.org/?mlat=30.5305&mlon=47.7753&zoom=12#map=12/30.5305/47.7753","Maplink1") -> Maplink1 | BE187: =HYPERLINK("https://www.google.iq/maps/search/+30.5305,47.7753/@30.5305,47.7753,14z?hl=en","Maplink2") -> Maplink2 | BF187: =HYPERLINK("http://www.bing.com/maps/?lvl=14&sty=h&cp=30.5305~47.7753&sp=point.30.5305_47.7753","Maplink3") -> Maplink3
A188: 24344 | B188: Al-Basrah | C188: Al-Basrah | D188: Markaz Al-Basrah | E188: Al Kaim 1 | F188: القائم 1 | G188: 30.46805383 | H188: 47.80914418 | I188: 3 | J188: 18 | K188: 0 | L188: 0 | M188: 0 | N188: 0 | O188: 0 | P188: 0 | Q188: 18 | R188: 0 | S188: 0 | T188: 0 | U188: 0 | V188: 0 | W188: 0 | X188: 0 | Y188: 0 | Z188: 6 | AA188: 0 | AB188: 0 | AC188: 0 | AD188: 0 | AE188: 0 | AF188: 0 | AG188: 0 | AH188: 0 | AI188: 0 | AJ188: 0 | AK188: 0 | AL188: 0 | AM188: 0 | AN188: 12 | AO188: 0 | AP188: 0 | AQ188: 0 | AR188: 0 | AS188: 6 | AT188: 0 | AU188: 0 | AV188: 12 | AW188: 0 | AX188: 0 | AY188: 0 | AZ188: 0 | BA188: 0 | BB188: 0 | BC188: 0 | BD188: =HYPERLINK("http://www.openstreetmap.org/?mlat=30.4681&mlon=47.8091&zoom=12#map=12/30.4681/47.8091","Maplink1") -> Maplink1 | BE188: =HYPERLINK("https://www.google.iq/maps/search/+30.4681,47.8091/@30.4681,47.8091,14z?hl=en","Maplink2") -> Maplink2 | BF188: =HYPERLINK("http://www.bing.com/maps/?lvl=14&sty=h&cp=30.4681~47.8091&sp=point.30.4681_47.8091","Maplink3") -> Maplink3
A189: 1308 | B189: Al-Basrah | C189: Al-Basrah | D189: Markaz Al-Basrah | E189: Al-Baker & Al-Ahrar | F189: البكر والاحرار | G189: 30.49991662 | H189: 47.81268761 | I189: 5 | J189: 30 | K189: 0 | L189: 0 | M189: 0 | N189: 0 | O189: 0 | P189: 0 | Q189: 30 | R189: 0 | S189: 0 | T189: 0 | U189: 0 | V189: 0 | W189: 0 | X189: 0 | Y189: 0 | Z189: 24 | AA189: 0 | AB189: 0 | AC189: 0 | AD189: 0 | AE189: 0 | AF189: 0 | AG189: 0 | AH189: 0 | AI189: 0 | AJ189: 0 | AK189: 0 | AL189: 6 | AM189: 0 | AN189: 0 | AO189: 0 | AP189: 0 | AQ189: 0 | AR189: 6 | AS189: 6 | AT189: 0 | AU189: 18 | AV189: 0 | AW189: 0 | AX189: 0 | AY189: 0 | AZ189: 0 | BA189: 0 | BB189: 0 | BC189: 0 | BD189: =HYPERLINK("http://www.openstreetmap.org/?mlat=30.4999&mlon=47.8127&zoom=12#map=12/30.4999/47.8127","Maplink1") -> Maplink1 | BE189: =HYPERLINK("https://www.google.iq/maps/search/+30.4999,47.8127/@30.4999,47.8127,14z?hl=en","Maplink2") -> Maplink2 | BF189: =HYPERLINK("http://www.bing.com/maps/?lvl=14&sty=h&cp=30.4999~47.8127&sp=point.30.4999_47.8127","Maplink3") -> Maplink3
A190: 907 | B190: Al-Basrah | C190: Al-Basrah | D190: Markaz Al-Basrah | E190: Braiha | F190: بريهة | G190: 30.51330872 | H190: 47.83822894 | I190: 7 | J190: 42 | K190: 0 | L190: 0 | M190: 0 | N190: 18 | O190: 0 | P190: 0 | Q190: 24 | R190: 0 | S190: 0 | T190: 0 | U190: 0 | V190: 0 | W190: 0 | X190: 0 | Y190: 0 | Z190: 6 | AA190: 0 | AB190: 0 | AC190: 0 | AD190: 0 | AE190: 0 | AF190: 0 | AG190: 0 | AH190: 0 | AI190: 0 | AJ190: 0 | AK190: 0 | AL190: 30 | AM190: 0 | AN190: 6 | AO190: 0 | AP190: 0 | AQ190: 0 | AR190: 0 | AS190: 0 | AT190: 42 | AU190: 0 | AV190: 0 | AW190: 0 | AX190: 0 | AY190: 0 | AZ190: 0 | BA190: 0 | BB190: 0 | BC190: 0 | BD190: =HYPERLINK("http://www.openstreetmap.org/?mlat=30.5133&mlon=47.8382&zoom=12#map=12/30.5133/47.8382","Maplink1") -> Maplink1 | BE190: =HYPERLINK("https://www.google.iq/maps/search/+30.5133,47.8382/@30.5133,47.8382,14z?hl=en","Maplink2") -> Maplink2 | BF190: =HYPERLINK("http://www.bing.com/maps/?lvl=14&sty=h&cp=30.5133~47.8382&sp=point.30.5133_47.8382","Maplink3") -> Maplink3
A191: 890 | B191: Al-Basrah | C191: Al-Basrah | D191: Markaz Al-Basrah | E191: Al-abbasya | F191: العباسية | G191: 30.50805739 | H191: 47.83043771 | I191: 1 | J191: 6 | K191: 0 | L191: 0 | M191: 0 | N191: 0 | O191: 0 | P191: 0 | Q191: 6 | R191: 0 | S191: 0 | T191: 0 | U191: 0 | V191: 0 | W191: 0 | X191: 0 | Y191: 0 | Z191: 0 | AA191: 0 | AB191: 0 | AC191: 0 | AD191: 0 | AE191: 0 | AF191: 0 | AG191: 0 | AH191: 0 | AI191: 0 | AJ191: 0 | AK191: 0 | AL191: 6 | AM191: 0 | AN191: 0 | AO191: 0 | AP191: 0 | AQ191: 0 | AR191: 0 | AS191: 0 | AT191: 0 | AU191: 6 | AV191: 0 | AW191: 0 | AX191: 0 | AY191: 0 | AZ191: 0 | BA191: 0 | BB191: 0 | BC191: 0 | BD191: =HYPERLINK("http://www.openstreetmap.org/?mlat=30.5081&mlon=47.8304&zoom=12#map=12/30.5081/47.8304","Maplink1") -> Maplink1 | BE191: =HYPERLINK("https://www.google.iq/maps/search/+30.5081,47.8304/@30.5081,47.8304,14z?hl=en","Maplink2") -> Maplink2 | BF191: =HYPERLINK("http://www.bing.com/maps/?lvl=14&sty=h&cp=30.5081~47.8304&sp=point.30.5081_47.8304","Maplink3") -> Maplink3
A192: 986 | B192: Al-Basrah | C192: Al-Basrah | D192: Markaz Al-Basrah | E192: Al-jubaila_ | F192: الجبيله | G192: 30.54655189 | H192: 47.81016531 | I192: 3 | J192: 18 | K192: 0 | L192: 0 | M192: 0 | N192: 0 | O192: 0 | P192: 0 | Q192: 18 | R192: 0 | S192: 0 | T192: 0 | U192: 0 | V192: 0 | W192: 0 | X192: 0 | Y192: 0 | Z192: 0 | AA192: 6 | AB192: 0 | AC192: 0 | AD192: 0 | AE192: 0 | AF192: 0 | AG192: 0 | AH192: 0 | AI192: 0 | AJ192: 0 | AK192: 0 | AL192: 12 | AM192: 0 | AN192: 0 | AO192: 0 | AP192: 0 | AQ192: 0 | AR192: 6 | AS192: 12 | AT192: 0 | AU192: 0 | AV192: 0 | AW192: 0 | AX192: 0 | AY192: 0 | AZ192: 0 | BA192: 0 | BB192: 0 | BC192: 0 | BD192: =HYPERLINK("http://www.openstreetmap.org/?mlat=30.5466&mlon=47.8102&zoom=12#map=12/30.5466/47.8102","Maplink1") -> Maplink1 | BE192: =HYPERLINK("https://www.google.iq/maps/search/+30.5466,47.8102/@30.5466,47.8102,14z?hl=en","Maplink2") -> Maplink2 | BF192: =HYPERLINK("http://www.bing.com/maps/?lvl=14&sty=h&cp=30.5466~47.8102&sp=point.30.5466_47.8102","Maplink3") -> Maplink3
A193: 857 | B193: Al-Basrah | C193: Al-Basrah | D193: Markaz Al-Basrah | E193: As-safat-Al Qadima | F193: البصرة القديمة-الصفاة | G193: 30.49592599 | H193: 47.8165437 | I193: 6 | J193: 36 | K193: 0 | L193: 0 | M193: 0 | N193: 12 | O193: 0 | P193: 18 | Q193: 6 | R193: 0 | S193: 0 | T193: 0 | U193: 0 | V193: 0 | W193: 0 | X193: 0 | Y193: 0 | Z193: 18 | AA193: 0 | AB193: 0 | AC193: 0 | AD193: 0 | AE193: 0 | AF193: 0 | AG193: 0 | AH193: 0 | AI193: 0 | AJ193: 0 | AK193: 0 | AL193: 0 | AM193: 0 | AN193: 18 | AO193: 0 | AP193: 0 | AQ193: 0 | AR193: 0 | AS193: 0 | AT193: 12 | AU193: 24 | AV193: 0 | AW193: 0 | AX193: 0 | AY193: 0 | AZ193: 0 | BA193: 0 | BB193: 0 | BC193: 0 | BD193: =HYPERLINK("http://www.openstreetmap.org/?mlat=30.4959&mlon=47.8165&zoom=12#map=12/30.4959/47.8165","Maplink1") -> Maplink1 | BE193: =HYPERLINK("https://www.google.iq/maps/search/+30.4959,47.8165/@30.4959,47.8165,14z?hl=en","Maplink2") -> Maplink2 | BF193: =HYPERLINK("http://www.bing.com/maps/?lvl=14&sty=h&cp=30.4959~47.8165&sp=point.30.4959_47.8165","Maplink3") -> Maplink3
A194: 31724 | B194: Al-Basrah | C194: Al-Basrah | D194: Markaz Al-Basrah | E194: Shafqat Al-Amil | F194: شفقة العامل | G194: 30.54920854 | H194: 47.78601974 | I194: 6 | J194: 36 | K194: 0 | L194: 0 | M194: 0 | N194: 0 | O194: 0 | P194: 12 | Q194: 0 | R194: 0 | S194: 24 | T194: 0 | U194: 0 | V194: 0 | W194: 0 | X194: 0 | Y194: 0 | Z194: 0 | AA194: 0 | AB194: 0 | AC194: 0 | AD194: 0 | AE194: 0 | AF194: 0 | AG194: 0 | AH194: 24 | AI194: 0 | AJ194: 0 | AK194: 0 | AL194: 0 | AM194: 0 | AN194: 12 | AO194: 0 | AP194: 0 | AQ194: 0 | AR194: 0 | AS194: 12 | AT194: 24 | AU194: 0 | AV194: 0 | AW194: 0 | AX194: 0 | AY194: 0 | AZ194: 0 | BA194: 0 | BB194: 0 | BC194: 0 | BD194: =HYPERLINK("http://www.openstreetmap.org/?mlat=30.5492&mlon=47.786&zoom=12#map=12/30.5492/47.786","Maplink1") -> Maplink1 | BE194: =HYPERLINK("https://www.google.iq/maps/search/+30.5492,47.786/@30.5492,47.786,14z?hl=en","Maplink2") -> Maplink2 | BF194: =HYPERLINK("http://www.bing.com/maps/?lvl=14&sty=h&cp=30.5492~47.786&sp=point.30.5492_47.786","Maplink3") -> Maplink3
A195: 24929 | B195: Al-Basrah | C195: Al-Basrah | D195: Markaz Al-Basrah | E195: 5 Miles Al Bidhan | F195: 5ميل البيضان | G195: 30.5423982 | H195: 47.7683696 | I195: 1 | J195: 6 | K195: 0 | L195: 0 | M195: 0 | N195: 0 | O195: 0 | P195: 0 | Q195: 6 | R195: 0 | S195: 0 | T195: 0 | U195: 0 | V195: 0 | W195: 0 | X195: 0 | Y195: 0 | Z195: 0 | AA195: 0 | AB195: 0 | AC195: 0 | AD195: 0 | AE195: 0 | AF195: 0 | AG195: 0 | AH195: 0 | AI195: 0 | AJ195: 0 | AK195: 0 | AL195: 0 | AM195: 0 | AN195: 6 | AO195: 0 | AP195: 0 | AQ195: 0 | AR195: 6 | AS195: 0 | AT195: 0 | AU195: 0 | AV195: 0 | AW195: 0 | AX195: 0 | AY195: 0 | AZ195: 0 | BA195: 0 | BB195: 0 | BC195: 0 | BD195: =HYPERLINK("http://www.openstreetmap.org/?mlat=30.5424&mlon=47.7684&zoom=12#map=12/30.5424/47.7684","Maplink1") -> Maplink1 | BE195: =HYPERLINK("https://www.google.iq/maps/search/+30.5424,47.7684/@30.5424,47.7684,14z?hl=en","Maplink2") -> Maplink2 | BF195: =HYPERLINK("http://www.bing.com/maps/?lvl=14&sty=h&cp=30.5424~47.7684&sp=point.30.5424_47.7684","Maplink3") -> Maplink3
A196: 21096 | B196: Al-Basrah | C196: Al-Basrah | D196: Markaz Al-Basrah | E196: Hay Al Qaim 2 | F196: البصرة-القبلة-القائم 2 | G196: 30.4766031 | H196: 47.81503571 | I196: 2 | J196: 12 | K196: 0 | L196: 0 | M196: 0 | N196: 6 | O196: 0 | P196: 0 | Q196: 6 | R196: 0 | S196: 0 | T196: 0 | U196: 0 | V196: 0 | W196: 0 | X196: 0 | Y196: 0 | Z196: 0 | AA196: 0 | AB196: 0 | AC196: 0 | AD196: 0 | AE196: 0 | AF196: 0 | AG196: 0 | AH196: 12 | AI196: 0 | AJ196: 0 | AK196: 0 | AL196: 0 | AM196: 0 | AN196: 0 | AO196: 0 | AP196: 0 | AQ196: 0 | AR196: 0 | AS196: 0 | AT196: 0 | AU196: 6 | AV196: 0 | AW196: 6 | AX196: 0 | AY196: 0 | AZ196: 0 | BA196: 0 | BB196: 0 | BC196: 0 | BD196: =HYPERLINK("http://www.openstreetmap.org/?mlat=30.4766&mlon=47.815&zoom=12#map=12/30.4766/47.815","Maplink1") -> Maplink1 | BE196: =HYPERLINK("https://www.google.iq/maps/search/+30.4766,47.815/@30.4766,47.815,14z?hl=en","Maplink2") -> Maplink2 | BF196: =HYPERLINK("http://www.bing.com/maps/?lvl=14&sty=h&cp=30.4766~47.815&sp=point.30.4766_47.815","Maplink3") -> Maplink3
A197: 29678 | B197: Al-Basrah | C197: Al-Basrah | D197: Markaz Al-Basrah | E197: Yaseen Khurebtt | F197: ياسين خريبط | G197: 30.5275305 | H197: 47.7655907 | I197: 1 | J197: 6 | K197: 0 | L197: 0 | M197: 0 | N197: 0 | O197: 0 | P197: 0 | Q197: 6 | R197: 0 | S197: 0 | T197: 0 | U197: 0 | V197: 0 | W197: 0 | X197: 0 | Y197: 0 | Z197: 0 | AA197: 0 | AB197: 0 | AC197: 0 | AD197: 0 | AE197: 0 | AF197: 0 | AG197: 0 | AH197: 0 | AI197: 0 | AJ197: 0 | AK197: 0 | AL197: 6 | AM197: 0 | AN197: 0 | AO197: 0 | AP197: 0 | AQ197: 0 | AR197: 0 | AS197: 0 | AT197: 0 | AU197: 0 | AV197: 6 | AW197: 0 | AX197: 0 | AY197: 0 | AZ197: 0 | BA197: 0 | BB197: 0 | BC197: 0 | BD197: =HYPERLINK("http://www.openstreetmap.org/?mlat=30.5275&mlon=47.7656&zoom=12#map=12/30.5275/47.7656","Maplink1") -> Maplink1 | BE197: =HYPERLINK("https://www.google.iq/maps/search/+30.5275,47.7656/@30.5275,47.7656,14z?hl=en","Maplink2") -> Maplink2 | BF197: =HYPERLINK("http://www.bing.com/maps/?lvl=14&sty=h&cp=30.5275~47.7656&sp=point.30.5275_47.7656","Maplink3") -> Maplink3
A198: 910 | B198: Al-Basrah | C198: Al-Basrah | D198: Markaz Al-Basrah | E198: Door Al-Saha | F198: دور الصحة | G198: 30.51438089 | H198: 47.8031156 | I198: 1 | J198: 6 | K198: 0 | L198: 0 | M198: 0 | N198: 6 | O198: 0 | P198: 0 | Q198: 0 | R198: 0 | S198: 0 | T198: 0 | U198: 0 | V198: 0 | W198: 0 | X198: 0 | Y198: 0 | Z198: 0 | AA198: 0 | AB198: 0 | AC198: 0 | AD198: 0 | AE198: 0 | AF198: 0 | AG198: 0 | AH198: 0 | AI198: 0 | AJ198: 0 | AK198: 0 | AL198: 6 | AM198: 0 | AN198: 0 | AO198: 0 | AP198: 0 | AQ198: 0 | AR198: 0 | AS198: 6 | AT198: 0 | AU198: 0 | AV198: 0 | AW198: 0 | AX198: 0 | AY198: 0 | AZ198: 0 | BA198: 0 | BB198: 0 | BC198: 0 | BD198: =HYPERLINK("http://www.openstreetmap.org/?mlat=30.5144&mlon=47.8031&zoom=12#map=12/30.5144/47.8031","Maplink1") -> Maplink1 | BE198: =HYPERLINK("https://www.google.iq/maps/search/+30.5144,47.8031/@30.5144,47.8031,14z?hl=en","Maplink2") -> Maplink2 | BF198: =HYPERLINK("http://www.bing.com/maps/?lvl=14&sty=h&cp=30.5144~47.8031&sp=point.30.5144_47.8031","Maplink3") -> Maplink3
A199: 988 | B199: Al-Basrah | C199: Al-Basrah | D199: Markaz Al-Basrah | E199: 50 hosh | F199: 50حوش | G199: 30.554573 | H199: 47.7860399 | I199: 1 | J199: 6 | K199: 0 | L199: 0 | M199: 0 | N199: 0 | O199: 0 | P199: 0 | Q199: 6 | R199: 0 | S199: 0 | T199: 0 | U199: 0 | V199: 0 | W199: 0 | X199: 0 | Y199: 0 | Z199: 0 | AA199: 0 | AB199: 0 | AC199: 0 | AD199: 0 | AE199: 0 | AF199: 0 | AG199: 0 | AH199: 0 | AI199: 0 | AJ199: 0 | AK199: 0 | AL199: 6 | AM199: 0 | AN199: 0 | AO199: 0 | AP199: 0 | AQ199: 0 | AR199: 0 | AS199: 0 | AT199: 0 | AU199: 0 | AV199: 0 | AW199: 6 | AX199: 0 | AY199: 0 | AZ199: 0 | BA199: 0 | BB199: 0 | BC199: 0 | BD199: =HYPERLINK("http://www.openstreetmap.org/?mlat=30.5546&mlon=47.786&zoom=12#map=12/30.5546/47.786","Maplink1") -> Maplink1 | BE199: =HYPERLINK("https://www.google.iq/maps/search/+30.5546,47.786/@30.5546,47.786,14z?hl=en","Maplink2") -> Maplink2 | BF199: =HYPERLINK("http://www.bing.com/maps/?lvl=14&sty=h&cp=30.5546~47.786&sp=point.30.5546_47.786","Maplink3") -> Maplink3
A200: 24346 | B200: Al-Basrah | C200: Al-Basrah | D200: Markaz Al-Basrah | E200: Al Ashar Center | F200: مركز العشار | G200: 30.5168506 | H200: 47.83271803 | I200: 15 | J200: 90 | K200: 0 | L200: 0 | M200: 0 | N200: 6 | O200: 84 | P200: 0 | Q200: 0 | R200: 0 | S200: 0 | T200: 0 | U200: 0 | V200: 0 | W200: 0 | X200: 0 | Y200: 0 | Z200: 0 | AA200: 0 | AB200: 0 | AC200: 0 | AD200: 0 | AE200: 0 | AF200: 0 | AG200: 0 | AH200: 0 | AI200: 0 | AJ200: 0 | AK200: 0 | AL200: 84 | AM200: 0 | AN200: 6 | AO200: 0 | AP200: 0 | AQ200: 0 | AR200: 6 | AS200: 24 | AT200: 6 | AU200: 54 | AV200: 0 | AW200: 0 | AX200: 0 | AY200: 0 | AZ200: 0 | BA200: 0 | BB200: 0 | BC200: 0 | BD200: =HYPERLINK("http://www.openstreetmap.org/?mlat=30.5169&mlon=47.8327&zoom=12#map=12/30.5169/47.8327","Maplink1") -> Maplink1 | BE200: =HYPERLINK("https://www.google.iq/maps/search/+30.5169,47.8327/@30.5169,47.8327,14z?hl=en","Maplink2") -> Maplink2 | BF200: =HYPERLINK("http://www.bing.com/maps/?lvl=14&sty=h&cp=30.5169~47.8327&sp=point.30.5169_47.8327","Maplink3") -> Maplink3
... 925 more rows

Sheet Critical Shelters
A1: DTM : IDP Master List 31-03-2022
A2: Location of Displacement | I2: Critical Shelters
A3: Place id | B3: Governorate | C3: District | D3: Sub-district | E3: Location name in English | F3: Location name in Arabic | G3: Latitude | H3: Longitude | I3: Apartment/House (not owned)(uninhabitable) | J3: Tent/Caravan/makeshift shelter/mud or block house | K3: Unfinished/Abandoned building | L3: Public Buildings or Collective shelters | M3: Religious building | N3: School building | O3: Other Critical shelter | P3: Total
A4: 33939 | B4: Al-Anbar | C4: Al-Falluja | D4: Al-Amirya | E4: Amriyat Al-Fallujah sector 4 | F4: القطاع الرابع | G4: 33.145831 | H4: 44.015278 | I4: 0 | J4: 774 | K4: 0 | L4: 0 | M4: 0 | N4: 0 | O4: 0 | P4: 774
A5: 33940 | B5: Al-Anbar | C5: Al-Falluja | D5: Al-Amirya | E5: Amriyat Al-Fallujahsector 3 | F5: القطاع الثالث | G5: 33.14162138 | H5: 44.01803577 | I5: 0 | J5: 636 | K5: 0 | L5: 0 | M5: 0 | N5: 0 | O5: 0 | P5: 636
A6: 21226 | B6: Al-Anbar | C6: Al-Falluja | D6: Al-Amirya | E6: Albu Hori | F6: البوحوري | G6: 33.15845385 | H6: 43.8916234 | I6: 0 | J6: 624 | K6: 0 | L6: 12 | M6: 18 | N6: 0 | O6: 0 | P6: 654
A7: 33941 | B7: Al-Anbar | C7: Al-Falluja | D7: Al-Amirya | E7: Amriyat Al-Fallujahsector 50 | F7: قطاع الخمسين | G7: 33.14731684 | H7: 44.01389114 | I7: 0 | J7: 498 | K7: 0 | L7: 0 | M7: 0 | N7: 0 | O7: 0 | P7: 498
A8: 34228 | B8: Al-Anbar | C8: Al-Falluja | D8: Al-Amirya | E8: low-costs houses/Habbaniah | F8: دور واطئه الكلفه \الحبانيه | G8: 33.25546254 | H8: 43.65109069 | I8: 0 | J8: 342 | K8: 0 | L8: 1,152 | M8: 0 | N8: 0 | O8: 0 | P8: 1,494
A9: 34290 | B9: Al-Anbar | C9: Al-Falluja | D9: Al-Amirya | E9: Hay Al-Salam | F9: حي السلام | G9: 33.17218 | H9: 43.86378 | I9: 0 | J9: 732 | K9: 0 | L9: 0 | M9: 0 | N9: 0 | O9: 0 | P9: 732
A10: 34291 | B10: Al-Anbar | C10: Al-Falluja | D10: Al-Amirya | E10: Hay Al-Maleab | F10: حي الملعب | G10: 33.17337 | H10: 43.84332 | I10: 60 | J10: 1,320 | K10: 0 | L10: 0 | M10: 0 | N10: 0 | O10: 0 | P10: 1,380
A11: 107 | B11: Al-Anbar | C11: Al-Falluja | D11: Al-Amirya | E11: Al Amiriyah | F11: العامرية | G11: 33.1787573 | H11: 43.85698918 | I11: 60 | J11: 642 | K11: 0 | L11: 0 | M11: 0 | N11: 0 | O11: 0 | P11: 702
A12: 26093 | B12: Al-Anbar | C12: Al-Falluja | D12: Al-Amirya | E12: Al-Amirya-Tal Ghatas | F12: تل غطاس | G12: 33.18427359 | H12: 43.92571116 | I12: 0 | J12: 204 | K12: 0 | L12: 0 | M12: 0 | N12: 0 | O12: 0 | P12: 204
A13: 26036 | B13: Al-Anbar | C13: Al-Falluja | D13: Al-Amirya | E13: Al-Amirya-Albu Jasim | F13: البوجاسم | G13: 33.201389 | H13: 43.9 | I13: 0 | J13: 120 | K13: 0 | L13: 0 | M13: 0 | N13: 0 | O13: 0 | P13: 120
A14: 26092 | B14: Al-Anbar | C14: Al-Falluja | D14: Al-Amirya | E14: Al-Amirya-Al Mouilha | F14: المويلحة | G14: 33.14119036 | H14: 43.95571249 | I14: 0 | J14: 1,446 | K14: 0 | L14: 0 | M14: 144 | N14: 0 | O14: 0 | P14: 1,590
A15: 26087 | B15: Al-Anbar | C15: Al-Falluja | D15: Al-Amirya | E15: Al-Amirya-Albu Salman | F15: البوسليمان | G15: 33.15382888 | H15: 44.00612418 | I15: 0 | J15: 942 | K15: 0 | L15: 0 | M15: 0 | N15: 0 | O15: 0 | P15: 942
A16: 27246 | B16: Al-Anbar | C16: Al-Falluja | D16: Al-Amirya | E16: AAF | F16: مخيم عامرية الفلوجة | G16: 33.14654372 | H16: 43.84855916 | I16: 0 | J16: 2,700 | K16: 0 | L16: 0 | M16: 0 | N16: 0 | O16: 0 | P16: 2,700
A17: 26084 | B17: Al-Anbar | C17: Al-Falluja | D17: Al-Amirya | E17: Amriyat Al-Fallujah-sector1 | F17: عامرية الفلوجة-القطاع الاول | G17: 33.11973987 | H17: 44.04292247 | I17: 0 | J17: 618 | K17: 0 | L17: 0 | M17: 0 | N17: 0 | O17: 0 | P17: 618
A18: 26088 | B18: Al-Anbar | C18: Al-Falluja | D18: Al-Amirya | E18: Ahl Al-Ramadi 74 | F18: اهل الرمادي 74 | G18: 33.14673327 | H18: 44.01503204 | I18: 0 | J18: 408 | K18: 0 | L18: 0 | M18: 0 | N18: 0 | O18: 0 | P18: 408
A19: 26085 | B19: Al-Anbar | C19: Al-Falluja | D19: Al-Amirya | E19: Amriyat Al-Fallujah-sector2 | F19: عامرية الفلوجة-القطاع الثاني | G19: 33.13481251 | H19: 44.02670737 | I19: 0 | J19: 1,290 | K19: 0 | L19: 0 | M19: 0 | N19: 0 | O19: 0 | P19: 1,290
A20: 23276 | B20: Al-Anbar | C20: Al-Falluja | D20: Al-Amirya | E20: HTC | F20: مخيم المدينة السياحية الحبانية | G20: 33.25344803 | H20: 43.58454996 | I20: 0 | J20: 450 | K20: 0 | L20: 0 | M20: 0 | N20: 0 | O20: 0 | P20: 450
A21: 26089 | B21: Al-Anbar | C21: Al-Falluja | D21: Al-Amirya | E21: Albu Dhaher-Albu Dhaher | F21: البوظاهر | G21: 33.18863084 | H21: 43.90689915 | I21: 0 | J21: 108 | K21: 0 | L21: 0 | M21: 0 | N21: 0 | O21: 0 | P21: 108
A22: 21410 | B22: Al-Anbar | C22: Al-Falluja | D22: Al-Amirya | E22: Albo Jaar | F22: البو جار | G22: 33.14913484 | H22: 43.98714161 | I22: 0 | J22: 294 | K22: 0 | L22: 0 | M22: 0 | N22: 0 | O22: 0 | P22: 294
A23: 26091 | B23: Al-Anbar | C23: Al-Falluja | D23: Al-Amirya | E23: Al-Amirya-Al Hmedin | F23: الحميدين | G23: 33.15689845 | H23: 43.9318996 | I23: 0 | J23: 648 | K23: 0 | L23: 0 | M23: 0 | N23: 0 | O23: 0 | P23: 648
A24: 26037 | B24: Al-Anbar | C24: Al-Falluja | D24: Al-Amirya | E24: Al-Amirya-Albu Jwad | F24: البوجواد | G24: 33.15082044 | H24: 43.99869936 | I24: 18 | J24: 882 | K24: 0 | L24: 0 | M24: 0 | N24: 0 | O24: 0 | P24: 900
A25: 142 | B25: Al-Anbar | C25: Al-Falluja | D25: Markaz Al-Falluja | E25: Al-shahabi-2 | F25: الشهابي الثانية | G25: 33.3822032 | H25: 43.8862189 | I25: 0 | J25: 0 | K25: 0 | L25: 420 | M25: 0 | N25: 0 | O25: 0 | P25: 420
A26: 34249 | B26: Al-Anbar | C26: Al-Kaim | D26: Al-Karabla | E26: complex of Phosphate company | F26: المجمع السكني لموظفي شركة الفوسفات | G26: 34.33593631 | H26: 41.19326271 | I26: 0 | J26: 42 | K26: 0 | L26: 0 | M26: 0 | N26: 0 | O26: 0 | P26: 42
A27: 23889 | B27: Al-Anbar | C27: Al-Ramadi | D27: Markaz Al-Ramadi | E27: 7 Killo-al-mojamaa al-sakany | F27: السبعة كيلو-المجمع السكني | G27: 33.4165942 | H27: 43.1924283 | I27: 0 | J27: 0 | K27: 36 | L27: 3,204 | M27: 0 | N27: 12 | O27: 0 | P27: 3,252
A28: 34178 | B28: Al-Anbar | C28: Al-Ramadi | D28: Markaz Al-Ramadi | E28: 9 Kilo | F28: 9 كيلو | G28: 33.4096587 | H28: 43.1680676 | I28: 0 | J28: 0 | K28: 384 | L28: 0 | M28: 0 | N28: 0 | O28: 0 | P28: 384
A29: 33826 | B29: Al-Anbar | C29: Al-Ramadi | D29: Markaz Al-Ramadi | E29: AL-Karama complex | F29: مجمع الكرامه | G29: 33.3885532 | H29: 43.0969749 | I29: 0 | J29: 918 | K29: 0 | L29: 0 | M29: 0 | N29: 0 | O29: 0 | P29: 918
A30: 166 | B30: Al-Anbar | C30: Al-Rutba | D30: Markaz Al-Rutba | E30: Hay Al Meethagh | F30: حي الميثاق | G30: 33.03197354 | H30: 40.29047217 | I30: 0 | J30: 0 | K30: 126 | L30: 0 | M30: 0 | N30: 0 | O30: 0 | P30: 126
A31: 167 | B31: Al-Anbar | C31: Al-Rutba | D31: Markaz Al-Rutba | E31: Antesar | F31: حي الانتصار | G31: 33.03126564 | H31: 40.29901479 | I31: 0 | J31: 0 | K31: 102 | L31: 0 | M31: 0 | N31: 0 | O31: 0 | P31: 102
A32: 231 | B32: Al-Anbar | C32: Al-Rutba | D32: Markaz Al-Rutba | E32: Al Wadi | F32: حي الوادي | G32: 33.03966421 | H32: 40.28365262 | I32: 0 | J32: 0 | K32: 60 | L32: 0 | M32: 0 | N32: 0 | O32: 0 | P32: 60
A33: 233 | B33: Al-Anbar | C33: Al-Rutba | D33: Markaz Al-Rutba | E33: Hay Al-Matar | F33: حي المطار | G33: 33.03461084 | H33: 40.28668013 | I33: 0 | J33: 0 | K33: 72 | L33: 0 | M33: 0 | N33: 0 | O33: 0 | P33: 72
A34: 165 | B34: Al-Anbar | C34: Al-Rutba | D34: Markaz Al-Rutba | E34: Al Askaree | F34: حي العسكري | G34: 33.03800189 | H34: 40.30263444 | I34: 0 | J34: 0 | K34: 96 | L34: 0 | M34: 0 | N34: 0 | O34: 0 | P34: 96
A35: 150 | B35: Al-Anbar | C35: Al-Rutba | D35: Markaz Al-Rutba | E35: Al Haara | F35: حي الحارة | G35: 33.03761591 | H35: 40.28426443 | I35: 0 | J35: 0 | K35: 90 | L35: 0 | M35: 0 | N35: 0 | O35: 0 | P35: 90
A36: 23936 | B36: Al-Anbar | C36: Al-Rutba | D36: Markaz Al-Rutba | E36: Rumilah Village | F36: قرية رميلة | G36: 33.06022091 | H36: 40.34556629 | I36: 0 | J36: 0 | K36: 36 | L36: 0 | M36: 0 | N36: 0 | O36: 0 | P36: 36
A37: 252 | B37: Al-Anbar | C37: Ana | D37: Markaz Ana | E37: Al Tadamon | F37: حي التضامن | G37: 34.36089741 | H37: 41.98314586 | I37: 42 | J37: 0 | K37: 0 | L37: 0 | M37: 0 | N37: 0 | O37: 0 | P37: 42
A38: 253 | B38: Al-Anbar | C38: Ana | D38: Markaz Ana | E38: Hay Al Salam | F38: حي السلام | G38: 34.37212521 | H38: 41.97703066 | I38: 36 | J38: 0 | K38: 0 | L38: 0 | M38: 0 | N38: 0 | O38: 0 | P38: 36
A39: 248 | B39: Al-Anbar | C39: Ana | D39: Markaz Ana | E39: Al bor (Shishan) | F39: حي العبور | G39: 34.36678805 | H39: 41.97078314 | I39: 48 | J39: 0 | K39: 0 | L39: 0 | M39: 0 | N39: 0 | O39: 0 | P39: 48
A40: 33825 | B40: Al-Anbar | C40: Heet | D40: Markaz Heet | E40: Hay Al-Askary | F40: حي العسكري | G40: 33.6244991 | H40: 42.8278815 | I40: 12 | J40: 0 | K40: 0 | L40: 0 | M40: 0 | N40: 0 | O40: 0 | P40: 12
A41: 24595 | B41: Al-Basrah | C41: Abu Al-Khaseeb | D41: Markaz Abu Al-Khaseeb | E41: Hay Al Zaiton | F41: حي الزيتون | G41: 30.4746484 | H41: 47.8260349 | I41: 0 | J41: 6 | K41: 0 | L41: 0 | M41: 0 | N41: 0 | O41: 0 | P41: 6
A42: 23897 | B42: Al-Basrah | C42: Abu Al-Khaseeb | D42: Markaz Abu Al-Khaseeb | E42: Hay AL Hussainyia | F42: البصرة-حي الحسينية | G42: 30.47850797 | H42: 47.82951009 | I42: 0 | J42: 18 | K42: 0 | L42: 0 | M42: 0 | N42: 0 | O42: 0 | P42: 18
A43: 885 | B43: Al-Basrah | C43: Al-Basrah | D43: Markaz Al-Basrah | E43: Al Khaleej2 | F43: البصرة-الجمعيات-حي الخليج 2 | G43: 30.49501922 | H43: 47.78894843 | I43: 0 | J43: 6 | K43: 0 | L43: 0 | M43: 0 | N43: 0 | O43: 0 | P43: 6
A44: 854 | B44: Al-Basrah | C44: Al-Basrah | D44: Markaz Al-Basrah | E44: Hai al-kafa_at | F44: البصرة-حي الكفاءات | G44: 30.4999937 | H44: 47.81254713 | I44: 6 | J44: 0 | K44: 0 | L44: 0 | M44: 0 | N44: 0 | O44: 0 | P44: 6
A45: 31724 | B45: Al-Basrah | C45: Al-Basrah | D45: Markaz Al-Basrah | E45: Shafqat Al-Amil | F45: شفقة العامل | G45: 30.54920854 | H45: 47.78601974 | I45: 0 | J45: 24 | K45: 0 | L45: 0 | M45: 0 | N45: 0 | O45: 0 | P45: 24
A46: 24182 | B46: Al-Basrah | C46: Al-Basrah | D46: Markaz Al-Basrah | E46: Casino Lebnan | F46: البصرة-كازينو لبنان | G46: 30.50763974 | H46: 47.80824986 | I46: 0 | J46: 66 | K46: 0 | L46: 0 | M46: 0 | N46: 0 | O46: 0 | P46: 66
A47: 29595 | B47: Al-Basrah | C47: Al-Basrah | D47: Markaz Al-Basrah | E47: Al Maqil-Al-Farancea | F47: المعقل-الفرنسية | G47: 30.5503418 | H47: 47.78019919 | I47: 0 | J47: 6 | K47: 0 | L47: 0 | M47: 0 | N47: 0 | O47: 0 | P47: 6
A48: 26109 | B48: Al-Basrah | C48: Al-Zubair | D48: Markaz Al-Zubair | E48: Khor Al zubir-Hay Al-Hakeem | F48: خور الزبير-حي الحكيم | G48: 30.22762144 | H48: 47.78421579 | I48: 0 | J48: 12 | K48: 0 | L48: 0 | M48: 0 | N48: 0 | O48: 0 | P48: 12
A49: 27295 | B49: Al-Basrah | C49: Al-Zubair | D49: Um Qasr | E49: Umm Qasr-Al-hindiyah Al-Janobia | F49: ام قصر-الهندية الجنوبية | G49: 30.0309122 | H49: 47.9191197 | I49: 0 | J49: 6 | K49: 0 | L49: 0 | M49: 0 | N49: 0 | O49: 0 | P49: 6
A50: 960 | B50: Al-Basrah | C50: Shat Al-Arab | D50: Markaz Shat Al-Arab | E50: Hay al-jami_a | F50: البصرة-شط العرب-حي الجامعة | G50: 30.54042316 | H50: 47.85516922 | I50: 0 | J50: 18 | K50: 0 | L50: 0 | M50: 0 | N50: 0 | O50: 0 | P50: 18
A51: 1991 | B51: Al-Muthanna | C51: Al-Rumaitha | D51: Markaz Al-Rumaitha | E51: Al-Muthlem Village | F51: قرية المظلم | G51: 31.53967617 | H51: 45.18345896 | I51: 0 | J51: 0 | K51: 24 | L51: 0 | M51: 0 | N51: 0 | O51: 0 | P51: 24
A52: 2026 | B52: Al-Muthanna | C52: Al-Rumaitha | D52: Markaz Al-Rumaitha | E52: Al Ardhyat | F52: العارضيات | G52: 31.55655975 | H52: 45.14773046 | I52: 0 | J52: 0 | K52: 0 | L52: 0 | M52: 6 | N52: 0 | O52: 0 | P52: 6
A53: 1609 | B53: Al-Muthanna | C53: Al-Samawa | D53: Al-Sowair | E53: Al Basateen Al Gharbia | F53: البساتين الغربية | G53: 31.32623435 | H53: 45.27061561 | I53: 0 | J53: 0 | K53: 0 | L53: 0 | M53: 6 | N53: 0 | O53: 0 | P53: 6
A54: 29598 | B54: Al-Najaf | C54: Al-Najaf | D54: Al-Haydariya | E54: Al Salam Complex | F54: مجمع السلام | G54: 32.174145 | H54: 44.307526 | I54: 0 | J54: 0 | K54: 0 | L54: 540 | M54: 0 | N54: 0 | O54: 0 | P54: 540
A55: 20128 | B55: Al-Najaf | C55: Al-Najaf | D55: Markaz Al-Najaf | E55: Al-Qasim 3 | F55: حي القاسم 3 | G55: 32.05167393 | H55: 44.31446708 | I55: 18 | J55: 0 | K55: 0 | L55: 0 | M55: 0 | N55: 0 | O55: 0 | P55: 18
A56: 25382 | B56: Al-Qadissiya | C56: Afaq | D56: Markaz Afaq | E56: Hay Al-Hussein | F56: حي الحسين | G56: 32.06277559 | H56: 45.25461952 | I56: 0 | J56: 0 | K56: 0 | L56: 0 | M56: 18 | N56: 0 | O56: 0 | P56: 18
A57: 3392 | B57: Al-Qadissiya | C57: Afaq | D57: Markaz Afaq | E57: AL-Qati | F57: القاطع | G57: 32.05376398 | H57: 45.23339976 | I57: 0 | J57: 0 | K57: 0 | L57: 0 | M57: 6 | N57: 0 | O57: 0 | P57: 6
A58: 24149 | B58: Al-Qadissiya | C58: Al-Diwaniya | D58: Al-Daghara | E58: Hay Al Shahada | F58: حي الشهداء | G58: 32.13574978 | H58: 44.9305148 | I58: 0 | J58: 0 | K58: 0 | L58: 0 | M58: 24 | N58: 0 | O58: 0 | P58: 24
A59: 24739 | B59: Al-Qadissiya | C59: Al-Diwaniya | D59: Al-Daghara | E59: Hay Al Mulmeen | F59: حي المعلمين | G59: 32.13624244 | H59: 44.93634447 | I59: 0 | J59: 0 | K59: 0 | L59: 0 | M59: 12 | N59: 0 | O59: 0 | P59: 12
A60: 25071 | B60: Al-Qadissiya | C60: Al-Diwaniya | D60: Al-Saniya | E60: Al-Jabaar village | F60: قرية ال جبار | G60: 32.03198909 | H60: 44.7900744 | I60: 0 | J60: 0 | K60: 0 | L60: 0 | M60: 24 | N60: 0 | O60: 0 | P60: 24
A61: 24905 | B61: Al-Qadissiya | C61: Al-Diwaniya | D61: Al-Saniya | E61: Al himran village | F61: قرية الحمران | G61: 32.03778581 | H61: 44.78347317 | I61: 0 | J61: 0 | K61: 0 | L61: 0 | M61: 24 | N61: 0 | O61: 0 | P61: 24
A62: 2621 | B62: Al-Qadissiya | C62: Al-Diwaniya | D62: Al-Saniya | E62: Albu Khnefis village | F62: قرية البو خنيفس | G62: 32.02096534 | H62: 44.86054918 | I62: 0 | J62: 0 | K62: 0 | L62: 0 | M62: 12 | N62: 0 | O62: 0 | P62: 12
A63: 24436 | B63: Al-Qadissiya | C63: Al-Diwaniya | D63: Al-Saniya | E63: Albo Hasan village | F63: قرية البو حسن | G63: 32.02082742 | H63: 44.81889837 | I63: 0 | J63: 0 | K63: 0 | L63: 0 | M63: 12 | N63: 0 | O63: 0 | P63: 12
A64: 25070 | B64: Al-Qadissiya | C64: Al-Diwaniya | D64: Al-Saniya | E64: Hay Al-Hussain | F64: حي الحسين | G64: 32.0701463 | H64: 44.76765688 | I64: 0 | J64: 0 | K64: 0 | L64: 0 | M64: 24 | N64: 0 | O64: 0 | P64: 24
A65: 25568 | B65: Al-Qadissiya | C65: Al-Diwaniya | D65: Al-Saniya | E65: Hay Al-Amin 2 | F65: حي الامين 2 | G65: 32.00629877 | H65: 44.84477322 | I65: 0 | J65: 0 | K65: 0 | L65: 0 | M65: 24 | N65: 0 | O65: 0 | P65: 24
A66: 24382 | B66: Al-Qadissiya | C66: Al-Diwaniya | D66: Al-Shafeia | E66: Hay Al Shomos | F66: حي الشموس | G66: 32.00180139 | H66: 44.86404724 | I66: 0 | J66: 0 | K66: 0 | L66: 0 | M66: 12 | N66: 0 | O66: 0 | P66: 12
A67: 24904 | B67: Al-Qadissiya | C67: Al-Diwaniya | D67: Al-Shafeia | E67: Um tibashi village | F67: قرية ام طباشي | G67: 32.00728063 | H67: 44.85389521 | I67: 0 | J67: 0 | K67: 0 | L67: 0 | M67: 12 | N67: 0 | O67: 0 | P67: 12
A68: 24381 | B68: Al-Qadissiya | C68: Al-Diwaniya | D68: Al-Shafeia | E68: Al-Taqiya 2 | F68: التقية الثانية | G68: 31.97036245 | H68: 44.89118747 | I68: 0 | J68: 0 | K68: 0 | L68: 0 | M68: 12 | N68: 0 | O68: 0 | P68: 12
A69: 22326 | B69: Al-Qadissiya | C69: Al-Diwaniya | D69: Markaz Al-Diwaniya | E69: Al Mojamaa Al Sakani | F69: المجمع السكني | G69: 31.98188312 | H69: 44.97298646 | I69: 0 | J69: 0 | K69: 0 | L69: 126 | M69: 0 | N69: 0 | O69: 0 | P69: 126
A70: 2943 | B70: Al-Qadissiya | C70: Al-Diwaniya | D70: Markaz Al-Diwaniya | E70: Al hamad village | F70: قرية الحمد | G70: 32.00409165 | H70: 44.99900237 | I70: 0 | J70: 0 | K70: 0 | L70: 0 | M70: 36 | N70: 0 | O70: 0 | P70: 36
A71: 25370 | B71: Al-Qadissiya | C71: Al-Diwaniya | D71: Markaz Al-Diwaniya | E71: Al-Mawqee Al-Askary | F71: الموقع العسكري | G71: 31.98093842 | H71: 44.92415211 | I71: 0 | J71: 0 | K71: 18 | L71: 0 | M71: 0 | N71: 0 | O71: 0 | P71: 18
A72: 22452 | B72: Al-Qadissiya | C72: Al-Diwaniya | D72: Markaz Al-Diwaniya | E72: Qaryat Al Ensaf | F72: قرية الانصاف | G72: 31.99916497 | H72: 45.01540678 | I72: 0 | J72: 0 | K72: 0 | L72: 0 | M72: 18 | N72: 0 | O72: 0 | P72: 18
A73: 24583 | B73: Al-Qadissiya | C73: Al-Hamza | D73: Al-Sadeer | E73: Al-Marshad village | F73: قرية المرشد | G73: 31.8604446 | H73: 44.9292598 | I73: 0 | J73: 0 | K73: 0 | L73: 0 | M73: 6 | N73: 0 | O73: 0 | P73: 6
A74: 25285 | B74: Al-Qadissiya | C74: Al-Hamza | D74: Al-Sadeer | E74: Hay Al-Askary | F74: حي العسكري | G74: 31.82547375 | H74: 44.94278593 | I74: 0 | J74: 0 | K74: 0 | L74: 0 | M74: 6 | N74: 0 | O74: 0 | P74: 6
A75: 2749 | B75: Al-Qadissiya | C75: Al-Shamiya | D75: Al-Mihanawiya | E75: Hay Al-aaskary al-gharby | F75: حي العسكري الغربي | G75: 31.95724825 | H75: 44.57361613 | I75: 0 | J75: 0 | K75: 0 | L75: 0 | M75: 6 | N75: 0 | O75: 0 | P75: 6
A76: 24095 | B76: Al-Sulaymaniyah | C76: Al-Sulaymaniyah | D76: Qaradagh | E76: Rizgari-Arbat | F76: رزكارى | G76: 35.4276592 | H76: 45.58655862 | I76: 0 | J76: 0 | K76: 84 | L76: 0 | M76: 0 | N76: 0 | O76: 0 | P76: 84
A77: 21021 | B77: Al-Sulaymaniyah | C77: Al-Sulaymaniyah | D77: Qaradagh | E77: Sabun karan Qt | F77: صابن كران | G77: 35.5536541 | H77: 45.4458314 | I77: 0 | J77: 36 | K77: 0 | L77: 0 | M77: 0 | N77: 0 | O77: 0 | P77: 36
A78: 21287 | B78: Al-Sulaymaniyah | C78: Al-Sulaymaniyah | D78: Sarchnar | E78: Chwar Chra | F78: جوارجرا | G78: 35.5420488 | H78: 45.4011283 | I78: 0 | J78: 0 | K78: 0 | L78: 0 | M78: 12 | N78: 0 | O78: 0 | P78: 12
A79: 33146 | B79: Al-Sulaymaniyah | C79: Chamchamal | D79: Kadr Karam | E79: Qalkhanlu Khwar Village | F79: قرية قلخانلو السفلى | G79: 35.1100651 | H79: 44.6613463 | I79: 12 | J79: 0 | K79: 0 | L79: 0 | M79: 0 | N79: 0 | O79: 0 | P79: 12
A80: 20420 | B80: Al-Sulaymaniyah | C80: Chamchamal | D80: Kadr Karam | E80: Haidarasor | F80: قرية حيدرسور | G80: 35.002364 | H80: 44.8642712 | I80: 12 | J80: 0 | K80: 0 | L80: 0 | M80: 0 | N80: 0 | O80: 0 | P80: 12
A81: 24688 | B81: Al-Sulaymaniyah | C81: Chamchamal | D81: Markaz Chamchamal | E81: Asuda | F81: اسودة | G81: 35.52697274 | H81: 44.81462323 | I81: 30 | J81: 0 | K81: 12 | L81: 0 | M81: 0 | N81: 0 | O81: 0 | P81: 42
A82: 4838 | B82: Al-Sulaymaniyah | C82: Dokan | D82: Sourdash | E82: Mughagh | F82: مغاغ | G82: 35.78373637 | H82: 45.11336097 | I82: 0 | J82: 0 | K82: 0 | L82: 0 | M82: 0 | N82: 12 | O82: 0 | P82: 12
A83: 25880 | B83: Babil | C83: Al-Hashimiya | D83: Al-Qasim | E83: Hay Al Zahraa-Qassim | F83: حي الزهراء-القاسم | G83: 32.29843793 | H83: 44.69027481 | I83: 0 | J83: 6 | K83: 0 | L83: 0 | M83: 0 | N83: 0 | O83: 0 | P83: 6
A84: 23950 | B84: Babil | C84: Al-Hilla | D84: Abi Gharaq | E84: Qas Sowelem-Compound | F84: كص سويلم-المجمع السكني | G84: 32.41754562 | H84: 44.40687833 | I84: 0 | J84: 0 | K84: 24 | L84: 0 | M84: 0 | N84: 0 | O84: 0 | P84: 24
A85: 26094 | B85: Babil | C85: Al-Mahaweel | D85: Markaz Al-Mahawil | E85: Hay Al-Jamhoreiah | F85: حي الجمهوري | G85: 32.66164469 | H85: 44.40033883 | I85: 0 | J85: 0 | K85: 6 | L85: 0 | M85: 0 | N85: 0 | O85: 0 | P85: 6
A86: 7128 | B86: Babil | C86: Al-Mussyab | D86: Al-Iskandaria | E86: Abo Luka | F86: ناحيه الاسكندريه-ابولوكه | G86: 32.80526361 | H86: 44.30276 | I86: 30 | J86: 0 | K86: 0 | L86: 0 | M86: 0 | N86: 0 | O86: 0 | P86: 30
A87: 24169 | B87: Babil | C87: Al-Mussyab | D87: Jurf Al-Sakhar | E87: Hay Al Ghadeer 4 | F87: الغدير 4 | G87: 32.77733094 | H87: 44.26401335 | I87: 0 | J87: 0 | K87: 0 | L87: 0 | M87: 0 | N87: 0 | O87: 36 | P87: 36
A88: 24983 | B88: Babil | C88: Al-Mussyab | D88: Jurf Al-Sakhar | E88: Hay Alaskary-AlThaghet | F88: حي العسكري-الضغط | G88: 32.78972964 | H88: 44.26553415 | I88: 0 | J88: 210 | K88: 0 | L88: 0 | M88: 0 | N88: 0 | O88: 0 | P88: 210
A89: 24164 | B89: Babil | C89: Al-Mussyab | D89: Jurf Al-Sakhar | E89: Al Hamiyah Al Amer Village | F89: الحامية-قرية ال عامر | G89: 32.80166667 | H89: 44.27527778 | I89: 0 | J89: 36 | K89: 0 | L89: 0 | M89: 0 | N89: 0 | O89: 0 | P89: 36
A90: 29582 | B90: Babil | C90: Al-Mussyab | D90: Jurf Al-Sakhar | E90: Hay Al Moatnen 1 | F90: حي المواطنين 1 | G90: 32.78803072 | H90: 44.26797728 | I90: 0 | J90: 24 | K90: 0 | L90: 0 | M90: 0 | N90: 0 | O90: 0 | P90: 24
A91: 24168 | B91: Babil | C91: Al-Mussyab | D91: Jurf Al-Sakhar | E91: Al Ghadeer 2 | F91: الغدير 2 | G91: 32.78397604 | H91: 44.26680029 | I91: 0 | J91: 0 | K91: 0 | L91: 0 | M91: 0 | N91: 0 | O91: 48 | P91: 48
A92: 24165 | B92: Babil | C92: Al-Mussyab | D92: Jurf Al-Sakhar | E92: Al Hamiyah-Oayef village | F92: الحامية-قرية عويف | G92: 32.80751183 | H92: 44.26748722 | I92: 0 | J92: 54 | K92: 0 | L92: 0 | M92: 0 | N92: 0 | O92: 0 | P92: 54
A93: 24171 | B93: Babil | C93: Al-Mussyab | D93: Jurf Al-Sakhar | E93: Hay Al Moatnen 3 | F93: حي المواطنين 3 | G93: 32.78355036 | H93: 44.26641899 | I93: 0 | J93: 60 | K93: 0 | L93: 0 | M93: 0 | N93: 0 | O93: 0 | P93: 60
A94: 7126 | B94: Babil | C94: Al-Mussyab | D94: Jurf Al-Sakhar | E94: Al Hamiyah-Al Mutaqedin 1 | F94: الحامية-المتقاعدين 1 | G94: 32.81393002 | H94: 44.26428293 | I94: 0 | J94: 150 | K94: 0 | L94: 0 | M94: 0 | N94: 0 | O94: 0 | P94: 150
A95: 21173 | B95: Baghdad | C95: Al-Kadhmiyah | D95: Abu Ghraib | E95: 1 Athar | F95: 1 اذار | G95: 33.300602 | H95: 44.1836993 | I95: 12 | J95: 30 | K95: 0 | L95: 0 | M95: 0 | N95: 0 | O95: 0 | P95: 42
A96: 7658 | B96: Baghdad | C96: Al-Kadhmiyah | D96: Abu Ghraib | E96: Al-Resalah | F96: الرسالة | G96: 33.2981074 | H96: 44.1198344 | I96: 60 | J96: 78 | K96: 0 | L96: 0 | M96: 0 | N96: 0 | O96: 0 | P96: 138
A97: 24039 | B97: Baghdad | C97: Al-Kadhmiyah | D97: Abu Ghraib | E97: Hay Al Zohor | F97: حي الزهور | G97: 33.307966 | H97: 44.1857611 | I97: 30 | J97: 0 | K97: 0 | L97: 0 | M97: 0 | N97: 0 | O97: 0 | P97: 30
A98: 24047 | B98: Baghdad | C98: Al-Kadhmiyah | D98: Abu Ghraib | E98: Abo Moniaser | F98: ابو منيصير | G98: 33.2974117 | H98: 44.0954705 | I98: 24 | J98: 204 | K98: 0 | L98: 0 | M98: 0 | N98: 0 | O98: 0 | P98: 228
A99: 31713 | B99: Baghdad | C99: Al-Kadhmiyah | D99: Abu Ghraib | E99: Shuhada Markza-Shuhadda the first | F99: الشهداءالمركز-شهداء الاولى | G99: 33.3009359 | H99: 44.1420854 | I99: 90 | J99: 114 | K99: 0 | L99: 0 | M99: 0 | N99: 0 | O99: 0 | P99: 204
A100: 31714 | B100: Baghdad | C100: Al-Kadhmiyah | D100: Abu Ghraib | E100: Shuhada Markza-Shuhdda the second | F100: الشهداء المركز-شهداء الثانية | G100: 33.3076704 | H100: 44.1432889 | I100: 30 | J100: 600 | K100: 0 | L100: 0 | M100: 0 | N100: 0 | O100: 0 | P100: 630
A101: 7671 | B101: Baghdad | C101: Al-Kadhmiyah | D101: Abu Ghraib | E101: 1 Huzairan | F101: 1 حزيران | G101: 33.3023826 | H101: 44.1393425 | I101: 0 | J101: 30 | K101: 0 | L101: 0 | M101: 0 | N101: 0 | O101: 0 | P101: 30
A102: 25128 | B102: Baghdad | C102: Al-Kadhmiyah | D102: Abu Ghraib | E102: Khernabat-South | F102: خرنابات الجنوبيه | G102: 33.3227163 | H102: 44.1942128 | I102: 42 | J102: 24 | K102: 0 | L102: 0 | M102: 0 | N102: 0 | O102: 0 | P102: 66
A103: 25126 | B103: Baghdad | C103: Al-Kadhmiyah | D103: Abu Ghraib | E103: Khan Dhari Center | F103: خان ضاري مركز | G103: 33.2980734 | H103: 44.0603843 | I103: 30 | J103: 0 | K103: 0 | L103: 0 | M103: 0 | N103: 0 | O103: 0 | P103: 30
A104: 22050 | B104: Baghdad | C104: Al-Kadhmiyah | D104: Abu Ghraib | E104: Hay Ashbilia | F104: حي اشبيليه | G104: 33.3084816 | H104: 44.1671145 | I104: 18 | J104: 0 | K104: 0 | L104: 0 | M104: 0 | N104: 0 | O104: 0 | P104: 18
A105: 34292 | B105: Baghdad | C105: Al-Kadhmiyah | D105: Abu Ghraib | E105: Hamed Shaban | F105: حميد شعبان | G105: 33.295247 | H105: 44.133117 | I105: 0 | J105: 66 | K105: 0 | L105: 0 | M105: 0 | N105: 0 | O105: 0 | P105: 66
A106: 24034 | B106: Baghdad | C106: Al-Kadhmiyah | D106: Abu Ghraib | E106: Hay Al Ghawassah | F106: حي الغواصة | G106: 33.2962605 | H106: 44.1447545 | I106: 0 | J106: 54 | K106: 0 | L106: 0 | M106: 0 | N106: 0 | O106: 0 | P106: 54
A107: 7709 | B107: Baghdad | C107: Al-Kadhmiyah | D107: Abu Ghraib | E107: North Khernabat | F107: خرنابات الشمالية | G107: 33.3269536 | H107: 44.1931925 | I107: 12 | J107: 0 | K107: 0 | L107: 0 | M107: 0 | N107: 0 | O107: 0 | P107: 12
A108: 31715 | B108: Baghdad | C108: Al-Kadhmiyah | D108: Abu Ghraib | E108: Shuhada Markza-Shuhadda the third | F108: الشهداء المركز-شهداء الثالثة | G108: 33.3061956 | H108: 44.1406122 | I108: 48 | J108: 18 | K108: 0 | L108: 0 | M108: 0 | N108: 0 | O108: 0 | P108: 66
A109: 25169 | B109: Baghdad | C109: Al-Kadhmiyah | D109: Al-Taji | E109: Sabea Al Buor-15000 | F109: سبع البور-15000 | G109: 33.4532989 | H109: 44.1582762 | I109: 6 | J109: 0 | K109: 0 | L109: 0 | M109: 0 | N109: 0 | O109: 0 | P109: 6
A110: 27413 | B110: Baghdad | C110: Al-Kadhmiyah | D110: Al-Taji | E110: Al Ahnaf-Al Rakia Fadel village | F110: الأحنف-اركية وفاضل | G110: 33.43497456 | H110: 44.24392406 | I110: 0 | J110: 0 | K110: 12 | L110: 0 | M110: 0 | N110: 0 | O110: 0 | P110: 12
A111: 24061 | B111: Baghdad | C111: Al-Kadhmiyah | D111: Al-Tarmiya | E111: Al Tarmiya Center | F111: مركز الطارمية | G111: 33.66303238 | H111: 44.39890244 | I111: 30 | J111: 0 | K111: 0 | L111: 0 | M111: 0 | N111: 0 | O111: 0 | P111: 30
A112: 25422 | B112: Baghdad | C112: Al-Kadhmiyah | D112: Al-Tarmiya | E112: Hai Al Turba | F112: حي التربة | G112: 33.66355586 | H112: 44.36792717 | I112: 42 | J112: 30 | K112: 0 | L112: 0 | M112: 0 | N112: 0 | O112: 0 | P112: 72
A113: 25421 | B113: Baghdad | C113: Al-Kadhmiyah | D113: Al-Tarmiya | E113: Hai Al Wehda | F113: حي الوحدة | G113: 33.67135567 | H113: 44.38319397 | I113: 36 | J113: 0 | K113: 0 | L113: 0 | M113: 0 | N113: 0 | O113: 0 | P113: 36
A114: 25427 | B114: Baghdad | C114: Al-Kadhmiyah | D114: Al-Tarmiya | E114: Abu Sreweel Village | F114: قرية أبو سريويل | G114: 33.6962643 | H114: 44.41488843 | I114: 24 | J114: 0 | K114: 0 | L114: 0 | M114: 0 | N114: 0 | O114: 0 | P114: 24
A115: 25418 | B115: Baghdad | C115: Al-Kadhmiyah | D115: Al-Tarmiya | E115: Hai Al Resala | F115: حي الرسالة | G115: 33.66571757 | H115: 44.39279237 | I115: 0 | J115: 24 | K115: 0 | L115: 0 | M115: 0 | N115: 0 | O115: 0 | P115: 24
A116: 25426 | B116: Baghdad | C116: Al-Kadhmiyah | D116: Al-Tarmiya | E116: Nadeem-2 Village | F116: قرية نديم-2 | G116: 33.59057448 | H116: 44.2388131 | I116: 30 | J116: 0 | K116: 0 | L116: 0 | M116: 0 | N116: 0 | O116: 0 | P116: 30
A117: 25416 | B117: Baghdad | C117: Al-Kadhmiyah | D117: Al-Tarmiya | E117: Al Farook Quarter-1 | F117: حي الفاروق-1 | G117: 33.6597764 | H117: 44.38952615 | I117: 30 | J117: 24 | K117: 0 | L117: 0 | M117: 0 | N117: 0 | O117: 0 | P117: 54
A118: 25420 | B118: Baghdad | C118: Al-Kadhmiyah | D118: Al-Tarmiya | E118: Hai Al Sedeq | F118: حي الصديق | G118: 33.6639399 | H118: 44.37533264 | I118: 0 | J118: 78 | K118: 0 | L118: 0 | M118: 0 | N118: 0 | O118: 0 | P118: 78
A119: 25417 | B119: Baghdad | C119: Al-Kadhmiyah | D119: Al-Tarmiya | E119: Al Farook Quarter-2 | F119: حي الفاروق-2 | G119: 33.66161588 | H119: 44.39424197 | I119: 30 | J119: 0 | K119: 0 | L119: 0 | M119: 0 | N119: 0 | O119: 0 | P119: 30
A120: 25423 | B120: Baghdad | C120: Al-Kadhmiyah | D120: Al-Tarmiya | E120: Hai Al Qadessia-1 | F120: حي القادسية-1 | G120: 33.66785621 | H120: 44.37779603 | I120: 30 | J120: 0 | K120: 0 | L120: 0 | M120: 0 | N120: 0 | O120: 0 | P120: 30
A121: 25419 | B121: Baghdad | C121: Al-Kadhmiyah | D121: Al-Tarmiya | E121: Hai Al Hukem Al Mahali | F121: حي الحكم المحلي | G121: 33.66384018 | H121: 44.38142646 | I121: 0 | J121: 24 | K121: 0 | L121: 0 | M121: 0 | N121: 0 | O121: 0 | P121: 24
A122: 23733 | B122: Baghdad | C122: Al-Karkh | D122: Al-Mamoon | E122: Arab jbor | F122: عرب جبور | G122: 33.19973241 | H122: 44.47091846 | I122: 30 | J122: 0 | K122: 0 | L122: 0 | M122: 0 | N122: 0 | O122: 0 | P122: 30
A123: 23734 | B123: Baghdad | C123: Al-Karkh | D123: Al-Mansour | E123: Al Ghazaliya-681 | F123: الغزالية-681 | G123: 33.33075272 | H123: 44.27745651 | I123: 0 | J123: 0 | K123: 0 | L123: 0 | M123: 60 | N123: 0 | O123: 0 | P123: 60
A124: 25221 | B124: Baghdad | C124: Al-Karkh | D124: Al-Mansour | E124: Al Forat-893 | F124: الفرات-893 | G124: 33.27585335 | H124: 44.27571666 | I124: 0 | J124: 0 | K124: 120 | L124: 0 | M124: 0 | N124: 0 | O124: 0 | P124: 120
A125: 7547 | B125: Baghdad | C125: Al-Mada'in | D125: Al-Jisr | E125: Al Wardia | F125: الوردية | G125: 33.18254483 | H125: 44.54256956 | I125: 0 | J125: 108 | K125: 0 | L125: 0 | M125: 0 | N125: 0 | O125: 0 | P125: 108
A126: 34160 | B126: Baghdad | C126: Al-Mada'in | D126: Al-Wihda | E126: Al-Ahed village | F126: قرية العهد | G126: 33.3155757 | H126: 44.661487 | I126: 0 | J126: 210 | K126: 0 | L126: 0 | M126: 0 | N126: 0 | O126: 0 | P126: 210
A127: 25152 | B127: Baghdad | C127: Al-Mahmoudiya | D127: Al-Latifya | E127: Kilo 18 | F127: كيلو 18 | G127: 32.9631896 | H127: 44.36297354 | I127: 0 | J127: 2,442 | K127: 0 | L127: 0 | M127: 0 | N127: 0 | O127: 0 | P127: 2,442
A128: 25153 | B128: Baghdad | C128: Al-Mahmoudiya | D128: Al-Latifya | E128: Kilo 31 | F128: كيلو 31 | G128: 32.90825011 | H128: 44.3994687 | I128: 24 | J128: 0 | K128: 0 | L128: 0 | M128: 0 | N128: 0 | O128: 0 | P128: 24
A129: 23618 | B129: Baghdad | C129: Al-Mahmoudiya | D129: Al-Latifya | E129: 14 Tamooz | F129: حي 14 تموز | G129: 32.96238873 | H129: 44.35447619 | I129: 90 | J129: 426 | K129: 0 | L129: 30 | M129: 0 | N129: 0 | O129: 0 | P129: 546
A130: 25149 | B130: Baghdad | C130: Al-Mahmoudiya | D130: Al-Latifya | E130: Al Latefia-Al Salam | F130: اللطيفية-السلام | G130: 32.995505 | H130: 44.36041983 | I130: 102 | J130: 0 | K130: 0 | L130: 0 | M130: 0 | N130: 0 | O130: 0 | P130: 102
A131: 25150 | B131: Baghdad | C131: Al-Mahmoudiya | D131: Al-Latifya | E131: Al Latefia-Al Qadessia | F131: اللطيفية-حي القادسية | G131: 32.97002439 | H131: 44.35341187 | I131: 120 | J131: 1,332 | K131: 0 | L131: 0 | M131: 0 | N131: 0 | O131: 0 | P131: 1,452
A132: 7615 | B132: Baghdad | C132: Al-Mahmoudiya | D132: Al-Latifya | E132: Hay Al-Askary | F132: حي العسكري | G132: 33.00901095 | H132: 44.36494889 | I132: 12 | J132: 12 | K132: 0 | L132: 0 | M132: 0 | N132: 0 | O132: 0 | P132: 24
A133: 7733 | B133: Baghdad | C133: Al-Mahmoudiya | D133: Al-Latifya | E133: Hay Al Zuhoor | F133: حي الزهور | G133: 32.99891391 | H133: 44.36657974 | I133: 72 | J133: 504 | K133: 0 | L133: 0 | M133: 0 | N133: 0 | O133: 0 | P133: 576
A134: 21463 | B134: Baghdad | C134: Al-Mahmoudiya | D134: Al-Latifya | E134: Hay Al Mazraa | F134: حي المزرعة | G134: 33.00417507 | H134: 44.36737038 | I134: 12 | J134: 36 | K134: 0 | L134: 0 | M134: 0 | N134: 0 | O134: 0 | P134: 48
A135: 34229 | B135: Baghdad | C135: Al-Mahmoudiya | D135: Al-Yousifya | E135: Abu jaishy village | F135: قرية ابو جيشي | G135: 33.138818 | H135: 44.215703 | I135: 0 | J135: 582 | K135: 0 | L135: 0 | M135: 0 | N135: 0 | O135: 0 | P135: 582
A136: 34230 | B136: Baghdad | C136: Al-Mahmoudiya | D136: Al-Yousifya | E136: Ahmed Abdullah village | F136: قرية احمد عبد الله | G136: 33.1414504 | H136: 44.2122119 | I136: 0 | J136: 648 | K136: 0 | L136: 0 | M136: 0 | N136: 0 | O136: 0 | P136: 648
A137: 21745 | B137: Baghdad | C137: Al-Risafa | D137: Al-Karrada Al-Sharqia | E137: Al Karkh-212 | F137: الكرخ-212 | G137: 33.33968099 | H137: 44.38086383 | I137: 0 | J137: 0 | K137: 0 | L137: 0 | M137: 0 | N137: 66 | O137: 0 | P137: 66
A138: 25969 | B138: Baghdad | C138: Al-Risafa | D138: Baghdad Al-Jedeeda | E138: Zayona | F138: مخيم زيونة | G138: 33.3177568 | H138: 44.44695717 | I138: 0 | J138: 558 | K138: 0 | L138: 0 | M138: 0 | N138: 0 | O138: 0 | P138: 558
A139: 25804 | B139: Diyala | C139: Al-Muqdadiya | D139: Markaz Al-Muqdadiya | E139: Al Mataar Qtr | F139: حي المطار | G139: 33.98943701 | H139: 44.94954431 | I139: 18 | J139: 0 | K139: 0 | L139: 0 | M139: 0 | N139: 0 | O139: 0 | P139: 18
A140: 11411 | B140: Diyala | C140: Baquba | D140: Beni Saad | E140: Al Sabtiyah village | F140: قرية السبتية | G140: 33.78342225 | H140: 44.62301762 | I140: 18 | J140: 0 | K140: 0 | L140: 0 | M140: 0 | N140: 0 | O140: 0 | P140: 18
A141: 21413 | B141: Diyala | C141: Baquba | D141: Beni Saad | E141: Al-Mualimeen-Shahid wadah Qtr | F141: حي المعلمين-الشهيد وضاح | G141: 33.72840161 | H141: 44.61132193 | I141: 0 | J141: 0 | K141: 66 | L141: 0 | M141: 0 | N141: 0 | O141: 0 | P141: 66
A142: 11189 | B142: Diyala | C142: Baquba | D142: Beni Saad | E142: Al Mafraq | F142: المفرق | G142: 33.74319557 | H142: 44.6104473 | I142: 168 | J142: 0 | K142: 192 | L142: 0 | M142: 0 | N142: 0 | O142: 0 | P142: 360
A143: 24805 | B143: Diyala | C143: Baquba | D143: Beni Saad | E143: Al Gatoon-Al Yarmook Qtr | F143: الكاطون-حي اليرموك | G143: 33.72419303 | H143: 44.6079515 | I143: 336 | J143: 0 | K143: 0 | L143: 0 | M143: 0 | N143: 0 | O143: 0 | P143: 336
A144: 21273 | B144: Diyala | C144: Baquba | D144: Beni Saad | E144: Al-Qatoon-Al Raazi Qtr | F144: الكاطون-حي الرازي | G144: 33.73363233 | H144: 44.59700895 | I144: 72 | J144: 0 | K144: 0 | L144: 0 | M144: 0 | N144: 0 | O144: 0 | P144: 72
A145: 24915 | B145: Diyala | C145: Baquba | D145: Beni Saad | E145: Al Gatoon-Al rahma | F145: الكاطون-الرحمة | G145: 33.75780234 | H145: 44.59200923 | I145: 156 | J145: 0 | K145: 0 | L145: 0 | M145: 0 | N145: 0 | O145: 0 | P145: 156
A146: 23966 | B146: Diyala | C146: Baquba | D146: Beni Saad | E146: Al Hadid | F146: الحديد | G146: 33.76864999 | H146: 44.5628627 | I146: 0 | J146: 0 | K146: 60 | L146: 0 | M146: 0 | N146: 0 | O146: 0 | P146: 60
A147: 23694 | B147: Diyala | C147: Baquba | D147: Beni Saad | E147: Al Intesar-1 Qtr | F147: حي الانتصار 1 | G147: 33.58422006 | H147: 44.55428868 | I147: 30 | J147: 0 | K147: 0 | L147: 0 | M147: 0 | N147: 0 | O147: 0 | P147: 30
A148: 11208 | B148: Diyala | C148: Baquba | D148: Buhriz | E148: Muskar Saad Qtr | F148: حي معسكر سعد | G148: 33.75233961 | H148: 44.66649735 | I148: 180 | J148: 60 | K148: 0 | L148: 0 | M148: 0 | N148: 0 | O148: 0 | P148: 240
A149: 25052 | B149: Diyala | C149: Baquba | D149: Kanan | E149: Al Badaa Village | F149: قرية البدعة | G149: 33.66703991 | H149: 44.77086915 | I149: 12 | J149: 0 | K149: 0 | L149: 0 | M149: 0 | N149: 0 | O149: 0 | P149: 12
A150: 24392 | B150: Diyala | C150: Khanaqin | D150: Markaz Khanaqin | E150: Shakir village | F150: قرية شاكر | G150: 34.35472024 | H150: 45.34559185 | I150: 36 | J150: 0 | K150: 0 | L150: 0 | M150: 0 | N150: 0 | O150: 0 | P150: 36
A151: 11047 | B151: Diyala | C151: Khanaqin | D151: Markaz Khanaqin | E151: Tula Frosh Qtr | F151: حي تولا فروش | G151: 34.35788763 | H151: 45.37631834 | I151: 120 | J151: 0 | K151: 0 | L151: 0 | M151: 0 | N151: 0 | O151: 0 | P151: 120
A152: 10528 | B152: Diyala | C152: Khanaqin | D152: Markaz Khanaqin | E152: Mekhas Village | F152: قرية ميخاس(ملا رحمن) | G152: 34.39450948 | H152: 45.3563535 | I152: 18 | J152: 0 | K152: 0 | L152: 0 | M152: 0 | N152: 0 | O152: 0 | P152: 18
A153: 10676 | B153: Diyala | C153: Khanaqin | D153: Markaz Khanaqin | E153: Arkawazi Qtr | F153: حي اركوازي | G153: 34.33118201 | H153: 45.40113561 | I153: 78 | J153: 0 | K153: 0 | L153: 0 | M153: 0 | N153: 0 | O153: 0 | P153: 78
A154: 24312 | B154: Diyala | C154: Khanaqin | D154: Markaz Khanaqin | E154: Imam Abass Qtr | F154: حي إمام عباس | G154: 34.34230051 | H154: 45.36063392 | I154: 114 | J154: 0 | K154: 0 | L154: 0 | M154: 0 | N154: 0 | O154: 0 | P154: 114
A155: 25342 | B155: Diyala | C155: Khanaqin | D155: Markaz Khanaqin | E155: Sirwan Qtr | F155: حي سيروان | G155: 34.35087595 | H155: 45.41715922 | I155: 30 | J155: 0 | K155: 0 | L155: 0 | M155: 0 | N155: 0 | O155: 0 | P155: 30
A156: 25257 | B156: Diyala | C156: Khanaqin | D156: Markaz Khanaqin | E156: Bakhtiari Qtr | F156: حي بختياري | G156: 34.31795129 | H156: 45.36263465 | I156: 300 | J156: 0 | K156: 0 | L156: 0 | M156: 0 | N156: 0 | O156: 0 | P156: 300
A157: 24393 | B157: Diyala | C157: Khanaqin | D157: Markaz Khanaqin | E157: Zurab village | F157: قرية زوراب | G157: 34.35205123 | H157: 45.34729711 | I157: 36 | J157: 0 | K157: 0 | L157: 0 | M157: 0 | N157: 0 | O157: 0 | P157: 36
A158: 25429 | B158: Diyala | C158: Kifri | D158: Jabarra | E158: Markaz Jabara | F158: جبارة | G158: 34.59461544 | H158: 44.92762571 | I158: 54 | J158: 0 | K158: 0 | L158: 0 | M158: 0 | N158: 0 | O158: 0 | P158: 54
A159: 28428 | B159: Diyala | C159: Kifri | D159: Markaz Kifri | E159: rezgari | F159: رزكاري | G159: 34.6933138 | H159: 44.9612653 | I159: 0 | J159: 0 | K159: 24 | L159: 0 | M159: 0 | N159: 0 | O159: 0 | P159: 24
A160: 10592 | B160: Diyala | C160: Kifri | D160: Qara Tabe | E160: Qaratappa | F160: قره تبه | G160: 34.43519072 | H160: 44.93243147 | I160: 90 | J160: 0 | K160: 0 | L160: 0 | M160: 0 | N160: 0 | O160: 0 | P160: 90
A161: 7896 | B161: Duhok | C161: Al-Amadiya | D161: Sarsank | E161: Benata | F161: بيناتا | G161: 37.0860405 | H161: 43.3760173 | I161: 0 | J161: 0 | K161: 12 | L161: 0 | M161: 0 | N161: 0 | O161: 0 | P161: 12
A162: 7867 | B162: Duhok | C162: Al-Amadiya | D162: Sarsank | E162: Sikreen | F162: سكرين | G162: 37.0389905 | H162: 43.2794053 | I162: 0 | J162: 0 | K162: 6 | L162: 0 | M162: 0 | N162: 0 | O162: 0 | P162: 6
A163: 7860 | B163: Duhok | C163: Al-Amadiya | D163: Sarsank | E163: Inishke | F163: اينشكي | G163: 37.105418 | H163: 43.360688 | I163: 0 | J163: 0 | K163: 36 | L163: 0 | M163: 0 | N163: 0 | O163: 0 | P163: 36
A164: 7788 | B164: Duhok | C164: Al-Amadiya | D164: Sarsank | E164: Hamza | F164: همزا | G164: 37.11834568 | H164: 43.16602926 | I164: 0 | J164: 0 | K164: 6 | L164: 0 | M164: 0 | N164: 0 | O164: 0 | P164: 6
A165: 8419 | B165: Duhok | C165: Al-Amadiya | D165: Sarsank | E165: Shekh Mama | F165: شيخ مما | G165: 37.0805725 | H165: 43.26021066 | I165: 0 | J165: 0 | K165: 12 | L165: 0 | M165: 0 | N165: 0 | O165: 0 | P165: 12
A166: 7835 | B166: Duhok | C166: Al-Amadiya | D166: Sarsank | E166: Sarsink | F166: سرسنك | G166: 37.0390861 | H166: 43.3435935 | I166: 0 | J166: 0 | K166: 18 | L166: 0 | M166: 0 | N166: 0 | O166: 0 | P166: 18
A167: 8238 | B167: Duhok | C167: Duhok | D167: Al-Duski | E167: Kovle | F167: كوفلي | G167: 37.0462129 | H167: 43.1386217 | I167: 0 | J167: 0 | K167: 18 | L167: 0 | M167: 0 | N167: 0 | O167: 0 | P167: 18
A168: 24186 | B168: Duhok | C168: Duhok | D168: Markaz Duhok | E168: Zirka | F168: زركا | G168: 36.8751441 | H168: 42.9303401 | I168: 0 | J168: 0 | K168: 168 | L168: 0 | M168: 0 | N168: 0 | O168: 0 | P168: 168
A169: 26047 | B169: Duhok | C169: Duhok | D169: Markaz Duhok | E169: Botan | F169: بوتان | G169: 36.8638715 | H169: 42.9722146 | I169: 0 | J169: 0 | K169: 24 | L169: 0 | M169: 0 | N169: 0 | O169: 0 | P169: 24
A170: 24802 | B170: Duhok | C170: Duhok | D170: Markaz Duhok | E170: Mazi | F170: مازي | G170: 36.85652 | H170: 42.976289 | I170: 0 | J170: 0 | K170: 6 | L170: 0 | M170: 0 | N170: 0 | O170: 0 | P170: 6
A171: 24801 | B171: Duhok | C171: Duhok | D171: Zawita | E171: Bagera | F171: باكيرا | G171: 36.9657757 | H171: 43.1702511 | I171: 0 | J171: 0 | K171: 0 | L171: 36 | M171: 0 | N171: 0 | O171: 0 | P171: 36
A172: 25898 | B172: Duhok | C172: Duhok | D172: Zawita | E172: Avrike | F172: افريكي | G172: 36.831657 | H172: 43.1188347 | I172: 0 | J172: 12 | K172: 48 | L172: 0 | M172: 0 | N172: 0 | O172: 0 | P172: 60
A173: 8538 | B173: Duhok | C173: Duhok | D173: Zawita | E173: Banye | F173: باني | G173: 36.9105242 | H173: 43.2363018 | I173: 0 | J173: 0 | K173: 522 | L173: 0 | M173: 0 | N173: 0 | O173: 0 | P173: 522
A174: 7946 | B174: Duhok | C174: Duhok | D174: Zawita | E174: Nazarke | F174: نزاركي | G174: 36.842476 | H174: 43.0587682 | I174: 0 | J174: 0 | K174: 54 | L174: 0 | M174: 0 | N174: 0 | O174: 0 | P174: 54
A175: 8468 | B175: Duhok | C175: Duhok | D175: Zawita | E175: Rashanke | F175: رشانكي | G175: 36.9300248 | H175: 43.1983966 | I175: 0 | J175: 0 | K175: 24 | L175: 0 | M175: 0 | N175: 0 | O175: 0 | P175: 24
A176: 8871 | B176: Duhok | C176: Duhok | D176: Zawita | E176: Kora | F176: كورا | G176: 36.9342014 | H176: 43.1478887 | I176: 0 | J176: 0 | K176: 6 | L176: 0 | M176: 0 | N176: 0 | O176: 0 | P176: 6
A177: 7949 | B177: Duhok | C177: Duhok | D177: Zawita | E177: Eminke | F177: امينكي | G177: 36.8606393 | H177: 43.0952888 | I177: 0 | J177: 0 | K177: 102 | L177: 0 | M177: 0 | N177: 0 | O177: 0 | P177: 102
A178: 24628 | B178: Duhok | C178: Duhok | D178: Zawita | E178: Etit | F178: ايتيت | G178: 36.8446575 | H178: 43.0842642 | I178: 0 | J178: 0 | K178: 12 | L178: 0 | M178: 0 | N178: 0 | O178: 0 | P178: 12
A179: 8476 | B179: Duhok | C179: Sumail | D179: Bateel | E179: Soriya | F179: صوريا | G179: 37.0030102 | H179: 42.485174 | I179: 0 | J179: 6 | K179: 108 | L179: 0 | M179: 0 | N179: 0 | O179: 0 | P179: 114
A180: 8196 | B180: Duhok | C180: Sumail | D180: Bateel | E180: Batel | F180: باتيل | G180: 36.961097 | H180: 42.6809076 | I180: 0 | J180: 0 | K180: 24 | L180: 0 | M180: 0 | N180: 0 | O180: 0 | P180: 24
